Workbook

Sheet NOMBRE (hidden)
A1: DATOS DEL ESTABLECIMIENTO | C1: CÓDIGOS
A2: NOMBRE DE COMUNA | I2: =IF(OR(NOMBRE!C2="",NOMBRE!D2="",NOMBRE!E2="",NOMBRE!F2="",NOMBRE!G2=""),"Falta Cód. Com.","") -> Falta Cód. Com. | AG2: =IF(I2>"",1,0) -> 1
A3: NOMBRE ESTABLECIMIENTO/ESTRATEGIA | I3: =IF(OR(NOMBRE!C3="",NOMBRE!D3="",NOMBRE!E3="",NOMBRE!F3="",NOMBRE!G3="",NOMBRE!H3=""),"Falta Cód. Est.","") -> Falta Cód. Est. | AG3: =IF(I3>"",1,0) -> 1
A4: TIPO DE ESTABLECIMIENTO/ESTRATEGIA | I4: =IF(OR(NOMBRE!B4=""),"Falta Tipo. Est.","") -> Falta Tipo. Est. | AG4: =IF(I4>"",1,0) -> 1
A5: DEPENDENCIA | I5: =IF(OR(NOMBRE!B5=""),"Falta Dependencia. Est.","") -> Falta Dependencia. Est. | AG5: =IF(I5>"",1,0) -> 1
A6: MES: | I6: =IF(OR(NOMBRE!C6="",NOMBRE!D6=""),"Falta Cód. Mes.","") -> Falta Cód. Mes. | AG6: =IF(I6>"",1,0) -> 1
A7: AÑO: | B7: 2023 | AG7: =SUM(AG2:AG6) -> 5
A9: Versión 1.4: Mayo 2023 | G9: Para habilitar el contenido de las celdas "Tipo de Establecimiento", "Dependencia" y "Mes", presione el boton "Verificar Habilitacion de Macros". Para poder tener un 100% de funcionalidad debe hablitar la opcion Macros en esta planilla.
A11: Director Servicio de Salud o Director Establecimiento | AA11: ENERO | AB11: Establecimiento de Mayor Complejidad (EMAYC) | AC11: SERVICIO DE SALUD
A12: Jefe de Estadísticas | AA12: FEBRERO | AB12: Establecimiento de Mediana Complejidad (EMEDC) | AC12: MUNICIPAL
AA13: MARZO | AB13: Establecimiento de Menor Complejidad (EMENC) | AC13: OTRA INSTITUCION (Delegado)
AA14: ABRIL | AB14: Centros de Diagnóstico Terapeutico (CDT)
A15: MINSAL - DEIS | AA15: MAYO | AB15: Centro de Referencia de Salud (CRS)
AA16: JUNIO | AB16: Consultorio General Urbano (CGU)
B17: SERIE A | G17: ESTADO MACROS: | AA17: JULIO | AB17: Consultorio General Urbano (CGU) - CESFAM
I18: HABILITADO | AA18: AGOSTO | AB18: Consultorio General Urbano(CGU) con SAPU/SUR/SAR
AA19: SEPTIEMBRE | AB19: Consultorio General Urbano (CGU) - CESFAM con SAPU/SAR
AA20: OCTUBRE | AB20: Consultorio General Rural (CGR)
AA21: NOVIEMBRE | AB21: Consultorio General Rural (CGR) - CESFAM
AA22: DICIEMBRE | AB22: Consultorio General Rural (CGR) con SAPU/SAR/SUR
AB23: Consultorio General Rural (CGR) - CESFAM con SAPU/SAR/SUR
AB24: Posta de Salud Rural (PSR)
AB25: Centro Comunitario de Salud Familiar (CECOF)
AB26: Consultorio de Salud Mental (COSAM)
AB27: Programa de Reparación y Atención Integral de Salud (PRAIS)
AB28: Centro de Atención Funcionarios (CAF)
AB29: Unidad de Salud de Funcionarios (USF)
AB30: ClÍnica Dental Móvil (CDM)
AB31: Dirección Servicio de Salud (DSS)
AB32: Servicio de Atención Primaria de Urgencia (SAPU)
AB33: Servicio de Atención Primaria de Urgencia de Alta Resolutividad (SAR)
AB34: Servicio de Urgencia Rural (SUR)
AB35: Laboratorio Clínico o Dental
AB36: Servicio de Atención Primaria de Urgencia Dental (SAPUDENT)
AB37: Centro de Rehabilitación (CR)
AB38: Hospital de Campaña
AB39: Centro Oncologico
AB40: SAMU

Sheet Filtro_
A1: Comuna | B1: (Todas)
A2: Establecimiento | B2: (Todas)
A3: Mes | B3: (Todas)
A5: Etiquetas de fila | B5: Suma de Col01 | C5: Suma de Col02 | D5: Suma de Col03 | E5: Suma de Col04 | F5: Suma de Col05 | G5: Suma de Col06 | H5: Suma de Col07 | I5: Suma de Col08 | J5: Suma de Col09 | K5: Suma de Col10 | L5: Suma de Col11 | M5: Suma de Col12 | N5: Suma de Col13 | O5: Suma de Col14 | P5: Suma de Col15 | Q5: Suma de Col16 | R5: Suma de Col17 | S5: Suma de Col18 | T5: Suma de Col19 | U5: Suma de Col20 | V5: Suma de Col21 | W5: Suma de Col22 | X5: Suma de Col23 | Y5: Suma de Col24 | Z5: Suma de Col25 | AA5: Suma de Col26 | AB5: Suma de Col27 | AC5: Suma de Col28 | AD5: Suma de Col29 | AE5: Suma de Col30 | AF5: Suma de Col31 | AG5: Suma de Col32 | AH5: Suma de Col33 | AI5: Suma de Col34 | AJ5: Suma de Col35 | AK5: Suma de Col36 | AL5: Suma de Col37 | AM5: Suma de Col38 | AN5: Suma de Col39 | AO5: Suma de Col40 | AP5: Suma de Col41 | AQ5: Suma de col42 | AR5: Suma de col43 | AS5: Suma de col44 | AT5: Suma de col45 | AU5: Suma de col46 | AV5: Suma de col47 | AW5: Suma de col48
A6: 01010101 | B6: 7 | E6: 0 | F6: 0 | G6: 0 | H6: 4 | I6: 2 | J6: 0 | K6: 1 | L6: 0 | M6: 0 | N6: 0 | T6: 0 | U6: 7 | X6: 0 | Y6: 0 | Z6: 0 | AA6: 0 | AB6: 0
A7: 01010103 | B7: 1560 | E7: 5 | F7: 70 | G7: 256 | H7: 434 | I7: 399 | J7: 275 | K7: 105 | L7: 18 | M7: 1 | N7: 0 | T7: 10 | U7: 1540 | X7: 12 | Y7: 0 | Z7: 0 | AA7: 13 | AB7: 70
A8: 01010201 | B8: 290 | E8: 0 | F8: 23 | G8: 65 | H8: 67 | I8: 74 | J8: 49 | K8: 4 | L8: 3 | M8: 3 | N8: 2 | U8: 289 | V8: 13 | Y8: 0 | Z8: 0 | AA8: 2 | AB8: 1
A9: 01010203 | B9: 37873 | E9: 102 | F9: 2115 | G9: 8450 | H9: 11256 | I9: 9713 | J9: 4842 | K9: 1341 | L9: 51 | M9: 3 | N9: 1 | U9: 37507 | V9: 10582 | Y9: 46 | Z9: 33 | AA9: 483 | AB9: 2803
A10: 01010401 | B10: 2 | E10: 1 | F10: 0 | G10: 0 | H10: 0 | I10: 0 | J10: 0 | K10: 0 | L10: 0 | M10: 1 | N10: 0 | O10: 0 | P10: 0 | Q10: 0 | R10: 0 | S10: 0 | T10: 0 | U10: 9 | X10: 8 | Y10: 8 | Z10: 8 | AA10: 4 | AB10: 8
A11: 01010403 | B11: 74422 | E11: 1720 | F11: 11042 | G11: 12589 | H11: 13194 | I11: 11930 | J11: 9337 | K11: 7264 | L11: 5274 | M11: 1805 | N11: 180 | O11: 55 | P11: 19 | Q11: 7 | R11: 3 | S11: 3 | T11: 482 | U11: 73162 | X11: 1630 | Y11: 72 | Z11: 42 | AA11: 541 | AB11: 1709
A12: 01010601 | B12: 1477 | E12: 39 | F12: 100 | G12: 86 | H12: 108 | I12: 182 | J12: 181 | K12: 202 | L12: 156 | M12: 133 | N12: 119 | O12: 52 | P12: 54 | Q12: 29 | R12: 23 | S12: 13 | U12: 1552 | X12: 0 | Y12: 0 | Z12: 0 | AA12: 0 | AB12: 68
A13: 01010603 | B13: 53109 | E13: 309 | F13: 697 | G13: 2310 | H13: 4359 | I13: 5449 | J13: 5557 | K13: 6226 | L13: 6402 | M13: 6591 | N13: 6032 | O13: 5005 | P13: 2520 | Q13: 1043 | R13: 407 | S13: 202 | U13: 52446 | X13: 40 | Y13: 7 | Z13: 2 | AA13: 243 | AB13: 1685
A14: 01010901 | B14: 403 | L14: 131 | M14: 124 | N14: 101 | O14: 47 | U14: 461 | AA14: 4 | AB14: 12
A15: 01010903 | B15: 3977 | L15: 1100 | M15: 1520 | N15: 873 | O15: 484 | U15: 3935 | AA15: 57 | AB15: 139
A16: 01030100 | B16: 2734 | C16: 9 | D16: 198 | E16: 2102 | F16: 425 | G16: 16 | H16: 14 | I16: 31 | J16: 185 | K16: 1661 | L16: 1884 | M16: 203 | N16: 4 | O16: 11 | P16: 920 | Q16: 822 | R16: 98 | S16: 2332 | T16: 38 | U16: 348 | V16: 2051 | W16: 1 | X16: 108 | Y16: 308 | Z16: 0 | AA16: 0
A17: 01030100A | B17: 101 | C17: 41 | D17: 60 | AE17: 9 | AF17: 13 | AG17: 12 | AH17: 13 | AI17: 8 | AJ17: 19 | AK17: 12 | AL17: 15 | AM17: 8 | AN17: 8
A18: 01030200B | B18: 1606 | C18: 624 | D18: 982 | AE18: 137 | AF18: 242 | AG18: 184 | AH18: 290 | AI18: 152 | AJ18: 226 | AK18: 151 | AL18: 224 | AM18: 9 | AN18: 9
A19: 01030300 | B19: 1097 | C19: 1 | D19: 14 | E19: 742 | F19: 321 | G19: 0 | H19: 1 | I19: 2 | J19: 23 | K19: 798 | L19: 1056 | M19: 4 | N19: 0 | O19: 20 | P19: 5 | Q19: 16 | R19: 3 | S19: 76 | T19: 28 | U19: 959 | V19: 726 | W19: 0 | X19: 31 | Y19: 92 | Z19: 0 | AA19: 0
A20: 01030300C | B20: 101 | C20: 49 | D20: 52 | AE20: 12 | AF20: 15 | AG20: 13 | AH20: 11 | AI20: 11 | AJ20: 11 | AK20: 13 | AL20: 15 | AM20: 9 | AN20: 8
A21: 01030400 | B21: 627 | C21: 627 | K21: 11 | L21: 395 | M21: 29 | N21: 358 | O21: 452
A22: 01030400D | B22: 710 | C22: 261 | D22: 449 | AE22: 32 | AF22: 45 | AG22: 45 | AH22: 98 | AI22: 53 | AJ22: 97 | AK22: 131 | AL22: 209 | AM22: 14 | AN22: 9
A23: 01030500 | B23: 1063 | C23: 422 | D23: 641 | E23: 35 | F23: 37 | G23: 1159 | H23: 382 | I23: 777 | J23: 55 | K23: 54 | L23: 14 | M23: 44
A24: 01030600 | B24: 3636 | C24: 1631 | D24: 2005 | E24: 228 | F24: 164 | G24: 1503 | H24: 565 | I24: 938 | J24: 111 | K24: 87 | L24: 61 | M24: 73
A25: 01030700 | B25: 4420 | C25: 2108 | D25: 2312 | E25: 174 | F25: 160 | G25: 1233 | H25: 572 | I25: 661 | J25: 66 | K25: 31 | L25: 3 | M25: 6
A26: 01030800 | B26: 264 | C26: 116 | D26: 148 | E26: 8 | F26: 4 | G26: 87 | H26: 51 | I26: 37 | J26: 6 | K26: 0 | L26: 40 | M26: 99
A27: 01031000 | B27: 557 | C27: 246 | D27: 311 | E27: 2 | F27: 3 | G27: 0 | H27: 0
A28: 01031100 | B28: 821 | C28: 403 | D28: 418 | E28: 5 | F28: 7 | G28: 2 | H28: 0
A29: 01031200 | B29: 1017 | C29: 474 | D29: 543 | E29: 2 | F29: 8 | G29: 2 | H29: 0
A30: 01031300 | B30: 1139 | C30: 547 | D30: 592 | E30: 8 | F30: 2 | G30: 0 | H30: 0
A31: 01031400 | B31: 1114 | C31: 543 | D31: 571 | E31: 6 | F31: 1 | G31: 1 | H31: 0
A32: 01031900 | C32: 0 | G32: 1
A33: 01060100 | B33: 5651 | C33: 4 | D33: 25 | E33: 28 | F33: 106 | G33: 270 | H33: 954 | I33: 3818 | J33: 446 | K33: 98
A34: 01080003 | B34: 22 | C34: 2 | D34: 1 | E34: 8 | F34: 11 | G34: 0 | H34: 0 | I34: 0 | J34: 0 | K34: 0 | L34: 0 | M34: 0
A35: 01080004 | B35: 435 | C35: 14 | D35: 106 | E35: 66 | F35: 224 | G35: 0 | H35: 4 | I35: 5 | J35: 16 | K35: 1 | L35: 8 | M35: 23
A36: 01080008 | B36: 6184 | C36: 15 | D36: 370 | E36: 1373 | F36: 1815 | G36: 1558 | H36: 831 | I36: 215 | J36: 8 | K36: 0 | L36: 0 | M36: 119 | N36: 339 | O36: 771 | P36: 291 | Q36: 645
A37: 01080009 | B37: 5273 | C37: 12 | D37: 300 | E37: 1167 | F37: 1555 | G37: 1351 | H37: 705 | I37: 175 | J37: 8 | K37: 0 | L37: 0 | M37: 79 | N37: 280 | O37: 541 | P37: 201 | Q37: 514
A38: 01080010 | B38: 2172 | C38: 14 | D38: 324 | E38: 777 | F38: 621 | G38: 312 | H38: 112 | I38: 12 | J38: 0 | K38: 0 | L38: 0 | M38: 34 | N38: 123 | O38: 260 | P38: 111 | Q38: 217
A39: 01080011 | B39: 1017 | C39: 23 | D39: 109 | E39: 169 | F39: 243 | G39: 212 | H39: 133 | I39: 82 | J39: 32 | K39: 13 | L39: 1 | P39: 13 | Q39: 303 | R39: 5 | S39: 46 | T39: 1
A40: 01080013 | B40: 845 | C40: 48 | D40: 230 | E40: 114 | F40: 143 | G40: 113 | H40: 81 | I40: 52 | J40: 36 | K40: 24 | L40: 4 | P40: 107 | Q40: 166 | R40: 5 | S40: 37 | T40: 2
A41: 01080014 | B41: 610 | C41: 106 | D41: 420 | E41: 22 | F41: 14 | G41: 17 | H41: 13 | I41: 8 | J41: 2 | K41: 6 | L41: 2 | P41: 350 | Q41: 8 | R41: 4 | S41: 16 | T41: 0
A42: 01080016 | B42: 377
A43: 01080017 | B43: 75 | C43: 1 | D43: 2 | E43: 10
A44: 01080018 | B44: 96 | C44: 0 | D44: 1 | E44: 3
A45: 01080019 | B45: 998 | C45: 5 | D45: 35 | E45: 93
A46: 01080020 | B46: 6684
A47: 01080021 | B47: 4439 | C47: 363 | D47: 1286 | E47: 889 | F47: 692 | G47: 577 | H47: 389 | I47: 166 | J47: 65 | K47: 11 | L47: 1 | P47: 266 | Q47: 796 | R47: 39 | S47: 171 | T47: 4
A48: 01080022 | B48: 1718 | C48: 10 | D48: 110 | E48: 240 | F48: 304 | G48: 322 | H48: 245 | I48: 233 | J48: 201 | K48: 52 | L48: 1 | P48: 13 | Q48: 421 | R48: 8 | S48: 49 | T48: 2
A49: 01080023 | B49: 2061 | C49: 102 | D49: 624 | E49: 470 | F49: 365 | G49: 263 | H49: 146 | I49: 72 | J49: 19 | K49: 0 | L49: 0 | P49: 118 | Q49: 525 | R49: 20 | S49: 98 | T49: 5
A50: 01080030 | B50: 5 | E50: 0 | F50: 0 | G50: 1 | H50: 2 | I50: 2 | J50: 0 | K50: 0 | L50: 0 | M50: 0 | N50: 0 | U50: 10 | V50: 1 | W50: 8 | Y50: 0 | Z50: 0 | AA50: 0 | AB50: 3
A51: 01080040 | B51: 1655 | E51: 2 | F51: 99 | G51: 323 | H51: 482 | I51: 436 | J51: 235 | K51: 76 | L51: 1 | M51: 0 | N51: 1 | U51: 1600 | V51: 249 | W51: 569 | Y51: 4 | Z51: 0 | AA51: 15 | AB51: 78
A52: 01080090 | B52: 1591
A53: 01090040 | B53: 19 | C53: 1 | D53: 0 | E53: 4
A54: 01090050 | B54: 3338 | C54: 14 | D54: 293 | E54: 854 | F54: 919 | G54: 728 | H54: 399 | I54: 128 | J54: 3 | K54: 0 | L54: 0 | M54: 72 | N54: 169 | O54: 399 | P54: 126 | Q54: 254
A55: 01090060 | B55: 5072 | C55: 181 | D55: 876 | E55: 1032 | F55: 1029 | G55: 813 | H55: 531 | I55: 357 | J55: 202 | K55: 49 | L55: 2 | P55: 201 | Q55: 914 | R55: 49 | S55: 277 | T55: 4
A56: 01110106 | B56: 38 | F56: 2 | G56: 8 | H56: 10 | I56: 7 | J56: 6 | K56: 5 | U56: 35 | V56: 1 | W56: 19 | Y56: 0 | Z56: 0 | AA56: 1 | AB56: 4
A57: 01110107 | B57: 3218 | E57: 6 | F57: 164 | G57: 662 | H57: 955 | I57: 863 | J57: 450 | K57: 123 | L57: 5 | M57: 0 | N57: 1 | U57: 3185 | V57: 595 | W57: 1499 | Y57: 2 | Z57: 1 | AA57: 32 | AB57: 211
A58: 01200010 | B58: 58 | C58: 18 | D58: 40 | E58: 0 | F58: 0 | G58: 0 | H58: 0 | I58: 0 | J58: 0 | K58: 1 | L58: 1 | M58: 1 | N58: 1 | O58: 1 | P58: 0 | Q58: 1 | R58: 1 | S58: 1 | T58: 0 | U58: 0 | V58: 1 | W58: 0 | X58: 1 | Y58: 1 | Z58: 2 | AA58: 1 | AB58: 5 | AC58: 0 | AD58: 10 | AE58: 2 | AF58: 5 | AG58: 4 | AH58: 7 | AI58: 3 | AJ58: 2 | AK58: 2 | AL58: 4 | AM58: 0 | AN58: 0
A59: 01200020 | B59: 238 | C59: 72 | D59: 166 | E59: 0 | F59: 0 | G59: 2 | H59: 1 | I59: 0 | J59: 4 | K59: 0 | L59: 1 | M59: 1 | N59: 2 | O59: 0 | P59: 10 | Q59: 2 | R59: 4 | S59: 4 | T59: 12 | U59: 0 | V59: 19 | W59: 1 | X59: 7 | Y59: 2 | Z59: 13 | AA59: 8 | AB59: 16 | AC59: 16 | AD59: 12 | AE59: 11 | AF59: 20 | AG59: 10 | AH59: 17 | AI59: 8 | AJ59: 14 | AK59: 7 | AL59: 14 | AM59: 6 | AN59: 6
A60: 01200030 | B60: 263 | C60: 55 | D60: 208 | E60: 0 | F60: 1 | G60: 0 | H60: 0 | I60: 0 | J60: 0 | K60: 2 | L60: 5 | M60: 10 | N60: 55 | O60: 9 | P60: 38 | Q60: 8 | R60: 26 | S60: 12 | T60: 19 | U60: 7 | V60: 21 | W60: 5 | X60: 9 | Y60: 1 | Z60: 14 | AA60: 0 | AB60: 9 | AC60: 0 | AD60: 1 | AE60: 1 | AF60: 2 | AG60: 0 | AH60: 1 | AI60: 0 | AJ60: 6 | AK60: 0 | AL60: 1 | AM60: 1 | AN60: 18
A61: 01200031 | B61: 94 | C61: 53 | D61: 41 | E61: 33 | F61: 25 | G61: 12 | H61: 11 | I61: 6 | J61: 4 | K61: 2 | L61: 1 | AM61: 1 | AN61: 0
A62: 01200032 | B62: 870 | C62: 542 | D62: 328 | E62: 355 | F62: 230 | G62: 136 | H62: 69 | I62: 36 | J62: 19 | K62: 15 | L62: 12 | AM62: 3 | AN62: 0
A63: 01200033 | B63: 8 | C63: 3 | D63: 5 | E63: 1 | F63: 3 | G63: 1 | H63: 1 | I63: 1 | J63: 1 | K63: 0 | L63: 0 | AM63: 0 | AN63: 0
A64: 01200034 | B64: 227 | C64: 156 | D64: 71 | E64: 101 | F64: 48 | G64: 32 | H64: 17 | I64: 19 | J64: 4 | K64: 4 | L64: 2 | AM64: 0 | AN64: 1
A65: 01501010 | B65: 442 | C65: 139 | D65: 303 | E65: 2 | F65: 0 | G65: 2 | H65: 1 | I65: 4 | J65: 1 | K65: 5 | L65: 8 | M65: 1 | N65: 15 | O65: 5 | P65: 18 | Q65: 8 | R65: 26 | S65: 17 | T65: 30 | U65: 18 | V65: 43 | W65: 24 | X65: 45 | Y65: 14 | Z65: 42 | AA65: 11 | AB65: 21 | AC65: 10 | AD65: 22 | AE65: 18 | AF65: 31 | AG65: 0 | AH65: 0
A66: 01501020 | B66: 367 | C66: 113 | D66: 254 | E66: 1 | F66: 0 | G66: 0 | H66: 1 | I66: 3 | J66: 3 | K66: 0 | L66: 0 | M66: 3 | N66: 8 | O66: 2 | P66: 10 | Q66: 9 | R66: 16 | S66: 9 | T66: 14 | U66: 13 | V66: 51 | W66: 18 | X66: 33 | Y66: 18 | Z66: 27 | AA66: 20 | AB66: 30 | AC66: 7 | AD66: 19 | AE66: 10 | AF66: 42 | AG66: 0 | AH66: 0
A67: 01501030 | B67: 1618 | C67: 530 | D67: 1088 | E67: 0 | F67: 0 | G67: 0 | H67: 4 | I67: 0 | J67: 2 | K67: 1 | L67: 4 | M67: 9 | N67: 12 | O67: 4 | P67: 19 | Q67: 14 | R67: 37 | S67: 22 | T67: 63 | U67: 37 | V67: 122 | W67: 70 | X67: 146 | Y67: 126 | Z67: 224 | AA67: 92 | AB67: 170 | AC67: 69 | AD67: 140 | AE67: 86 | AF67: 145 | AG67: 5 | AH67: 0
A68: 01501040 | B68: 1851 | C68: 549 | D68: 1302 | E68: 0 | F68: 0 | G68: 0 | H68: 4 | I68: 0 | J68: 0 | K68: 2 | L68: 4 | M68: 2 | N68: 12 | O68: 1 | P68: 20 | Q68: 5 | R68: 21 | S68: 14 | T68: 99 | U68: 28 | V68: 144 | W68: 78 | X68: 206 | Y68: 167 | Z68: 343 | AA68: 107 | AB68: 210 | AC68: 69 | AD68: 114 | AE68: 76 | AF68: 125 | AG68: 2 | AH68: 2
A69: 01501050 | B69: 4 | E69: 0 | F69: 0 | G69: 3 | H69: 0 | I69: 0 | J69: 1 | K69: 0 | L69: 0 | M69: 0 | N69: 0 | U69: 4 | Y69: 0 | Z69: 0 | AA69: 0 | AB69: 0
A70: 01501060 | B70: 406 | E70: 0 | F70: 12 | G70: 93 | H70: 106 | I70: 110 | J70: 64 | K70: 19 | L70: 1 | M70: 0 | N70: 1 | U70: 406 | Y70: 1 | Z70: 0 | AA70: 2 | AB70: 22
A71: 01501070 | B71: 5 | E71: 0 | F71: 0 | G71: 1 | H71: 2 | I71: 0 | J71: 2 | K71: 0 | L71: 0 | M71: 0 | N71: 0 | U71: 5 | Y71: 0 | Z71: 0 | AA71: 0 | AB71: 0
A72: 01501080 | B72: 198 | E72: 0 | F72: 12 | G72: 34 | H72: 37 | I72: 55 | J72: 44 | K72: 14 | L72: 2 | M72: 0 | N72: 0 | U72: 192 | Y72: 0 | Z72: 0 | AA72: 5 | AB72: 16
A73: 01502000 | B73: 1190 | C73: 1190 | T73: 528 | U73: 641 | V73: 270 | W73: 584 | X73: 0 | Y73: 1 | Z73: 0 | AA73: 3 | AB73: 20
A74: 01502010 | B74: 1 | C74: 1 | U74: 1 | V74: 0 | W74: 0 | X74: 0 | Y74: 0 | Z74: 0 | AA74: 0 | AB74: 0
A75: 01502020 | B75: 504 | C75: 504 | T75: 227 | U75: 269 | V75: 87 | W75: 156 | X75: 1 | Y75: 3 | Z75: 1 | AA75: 1 | AB75: 11
A76: 01502040 | B76: 6 | C76: 0 | D76: 6 | E76: 0 | F76: 0 | G76: 0 | H76: 0 | I76: 0 | J76: 1 | K76: 0 | L76: 0 | M76: 0 | N76: 0 | O76: 0 | P76: 0 | Q76: 0 | R76: 1 | S76: 0 | T76: 0 | U76: 0 | V76: 0 | W76: 0 | X76: 0 | Y76: 0 | Z76: 1 | AA76: 0 | AB76: 0 | AC76: 0 | AD76: 3 | AE76: 0 | AF76: 0 | AG76: 0 | AH76: 0
A77: 02010101 | B77: 17210 | C77: 8009 | D77: 9189 | E77: 179 | F77: 4584 | G77: 364 | H77: 4474 | I77: 378 | J77: 75 | K77: 47 | L77: 82 | M77: 145 | N77: 60 | O77: 142 | P77: 160 | Q77: 228 | R77: 1347 | S77: 423 | T77: 217 | U77: 46 | V77: 65 | W77: 95 | X77: 123 | Y77: 157 | Z77: 228 | AA77: 276 | AB77: 459 | AC77: 501 | AD77: 703 | AE77: 547 | AF77: 436 | AG77: 669 | AH77: 2128 | AI77: 11 | AJ77: 46 | AK77: 62 | AL77: 116 | AM77: 578
A78: 02010103 | B78: 20597 | C78: 4257 | D78: 16244 | E78: 3845 | S78: 3431 | T78: 2959 | U78: 1307 | V78: 1682 | W78: 1574 | X78: 1404 | Y78: 1186 | Z78: 1072 | AA78: 829 | AB78: 607 | AC78: 422 | AD78: 197 | AE78: 53 | AF78: 21 | AG78: 8 | AH78: 1722 | AJ78: 19 | AK78: 30 | AL78: 143 | AM78: 331
A79: 02010105 | B79: 24 | C79: 12 | D79: 11 | M79: 1 | N79: 1 | O79: 4 | P79: 0 | Q79: 2 | R79: 16 | AI79: 4 | AJ79: 2 | AK79: 0 | AL79: 1 | AM79: 42
A80: 02010201 | B80: 95563 | C80: 44793 | D80: 49660 | E80: 96 | F80: 92 | G80: 5064 | H80: 279 | I80: 4937 | J80: 358 | K80: 4832 | L80: 5874 | M80: 6195 | N80: 5250 | O80: 11638 | P80: 5349 | Q80: 5062 | R80: 12725 | S80: 5683 | T80: 1641 | U80: 505 | V80: 662 | W80: 720 | X80: 738 | Y80: 765 | Z80: 879 | AA80: 994 | AB80: 1171 | AC80: 1312 | AD80: 3311 | AE80: 3193 | AF80: 2735 | AG80: 3570 | AH80: 4685 | AI80: 3939 | AJ80: 409 | AK80: 280 | AL80: 1100 | AM80: 1541
A81: 02010320 | B81: 12875 | C81: 6224 | D81: 6651 | E81: 65 | F81: 65 | G81: 2299 | H81: 2356 | I81: 486 | J81: 504 | K81: 1933 | L81: 2031 | M81: 1361 | N81: 1601 | O81: 109 | P81: 113 | Q81: 43 | R81: 81
A82: 02010321 | B82: 1250 | C82: 762 | D82: 488 | E82: 12 | F82: 7 | G82: 110 | H82: 95 | I82: 58 | J82: 20 | K82: 296 | L82: 202 | M82: 280 | N82: 160 | O82: 7 | P82: 4 | Q82: 1 | R82: 11
A83: 02010322 | B83: 425 | C83: 295 | D83: 130 | E83: 1 | F83: 1 | G83: 21 | H83: 19 | I83: 18 | J83: 3 | K83: 141 | L83: 67 | M83: 105 | N83: 34 | O83: 9 | P83: 6 | Q83: 0 | R83: 2
A84: 02010420 | B84: 525 | C84: 312 | D84: 213 | E84: 2 | F84: 1 | G84: 31 | H84: 24 | I84: 26 | J84: 14 | K84: 146 | L84: 95 | M84: 91 | N84: 69 | O84: 16 | P84: 11 | Q84: 0 | R84: 1
A85: 02010421 | B85: 115 | C85: 78 | D85: 37 | E85: 0 | F85: 0 | G85: 7 | H85: 1 | I85: 13 | J85: 4 | K85: 33 | L85: 19 | M85: 22 | N85: 12 | O85: 5 | P85: 1 | Q85: 0 | R85: 0
A86: 02010422 | B86: 42 | C86: 32 | D86: 10 | E86: 0 | F86: 0 | G86: 1 | H86: 0 | I86: 0 | J86: 0 | K86: 13 | L86: 5 | M86: 12 | N86: 4 | O86: 6 | P86: 1 | Q86: 0 | R86: 0
A87: 02021730 | B87: 13533 | C87: 6714 | D87: 6819 | E87: 4 | F87: 14 | G87: 83 | H87: 78 | I87: 6 | J87: 12 | K87: 94 | L87: 122 | M87: 2273 | N87: 2320 | O87: 87 | P87: 94 | Q87: 14 | R87: 20 | S87: 73 | T87: 69 | U87: 2258 | V87: 2175 | W87: 1822 | X87: 1925
A88: 02021740 | B88: 17102 | C88: 8819 | D88: 8283 | E88: 88 | F88: 79 | G88: 2628 | H88: 2641 | I88: 700 | J88: 624 | K88: 2910 | L88: 2619 | M88: 2336 | N88: 2206 | O88: 205 | P88: 160 | Q88: 65 | R88: 100
A89: 02021760 | B89: 4505 | C89: 2277 | D89: 2228 | E89: 1896 | F89: 1839 | G89: 381 | H89: 389
A90: 02021790 | B90: 1159 | C90: 655 | D90: 504 | E90: 20 | F90: 21 | G90: 95 | H90: 102 | I90: 72 | J90: 44 | K90: 165 | L90: 116 | M90: 289 | N90: 216 | O90: 15 | P90: 5
A91: 02021810 | B91: 1179 | C91: 733 | D91: 446 | E91: 9 | F91: 7 | G91: 97 | H91: 85 | I91: 68 | J91: 31 | K91: 274 | L91: 166 | M91: 269 | N91: 152 | O91: 16 | P91: 5
A92: 02021820 | B92: 407 | C92: 295 | D92: 112 | E92: 1 | F92: 1 | G92: 13 | H92: 14 | I92: 23 | J92: 4 | K92: 122 | L92: 58 | M92: 117 | N92: 31 | O92: 19 | P92: 4
A93: 02021830 | B93: 5789 | C93: 1606 | D93: 1298 | E93: 117
A94: 02200010 | B94: 15390 | C94: 5815 | D94: 9575 | E94: 24 | F94: 44 | G94: 542 | H94: 946 | I94: 689 | J94: 1112 | K94: 661 | L94: 1303 | M94: 645 | N94: 1258 | O94: 645 | P94: 1155 | Q94: 549 | R94: 1019 | S94: 525 | T94: 828 | U94: 466 | V94: 564 | W94: 296 | X94: 401 | Y94: 291 | Z94: 410 | AA94: 232 | AB94: 275 | AC94: 147 | AD94: 144 | AE94: 103 | AF94: 117 | AG94: 46 | AH94: 102
A95: 02200020 | B95: 14616 | C95: 6273 | D95: 8343 | E95: 25 | F95: 29 | G95: 184 | H95: 178 | I95: 217 | J95: 202 | K95: 241 | L95: 312 | M95: 274 | N95: 389 | O95: 335 | P95: 461 | Q95: 402 | R95: 551 | S95: 465 | T95: 606 | U95: 490 | V95: 462 | W95: 415 | X95: 436 | Y95: 834 | Z95: 1175 | AA95: 857 | AB95: 1152 | AC95: 744 | AD95: 1021 | AE95: 790 | AF95: 1369 | AG95: 53 | AH95: 99
A96: 02200030 | B96: 12002 | C96: 4117 | D96: 7885 | E96: 13 | F96: 20 | G96: 197 | H96: 531 | I96: 233 | J96: 594 | K96: 295 | L96: 743 | M96: 318 | N96: 807 | O96: 317 | P96: 682 | Q96: 323 | R96: 695 | S96: 358 | T96: 638 | U96: 356 | V96: 559 | W96: 275 | X96: 419 | Y96: 411 | Z96: 669 | AA96: 381 | AB96: 549 | AC96: 299 | AD96: 467 | AE96: 341 | AF96: 512 | AG96: 56 | AH96: 183
A97: 02200040 | B97: 4810 | C97: 1553 | D97: 3257 | E97: 3 | F97: 4 | G97: 24 | H97: 53 | I97: 49 | J97: 112 | K97: 72 | L97: 148 | M97: 72 | N97: 172 | O97: 110 | P97: 218 | Q97: 126 | R97: 277 | S97: 109 | T97: 284 | U97: 130 | V97: 258 | W97: 101 | X97: 196 | Y97: 223 | Z97: 497 | AA97: 213 | AB97: 398 | AC97: 174 | AD97: 295 | AE97: 147 | AF97: 345 | AG97: 22 | AH97: 23
A98: 03010501 | B98: 132720 | C98: 45975 | D98: 87088 | K98: 79 | L98: 134 | M98: 131 | N98: 307 | O98: 216 | P98: 570 | Q98: 384 | R98: 1093 | S98: 649 | T98: 1821 | U98: 1110 | V98: 3100 | W98: 1771 | X98: 4846 | Y98: 2865 | Z98: 7310 | AA98: 4561 | AB98: 10580 | AC98: 6459 | AD98: 12572 | AE98: 7672 | AF98: 12973 | AG98: 7245 | AH98: 11356 | AI98: 6114 | AJ98: 9376 | AK98: 6906 | AL98: 11050 | AM98: 900 | AN98: 791
A99: 03010502 | B99: 59190 | C99: 21490 | D99: 37700 | K99: 38 | L99: 37 | M99: 54 | N99: 106 | O99: 82 | P99: 220 | Q99: 157 | R99: 425 | S99: 270 | T99: 762 | U99: 509 | V99: 1282 | W99: 827 | X99: 2049 | Y99: 1296 | Z99: 3105 | AA99: 2133 | AB99: 4490 | AC99: 2864 | AD99: 5295 | AE99: 3677 | AF99: 5777 | AG99: 3452 | AH99: 5007 | AI99: 2798 | AJ99: 4008 | AK99: 3333 | AL99: 5143 | AM99: 490 | AN99: 374
A100: 03010504 | B100: 55622 | C100: 18336 | D100: 37286 | K100: 37 | L100: 50 | M100: 62 | N100: 155 | O100: 96 | P100: 265 | Q100: 196 | R100: 527 | S100: 291 | T100: 900 | U100: 460 | V100: 1461 | W100: 765 | X100: 2261 | Y100: 1180 | Z100: 3299 | AA100: 1783 | AB100: 4755 | AC100: 2508 | AD100: 5448 | AE100: 3033 | AF100: 5500 | AG100: 2912 | AH100: 4670 | AI100: 2301 | AJ100: 3794 | AK100: 2712 | AL100: 4201 | AM100: 832 | AN100: 376
A101: 03010505 | B101: 592 | C101: 255 | D101: 337 | K101: 1 | L101: 0 | M101: 0 | N101: 1 | O101: 2 | P101: 1 | Q101: 3 | R101: 10 | S101: 4 | T101: 5 | U101: 10 | V101: 13 | W101: 25 | X101: 22 | Y101: 11 | Z101: 45 | AA101: 32 | AB101: 38 | AC101: 33 | AD101: 37 | AE101: 32 | AF101: 49 | AG101: 30 | AH101: 40 | AI101: 31 | AJ101: 36 | AK101: 41 | AL101: 40 | AM101: 44 | AN101: 8
A102: 03020101 | B102: 10863 | C102: 4513 | D102: 6350 | E102: 299 | F102: 257 | G102: 991 | H102: 948 | I102: 1060 | J102: 1114 | K102: 596 | L102: 521 | M102: 210 | N102: 269 | O102: 71 | P102: 168 | Q102: 86 | R102: 249 | S102: 94 | T102: 245 | U102: 84 | V102: 273 | W102: 79 | X102: 241 | Y102: 64 | Z102: 257 | AA102: 83 | AB102: 272 | AC102: 110 | AD102: 305 | AE102: 153 | AF102: 337 | AG102: 140 | AH102: 288 | AI102: 114 | AJ102: 232 | AK102: 117 | AL102: 148 | AM102: 162 | AN102: 226 | AO102: 223 | AP102: 80 | AQ102: 19 | AR102: 51 | AS102: 83
A103: 03020201 | B103: 842 | C103: 422 | D103: 420 | E103: 106 | F103: 89 | G103: 200 | H103: 193 | I103: 116 | J103: 138 | AO103: 28 | AP103: 8 | AQ103: 9 | AR103: 3 | AS103: 37
A104: 03020301 | B104: 1304 | C104: 495 | D104: 809 | E104: 13 | F104: 15 | G104: 64 | H104: 59 | I104: 77 | J104: 43 | K104: 23 | L104: 12 | M104: 8 | N104: 16 | O104: 4 | P104: 11 | Q104: 10 | R104: 16 | S104: 12 | T104: 18 | U104: 11 | V104: 24 | W104: 6 | X104: 25 | Y104: 7 | Z104: 24 | AA104: 14 | AB104: 42 | AC104: 20 | AD104: 70 | AE104: 29 | AF104: 79 | AG104: 43 | AH104: 81 | AI104: 37 | AJ104: 61 | AK104: 33 | AL104: 69 | AM104: 84 | AN104: 144 | AO104: 7 | AP104: 3 | AQ104: 0 | AR104: 0 | AS104: 23
A105: 03020401 | B105: 10340 | C105: 4073 | D105: 6267 | E105: 245 | F105: 266 | G105: 778 | H105: 715 | I105: 861 | J105: 820 | K105: 408 | L105: 397 | M105: 174 | N105: 225 | O105: 80 | P105: 178 | Q105: 95 | R105: 227 | S105: 118 | T105: 282 | U105: 117 | V105: 307 | W105: 73 | X105: 246 | Y105: 69 | Z105: 248 | AA105: 98 | AB105: 352 | AC105: 157 | AD105: 383 | AE105: 172 | AF105: 409 | AG105: 186 | AH105: 385 | AI105: 161 | AJ105: 304 | AK105: 119 | AL105: 259 | AM105: 162 | AN105: 264 | AO105: 651 | AP105: 79 | AQ105: 25 | AR105: 18 | AS105: 55
A106: 03020402 | B106: 1178 | C106: 433 | D106: 745 | I106: 130 | J106: 86 | K106: 77 | L106: 56 | M106: 40 | N106: 37 | O106: 14 | P106: 26 | Q106: 9 | R106: 33 | S106: 9 | T106: 41 | U106: 6 | V106: 46 | W106: 9 | X106: 25 | Y106: 9 | Z106: 44 | AA106: 10 | AB106: 50 | AC106: 20 | AD106: 70 | AE106: 14 | AF106: 62 | AG106: 27 | AH106: 42 | AI106: 25 | AJ106: 53 | AK106: 18 | AL106: 38 | AM106: 16 | AN106: 36 | AO106: 24 | AP106: 5 | AQ106: 1 | AR106: 4 | AS106: 13
A107: 03020403 | B107: 764 | C107: 338 | D107: 426 | U107: 2 | V107: 3 | W107: 6 | X107: 12 | Y107: 4 | Z107: 12 | AA107: 9 | AB107: 17 | AC107: 7 | AD107: 39 | AE107: 33 | AF107: 36 | AG107: 40 | AH107: 63 | AI107: 65 | AJ107: 44 | AK107: 58 | AL107: 60 | AM107: 114 | AN107: 140 | AO107: 2 | AP107: 2 | AQ107: 0 | AR107: 0 | AS107: 10
A108: 03020501 | B108: 345931 | C108: 129946 | D108: 215985 | E108: 2862 | F108: 2658 | G108: 8082 | H108: 6979 | I108: 10221 | J108: 9360 | K108: 8470 | L108: 8411 | M108: 6686 | N108: 8393 | O108: 4042 | P108: 8217 | Q108: 4254 | R108: 9008 | S108: 4678 | T108: 10661 | U108: 4544 | V108: 11334 | W108: 4794 | X108: 12547 | Y108: 5730 | Z108: 14121 | AA108: 7186 | AB108: 16927 | AC108: 8986 | AD108: 18827 | AE108: 10613 | AF108: 19450 | AG108: 11184 | AH108: 18224 | AI108: 10187 | AJ108: 14774 | AK108: 7944 | AL108: 11613 | AM108: 9483 | AN108: 14481 | AO108: 9607 | AP108: 6617 | AQ108: 789 | AR108: 231 | AS108: 43
A109: 03020604 | B109: 22025 | C109: 8032 | D109: 13993 | E109: 2814 | F109: 3000 | G109: 2131 | H109: 2021 | I109: 718 | J109: 823 | K109: 485 | L109: 734 | M109: 352 | N109: 898 | O109: 88 | P109: 1102 | Q109: 75 | R109: 1191 | S109: 86 | T109: 1106 | U109: 66 | V109: 672 | W109: 79 | X109: 401 | Y109: 97 | Z109: 323 | AA109: 90 | AB109: 263 | AC109: 97 | AD109: 288 | AE109: 132 | AF109: 243 | AG109: 178 | AH109: 303 | AI109: 196 | AJ109: 200 | AK109: 149 | AL109: 150 | AM109: 199 | AN109: 275 | AO109: 377 | AP109: 443 | AQ109: 661 | AR109: 87 | AS109: 110
A110: 03020702 | B110: 48663 | C110: 22184 | D110: 26479 | E110: 694 | F110: 782 | G110: 1374 | H110: 1186 | I110: 635 | J110: 623 | K110: 503 | L110: 563 | M110: 359 | N110: 425 | O110: 193 | P110: 457 | Q110: 332 | R110: 596 | S110: 362 | T110: 790 | U110: 447 | V110: 714 | W110: 469 | X110: 1085 | Y110: 770 | Z110: 1353 | AA110: 1296 | AB110: 1826 | AC110: 1782 | AD110: 2257 | AE110: 2226 | AF110: 2225 | AG110: 3265 | AH110: 3708 | AI110: 2870 | AJ110: 2579 | AK110: 2137 | AL110: 1955 | AM110: 2470 | AN110: 3355 | AO110: 1031 | AP110: 610 | AQ110: 132 | AR110: 88 | AS110: 19
A111: 03020806 | B111: 66505 | C111: 23051 | D111: 43454 | E111: 1141 | F111: 1222 | G111: 1608 | H111: 1186 | I111: 1751 | J111: 1415 | K111: 1456 | L111: 1549 | M111: 1149 | N111: 2030 | O111: 951 | P111: 3373 | Q111: 1153 | R111: 4184 | S111: 1267 | T111: 4338 | U111: 1199 | V111: 3441 | W111: 1065 | X111: 2863 | Y111: 1169 | Z111: 2649 | AA111: 1353 | AB111: 2775 | AC111: 1639 | AD111: 3165 | AE111: 1653 | AF111: 2596 | AG111: 1321 | AH111: 1844 | AI111: 1028 | AJ111: 1364 | AK111: 859 | AL111: 1223 | AM111: 1330 | AN111: 2354 | AO111: 1122 | AP111: 7343 | AQ111: 673 | AR111: 275 | AS111: 605
A112: 03020908 | B112: 14186 | C112: 4594 | D112: 9592 | E112: 59 | F112: 26 | G112: 331 | H112: 191 | I112: 702 | J112: 539 | K112: 954 | L112: 1485 | M112: 681 | N112: 1202 | O112: 179 | P112: 567 | Q112: 174 | R112: 670 | S112: 205 | T112: 756 | U112: 177 | V112: 620 | W112: 135 | X112: 512 | Y112: 159 | Z112: 523 | AA112: 101 | AB112: 453 | AC112: 140 | AD112: 459 | AE112: 102 | AF112: 372 | AG112: 128 | AH112: 336 | AI112: 133 | AJ112: 322 | AK112: 92 | AL112: 236 | AM112: 143 | AN112: 323 | AO112: 156 | AP112: 149 | AQ112: 1129 | AR112: 64 | AS112: 350
A113: 03021106 | B113: 6208 | C113: 2650 | D113: 3558 | E113: 11 | F113: 4 | G113: 10 | H113: 21 | I113: 24 | J113: 41 | K113: 50 | L113: 75 | M113: 77 | N113: 172 | O113: 118 | P113: 218 | Q113: 144 | R113: 339 | S113: 213 | T113: 370 | U113: 321 | V113: 457 | W113: 386 | X113: 475 | Y113: 487 | Z113: 458 | AA113: 347 | AB113: 366 | AC113: 239 | AD113: 262 | AE113: 223 | AF113: 300 | AG113: 56 | AH113: 103
A114: 03021107 | B114: 3091 | C114: 1371 | D114: 1720 | E114: 2 | F114: 7 | G114: 11 | H114: 12 | I114: 11 | J114: 25 | K114: 22 | L114: 54 | M114: 49 | N114: 67 | O114: 87 | P114: 112 | Q114: 87 | R114: 132 | S114: 123 | T114: 209 | U114: 179 | V114: 244 | W114: 241 | X114: 241 | Y114: 203 | Z114: 224 | AA114: 158 | AB114: 176 | AC114: 111 | AD114: 109 | AE114: 87 | AF114: 108 | AG114: 36 | AH114: 26
A115: 03021108 | B115: 4208 | C115: 1599 | D115: 2609 | E115: 8 | F115: 8 | G115: 15 | H115: 25 | I115: 25 | J115: 48 | K115: 40 | L115: 76 | M115: 61 | N115: 109 | O115: 100 | P115: 163 | Q115: 116 | R115: 233 | S115: 150 | T115: 327 | U115: 209 | V115: 375 | W115: 247 | X115: 415 | Y115: 249 | Z115: 321 | AA115: 187 | AB115: 233 | AC115: 109 | AD115: 166 | AE115: 83 | AF115: 110 | AG115: 46 | AH115: 37
A116: 03030101 | B116: 797 | C116: 306 | D116: 491 | E116: 0 | F116: 2
A117: 03030102 | B117: 55891 | C117: 21020 | D117: 34876 | E117: 163 | F117: 504
A118: 03030103 | B118: 3194 | C118: 200 | D118: 3025 | E118: 9 | F118: 49
A119: 03030104 | B119: 6007 | C119: 2038 | D119: 3979 | E119: 8 | F119: 111
A120: 03030110 | B120: 16541 | C120: 5393 | D120: 11148 | E120: 100 | F120: 340
A121: 03030120 | B121: 32200 | C121: 12040 | D121: 20160 | E121: 62 | F121: 148 | G121: 647 | H121: 1332 | I121: 836 | J121: 1640 | K121: 986 | L121: 1876 | M121: 929 | N121: 1866 | O121: 928 | P121: 1681 | Q121: 850 | R121: 1635 | S121: 852 | T121: 1473 | U121: 817 | V121: 1145 | W121: 706 | X121: 833 | Y121: 1258 | Z121: 1836 | AA121: 1212 | AB121: 1705 | AC121: 970 | AD121: 1428 | AE121: 1001 | AF121: 1581 | AG121: 93 | AH121: 371
A122: 03030130 | B122: 27504 | C122: 7776 | D122: 19728 | E122: 58 | F122: 139 | G122: 412 | H122: 1266 | I122: 569 | J122: 1721 | K122: 678 | L122: 2061 | M122: 643 | N122: 1891 | O122: 665 | P122: 1692 | Q122: 647 | R122: 1516 | S122: 618 | T122: 1388 | U122: 551 | V122: 1034 | W122: 404 | X122: 753 | Y122: 829 | Z122: 2062 | AA122: 696 | AB122: 1737 | AC122: 525 | AD122: 1215 | AE122: 485 | AF122: 1279 | AG122: 94 | AH122: 303
A123: 03030140 | B123: 27463 | C123: 8201 | D123: 19262 | E123: 78 | F123: 62 | G123: 123 | H123: 82 | I123: 109 | J123: 102 | K123: 128 | L123: 212 | M123: 120 | N123: 316 | O123: 116 | P123: 368 | Q123: 142 | R123: 605 | S123: 177 | T123: 710 | U123: 218 | V123: 848 | W123: 221 | X123: 1191 | Y123: 425 | Z123: 1490 | AA123: 643 | AB123: 2089 | AC123: 963 | AD123: 2495 | AE123: 1037 | AF123: 2404 | AG123: 1165 | AH123: 2155 | AI123: 977 | AJ123: 1806 | AK123: 1559 | AL123: 2327 | AM123: 100 | AN123: 131
A124: 03030150 | B124: 2407 | C124: 679 | D124: 1728 | E124: 17 | F124: 10 | G124: 4 | H124: 4 | I124: 8 | J124: 12 | K124: 6 | L124: 11 | M124: 6 | N124: 24 | O124: 9 | P124: 24 | Q124: 4 | R124: 59 | S124: 18 | T124: 67 | U124: 14 | V124: 103 | W124: 26 | X124: 100 | Y124: 34 | Z124: 159 | AA124: 60 | AB124: 183 | AC124: 80 | AD124: 209 | AE124: 110 | AF124: 213 | AG124: 89 | AH124: 204 | AI124: 74 | AJ124: 158 | AK124: 120 | AL124: 188 | AM124: 16 | AN124: 8
A125: 03030160 | B125: 3505 | C125: 958 | D125: 2547 | E125: 223 | F125: 190 | G125: 94 | H125: 88 | I125: 57 | J125: 76 | K125: 30 | L125: 89 | M125: 43 | N125: 161 | O125: 33 | P125: 162 | Q125: 22 | R125: 187 | S125: 32 | T125: 173 | U125: 36 | V125: 180 | W125: 35 | X125: 187 | Y125: 48 | Z125: 207 | AA125: 51 | AB125: 206 | AC125: 39 | AD125: 196 | AE125: 52 | AF125: 138 | AG125: 57 | AH125: 122 | AI125: 51 | AJ125: 96 | AK125: 55 | AL125: 89 | AM125: 44 | AN125: 81
A126: 03030170 | B126: 179 | C126: 13 | D126: 166 | E126: 3 | F126: 3 | G126: 0 | H126: 1 | I126: 0 | J126: 3 | K126: 0 | L126: 13 | M126: 0 | N126: 24 | O126: 2 | P126: 21 | Q126: 0 | R126: 26 | S126: 0 | T126: 19 | U126: 0 | V126: 8 | W126: 0 | X126: 3 | Y126: 0 | Z126: 8 | AA126: 0 | AB126: 10 | AC126: 1 | AD126: 6 | AE126: 0 | AF126: 2 | AG126: 0 | AH126: 4 | AI126: 2 | AJ126: 3 | AK126: 5 | AL126: 12 | AM126: 0 | AN126: 9
A127: 03030180 | B127: 286 | C127: 129 | D127: 157 | E127: 7 | F127: 3 | G127: 7 | H127: 3 | I127: 3 | J127: 4 | K127: 5 | L127: 2 | M127: 7 | N127: 18 | O127: 3 | P127: 10 | Q127: 6 | R127: 22 | S127: 6 | T127: 15 | U127: 16 | V127: 13 | W127: 13 | X127: 3 | Y127: 5 | Z127: 12 | AA127: 11 | AB127: 14 | AC127: 10 | AD127: 6 | AE127: 10 | AF127: 7 | AG127: 10 | AH127: 5 | AI127: 4 | AJ127: 7 | AK127: 6 | AL127: 13 | AM127: 8 | AN127: 0
A128: 03030250 | B128: 15927 | C128: 9878 | D128: 6049 | E128: 201 | F128: 202 | G128: 6851 | H128: 3282 | I128: 1512 | J128: 661 | K128: 234 | L128: 182 | M128: 85 | N128: 82 | O128: 35 | P128: 76 | Q128: 20 | R128: 73 | S128: 30 | T128: 69 | U128: 54 | V128: 79 | W128: 59 | X128: 73 | Y128: 25 | Z128: 82 | AA128: 36 | AB128: 129 | AC128: 78 | AD128: 126 | AE128: 88 | AF128: 154 | AG128: 101 | AH128: 154 | AI128: 147 | AJ128: 210 | AK128: 142 | AL128: 177 | AM128: 216 | AN128: 258 | AO128: 128 | AP128: 41 | AQ128: 28 | AR128: 57 | AS128: 46
A129: 03030270 | B129: 3262 | C129: 1645 | D129: 1617 | E129: 91 | F129: 67 | G129: 199 | H129: 55 | I129: 181 | J129: 58 | K129: 111 | L129: 26 | M129: 26 | N129: 46 | O129: 9 | P129: 9 | Q129: 21 | R129: 31 | S129: 5 | T129: 34 | U129: 16 | V129: 49 | W129: 32 | X129: 57 | Y129: 55 | Z129: 53 | AA129: 37 | AB129: 105 | AC129: 78 | AD129: 140 | AE129: 189 | AF129: 170 | AG129: 201 | AH129: 223 | AI129: 159 | AJ129: 119 | AK129: 99 | AL129: 148 | AM129: 136 | AN129: 227 | AO129: 31 | AP129: 27 | AQ129: 0 | AR129: 36 | AS129: 52
A130: 03030280 | B130: 302 | C130: 112 | D130: 190 | E130: 2 | F130: 4 | G130: 37 | H130: 18 | I130: 5 | J130: 6 | K130: 14 | L130: 5 | M130: 13 | N130: 21 | O130: 3 | P130: 13 | Q130: 1 | R130: 9 | S130: 0 | T130: 17 | U130: 5 | V130: 9 | W130: 1 | X130: 19 | Y130: 2 | Z130: 9 | AA130: 4 | AB130: 10 | AC130: 7 | AD130: 13 | AE130: 4 | AF130: 13 | AG130: 2 | AH130: 6 | AI130: 6 | AJ130: 3 | AK130: 0 | AL130: 7 | AM130: 6 | AN130: 8 | AO130: 12 | AP130: 390 | AQ130: 0 | AR130: 5 | AS130: 0
A131: 03030290 | B131: 118941
A132: 03030330 | B132: 28221 | C132: 10969 | D132: 17252 | E132: 153 | F132: 241 | G132: 905 | H132: 1528 | I132: 715 | J132: 1384 | K132: 587 | L132: 1393 | M132: 461 | N132: 1112 | O132: 403 | P132: 934 | Q132: 371 | R132: 811 | S132: 356 | T132: 638 | U132: 339 | V132: 614 | W132: 321 | X132: 509 | Y132: 1442 | Z132: 1951 | AA132: 1504 | AB132: 1823 | AC132: 1428 | AD132: 1667 | AE132: 2017 | AF132: 2696 | AG132: 83 | AH132: 283
A133: 03030340 | B133: 4287 | C133: 1667 | D133: 2620 | E133: 38 | F133: 13 | G133: 54 | H133: 110 | I133: 36 | J133: 59 | K133: 20 | L133: 44 | M133: 9 | N133: 33 | O133: 11 | P133: 31 | Q133: 15 | R133: 30 | S133: 7 | T133: 24 | U133: 15 | V133: 20 | W133: 16 | X133: 28 | Y133: 208 | Z133: 332 | AA133: 327 | AB133: 384 | AC133: 288 | AD133: 435 | AE133: 626 | AF133: 1077 | AG133: 17 | AH133: 60
A134: 03030350 | B134: 10256 | C134: 3770 | D134: 6486 | E134: 18 | F134: 135
A135: 03030360 | B135: 10699 | C135: 4380 | D135: 6319 | E135: 20 | F135: 17 | G135: 33 | H135: 54 | I135: 50 | J135: 99 | K135: 98 | L135: 180 | M135: 149 | N135: 312 | O135: 233 | P135: 428 | Q135: 282 | R135: 579 | S135: 396 | T135: 747 | U135: 549 | V135: 871 | W135: 636 | X135: 872 | Y135: 725 | Z135: 760 | AA135: 527 | AB135: 578 | AC135: 365 | AD135: 428 | AE135: 320 | AF135: 399 | AG135: 120 | AH135: 128
A136: 03040210 | B136: 175 | D136: 175 | L136: 4 | N136: 11 | P136: 36 | R136: 54 | T136: 31 | V136: 20 | X136: 9 | Z136: 5 | AB136: 0 | AD136: 1 | AF136: 4 | AO136: 1 | AP136: 10 | AQ136: 0 | AR136: 0 | AS136: 0
A137: 03040220 | B137: 635 | D137: 635 | F137: 0 | H137: 5 | J137: 6 | L137: 10 | N137: 54 | P137: 46 | R137: 43 | T137: 51 | V137: 69 | X137: 61 | Z137: 69 | AB137: 47 | AD137: 46 | AF137: 40 | AH137: 30 | AJ137: 25 | AL137: 17 | AN137: 16 | AO137: 43 | AP137: 7 | AQ137: 4 | AR137: 0 | AS137: 0
A138: 03050400 | B138: 5481 | C138: 2351 | D138: 3154 | E138: 1604 | F138: 2100 | G138: 747 | H138: 1054
A139: 03050500 | B139: 775 | C139: 423 | D139: 352 | E139: 275 | F139: 231 | G139: 148 | H139: 121
A140: 03050600 | B140: 3209 | C140: 1240 | D140: 1969 | E140: 930 | F140: 1294 | G140: 310 | H140: 675
A141: 03050700 | B141: 2531 | C141: 1156 | D141: 1375 | E141: 891 | F141: 907 | G141: 265 | H141: 468
A142: 03050710 | B142: 451 | C142: 236 | D142: 215 | E142: 175 | F142: 127 | G142: 61 | H142: 88
A143: 03051000A | B143: 9 | C143: 7 | D143: 2 | E143: 0 | F143: 0 | G143: 0 | H143: 0 | I143: 1 | J143: 0 | K143: 0 | L143: 0 | M143: 0 | N143: 0 | O143: 0 | P143: 0 | Q143: 0 | R143: 0 | S143: 4 | T143: 1 | U143: 1 | V143: 0 | W143: 1 | X143: 1 | Y143: 0 | Z143: 0
A144: 03051100 | B144: 311 | C144: 164 | D144: 147 | E144: 2 | F144: 1 | G144: 0 | H144: 0 | I144: 2 | J144: 1 | K144: 6 | L144: 2 | M144: 6 | N144: 3 | O144: 1 | P144: 2 | Q144: 2 | R144: 5 | S144: 101 | T144: 110 | U144: 21 | V144: 13 | W144: 16 | X144: 8 | Y144: 7 | Z144: 2
A145: 03051200 | B145: 361 | C145: 157 | D145: 204 | E145: 0 | F145: 1 | G145: 0 | H145: 2 | I145: 0 | J145: 2 | K145: 3 | L145: 2 | M145: 1 | N145: 0 | O145: 3 | P145: 2 | Q145: 6 | R145: 4 | S145: 102 | T145: 125 | U145: 17 | V145: 32 | W145: 16 | X145: 23 | Y145: 9 | Z145: 11
A146: 03051300 | B146: 269 | C146: 133 | D146: 136 | E146: 0 | F146: 0 | G146: 2 | H146: 2 | I146: 4 | J146: 1 | K146: 10 | L146: 4 | M146: 7 | N146: 1 | O146: 2 | P146: 0 | Q146: 1 | R146: 3 | S146: 59 | T146: 68 | U146: 7 | V146: 9 | W146: 27 | X146: 20 | Y146: 14 | Z146: 28
A147: 03051400 | B147: 18 | C147: 8 | D147: 10 | E147: 0 | F147: 0 | G147: 0 | H147: 0 | I147: 1 | J147: 1 | K147: 0 | L147: 0 | M147: 0 | N147: 0 | O147: 0 | P147: 0 | Q147: 0 | R147: 0 | S147: 1 | T147: 1 | U147: 0 | V147: 1 | W147: 1 | X147: 3 | Y147: 5 | Z147: 4
A148: 03051500 | B148: 3 | C148: 2 | D148: 1 | E148: 0 | F148: 0 | G148: 0 | H148: 0 | I148: 0 | J148: 0 | K148: 0 | L148: 0 | M148: 0 | N148: 0 | O148: 0 | P148: 0 | Q148: 0 | R148: 0 | S148: 2 | T148: 1 | U148: 0 | V148: 0 | W148: 0 | X148: 0 | Y148: 0 | Z148: 0
A149: 03051600 | B149: 42 | C149: 28 | D149: 14 | E149: 0 | F149: 0 | G149: 0 | H149: 0 | I149: 0 | J149: 0 | K149: 1 | L149: 0 | M149: 0 | N149: 0 | O149: 2 | P149: 1 | Q149: 0 | R149: 0 | S149: 20 | T149: 12 | U149: 5 | V149: 1 | W149: 0 | X149: 0 | Y149: 0 | Z149: 0
A150: 03051700 | B150: 64 | C150: 30 | D150: 34 | E150: 0 | F150: 0 | G150: 1 | H150: 0 | I150: 0 | J150: 0 | K150: 1 | L150: 0 | M150: 1 | N150: 0 | O150: 1 | P150: 1 | Q150: 0 | R150: 2 | S150: 18 | T150: 24 | U150: 7 | V150: 3 | W150: 1 | X150: 3 | Y150: 0 | Z150: 1
A151: 03051800 | B151: 47 | C151: 24 | D151: 23 | E151: 0 | F151: 0 | G151: 0 | H151: 0 | I151: 0 | J151: 1 | K151: 1 | L151: 0 | M151: 3 | N151: 1 | O151: 1 | P151: 0 | Q151: 1 | R151: 0 | S151: 11 | T151: 11 | U151: 4 | V151: 2 | W151: 2 | X151: 4 | Y151: 1 | Z151: 4
A152: 03051900 | B152: 5 | C152: 2 | D152: 3 | E152: 0 | F152: 0 | G152: 0 | H152: 0 | I152: 0 | J152: 0 | K152: 0 | L152: 0 | M152: 0 | N152: 0 | O152: 0 | P152: 0 | Q152: 0 | R152: 0 | S152: 0 | T152: 1 | U152: 0 | V152: 0 | W152: 1 | X152: 1 | Y152: 1 | Z152: 1
A153: 03052000 | B153: 2 | C153: 2 | D153: 0 | E153: 0 | F153: 0 | G153: 0 | H153: 0 | I153: 0 | J153: 0 | K153: 0 | L153: 0 | M153: 0 | N153: 0 | O153: 0 | P153: 0 | Q153: 0 | R153: 0 | S153: 2 | T153: 0 | U153: 0 | V153: 0 | W153: 0 | X153: 0 | Y153: 0 | Z153: 0
A154: 03052100 | B154: 31 | C154: 17 | D154: 14 | E154: 0 | F154: 0 | G154: 0 | H154: 0 | I154: 0 | J154: 2 | K154: 0 | L154: 0 | M154: 0 | N154: 0 | O154: 1 | P154: 0 | Q154: 0 | R154: 0 | S154: 15 | T154: 11 | U154: 1 | V154: 1 | W154: 0 | X154: 0 | Y154: 0 | Z154: 0
A155: 03052200 | B155: 19 | C155: 11 | D155: 8 | E155: 0 | F155: 0 | G155: 0 | H155: 0 | I155: 0 | J155: 0 | K155: 0 | L155: 0 | M155: 0 | N155: 0 | O155: 0 | P155: 0 | Q155: 0 | R155: 0 | S155: 4 | T155: 4 | U155: 1 | V155: 2 | W155: 2 | X155: 0 | Y155: 4 | Z155: 2
A156: 03052300 | B156: 19 | C156: 10 | D156: 9 | E156: 0 | F156: 0 | G156: 0 | H156: 0 | I156: 2 | J156: 0 | K156: 2 | L156: 0 | M156: 0 | N156: 0 | O156: 1 | P156: 0 | Q156: 0 | R156: 0 | S156: 2 | T156: 7 | U156: 1 | V156: 1 | W156: 2 | X156: 1 | Y156: 0 | Z156: 0
A157: 03052400 | B157: 2 | C157: 1 | D157: 1 | E157: 0 | F157: 0 | G157: 0 | H157: 0 | I157: 0 | J157: 0 | K157: 0 | L157: 0 | M157: 0 | N157: 0 | O157: 0 | P157: 0 | Q157: 0 | R157: 0 | S157: 0 | T157: 0 | U157: 1 | V157: 1 | W157: 0 | X157: 0 | Y157: 0 | Z157: 0
A158: 03052500 | B158: 3 | C158: 2 | D158: 1 | E158: 0 | F158: 0 | G158: 0 | H158: 0 | I158: 0 | J158: 0 | K158: 0 | L158: 0 | M158: 0 | N158: 0 | O158: 0 | P158: 0 | Q158: 0 | R158: 0 | S158: 2 | T158: 1 | U158: 0 | V158: 0 | W158: 0 | X158: 0 | Y158: 0 | Z158: 0
A159: 03052600 | B159: 127 | C159: 82 | D159: 45 | E159: 0 | F159: 0 | G159: 0 | H159: 0 | I159: 18 | J159: 3 | K159: 19 | L159: 6 | M159: 12 | N159: 11 | O159: 10 | P159: 3 | Q159: 7 | R159: 3 | S159: 13 | T159: 18 | U159: 2 | V159: 0 | W159: 1 | X159: 0 | Y159: 0 | Z159: 1
A160: 03052700 | B160: 227 | C160: 144 | D160: 83 | E160: 3 | F160: 0 | G160: 2 | H160: 1 | I160: 23 | J160: 10 | K160: 58 | L160: 20 | M160: 28 | N160: 12 | O160: 7 | P160: 13 | Q160: 1 | R160: 6 | S160: 12 | T160: 14 | U160: 2 | V160: 2 | W160: 6 | X160: 3 | Y160: 2 | Z160: 2
A161: 03052800 | B161: 394 | C161: 225 | D161: 169 | E161: 1 | F161: 0 | G161: 4 | H161: 7 | I161: 64 | J161: 16 | K161: 67 | L161: 29 | M161: 27 | N161: 10 | O161: 17 | P161: 7 | Q161: 6 | R161: 2 | S161: 16 | T161: 30 | U161: 3 | V161: 4 | W161: 4 | X161: 11 | Y161: 16 | Z161: 53
A162: 03052900 | B162: 20 | C162: 3 | D162: 17 | E162: 0 | F162: 0 | G162: 0 | H162: 0 | I162: 0 | J162: 1 | K162: 1 | L162: 0 | M162: 0 | N162: 0 | O162: 0 | P162: 0 | Q162: 0 | R162: 0 | S162: 0 | T162: 4 | U162: 0 | V162: 0 | W162: 0 | X162: 3 | Y162: 2 | Z162: 9
A163: 03053000 | B163: 2 | C163: 2 | D163: 0 | E163: 0 | F163: 0 | G163: 0 | H163: 0 | I163: 0 | J163: 0 | K163: 0 | L163: 0 | M163: 0 | N163: 0 | O163: 0 | P163: 0 | Q163: 0 | R163: 0 | S163: 2 | T163: 0 | U163: 0 | V163: 0 | W163: 0 | X163: 0 | Y163: 0 | Z163: 0
A164: 03053100 | B164: 32 | C164: 18 | D164: 14 | E164: 0 | F164: 0 | G164: 3 | H164: 0 | I164: 1 | J164: 0 | K164: 3 | L164: 4 | M164: 4 | N164: 4 | O164: 2 | P164: 3 | Q164: 2 | R164: 1 | S164: 3 | T164: 2 | U164: 0 | V164: 0 | W164: 0 | X164: 0 | Y164: 0 | Z164: 0
A165: 03053200 | B165: 38 | C165: 22 | D165: 16 | E165: 1 | F165: 0 | G165: 0 | H165: 0 | I165: 1 | J165: 3 | K165: 7 | L165: 1 | M165: 5 | N165: 2 | O165: 1 | P165: 3 | Q165: 3 | R165: 3 | S165: 3 | T165: 3 | U165: 1 | V165: 0 | W165: 0 | X165: 0 | Y165: 0 | Z165: 1
A166: 03053300 | B166: 60 | C166: 41 | D166: 19 | E166: 0 | F166: 0 | G166: 0 | H166: 1 | I166: 5 | J166: 0 | K166: 10 | L166: 6 | M166: 5 | N166: 1 | O166: 4 | P166: 4 | Q166: 3 | R166: 0 | S166: 9 | T166: 2 | U166: 3 | V166: 1 | W166: 1 | X166: 2 | Y166: 1 | Z166: 2
A167: 03053400 | B167: 11 | C167: 6 | D167: 5 | E167: 0 | F167: 0 | G167: 0 | H167: 0 | I167: 2 | J167: 1 | K167: 1 | L167: 1 | M167: 0 | N167: 0 | O167: 0 | P167: 0 | Q167: 0 | R167: 0 | S167: 1 | T167: 1 | U167: 1 | V167: 0 | W167: 0 | X167: 1 | Y167: 1 | Z167: 1
A168: 03053500 | B168: 3 | C168: 3 | D168: 0 | E168: 0 | F168: 0 | G168: 0 | H168: 0 | I168: 0 | J168: 0 | K168: 0 | L168: 0 | M168: 0 | N168: 0 | O168: 0 | P168: 0 | Q168: 0 | R168: 0 | S168: 3 | T168: 0 | U168: 0 | V168: 0 | W168: 0 | X168: 0 | Y168: 0 | Z168: 0
A169: 03053600 | B169: 14 | C169: 11 | D169: 3 | E169: 0 | F169: 0 | G169: 0 | H169: 0 | I169: 4 | J169: 0 | K169: 0 | L169: 1 | M169: 1 | N169: 0 | O169: 1 | P169: 0 | Q169: 0 | R169: 0 | S169: 3 | T169: 2 | U169: 1 | V169: 0 | W169: 1 | X169: 0 | Y169: 0 | Z169: 0
A170: 03053700 | B170: 48 | C170: 23 | D170: 25 | E170: 0 | F170: 0 | G170: 1 | H170: 0 | I170: 1 | J170: 1 | K170: 3 | L170: 3 | M170: 1 | N170: 1 | O170: 3 | P170: 0 | Q170: 0 | R170: 0 | S170: 9 | T170: 19 | U170: 4 | V170: 0 | W170: 0 | X170: 1 | Y170: 1 | Z170: 0
A171: 03053800 | B171: 230 | C171: 116 | D171: 114 | E171: 1 | F171: 0 | G171: 0 | H171: 1 | I171: 9 | J171: 3 | K171: 15 | L171: 12 | M171: 8 | N171: 9 | O171: 22 | P171: 9 | Q171: 5 | R171: 4 | S171: 29 | T171: 46 | U171: 18 | V171: 2 | W171: 5 | X171: 11 | Y171: 4 | Z171: 17
A172: 03053900 | B172: 48 | C172: 20 | D172: 28 | E172: 0 | F172: 0 | G172: 0 | H172: 1 | I172: 3 | J172: 1 | K172: 4 | L172: 0 | M172: 0 | N172: 1 | O172: 1 | P172: 1 | Q172: 0 | R172: 0 | S172: 4 | T172: 7 | U172: 1 | V172: 1 | W172: 3 | X172: 2 | Y172: 4 | Z172: 14
A173: 03500020 | B173: 12052 | C173: 5832 | D173: 6220 | E173: 4 | F173: 13 | G173: 83 | H173: 78 | I173: 6 | J173: 12 | K173: 92 | L173: 120 | M173: 2172 | N173: 2239 | O173: 81 | P173: 90 | Q173: 13 | R173: 16 | S173: 65 | T173: 63 | U173: 1987 | V173: 1988 | W173: 1329 | X173: 1601
A174: 03500030 | B174: 1480 | C174: 880 | D174: 600 | E174: 1 | F174: 1 | G174: 0 | H174: 0 | I174: 0 | J174: 0 | K174: 2 | L174: 2 | M174: 99 | N174: 80 | O174: 6 | P174: 4 | Q174: 1 | R174: 3 | S174: 8 | T174: 6 | U174: 272 | V174: 184 | W174: 491 | X174: 321
A175: 03500040 | B175: 3770 | C175: 1892 | D175: 1878 | E175: 1601 | F175: 1575 | G175: 291 | H175: 303
A176: 03500050 | B176: 682 | C176: 355 | D176: 327 | E176: 272 | F176: 250 | G176: 83 | H176: 77
A177: 03500060 | B177: 65 | C177: 38 | D177: 27 | E177: 31 | F177: 18 | G177: 7 | H177: 9
A178: 03500120 | B178: 304
A179: 03500130 | B179: 312
A180: 03500140 | B180: 190
A181: 03500150 | B181: 14
A182: 03500160 | B182: 5734 | D182: 561 | E182: 541
A183: 03500170 | B183: 72 | D183: 25 | E183: 12
A184: 03500200 | B184: 4202 | C184: 625 | E184: 489
A185: 03500210 | B185: 3931 | C185: 604 | E185: 440
A186: 03500290 | B186: 3455 | C186: 1459 | D186: 1996 | E186: 34 | F186: 43 | G186: 165 | H186: 174 | I186: 159 | J186: 253 | K186: 498 | L186: 807 | M186: 357 | N186: 479 | O186: 120 | P186: 105 | Q186: 107 | R186: 113 | S186: 19 | T186: 22
A187: 03500300 | B187: 727 | C187: 417 | D187: 310 | E187: 27 | F187: 31 | G187: 98 | H187: 77 | I187: 22 | J187: 22 | K187: 105 | L187: 71 | M187: 105 | N187: 68 | O187: 27 | P187: 33 | Q187: 30 | R187: 5 | S187: 3 | T187: 3
A188: 03500331 | B188: 152 | C188: 100 | D188: 52 | E188: 0 | F188: 0 | G188: 14 | H188: 9 | I188: 12 | J188: 6 | K188: 36 | L188: 20 | M188: 37 | N188: 16 | O188: 4 | P188: 2 | Q188: 0 | R188: 0
A189: 03500332 | B189: 153 | C189: 119 | D189: 34 | E189: 0 | F189: 2 | G189: 2 | H189: 4 | I189: 12 | J189: 1 | K189: 61 | L189: 19 | M189: 35 | N189: 6 | O189: 9 | P189: 3 | Q189: 0 | R189: 1
A190: 03500333 | B190: 3 | C190: 1 | D190: 2 | E190: 0 | F190: 0 | G190: 0 | H190: 1 | I190: 0 | J190: 0 | K190: 1 | L190: 1 | M190: 0 | N190: 0 | O190: 0 | P190: 0 | Q190: 0 | R190: 0
A191: 03500334 | B191: 14 | C191: 10 | D191: 4 | E191: 0 | F191: 0 | G191: 0 | H191: 0 | I191: 3 | J191: 0 | K191: 6 | L191: 1 | M191: 1 | N191: 2 | O191: 0 | P191: 1 | Q191: 0 | R191: 0
A192: 03500335 | B192: 1 | C192: 1 | D192: 0 | G192: 1 | Q192: 0 | R192: 0
A193: 03500336 | B193: 231 | C193: 115 | D193: 116 | E193: 0 | F193: 0 | G193: 0 | H193: 0 | I193: 11 | J193: 2 | K193: 28 | L193: 10 | M193: 11 | N193: 6 | O193: 9 | P193: 4 | Q193: 3 | R193: 4 | S193: 31 | T193: 46 | U193: 9 | V193: 9 | W193: 11 | X193: 16 | Y193: 2 | Z193: 19
A194: 03500337 | B194: 168 | C194: 95 | D194: 73 | E194: 0 | F194: 0 | G194: 0 | H194: 0 | I194: 6 | J194: 2 | K194: 5 | L194: 3 | M194: 4 | N194: 4 | O194: 1 | P194: 1 | Q194: 2 | R194: 5 | S194: 56 | T194: 50 | U194: 11 | V194: 4 | W194: 7 | X194: 3 | Y194: 3 | Z194: 1
A195: 03500338 | B195: 223 | C195: 108 | D195: 115 | E195: 1 | F195: 1 | G195: 1 | H195: 1 | I195: 11 | J195: 7 | K195: 24 | L195: 10 | M195: 10 | N195: 5 | O195: 4 | P195: 7 | Q195: 2 | R195: 5 | S195: 39 | T195: 49 | U195: 7 | V195: 15 | W195: 6 | X195: 6 | Y195: 3 | Z195: 9
A196: 03500339 | B196: 320 | C196: 180 | D196: 140 | E196: 0 | F196: 0 | G196: 1 | H196: 3 | I196: 33 | J196: 8 | K196: 36 | L196: 26 | M196: 15 | N196: 8 | O196: 17 | P196: 6 | Q196: 9 | R196: 2 | S196: 36 | T196: 57 | U196: 9 | V196: 7 | W196: 13 | X196: 6 | Y196: 11 | Z196: 17
A197: 03500340 | B197: 31 | C197: 13 | D197: 18 | E197: 0 | F197: 0 | G197: 0 | H197: 1 | I197: 2 | J197: 1 | K197: 0 | L197: 1 | M197: 0 | N197: 0 | O197: 1 | P197: 0 | Q197: 0 | R197: 0 | S197: 5 | T197: 3 | U197: 0 | V197: 0 | W197: 1 | X197: 2 | Y197: 4 | Z197: 10
A198: 03500341 | B198: 18 | C198: 8 | D198: 10 | E198: 0 | F198: 0 | G198: 0 | H198: 0 | I198: 1 | J198: 2 | K198: 0 | L198: 0 | M198: 0 | N198: 0 | O198: 1 | P198: 1 | Q198: 0 | R198: 0 | S198: 2 | T198: 3 | U198: 3 | V198: 1 | W198: 1 | X198: 2 | Y198: 0 | Z198: 1
A199: 03500342 | B199: 62 | C199: 35 | D199: 27 | E199: 0 | F199: 0 | G199: 0 | H199: 0 | I199: 2 | J199: 2 | K199: 4 | L199: 0 | M199: 1 | N199: 2 | O199: 3 | P199: 1 | Q199: 1 | R199: 0 | S199: 12 | T199: 13 | U199: 8 | V199: 5 | W199: 4 | X199: 3 | Y199: 0 | Z199: 1
A200: 03500343 | B200: 82 | C200: 34 | D200: 48 | E200: 0 | F200: 0 | G200: 0 | H200: 0 | I200: 2 | J200: 1 | K200: 11 | L200: 5 | M200: 1 | N200: 2 | O200: 1 | P200: 2 | Q200: 1 | R200: 2 | S200: 11 | T200: 25 | U200: 2 | V200: 6 | W200: 4 | X200: 5 | Y200: 1 | Z200: 0
A201: 03500344 | B201: 125 | C201: 61 | D201: 64 | E201: 0 | F201: 0 | G201: 0 | H201: 0 | I201: 5 | J201: 1 | K201: 17 | L201: 7 | M201: 6 | N201: 4 | O201: 6 | P201: 2 | Q201: 1 | R201: 2 | S201: 15 | T201: 17 | U201: 3 | V201: 3 | W201: 5 | X201: 11 | Y201: 3 | Z201: 17
... 2423 more rows

Sheet A01
B1: SERVICIO DE SALUD
B2: =CONCATENATE("COMUNA: ",NOMBRE!B2," - ","( ",NOMBRE!C2,NOMBRE!D2,NOMBRE!E2,NOMBRE!F2,NOMBRE!G2," )") -> COMUNA: - ( )
B3: =CONCATENATE("ESTABLECIMIENTO/ESTRATEGIA: ",NOMBRE!B3," - ","( ",NOMBRE!C3,NOMBRE!D3,NOMBRE!E3,NOMBRE!F3,NOMBRE!G3,NOMBRE!H3," )") -> ESTABLECIMIENTO/ESTRATEGIA: - ( )
B4: =CONCATENATE("MES: ",NOMBRE!B6," - ","( ",NOMBRE!C6,NOMBRE!D6," )") -> MES: - ( )
B5: =CONCATENATE("AÑO: ",NOMBRE!B7) -> AÑO: 2023
B6: REM-A01. CONTROLES DE SALUD
B9: SECCIÓN A: CONTROLES DE SALUD SEXUAL Y REPRODUCTIVA
B10: TIPO DE CONTROL | C10: PROFESIONAL | D10: TOTAL | E10: POR EDAD | V10: SEXO | X10: Control con pareja familiar u otro | Y10: Control de diada con presencia del padre | Z10: Espacios Amigables/ Adolescentes | AA10: Niños, Niñas, Adolescentes y Jóvenes SENAME | AB10: Niños, Niñas, Adolescentes y Jóvenes Mejor Niñez | AC10: Pueblos Originarios | AD10: Migrantes
E11: Menor de 4 años | F11: 5 - 9 años | G11: 10 - 14 años | H11: 15 a 19 años | I11: 20 - 24 años | J11: 25 - 29 años | K11: 30 - 34 años | L11: 35 - 39 años | M11: 40 - 44 años | N11: 45 - 49 años | O11: 50 - 54 años | P11: 55 - 59 años | Q11: 60 - 64 años | R11: 65 - 69 años | S11: 70 - 74 años | T11: 75 - 79 años | U11: 80 y más años | V11: HOMBRES | W11: MUJERES
A12: 01010101 | B12: PRE- CONCEPCIONAL | C12: MÉDICO/A | D12: =SUM(G12:P12) -> 7 | E12: =IFERROR(VLOOKUP($A12,Filtro_!$A$5:$AW$2624,3,FALSE),0) -> 0 | F12: =IFERROR(VLOOKUP($A12,Filtro_!$A$5:$AW$2624,4,FALSE),0) -> 0 | G12: =IFERROR(VLOOKUP($A12,Filtro_!$A$5:$AW$2624,5,FALSE),0) -> 0 | H12: =IFERROR(VLOOKUP($A12,Filtro_!$A$5:$AW$2624,6,FALSE),0) -> 0 | I12: =IFERROR(VLOOKUP($A12,Filtro_!$A$5:$AW$2624,7,FALSE),0) -> 0 | J12: =IFERROR(VLOOKUP($A12,Filtro_!$A$5:$AW$2624,8,FALSE),0) -> 4 | K12: =IFERROR(VLOOKUP($A12,Filtro_!$A$5:$AW$2624,9,FALSE),0) -> 2 | L12: =IFERROR(VLOOKUP($A12,Filtro_!$A$5:$AW$2624,10,FALSE),0) -> 0 | M12: =IFERROR(VLOOKUP($A12,Filtro_!$A$5:$AW$2624,11,FALSE),0) -> 1 | N12: =IFERROR(VLOOKUP($A12,Filtro_!$A$5:$AW$2624,12,FALSE),0) -> 0 | O12: =IFERROR(VLOOKUP($A12,Filtro_!$A$5:$AW$2624,13,FALSE),0) -> 0 | P12: =IFERROR(VLOOKUP($A12,Filtro_!$A$5:$AW$2624,14,FALSE),0) -> 0 | Q12: =IFERROR(VLOOKUP($A12,Filtro_!$A$5:$AW$2624,15,FALSE),0) -> 0 | R12: =IFERROR(VLOOKUP($A12,Filtro_!$A$5:$AW$2624,16,FALSE),0) -> 0 | S12: =IFERROR(VLOOKUP($A12,Filtro_!$A$5:$AW$2624,17,FALSE),0) -> 0 | T12: =IFERROR(VLOOKUP($A12,Filtro_!$A$5:$AW$2624,18,FALSE),0) -> 0 | U12: =IFERROR(VLOOKUP($A12,Filtro_!$A$5:$AW$2624,19,FALSE),0) -> 0 | V12: =IFERROR(VLOOKUP($A12,Filtro_!$A$5:$AW$2624,20,FALSE),0) -> 0 | W12: =IFERROR(VLOOKUP($A12,Filtro_!$A$5:$AW$2624,21,FALSE),0) -> 7 | X12: =IFERROR(VLOOKUP($A12,Filtro_!$A$5:$AW$2624,22,FALSE),0) -> 0 | Y12: =IFERROR(VLOOKUP($A12,Filtro_!$A$5:$AW$2624,23,FALSE),0) -> 0 | Z12: =IFERROR(VLOOKUP($A12,Filtro_!$A$5:$AW$2624,24,FALSE),0) -> 0 | AA12: =IFERROR(VLOOKUP($A12,Filtro_!$A$5:$AW$2624,25,FALSE),0) -> 0 | AB12: =IFERROR(VLOOKUP($A12,Filtro_!$A$5:$AW$2624,26,FALSE),0) -> 0 | AC12: =IFERROR(VLOOKUP($A12,Filtro_!$A$5:$AW$2624,27,FALSE),0) -> 0 | AD12: =IFERROR(VLOOKUP($A12,Filtro_!$A$5:$AW$2624,28,FALSE),0) -> 0 | CA12: * El número de Sexo Hombres y mujeres debe ser igual al total. | DA12: 1 | DB12: 0 | DE12: 0 | DF12: 0 | DG12: 0 | DH12: 0 | DI12: 0 | DJ12: 0 | DK12: 0 | DL12: 0 | DM12: 0 | DN12: 0 | DO12: 0 | DP12: 0 | DQ12: 0
A13: 01010103 | C13: MATRONA/ÓN | D13: =SUM(G13:P13) -> 1563 | E13: =IFERROR(VLOOKUP($A13,Filtro_!$A$5:$AW$2624,3,FALSE),0) -> 0 | F13: =IFERROR(VLOOKUP($A13,Filtro_!$A$5:$AW$2624,4,FALSE),0) -> 0 | G13: =IFERROR(VLOOKUP($A13,Filtro_!$A$5:$AW$2624,5,FALSE),0) -> 5 | H13: =IFERROR(VLOOKUP($A13,Filtro_!$A$5:$AW$2624,6,FALSE),0) -> 70 | I13: =IFERROR(VLOOKUP($A13,Filtro_!$A$5:$AW$2624,7,FALSE),0) -> 256 | J13: =IFERROR(VLOOKUP($A13,Filtro_!$A$5:$AW$2624,8,FALSE),0) -> 434 | K13: =IFERROR(VLOOKUP($A13,Filtro_!$A$5:$AW$2624,9,FALSE),0) -> 399 | L13: =IFERROR(VLOOKUP($A13,Filtro_!$A$5:$AW$2624,10,FALSE),0) -> 275 | M13: =IFERROR(VLOOKUP($A13,Filtro_!$A$5:$AW$2624,11,FALSE),0) -> 105 | N13: =IFERROR(VLOOKUP($A13,Filtro_!$A$5:$AW$2624,12,FALSE),0) -> 18 | O13: =IFERROR(VLOOKUP($A13,Filtro_!$A$5:$AW$2624,13,FALSE),0) -> 1 | P13: =IFERROR(VLOOKUP($A13,Filtro_!$A$5:$AW$2624,14,FALSE),0) -> 0 | Q13: =IFERROR(VLOOKUP($A13,Filtro_!$A$5:$AW$2624,15,FALSE),0) -> 0 | R13: =IFERROR(VLOOKUP($A13,Filtro_!$A$5:$AW$2624,16,FALSE),0) -> 0 | S13: =IFERROR(VLOOKUP($A13,Filtro_!$A$5:$AW$2624,17,FALSE),0) -> 0 | T13: =IFERROR(VLOOKUP($A13,Filtro_!$A$5:$AW$2624,18,FALSE),0) -> 0 | U13: =IFERROR(VLOOKUP($A13,Filtro_!$A$5:$AW$2624,19,FALSE),0) -> 0 | V13: =IFERROR(VLOOKUP($A13,Filtro_!$A$5:$AW$2624,20,FALSE),0) -> 10 | W13: =IFERROR(VLOOKUP($A13,Filtro_!$A$5:$AW$2624,21,FALSE),0) -> 1540 | X13: =IFERROR(VLOOKUP($A13,Filtro_!$A$5:$AW$2624,22,FALSE),0) -> 0 | Y13: =IFERROR(VLOOKUP($A13,Filtro_!$A$5:$AW$2624,23,FALSE),0) -> 0 | Z13: =IFERROR(VLOOKUP($A13,Filtro_!$A$5:$AW$2624,24,FALSE),0) -> 12 | AA13: =IFERROR(VLOOKUP($A13,Filtro_!$A$5:$AW$2624,25,FALSE),0) -> 0 | AB13: =IFERROR(VLOOKUP($A13,Filtro_!$A$5:$AW$2624,26,FALSE),0) -> 0 | AC13: =IFERROR(VLOOKUP($A13,Filtro_!$A$5:$AW$2624,27,FALSE),0) -> 13 | AD13: =IFERROR(VLOOKUP($A13,Filtro_!$A$5:$AW$2624,28,FALSE),0) -> 70 | CA13: * El número de Sexo Hombres y mujeres debe ser igual al total. | DA13: 1 | DB13: 0 | DE13: 0 | DF13: 0 | DG13: 0 | DH13: 0 | DI13: 0 | DJ13: 0 | DK13: 0 | DL13: 0 | DM13: 0 | DN13: 0 | DO13: 0 | DP13: 0 | DQ13: 0
A14: 01010201 | B14: PRENATAL | C14: MÉDICO/A | D14: =SUM(G14:P14) -> 290 | E14: =IFERROR(VLOOKUP($A14,Filtro_!$A$5:$AW$2624,3,FALSE),0) -> 0 | F14: =IFERROR(VLOOKUP($A14,Filtro_!$A$5:$AW$2624,4,FALSE),0) -> 0 | G14: =IFERROR(VLOOKUP($A14,Filtro_!$A$5:$AW$2624,5,FALSE),0) -> 0 | H14: =IFERROR(VLOOKUP($A14,Filtro_!$A$5:$AW$2624,6,FALSE),0) -> 23 | I14: =IFERROR(VLOOKUP($A14,Filtro_!$A$5:$AW$2624,7,FALSE),0) -> 65 | J14: =IFERROR(VLOOKUP($A14,Filtro_!$A$5:$AW$2624,8,FALSE),0) -> 67 | K14: =IFERROR(VLOOKUP($A14,Filtro_!$A$5:$AW$2624,9,FALSE),0) -> 74 | L14: =IFERROR(VLOOKUP($A14,Filtro_!$A$5:$AW$2624,10,FALSE),0) -> 49 | M14: =IFERROR(VLOOKUP($A14,Filtro_!$A$5:$AW$2624,11,FALSE),0) -> 4 | N14: =IFERROR(VLOOKUP($A14,Filtro_!$A$5:$AW$2624,12,FALSE),0) -> 3 | O14: =IFERROR(VLOOKUP($A14,Filtro_!$A$5:$AW$2624,13,FALSE),0) -> 3 | P14: =IFERROR(VLOOKUP($A14,Filtro_!$A$5:$AW$2624,14,FALSE),0) -> 2 | Q14: =IFERROR(VLOOKUP($A14,Filtro_!$A$5:$AW$2624,15,FALSE),0) -> 0 | R14: =IFERROR(VLOOKUP($A14,Filtro_!$A$5:$AW$2624,16,FALSE),0) -> 0 | S14: =IFERROR(VLOOKUP($A14,Filtro_!$A$5:$AW$2624,17,FALSE),0) -> 0 | T14: =IFERROR(VLOOKUP($A14,Filtro_!$A$5:$AW$2624,18,FALSE),0) -> 0 | U14: =IFERROR(VLOOKUP($A14,Filtro_!$A$5:$AW$2624,19,FALSE),0) -> 0 | V14: =IFERROR(VLOOKUP($A14,Filtro_!$A$5:$AW$2624,20,FALSE),0) -> 0 | W14: =IFERROR(VLOOKUP($A14,Filtro_!$A$5:$AW$2624,21,FALSE),0) -> 289 | X14: =IFERROR(VLOOKUP($A14,Filtro_!$A$5:$AW$2624,22,FALSE),0) -> 13 | Y14: =IFERROR(VLOOKUP($A14,Filtro_!$A$5:$AW$2624,23,FALSE),0) -> 0 | Z14: =IFERROR(VLOOKUP($A14,Filtro_!$A$5:$AW$2624,24,FALSE),0) -> 0 | AA14: =IFERROR(VLOOKUP($A14,Filtro_!$A$5:$AW$2624,25,FALSE),0) -> 0 | AB14: =IFERROR(VLOOKUP($A14,Filtro_!$A$5:$AW$2624,26,FALSE),0) -> 0 | AC14: =IFERROR(VLOOKUP($A14,Filtro_!$A$5:$AW$2624,27,FALSE),0) -> 2 | AD14: =IFERROR(VLOOKUP($A14,Filtro_!$A$5:$AW$2624,28,FALSE),0) -> 1 | CA14: * El número de Sexo Hombres y mujeres debe ser igual al total. | DA14: 1 | DB14: 0 | DC14: 0 | DE14: 0 | DF14: 0 | DG14: 0 | DH14: 0 | DI14: 0 | DJ14: 0 | DK14: 0 | DL14: 0 | DM14: 0 | DN14: 0 | DO14: 0 | DP14: 0 | DQ14: 0
A15: 01010203 | C15: MATRONA/ÓN | D15: 37874 | E15: =IFERROR(VLOOKUP($A15,Filtro_!$A$5:$AW$2624,3,FALSE),0) -> 0 | F15: =IFERROR(VLOOKUP($A15,Filtro_!$A$5:$AW$2624,4,FALSE),0) -> 0 | G15: =IFERROR(VLOOKUP($A15,Filtro_!$A$5:$AW$2624,5,FALSE),0) -> 102 | H15: =IFERROR(VLOOKUP($A15,Filtro_!$A$5:$AW$2624,6,FALSE),0) -> 2115 | I15: =IFERROR(VLOOKUP($A15,Filtro_!$A$5:$AW$2624,7,FALSE),0) -> 8450 | J15: =IFERROR(VLOOKUP($A15,Filtro_!$A$5:$AW$2624,8,FALSE),0) -> 11256 | K15: =IFERROR(VLOOKUP($A15,Filtro_!$A$5:$AW$2624,9,FALSE),0) -> 9713 | L15: =IFERROR(VLOOKUP($A15,Filtro_!$A$5:$AW$2624,10,FALSE),0) -> 4842 | M15: =IFERROR(VLOOKUP($A15,Filtro_!$A$5:$AW$2624,11,FALSE),0) -> 1341 | N15: =IFERROR(VLOOKUP($A15,Filtro_!$A$5:$AW$2624,12,FALSE),0) -> 51 | O15: =IFERROR(VLOOKUP($A15,Filtro_!$A$5:$AW$2624,13,FALSE),0) -> 3 | P15: =IFERROR(VLOOKUP($A15,Filtro_!$A$5:$AW$2624,14,FALSE),0) -> 1 | Q15: =IFERROR(VLOOKUP($A15,Filtro_!$A$5:$AW$2624,15,FALSE),0) -> 0 | R15: =IFERROR(VLOOKUP($A15,Filtro_!$A$5:$AW$2624,16,FALSE),0) -> 0 | S15: =IFERROR(VLOOKUP($A15,Filtro_!$A$5:$AW$2624,17,FALSE),0) -> 0 | T15: =IFERROR(VLOOKUP($A15,Filtro_!$A$5:$AW$2624,18,FALSE),0) -> 0 | U15: =IFERROR(VLOOKUP($A15,Filtro_!$A$5:$AW$2624,19,FALSE),0) -> 0 | V15: =IFERROR(VLOOKUP($A15,Filtro_!$A$5:$AW$2624,20,FALSE),0) -> 0 | W15: =IFERROR(VLOOKUP($A15,Filtro_!$A$5:$AW$2624,21,FALSE),0) -> 37507 | X15: =IFERROR(VLOOKUP($A15,Filtro_!$A$5:$AW$2624,22,FALSE),0) -> 10582 | Y15: =IFERROR(VLOOKUP($A15,Filtro_!$A$5:$AW$2624,23,FALSE),0) -> 0 | Z15: =IFERROR(VLOOKUP($A15,Filtro_!$A$5:$AW$2624,24,FALSE),0) -> 0 | AA15: =IFERROR(VLOOKUP($A15,Filtro_!$A$5:$AW$2624,25,FALSE),0) -> 46 | AB15: =IFERROR(VLOOKUP($A15,Filtro_!$A$5:$AW$2624,26,FALSE),0) -> 33 | AC15: =IFERROR(VLOOKUP($A15,Filtro_!$A$5:$AW$2624,27,FALSE),0) -> 483 | AD15: =IFERROR(VLOOKUP($A15,Filtro_!$A$5:$AW$2624,28,FALSE),0) -> 2803 | CA15: * El número de Sexo Hombres y mujeres debe ser igual al total. | DA15: 1 | DB15: 0 | DC15: 0 | DE15: 0 | DF15: 0 | DG15: 0 | DH15: 0 | DI15: 0 | DJ15: 0 | DK15: 0 | DL15: 0 | DM15: 0 | DN15: 0 | DO15: 0 | DP15: 0 | DQ15: 0
A16: 01501050 | B16: POST PARTO | C16: MÉDICO/A | D16: 4 | E16: =IFERROR(VLOOKUP($A16,Filtro_!$A$5:$AW$2624,3,FALSE),0) -> 0 | F16: =IFERROR(VLOOKUP($A16,Filtro_!$A$5:$AW$2624,4,FALSE),0) -> 0 | G16: =IFERROR(VLOOKUP($A16,Filtro_!$A$5:$AW$2624,5,FALSE),0) -> 0 | H16: =IFERROR(VLOOKUP($A16,Filtro_!$A$5:$AW$2624,6,FALSE),0) -> 0 | I16: =IFERROR(VLOOKUP($A16,Filtro_!$A$5:$AW$2624,7,FALSE),0) -> 3 | J16: =IFERROR(VLOOKUP($A16,Filtro_!$A$5:$AW$2624,8,FALSE),0) -> 0 | K16: =IFERROR(VLOOKUP($A16,Filtro_!$A$5:$AW$2624,9,FALSE),0) -> 0 | L16: =IFERROR(VLOOKUP($A16,Filtro_!$A$5:$AW$2624,10,FALSE),0) -> 1 | M16: =IFERROR(VLOOKUP($A16,Filtro_!$A$5:$AW$2624,11,FALSE),0) -> 0 | N16: =IFERROR(VLOOKUP($A16,Filtro_!$A$5:$AW$2624,12,FALSE),0) -> 0 | O16: =IFERROR(VLOOKUP($A16,Filtro_!$A$5:$AW$2624,13,FALSE),0) -> 0 | P16: =IFERROR(VLOOKUP($A16,Filtro_!$A$5:$AW$2624,14,FALSE),0) -> 0 | Q16: =IFERROR(VLOOKUP($A16,Filtro_!$A$5:$AW$2624,15,FALSE),0) -> 0 | R16: =IFERROR(VLOOKUP($A16,Filtro_!$A$5:$AW$2624,16,FALSE),0) -> 0 | S16: =IFERROR(VLOOKUP($A16,Filtro_!$A$5:$AW$2624,17,FALSE),0) -> 0 | T16: =IFERROR(VLOOKUP($A16,Filtro_!$A$5:$AW$2624,18,FALSE),0) -> 0 | U16: =IFERROR(VLOOKUP($A16,Filtro_!$A$5:$AW$2624,19,FALSE),0) -> 0 | V16: =IFERROR(VLOOKUP($A16,Filtro_!$A$5:$AW$2624,20,FALSE),0) -> 0 | W16: =IFERROR(VLOOKUP($A16,Filtro_!$A$5:$AW$2624,21,FALSE),0) -> 4 | X16: =IFERROR(VLOOKUP($A16,Filtro_!$A$5:$AW$2624,22,FALSE),0) -> 0 | Y16: =IFERROR(VLOOKUP($A16,Filtro_!$A$5:$AW$2624,23,FALSE),0) -> 0 | Z16: =IFERROR(VLOOKUP($A16,Filtro_!$A$5:$AW$2624,24,FALSE),0) -> 0 | AA16: =IFERROR(VLOOKUP($A16,Filtro_!$A$5:$AW$2624,25,FALSE),0) -> 0 | AB16: =IFERROR(VLOOKUP($A16,Filtro_!$A$5:$AW$2624,26,FALSE),0) -> 0 | AC16: =IFERROR(VLOOKUP($A16,Filtro_!$A$5:$AW$2624,27,FALSE),0) -> 0 | AD16: =IFERROR(VLOOKUP($A16,Filtro_!$A$5:$AW$2624,28,FALSE),0) -> 0 | CA16: * El número de Sexo Hombres y mujeres debe ser igual al total. | DA16: 1 | DB16: 0 | DE16: 0 | DF16: 0 | DG16: 0 | DH16: 0 | DI16: 0 | DJ16: 0 | DK16: 0 | DL16: 0 | DM16: 0 | DN16: 0 | DO16: 0 | DP16: 0 | DQ16: 0
A17: 01501060 | C17: MATRONA/ÓN | D17: 406 | E17: =IFERROR(VLOOKUP($A17,Filtro_!$A$5:$AW$2624,3,FALSE),0) -> 0 | F17: =IFERROR(VLOOKUP($A17,Filtro_!$A$5:$AW$2624,4,FALSE),0) -> 0 | G17: =IFERROR(VLOOKUP($A17,Filtro_!$A$5:$AW$2624,5,FALSE),0) -> 0 | H17: =IFERROR(VLOOKUP($A17,Filtro_!$A$5:$AW$2624,6,FALSE),0) -> 12 | I17: =IFERROR(VLOOKUP($A17,Filtro_!$A$5:$AW$2624,7,FALSE),0) -> 93 | J17: =IFERROR(VLOOKUP($A17,Filtro_!$A$5:$AW$2624,8,FALSE),0) -> 106 | K17: =IFERROR(VLOOKUP($A17,Filtro_!$A$5:$AW$2624,9,FALSE),0) -> 110 | L17: =IFERROR(VLOOKUP($A17,Filtro_!$A$5:$AW$2624,10,FALSE),0) -> 64 | M17: =IFERROR(VLOOKUP($A17,Filtro_!$A$5:$AW$2624,11,FALSE),0) -> 19 | N17: =IFERROR(VLOOKUP($A17,Filtro_!$A$5:$AW$2624,12,FALSE),0) -> 1 | O17: =IFERROR(VLOOKUP($A17,Filtro_!$A$5:$AW$2624,13,FALSE),0) -> 0 | P17: =IFERROR(VLOOKUP($A17,Filtro_!$A$5:$AW$2624,14,FALSE),0) -> 1 | Q17: =IFERROR(VLOOKUP($A17,Filtro_!$A$5:$AW$2624,15,FALSE),0) -> 0 | R17: =IFERROR(VLOOKUP($A17,Filtro_!$A$5:$AW$2624,16,FALSE),0) -> 0 | S17: =IFERROR(VLOOKUP($A17,Filtro_!$A$5:$AW$2624,17,FALSE),0) -> 0 | T17: =IFERROR(VLOOKUP($A17,Filtro_!$A$5:$AW$2624,18,FALSE),0) -> 0 | U17: =IFERROR(VLOOKUP($A17,Filtro_!$A$5:$AW$2624,19,FALSE),0) -> 0 | V17: =IFERROR(VLOOKUP($A17,Filtro_!$A$5:$AW$2624,20,FALSE),0) -> 0 | W17: =IFERROR(VLOOKUP($A17,Filtro_!$A$5:$AW$2624,21,FALSE),0) -> 406 | X17: =IFERROR(VLOOKUP($A17,Filtro_!$A$5:$AW$2624,22,FALSE),0) -> 0 | Y17: =IFERROR(VLOOKUP($A17,Filtro_!$A$5:$AW$2624,23,FALSE),0) -> 0 | Z17: =IFERROR(VLOOKUP($A17,Filtro_!$A$5:$AW$2624,24,FALSE),0) -> 0 | AA17: =IFERROR(VLOOKUP($A17,Filtro_!$A$5:$AW$2624,25,FALSE),0) -> 1 | AB17: =IFERROR(VLOOKUP($A17,Filtro_!$A$5:$AW$2624,26,FALSE),0) -> 0 | AC17: =IFERROR(VLOOKUP($A17,Filtro_!$A$5:$AW$2624,27,FALSE),0) -> 2 | AD17: =IFERROR(VLOOKUP($A17,Filtro_!$A$5:$AW$2624,28,FALSE),0) -> 22 | CA17: * El número de Sexo Hombres y mujeres debe ser igual al total. | DA17: 1 | DB17: 0 | DE17: 0 | DF17: 0 | DG17: 0 | DH17: 0 | DI17: 0 | DJ17: 0 | DK17: 0 | DL17: 0 | DM17: 0 | DN17: 0 | DO17: 0 | DP17: 0 | DQ17: 0
A18: 01501070 | B18: POST ABORTO | C18: MÉDICO/A | D18: 5 | E18: =IFERROR(VLOOKUP($A18,Filtro_!$A$5:$AW$2624,3,FALSE),0) -> 0 | F18: =IFERROR(VLOOKUP($A18,Filtro_!$A$5:$AW$2624,4,FALSE),0) -> 0 | G18: =IFERROR(VLOOKUP($A18,Filtro_!$A$5:$AW$2624,5,FALSE),0) -> 0 | H18: =IFERROR(VLOOKUP($A18,Filtro_!$A$5:$AW$2624,6,FALSE),0) -> 0 | I18: =IFERROR(VLOOKUP($A18,Filtro_!$A$5:$AW$2624,7,FALSE),0) -> 1 | J18: =IFERROR(VLOOKUP($A18,Filtro_!$A$5:$AW$2624,8,FALSE),0) -> 2 | K18: =IFERROR(VLOOKUP($A18,Filtro_!$A$5:$AW$2624,9,FALSE),0) -> 0 | L18: =IFERROR(VLOOKUP($A18,Filtro_!$A$5:$AW$2624,10,FALSE),0) -> 2 | M18: =IFERROR(VLOOKUP($A18,Filtro_!$A$5:$AW$2624,11,FALSE),0) -> 0 | N18: =IFERROR(VLOOKUP($A18,Filtro_!$A$5:$AW$2624,12,FALSE),0) -> 0 | O18: =IFERROR(VLOOKUP($A18,Filtro_!$A$5:$AW$2624,13,FALSE),0) -> 0 | P18: =IFERROR(VLOOKUP($A18,Filtro_!$A$5:$AW$2624,14,FALSE),0) -> 0 | Q18: =IFERROR(VLOOKUP($A18,Filtro_!$A$5:$AW$2624,15,FALSE),0) -> 0 | R18: =IFERROR(VLOOKUP($A18,Filtro_!$A$5:$AW$2624,16,FALSE),0) -> 0 | S18: =IFERROR(VLOOKUP($A18,Filtro_!$A$5:$AW$2624,17,FALSE),0) -> 0 | T18: =IFERROR(VLOOKUP($A18,Filtro_!$A$5:$AW$2624,18,FALSE),0) -> 0 | U18: =IFERROR(VLOOKUP($A18,Filtro_!$A$5:$AW$2624,19,FALSE),0) -> 0 | V18: =IFERROR(VLOOKUP($A18,Filtro_!$A$5:$AW$2624,20,FALSE),0) -> 0 | W18: =IFERROR(VLOOKUP($A18,Filtro_!$A$5:$AW$2624,21,FALSE),0) -> 5 | X18: =IFERROR(VLOOKUP($A18,Filtro_!$A$5:$AW$2624,22,FALSE),0) -> 0 | Y18: =IFERROR(VLOOKUP($A18,Filtro_!$A$5:$AW$2624,23,FALSE),0) -> 0 | Z18: =IFERROR(VLOOKUP($A18,Filtro_!$A$5:$AW$2624,24,FALSE),0) -> 0 | AA18: =IFERROR(VLOOKUP($A18,Filtro_!$A$5:$AW$2624,25,FALSE),0) -> 0 | AB18: =IFERROR(VLOOKUP($A18,Filtro_!$A$5:$AW$2624,26,FALSE),0) -> 0 | AC18: =IFERROR(VLOOKUP($A18,Filtro_!$A$5:$AW$2624,27,FALSE),0) -> 0 | AD18: =IFERROR(VLOOKUP($A18,Filtro_!$A$5:$AW$2624,28,FALSE),0) -> 0 | CA18: * El número de Sexo Hombres y mujeres debe ser igual al total. | DA18: 1 | DB18: 0 | DE18: 0 | DF18: 0 | DG18: 0 | DH18: 0 | DI18: 0 | DJ18: 0 | DK18: 0 | DL18: 0 | DM18: 0 | DN18: 0 | DO18: 0 | DP18: 0 | DQ18: 0
A19: 01501080 | C19: MATRONA/ÓN | D19: 198 | E19: =IFERROR(VLOOKUP($A19,Filtro_!$A$5:$AW$2624,3,FALSE),0) -> 0 | F19: =IFERROR(VLOOKUP($A19,Filtro_!$A$5:$AW$2624,4,FALSE),0) -> 0 | G19: =IFERROR(VLOOKUP($A19,Filtro_!$A$5:$AW$2624,5,FALSE),0) -> 0 | H19: =IFERROR(VLOOKUP($A19,Filtro_!$A$5:$AW$2624,6,FALSE),0) -> 12 | I19: =IFERROR(VLOOKUP($A19,Filtro_!$A$5:$AW$2624,7,FALSE),0) -> 34 | J19: =IFERROR(VLOOKUP($A19,Filtro_!$A$5:$AW$2624,8,FALSE),0) -> 37 | K19: =IFERROR(VLOOKUP($A19,Filtro_!$A$5:$AW$2624,9,FALSE),0) -> 55 | L19: =IFERROR(VLOOKUP($A19,Filtro_!$A$5:$AW$2624,10,FALSE),0) -> 44 | M19: =IFERROR(VLOOKUP($A19,Filtro_!$A$5:$AW$2624,11,FALSE),0) -> 14 | N19: =IFERROR(VLOOKUP($A19,Filtro_!$A$5:$AW$2624,12,FALSE),0) -> 2 | O19: =IFERROR(VLOOKUP($A19,Filtro_!$A$5:$AW$2624,13,FALSE),0) -> 0 | P19: =IFERROR(VLOOKUP($A19,Filtro_!$A$5:$AW$2624,14,FALSE),0) -> 0 | Q19: =IFERROR(VLOOKUP($A19,Filtro_!$A$5:$AW$2624,15,FALSE),0) -> 0 | R19: =IFERROR(VLOOKUP($A19,Filtro_!$A$5:$AW$2624,16,FALSE),0) -> 0 | S19: =IFERROR(VLOOKUP($A19,Filtro_!$A$5:$AW$2624,17,FALSE),0) -> 0 | T19: =IFERROR(VLOOKUP($A19,Filtro_!$A$5:$AW$2624,18,FALSE),0) -> 0 | U19: =IFERROR(VLOOKUP($A19,Filtro_!$A$5:$AW$2624,19,FALSE),0) -> 0 | V19: =IFERROR(VLOOKUP($A19,Filtro_!$A$5:$AW$2624,20,FALSE),0) -> 0 | W19: =IFERROR(VLOOKUP($A19,Filtro_!$A$5:$AW$2624,21,FALSE),0) -> 192 | X19: =IFERROR(VLOOKUP($A19,Filtro_!$A$5:$AW$2624,22,FALSE),0) -> 0 | Y19: =IFERROR(VLOOKUP($A19,Filtro_!$A$5:$AW$2624,23,FALSE),0) -> 0 | Z19: =IFERROR(VLOOKUP($A19,Filtro_!$A$5:$AW$2624,24,FALSE),0) -> 0 | AA19: =IFERROR(VLOOKUP($A19,Filtro_!$A$5:$AW$2624,25,FALSE),0) -> 0 | AB19: =IFERROR(VLOOKUP($A19,Filtro_!$A$5:$AW$2624,26,FALSE),0) -> 0 | AC19: =IFERROR(VLOOKUP($A19,Filtro_!$A$5:$AW$2624,27,FALSE),0) -> 5 | AD19: =IFERROR(VLOOKUP($A19,Filtro_!$A$5:$AW$2624,28,FALSE),0) -> 16 | CA19: * El número de Sexo Hombres y mujeres debe ser igual al total. | DA19: 1 | DB19: 0 | DE19: 0 | DF19: 0 | DG19: 0 | DH19: 0 | DI19: 0 | DJ19: 0 | DK19: 0 | DL19: 0 | DM19: 0 | DN19: 0 | DO19: 0 | DP19: 0 | DQ19: 0
A20: 01110106 | B20: PUÉRPERA CON RECIÉN NACIDO HASTA 10 DÍAS DE VIDA | C20: MÉDICO/A | D20: 38 | E20: =IFERROR(VLOOKUP($A20,Filtro_!$A$5:$AW$2624,3,FALSE),0) -> 0 | F20: =IFERROR(VLOOKUP($A20,Filtro_!$A$5:$AW$2624,4,FALSE),0) -> 0 | G20: =IFERROR(VLOOKUP($A20,Filtro_!$A$5:$AW$2624,5,FALSE),0) -> 0 | H20: =IFERROR(VLOOKUP($A20,Filtro_!$A$5:$AW$2624,6,FALSE),0) -> 2 | I20: =IFERROR(VLOOKUP($A20,Filtro_!$A$5:$AW$2624,7,FALSE),0) -> 8 | J20: =IFERROR(VLOOKUP($A20,Filtro_!$A$5:$AW$2624,8,FALSE),0) -> 10 | K20: =IFERROR(VLOOKUP($A20,Filtro_!$A$5:$AW$2624,9,FALSE),0) -> 7 | L20: =IFERROR(VLOOKUP($A20,Filtro_!$A$5:$AW$2624,10,FALSE),0) -> 6 | M20: =IFERROR(VLOOKUP($A20,Filtro_!$A$5:$AW$2624,11,FALSE),0) -> 5 | N20: =IFERROR(VLOOKUP($A20,Filtro_!$A$5:$AW$2624,12,FALSE),0) -> 0 | O20: =IFERROR(VLOOKUP($A20,Filtro_!$A$5:$AW$2624,13,FALSE),0) -> 0 | P20: =IFERROR(VLOOKUP($A20,Filtro_!$A$5:$AW$2624,14,FALSE),0) -> 0 | Q20: =IFERROR(VLOOKUP($A20,Filtro_!$A$5:$AW$2624,15,FALSE),0) -> 0 | R20: =IFERROR(VLOOKUP($A20,Filtro_!$A$5:$AW$2624,16,FALSE),0) -> 0 | S20: =IFERROR(VLOOKUP($A20,Filtro_!$A$5:$AW$2624,17,FALSE),0) -> 0 | T20: =IFERROR(VLOOKUP($A20,Filtro_!$A$5:$AW$2624,18,FALSE),0) -> 0 | U20: =IFERROR(VLOOKUP($A20,Filtro_!$A$5:$AW$2624,19,FALSE),0) -> 0 | V20: =IFERROR(VLOOKUP($A20,Filtro_!$A$5:$AW$2624,20,FALSE),0) -> 0 | W20: =IFERROR(VLOOKUP($A20,Filtro_!$A$5:$AW$2624,21,FALSE),0) -> 35 | X20: =IFERROR(VLOOKUP($A20,Filtro_!$A$5:$AW$2624,22,FALSE),0) -> 1 | Y20: =IFERROR(VLOOKUP($A20,Filtro_!$A$5:$AW$2624,23,FALSE),0) -> 19 | Z20: =IFERROR(VLOOKUP($A20,Filtro_!$A$5:$AW$2624,24,FALSE),0) -> 0 | AA20: =IFERROR(VLOOKUP($A20,Filtro_!$A$5:$AW$2624,25,FALSE),0) -> 0 | AB20: =IFERROR(VLOOKUP($A20,Filtro_!$A$5:$AW$2624,26,FALSE),0) -> 0 | AC20: =IFERROR(VLOOKUP($A20,Filtro_!$A$5:$AW$2624,27,FALSE),0) -> 1 | AD20: =IFERROR(VLOOKUP($A20,Filtro_!$A$5:$AW$2624,28,FALSE),0) -> 4 | CA20: * El número de Sexo Hombres y mujeres debe ser igual al total. | CD20: =IF(AND(C20<>0,'A05'!C81=""),"* No olvide registrar ingresos a control de salud de los respectivos RN, en REM A05-sección E. ","") ->  | DA20: 1 | DB20: 0 | DC20: 0 | DD20: 0 | DE20: 0 | DF20: 0 | DG20: 0 | DH20: 0 | DI20: 0 | DJ20: 0 | DK20: 0 | DL20: 0 | DM20: 0 | DN20: 0 | DO20: 0 | DP20: 0 | DQ20: 0
A21: 01110107 | C21: MATRONA/ÓN | D21: 3229 | E21: =IFERROR(VLOOKUP($A21,Filtro_!$A$5:$AW$2624,3,FALSE),0) -> 0 | F21: =IFERROR(VLOOKUP($A21,Filtro_!$A$5:$AW$2624,4,FALSE),0) -> 0 | G21: =IFERROR(VLOOKUP($A21,Filtro_!$A$5:$AW$2624,5,FALSE),0) -> 6 | H21: =IFERROR(VLOOKUP($A21,Filtro_!$A$5:$AW$2624,6,FALSE),0) -> 164 | I21: =IFERROR(VLOOKUP($A21,Filtro_!$A$5:$AW$2624,7,FALSE),0) -> 662 | J21: =IFERROR(VLOOKUP($A21,Filtro_!$A$5:$AW$2624,8,FALSE),0) -> 955 | K21: =IFERROR(VLOOKUP($A21,Filtro_!$A$5:$AW$2624,9,FALSE),0) -> 863 | L21: =IFERROR(VLOOKUP($A21,Filtro_!$A$5:$AW$2624,10,FALSE),0) -> 450 | M21: =IFERROR(VLOOKUP($A21,Filtro_!$A$5:$AW$2624,11,FALSE),0) -> 123 | N21: =IFERROR(VLOOKUP($A21,Filtro_!$A$5:$AW$2624,12,FALSE),0) -> 5 | O21: =IFERROR(VLOOKUP($A21,Filtro_!$A$5:$AW$2624,13,FALSE),0) -> 0 | P21: =IFERROR(VLOOKUP($A21,Filtro_!$A$5:$AW$2624,14,FALSE),0) -> 1 | Q21: =IFERROR(VLOOKUP($A21,Filtro_!$A$5:$AW$2624,15,FALSE),0) -> 0 | R21: =IFERROR(VLOOKUP($A21,Filtro_!$A$5:$AW$2624,16,FALSE),0) -> 0 | S21: =IFERROR(VLOOKUP($A21,Filtro_!$A$5:$AW$2624,17,FALSE),0) -> 0 | T21: =IFERROR(VLOOKUP($A21,Filtro_!$A$5:$AW$2624,18,FALSE),0) -> 0 | U21: =IFERROR(VLOOKUP($A21,Filtro_!$A$5:$AW$2624,19,FALSE),0) -> 0 | V21: =IFERROR(VLOOKUP($A21,Filtro_!$A$5:$AW$2624,20,FALSE),0) -> 0 | W21: =IFERROR(VLOOKUP($A21,Filtro_!$A$5:$AW$2624,21,FALSE),0) -> 3185 | X21: =IFERROR(VLOOKUP($A21,Filtro_!$A$5:$AW$2624,22,FALSE),0) -> 595 | Y21: =IFERROR(VLOOKUP($A21,Filtro_!$A$5:$AW$2624,23,FALSE),0) -> 1499 | Z21: =IFERROR(VLOOKUP($A21,Filtro_!$A$5:$AW$2624,24,FALSE),0) -> 0 | AA21: =IFERROR(VLOOKUP($A21,Filtro_!$A$5:$AW$2624,25,FALSE),0) -> 2 | AB21: =IFERROR(VLOOKUP($A21,Filtro_!$A$5:$AW$2624,26,FALSE),0) -> 1 | AC21: =IFERROR(VLOOKUP($A21,Filtro_!$A$5:$AW$2624,27,FALSE),0) -> 32 | AD21: =IFERROR(VLOOKUP($A21,Filtro_!$A$5:$AW$2624,28,FALSE),0) -> 211 | CA21: * El número de Sexo Hombres y mujeres debe ser igual al total. | CD21: =IF(AND(C21<>0,'A05'!C81=""),"* No olvide registrar ingresos a control de salud de los respectivos RN, en REM A05-sección E. ","") ->  | DA21: 1 | DB21: 0 | DC21: 0 | DD21: 0 | DE21: 0 | DF21: 0 | DG21: 0 | DH21: 0 | DI21: 0 | DJ21: 0 | DK21: 0 | DL21: 0 | DM21: 0 | DN21: 0 | DO21: 0 | DP21: 0 | DQ21: 0
A22: 01080030 | B22: PUÉRPERA CON RECIÉN NACIDO ENTRE 11 y 28 DÍAS | C22: MÉDICO/A | D22: 5 | E22: =IFERROR(VLOOKUP($A22,Filtro_!$A$5:$AW$2624,3,FALSE),0) -> 0 | F22: =IFERROR(VLOOKUP($A22,Filtro_!$A$5:$AW$2624,4,FALSE),0) -> 0 | G22: =IFERROR(VLOOKUP($A22,Filtro_!$A$5:$AW$2624,5,FALSE),0) -> 0 | H22: =IFERROR(VLOOKUP($A22,Filtro_!$A$5:$AW$2624,6,FALSE),0) -> 0 | I22: =IFERROR(VLOOKUP($A22,Filtro_!$A$5:$AW$2624,7,FALSE),0) -> 1 | J22: =IFERROR(VLOOKUP($A22,Filtro_!$A$5:$AW$2624,8,FALSE),0) -> 2 | K22: =IFERROR(VLOOKUP($A22,Filtro_!$A$5:$AW$2624,9,FALSE),0) -> 2 | L22: =IFERROR(VLOOKUP($A22,Filtro_!$A$5:$AW$2624,10,FALSE),0) -> 0 | M22: =IFERROR(VLOOKUP($A22,Filtro_!$A$5:$AW$2624,11,FALSE),0) -> 0 | N22: =IFERROR(VLOOKUP($A22,Filtro_!$A$5:$AW$2624,12,FALSE),0) -> 0 | O22: =IFERROR(VLOOKUP($A22,Filtro_!$A$5:$AW$2624,13,FALSE),0) -> 0 | P22: =IFERROR(VLOOKUP($A22,Filtro_!$A$5:$AW$2624,14,FALSE),0) -> 0 | Q22: =IFERROR(VLOOKUP($A22,Filtro_!$A$5:$AW$2624,15,FALSE),0) -> 0 | R22: =IFERROR(VLOOKUP($A22,Filtro_!$A$5:$AW$2624,16,FALSE),0) -> 0 | S22: =IFERROR(VLOOKUP($A22,Filtro_!$A$5:$AW$2624,17,FALSE),0) -> 0 | T22: =IFERROR(VLOOKUP($A22,Filtro_!$A$5:$AW$2624,18,FALSE),0) -> 0 | U22: =IFERROR(VLOOKUP($A22,Filtro_!$A$5:$AW$2624,19,FALSE),0) -> 0 | V22: =IFERROR(VLOOKUP($A22,Filtro_!$A$5:$AW$2624,20,FALSE),0) -> 0 | W22: =IFERROR(VLOOKUP($A22,Filtro_!$A$5:$AW$2624,21,FALSE),0) -> 10 | X22: =IFERROR(VLOOKUP($A22,Filtro_!$A$5:$AW$2624,22,FALSE),0) -> 1 | Y22: =IFERROR(VLOOKUP($A22,Filtro_!$A$5:$AW$2624,23,FALSE),0) -> 8 | Z22: =IFERROR(VLOOKUP($A22,Filtro_!$A$5:$AW$2624,24,FALSE),0) -> 0 | AA22: =IFERROR(VLOOKUP($A22,Filtro_!$A$5:$AW$2624,25,FALSE),0) -> 0 | AB22: =IFERROR(VLOOKUP($A22,Filtro_!$A$5:$AW$2624,26,FALSE),0) -> 0 | AC22: =IFERROR(VLOOKUP($A22,Filtro_!$A$5:$AW$2624,27,FALSE),0) -> 0 | AD22: =IFERROR(VLOOKUP($A22,Filtro_!$A$5:$AW$2624,28,FALSE),0) -> 3 | CA22: * El número de Sexo Hombres y mujeres debe ser igual al total. | CD22: =IF(AND(C22<>0,'A05'!C81=""),"* No olvide registrar ingresos a control de salud de los respectivos RN, en REM A05-sección E. ","") ->  | DA22: 1 | DB22: 0 | DC22: 0 | DD22: 0 | DE22: 0 | DF22: 0 | DG22: 0 | DH22: 0 | DI22: 0 | DJ22: 0 | DK22: 0 | DL22: 0 | DM22: 0 | DN22: 0 | DO22: 0 | DP22: 0 | DQ22: 0
A23: 01080040 | C23: MATRONA/ÓN | D23: 1655 | E23: =IFERROR(VLOOKUP($A23,Filtro_!$A$5:$AW$2624,3,FALSE),0) -> 0 | F23: =IFERROR(VLOOKUP($A23,Filtro_!$A$5:$AW$2624,4,FALSE),0) -> 0 | G23: =IFERROR(VLOOKUP($A23,Filtro_!$A$5:$AW$2624,5,FALSE),0) -> 2 | H23: =IFERROR(VLOOKUP($A23,Filtro_!$A$5:$AW$2624,6,FALSE),0) -> 99 | I23: =IFERROR(VLOOKUP($A23,Filtro_!$A$5:$AW$2624,7,FALSE),0) -> 323 | J23: =IFERROR(VLOOKUP($A23,Filtro_!$A$5:$AW$2624,8,FALSE),0) -> 482 | K23: =IFERROR(VLOOKUP($A23,Filtro_!$A$5:$AW$2624,9,FALSE),0) -> 436 | L23: =IFERROR(VLOOKUP($A23,Filtro_!$A$5:$AW$2624,10,FALSE),0) -> 235 | M23: =IFERROR(VLOOKUP($A23,Filtro_!$A$5:$AW$2624,11,FALSE),0) -> 76 | N23: =IFERROR(VLOOKUP($A23,Filtro_!$A$5:$AW$2624,12,FALSE),0) -> 1 | O23: =IFERROR(VLOOKUP($A23,Filtro_!$A$5:$AW$2624,13,FALSE),0) -> 0 | P23: =IFERROR(VLOOKUP($A23,Filtro_!$A$5:$AW$2624,14,FALSE),0) -> 1 | Q23: =IFERROR(VLOOKUP($A23,Filtro_!$A$5:$AW$2624,15,FALSE),0) -> 0 | R23: =IFERROR(VLOOKUP($A23,Filtro_!$A$5:$AW$2624,16,FALSE),0) -> 0 | S23: =IFERROR(VLOOKUP($A23,Filtro_!$A$5:$AW$2624,17,FALSE),0) -> 0 | T23: =IFERROR(VLOOKUP($A23,Filtro_!$A$5:$AW$2624,18,FALSE),0) -> 0 | U23: =IFERROR(VLOOKUP($A23,Filtro_!$A$5:$AW$2624,19,FALSE),0) -> 0 | V23: =IFERROR(VLOOKUP($A23,Filtro_!$A$5:$AW$2624,20,FALSE),0) -> 0 | W23: =IFERROR(VLOOKUP($A23,Filtro_!$A$5:$AW$2624,21,FALSE),0) -> 1600 | X23: =IFERROR(VLOOKUP($A23,Filtro_!$A$5:$AW$2624,22,FALSE),0) -> 249 | Y23: =IFERROR(VLOOKUP($A23,Filtro_!$A$5:$AW$2624,23,FALSE),0) -> 569 | Z23: =IFERROR(VLOOKUP($A23,Filtro_!$A$5:$AW$2624,24,FALSE),0) -> 0 | AA23: =IFERROR(VLOOKUP($A23,Filtro_!$A$5:$AW$2624,25,FALSE),0) -> 4 | AB23: =IFERROR(VLOOKUP($A23,Filtro_!$A$5:$AW$2624,26,FALSE),0) -> 0 | AC23: =IFERROR(VLOOKUP($A23,Filtro_!$A$5:$AW$2624,27,FALSE),0) -> 15 | AD23: =IFERROR(VLOOKUP($A23,Filtro_!$A$5:$AW$2624,28,FALSE),0) -> 78 | CA23: * El número de Sexo Hombres y mujeres debe ser igual al total. | CD23: =IF(AND(C23<>0,'A05'!C81=""),"* No olvide registrar ingresos a control de salud de los respectivos RN, en REM A05-sección E. ","") ->  | DA23: 1 | DB23: 0 | DC23: 0 | DD23: 0 | DE23: 0 | DF23: 0 | DG23: 0 | DH23: 0 | DI23: 0 | DJ23: 0 | DK23: 0 | DL23: 0 | DM23: 0 | DN23: 0 | DO23: 0 | DP23: 0 | DQ23: 0
A24: 01501090 | B24: RECIÉN NACIDO HASTA 10 DÍAS DE VIDA | C24: MÉDICO | D24: =SUM(E24) -> 0 | E24: =IFERROR(VLOOKUP($A24,Filtro_!$A$5:$AW$2624,3,FALSE),0) -> 0 | F24: =IFERROR(VLOOKUP($A24,Filtro_!$A$5:$AW$2624,4,FALSE),0) -> 0 | G24: =IFERROR(VLOOKUP($A24,Filtro_!$A$5:$AW$2624,5,FALSE),0) -> 0 | H24: =IFERROR(VLOOKUP($A24,Filtro_!$A$5:$AW$2624,6,FALSE),0) -> 0 | I24: =IFERROR(VLOOKUP($A24,Filtro_!$A$5:$AW$2624,7,FALSE),0) -> 0 | J24: =IFERROR(VLOOKUP($A24,Filtro_!$A$5:$AW$2624,8,FALSE),0) -> 0 | K24: =IFERROR(VLOOKUP($A24,Filtro_!$A$5:$AW$2624,9,FALSE),0) -> 0 | L24: =IFERROR(VLOOKUP($A24,Filtro_!$A$5:$AW$2624,10,FALSE),0) -> 0 | M24: =IFERROR(VLOOKUP($A24,Filtro_!$A$5:$AW$2624,11,FALSE),0) -> 0 | N24: =IFERROR(VLOOKUP($A24,Filtro_!$A$5:$AW$2624,12,FALSE),0) -> 0 | O24: =IFERROR(VLOOKUP($A24,Filtro_!$A$5:$AW$2624,13,FALSE),0) -> 0 | P24: =IFERROR(VLOOKUP($A24,Filtro_!$A$5:$AW$2624,14,FALSE),0) -> 0 | Q24: =IFERROR(VLOOKUP($A24,Filtro_!$A$5:$AW$2624,15,FALSE),0) -> 0 | R24: =IFERROR(VLOOKUP($A24,Filtro_!$A$5:$AW$2624,16,FALSE),0) -> 0 | S24: =IFERROR(VLOOKUP($A24,Filtro_!$A$5:$AW$2624,17,FALSE),0) -> 0 | T24: =IFERROR(VLOOKUP($A24,Filtro_!$A$5:$AW$2624,18,FALSE),0) -> 0 | U24: =IFERROR(VLOOKUP($A24,Filtro_!$A$5:$AW$2624,19,FALSE),0) -> 0 | V24: =IFERROR(VLOOKUP($A24,Filtro_!$A$5:$AW$2624,20,FALSE),0) -> 0 | W24: =IFERROR(VLOOKUP($A24,Filtro_!$A$5:$AW$2624,21,FALSE),0) -> 0 | X24: =IFERROR(VLOOKUP($A24,Filtro_!$A$5:$AW$2624,22,FALSE),0) -> 0 | Y24: =IFERROR(VLOOKUP($A24,Filtro_!$A$5:$AW$2624,23,FALSE),0) -> 0 | Z24: =IFERROR(VLOOKUP($A24,Filtro_!$A$5:$AW$2624,24,FALSE),0) -> 0 | AA24: =IFERROR(VLOOKUP($A24,Filtro_!$A$5:$AW$2624,25,FALSE),0) -> 0 | AB24: =IFERROR(VLOOKUP($A24,Filtro_!$A$5:$AW$2624,26,FALSE),0) -> 0 | AC24: =IFERROR(VLOOKUP($A24,Filtro_!$A$5:$AW$2624,27,FALSE),0) -> 0 | AD24: =IFERROR(VLOOKUP($A24,Filtro_!$A$5:$AW$2624,28,FALSE),0) -> 0 | CA24: * El número de Sexo Hombres y mujeres debe ser igual al total. | DA24: 1 | DB24: 0 | DE24: 0 | DF24: 0 | DG24: 0 | DH24: 0 | DI24: 0 | DJ24: 0 | DK24: 0 | DL24: 0 | DM24: 0 | DN24: 0 | DO24: 0 | DP24: 0 | DQ24: 0
A25: 01502000 | C25: MATRONA /ÓN | D25: =SUM(E25) -> 1190 | E25: =IFERROR(VLOOKUP($A25,Filtro_!$A$5:$AW$2624,3,FALSE),0) -> 1190 | F25: =IFERROR(VLOOKUP($A25,Filtro_!$A$5:$AW$2624,4,FALSE),0) -> 0 | G25: =IFERROR(VLOOKUP($A25,Filtro_!$A$5:$AW$2624,5,FALSE),0) -> 0 | H25: =IFERROR(VLOOKUP($A25,Filtro_!$A$5:$AW$2624,6,FALSE),0) -> 0 | I25: =IFERROR(VLOOKUP($A25,Filtro_!$A$5:$AW$2624,7,FALSE),0) -> 0 | J25: =IFERROR(VLOOKUP($A25,Filtro_!$A$5:$AW$2624,8,FALSE),0) -> 0 | K25: =IFERROR(VLOOKUP($A25,Filtro_!$A$5:$AW$2624,9,FALSE),0) -> 0 | L25: =IFERROR(VLOOKUP($A25,Filtro_!$A$5:$AW$2624,10,FALSE),0) -> 0 | M25: =IFERROR(VLOOKUP($A25,Filtro_!$A$5:$AW$2624,11,FALSE),0) -> 0 | N25: =IFERROR(VLOOKUP($A25,Filtro_!$A$5:$AW$2624,12,FALSE),0) -> 0 | O25: =IFERROR(VLOOKUP($A25,Filtro_!$A$5:$AW$2624,13,FALSE),0) -> 0 | P25: =IFERROR(VLOOKUP($A25,Filtro_!$A$5:$AW$2624,14,FALSE),0) -> 0 | Q25: =IFERROR(VLOOKUP($A25,Filtro_!$A$5:$AW$2624,15,FALSE),0) -> 0 | R25: =IFERROR(VLOOKUP($A25,Filtro_!$A$5:$AW$2624,16,FALSE),0) -> 0 | S25: =IFERROR(VLOOKUP($A25,Filtro_!$A$5:$AW$2624,17,FALSE),0) -> 0 | T25: =IFERROR(VLOOKUP($A25,Filtro_!$A$5:$AW$2624,18,FALSE),0) -> 0 | U25: =IFERROR(VLOOKUP($A25,Filtro_!$A$5:$AW$2624,19,FALSE),0) -> 0 | V25: =IFERROR(VLOOKUP($A25,Filtro_!$A$5:$AW$2624,20,FALSE),0) -> 528 | W25: =IFERROR(VLOOKUP($A25,Filtro_!$A$5:$AW$2624,21,FALSE),0) -> 641 | X25: =IFERROR(VLOOKUP($A25,Filtro_!$A$5:$AW$2624,22,FALSE),0) -> 270 | Y25: =IFERROR(VLOOKUP($A25,Filtro_!$A$5:$AW$2624,23,FALSE),0) -> 584 | Z25: =IFERROR(VLOOKUP($A25,Filtro_!$A$5:$AW$2624,24,FALSE),0) -> 0 | AA25: =IFERROR(VLOOKUP($A25,Filtro_!$A$5:$AW$2624,25,FALSE),0) -> 1 | AB25: =IFERROR(VLOOKUP($A25,Filtro_!$A$5:$AW$2624,26,FALSE),0) -> 0 | AC25: =IFERROR(VLOOKUP($A25,Filtro_!$A$5:$AW$2624,27,FALSE),0) -> 3 | AD25: =IFERROR(VLOOKUP($A25,Filtro_!$A$5:$AW$2624,28,FALSE),0) -> 20 | CA25: * El número de Sexo Hombres y mujeres debe ser igual al total. | DA25: 1 | DB25: 0 | DE25: 0 | DF25: 0 | DG25: 0 | DH25: 0 | DI25: 0 | DJ25: 0 | DK25: 0 | DL25: 0 | DM25: 0 | DN25: 0 | DO25: 0 | DP25: 0 | DQ25: 0
A26: 01502010 | B26: RECIÉN NACIDO ENTRE 11 y 28 DÍAS | C26: MÉDICO | D26: =SUM(E26) -> 1 | E26: =IFERROR(VLOOKUP($A26,Filtro_!$A$5:$AW$2624,3,FALSE),0) -> 1 | F26: =IFERROR(VLOOKUP($A26,Filtro_!$A$5:$AW$2624,4,FALSE),0) -> 0 | G26: =IFERROR(VLOOKUP($A26,Filtro_!$A$5:$AW$2624,5,FALSE),0) -> 0 | H26: =IFERROR(VLOOKUP($A26,Filtro_!$A$5:$AW$2624,6,FALSE),0) -> 0 | I26: =IFERROR(VLOOKUP($A26,Filtro_!$A$5:$AW$2624,7,FALSE),0) -> 0 | J26: =IFERROR(VLOOKUP($A26,Filtro_!$A$5:$AW$2624,8,FALSE),0) -> 0 | K26: =IFERROR(VLOOKUP($A26,Filtro_!$A$5:$AW$2624,9,FALSE),0) -> 0 | L26: =IFERROR(VLOOKUP($A26,Filtro_!$A$5:$AW$2624,10,FALSE),0) -> 0 | M26: =IFERROR(VLOOKUP($A26,Filtro_!$A$5:$AW$2624,11,FALSE),0) -> 0 | N26: =IFERROR(VLOOKUP($A26,Filtro_!$A$5:$AW$2624,12,FALSE),0) -> 0 | O26: =IFERROR(VLOOKUP($A26,Filtro_!$A$5:$AW$2624,13,FALSE),0) -> 0 | P26: =IFERROR(VLOOKUP($A26,Filtro_!$A$5:$AW$2624,14,FALSE),0) -> 0 | Q26: =IFERROR(VLOOKUP($A26,Filtro_!$A$5:$AW$2624,15,FALSE),0) -> 0 | R26: =IFERROR(VLOOKUP($A26,Filtro_!$A$5:$AW$2624,16,FALSE),0) -> 0 | S26: =IFERROR(VLOOKUP($A26,Filtro_!$A$5:$AW$2624,17,FALSE),0) -> 0 | T26: =IFERROR(VLOOKUP($A26,Filtro_!$A$5:$AW$2624,18,FALSE),0) -> 0 | U26: =IFERROR(VLOOKUP($A26,Filtro_!$A$5:$AW$2624,19,FALSE),0) -> 0 | V26: =IFERROR(VLOOKUP($A26,Filtro_!$A$5:$AW$2624,20,FALSE),0) -> 0 | W26: =IFERROR(VLOOKUP($A26,Filtro_!$A$5:$AW$2624,21,FALSE),0) -> 1 | X26: =IFERROR(VLOOKUP($A26,Filtro_!$A$5:$AW$2624,22,FALSE),0) -> 0 | Y26: =IFERROR(VLOOKUP($A26,Filtro_!$A$5:$AW$2624,23,FALSE),0) -> 0 | Z26: =IFERROR(VLOOKUP($A26,Filtro_!$A$5:$AW$2624,24,FALSE),0) -> 0 | AA26: =IFERROR(VLOOKUP($A26,Filtro_!$A$5:$AW$2624,25,FALSE),0) -> 0 | AB26: =IFERROR(VLOOKUP($A26,Filtro_!$A$5:$AW$2624,26,FALSE),0) -> 0 | AC26: =IFERROR(VLOOKUP($A26,Filtro_!$A$5:$AW$2624,27,FALSE),0) -> 0 | AD26: =IFERROR(VLOOKUP($A26,Filtro_!$A$5:$AW$2624,28,FALSE),0) -> 0 | CA26: * El número de Sexo Hombres y mujeres debe ser igual al total. | DA26: 1 | DB26: 0 | DE26: 0 | DF26: 0 | DG26: 0 | DH26: 0 | DI26: 0 | DJ26: 0 | DK26: 0 | DL26: 0 | DM26: 0 | DN26: 0 | DO26: 0 | DP26: 0 | DQ26: 0
A27: 01502020 | C27: MATRONA /ÓN | D27: =SUM(E27) -> 504 | E27: =IFERROR(VLOOKUP($A27,Filtro_!$A$5:$AW$2624,3,FALSE),0) -> 504 | F27: =IFERROR(VLOOKUP($A27,Filtro_!$A$5:$AW$2624,4,FALSE),0) -> 0 | G27: =IFERROR(VLOOKUP($A27,Filtro_!$A$5:$AW$2624,5,FALSE),0) -> 0 | H27: =IFERROR(VLOOKUP($A27,Filtro_!$A$5:$AW$2624,6,FALSE),0) -> 0 | I27: =IFERROR(VLOOKUP($A27,Filtro_!$A$5:$AW$2624,7,FALSE),0) -> 0 | J27: =IFERROR(VLOOKUP($A27,Filtro_!$A$5:$AW$2624,8,FALSE),0) -> 0 | K27: =IFERROR(VLOOKUP($A27,Filtro_!$A$5:$AW$2624,9,FALSE),0) -> 0 | L27: =IFERROR(VLOOKUP($A27,Filtro_!$A$5:$AW$2624,10,FALSE),0) -> 0 | M27: =IFERROR(VLOOKUP($A27,Filtro_!$A$5:$AW$2624,11,FALSE),0) -> 0 | N27: =IFERROR(VLOOKUP($A27,Filtro_!$A$5:$AW$2624,12,FALSE),0) -> 0 | O27: =IFERROR(VLOOKUP($A27,Filtro_!$A$5:$AW$2624,13,FALSE),0) -> 0 | P27: =IFERROR(VLOOKUP($A27,Filtro_!$A$5:$AW$2624,14,FALSE),0) -> 0 | Q27: =IFERROR(VLOOKUP($A27,Filtro_!$A$5:$AW$2624,15,FALSE),0) -> 0 | R27: =IFERROR(VLOOKUP($A27,Filtro_!$A$5:$AW$2624,16,FALSE),0) -> 0 | S27: =IFERROR(VLOOKUP($A27,Filtro_!$A$5:$AW$2624,17,FALSE),0) -> 0 | T27: =IFERROR(VLOOKUP($A27,Filtro_!$A$5:$AW$2624,18,FALSE),0) -> 0 | U27: =IFERROR(VLOOKUP($A27,Filtro_!$A$5:$AW$2624,19,FALSE),0) -> 0 | V27: =IFERROR(VLOOKUP($A27,Filtro_!$A$5:$AW$2624,20,FALSE),0) -> 227 | W27: =IFERROR(VLOOKUP($A27,Filtro_!$A$5:$AW$2624,21,FALSE),0) -> 269 | X27: =IFERROR(VLOOKUP($A27,Filtro_!$A$5:$AW$2624,22,FALSE),0) -> 87 | Y27: =IFERROR(VLOOKUP($A27,Filtro_!$A$5:$AW$2624,23,FALSE),0) -> 156 | Z27: =IFERROR(VLOOKUP($A27,Filtro_!$A$5:$AW$2624,24,FALSE),0) -> 1 | AA27: =IFERROR(VLOOKUP($A27,Filtro_!$A$5:$AW$2624,25,FALSE),0) -> 3 | AB27: =IFERROR(VLOOKUP($A27,Filtro_!$A$5:$AW$2624,26,FALSE),0) -> 1 | AC27: =IFERROR(VLOOKUP($A27,Filtro_!$A$5:$AW$2624,27,FALSE),0) -> 1 | AD27: =IFERROR(VLOOKUP($A27,Filtro_!$A$5:$AW$2624,28,FALSE),0) -> 11 | CA27: * El número de Sexo Hombres y mujeres debe ser igual al total. | DA27: 1 | DB27: 0 | DE27: 0 | DF27: 0 | DG27: 0 | DH27: 0 | DI27: 0 | DJ27: 0 | DK27: 0 | DL27: 0 | DM27: 0 | DN27: 0 | DO27: 0 | DP27: 0 | DQ27: 0
A28: 01010601 | B28: GINECOLÓGICO | C28: MÉDICO/A | D28: =SUM(G28:U28) -> 1477 | E28: =IFERROR(VLOOKUP($A28,Filtro_!$A$5:$AW$2624,3,FALSE),0) -> 0 | F28: =IFERROR(VLOOKUP($A28,Filtro_!$A$5:$AW$2624,4,FALSE),0) -> 0 | G28: =IFERROR(VLOOKUP($A28,Filtro_!$A$5:$AW$2624,5,FALSE),0) -> 39 | H28: =IFERROR(VLOOKUP($A28,Filtro_!$A$5:$AW$2624,6,FALSE),0) -> 100 | I28: =IFERROR(VLOOKUP($A28,Filtro_!$A$5:$AW$2624,7,FALSE),0) -> 86 | J28: =IFERROR(VLOOKUP($A28,Filtro_!$A$5:$AW$2624,8,FALSE),0) -> 108 | K28: =IFERROR(VLOOKUP($A28,Filtro_!$A$5:$AW$2624,9,FALSE),0) -> 182 | L28: =IFERROR(VLOOKUP($A28,Filtro_!$A$5:$AW$2624,10,FALSE),0) -> 181 | M28: =IFERROR(VLOOKUP($A28,Filtro_!$A$5:$AW$2624,11,FALSE),0) -> 202 | N28: =IFERROR(VLOOKUP($A28,Filtro_!$A$5:$AW$2624,12,FALSE),0) -> 156 | O28: =IFERROR(VLOOKUP($A28,Filtro_!$A$5:$AW$2624,13,FALSE),0) -> 133 | P28: =IFERROR(VLOOKUP($A28,Filtro_!$A$5:$AW$2624,14,FALSE),0) -> 119 | Q28: =IFERROR(VLOOKUP($A28,Filtro_!$A$5:$AW$2624,15,FALSE),0) -> 52 | R28: =IFERROR(VLOOKUP($A28,Filtro_!$A$5:$AW$2624,16,FALSE),0) -> 54 | S28: =IFERROR(VLOOKUP($A28,Filtro_!$A$5:$AW$2624,17,FALSE),0) -> 29 | T28: =IFERROR(VLOOKUP($A28,Filtro_!$A$5:$AW$2624,18,FALSE),0) -> 23 | U28: =IFERROR(VLOOKUP($A28,Filtro_!$A$5:$AW$2624,19,FALSE),0) -> 13 | V28: =IFERROR(VLOOKUP($A28,Filtro_!$A$5:$AW$2624,20,FALSE),0) -> 0 | W28: =IFERROR(VLOOKUP($A28,Filtro_!$A$5:$AW$2624,21,FALSE),0) -> 1552 | X28: =IFERROR(VLOOKUP($A28,Filtro_!$A$5:$AW$2624,22,FALSE),0) -> 0 | Y28: =IFERROR(VLOOKUP($A28,Filtro_!$A$5:$AW$2624,23,FALSE),0) -> 0 | Z28: =IFERROR(VLOOKUP($A28,Filtro_!$A$5:$AW$2624,24,FALSE),0) -> 0 | AA28: =IFERROR(VLOOKUP($A28,Filtro_!$A$5:$AW$2624,25,FALSE),0) -> 0 | AB28: =IFERROR(VLOOKUP($A28,Filtro_!$A$5:$AW$2624,26,FALSE),0) -> 0 | AC28: =IFERROR(VLOOKUP($A28,Filtro_!$A$5:$AW$2624,27,FALSE),0) -> 0 | AD28: =IFERROR(VLOOKUP($A28,Filtro_!$A$5:$AW$2624,28,FALSE),0) -> 68 | CA28: * El número de Sexo Hombres y mujeres debe ser igual al total. | DA28: 1 | DB28: 0 | DE28: 0 | DF28: 0 | DG28: 0 | DH28: 0 | DI28: 0 | DJ28: 0 | DK28: 0 | DL28: 0 | DM28: 0 | DN28: 0 | DO28: 0 | DP28: 0 | DQ28: 0
A29: 01010603 | C29: MATRONA/ÓN | D29: =SUM(G29:U29) -> 53109 | E29: =IFERROR(VLOOKUP($A29,Filtro_!$A$5:$AW$2624,3,FALSE),0) -> 0 | F29: =IFERROR(VLOOKUP($A29,Filtro_!$A$5:$AW$2624,4,FALSE),0) -> 0 | G29: =IFERROR(VLOOKUP($A29,Filtro_!$A$5:$AW$2624,5,FALSE),0) -> 309 | H29: =IFERROR(VLOOKUP($A29,Filtro_!$A$5:$AW$2624,6,FALSE),0) -> 697 | I29: =IFERROR(VLOOKUP($A29,Filtro_!$A$5:$AW$2624,7,FALSE),0) -> 2310 | J29: =IFERROR(VLOOKUP($A29,Filtro_!$A$5:$AW$2624,8,FALSE),0) -> 4359 | K29: =IFERROR(VLOOKUP($A29,Filtro_!$A$5:$AW$2624,9,FALSE),0) -> 5449 | L29: =IFERROR(VLOOKUP($A29,Filtro_!$A$5:$AW$2624,10,FALSE),0) -> 5557 | M29: =IFERROR(VLOOKUP($A29,Filtro_!$A$5:$AW$2624,11,FALSE),0) -> 6226 | N29: =IFERROR(VLOOKUP($A29,Filtro_!$A$5:$AW$2624,12,FALSE),0) -> 6402 | O29: =IFERROR(VLOOKUP($A29,Filtro_!$A$5:$AW$2624,13,FALSE),0) -> 6591 | P29: =IFERROR(VLOOKUP($A29,Filtro_!$A$5:$AW$2624,14,FALSE),0) -> 6032 | Q29: =IFERROR(VLOOKUP($A29,Filtro_!$A$5:$AW$2624,15,FALSE),0) -> 5005 | R29: =IFERROR(VLOOKUP($A29,Filtro_!$A$5:$AW$2624,16,FALSE),0) -> 2520 | S29: =IFERROR(VLOOKUP($A29,Filtro_!$A$5:$AW$2624,17,FALSE),0) -> 1043 | T29: =IFERROR(VLOOKUP($A29,Filtro_!$A$5:$AW$2624,18,FALSE),0) -> 407 | U29: =IFERROR(VLOOKUP($A29,Filtro_!$A$5:$AW$2624,19,FALSE),0) -> 202 | V29: =IFERROR(VLOOKUP($A29,Filtro_!$A$5:$AW$2624,20,FALSE),0) -> 0 | W29: =IFERROR(VLOOKUP($A29,Filtro_!$A$5:$AW$2624,21,FALSE),0) -> 52446 | X29: =IFERROR(VLOOKUP($A29,Filtro_!$A$5:$AW$2624,22,FALSE),0) -> 0 | Y29: =IFERROR(VLOOKUP($A29,Filtro_!$A$5:$AW$2624,23,FALSE),0) -> 0 | Z29: =IFERROR(VLOOKUP($A29,Filtro_!$A$5:$AW$2624,24,FALSE),0) -> 40 | AA29: =IFERROR(VLOOKUP($A29,Filtro_!$A$5:$AW$2624,25,FALSE),0) -> 7 | AB29: =IFERROR(VLOOKUP($A29,Filtro_!$A$5:$AW$2624,26,FALSE),0) -> 2 | AC29: =IFERROR(VLOOKUP($A29,Filtro_!$A$5:$AW$2624,27,FALSE),0) -> 243 | AD29: =IFERROR(VLOOKUP($A29,Filtro_!$A$5:$AW$2624,28,FALSE),0) -> 1685 | CA29: * El número de Sexo Hombres y mujeres debe ser igual al total. | DA29: 1 | DB29: 0 | DE29: 0 | DF29: 0 | DG29: 0 | DH29: 0 | DI29: 0 | DJ29: 0 | DK29: 0 | DL29: 0 | DM29: 0 | DN29: 0 | DO29: 0 | DP29: 0 | DQ29: 0
A30: 01010901 | B30: CLIMATERIO | C30: MÉDICO/A | D30: =SUM(N30:Q30) -> 403 | E30: =IFERROR(VLOOKUP($A30,Filtro_!$A$5:$AW$2624,3,FALSE),0) -> 0 | F30: =IFERROR(VLOOKUP($A30,Filtro_!$A$5:$AW$2624,4,FALSE),0) -> 0 | G30: =IFERROR(VLOOKUP($A30,Filtro_!$A$5:$AW$2624,5,FALSE),0) -> 0 | H30: =IFERROR(VLOOKUP($A30,Filtro_!$A$5:$AW$2624,6,FALSE),0) -> 0 | I30: =IFERROR(VLOOKUP($A30,Filtro_!$A$5:$AW$2624,7,FALSE),0) -> 0 | J30: =IFERROR(VLOOKUP($A30,Filtro_!$A$5:$AW$2624,8,FALSE),0) -> 0 | K30: =IFERROR(VLOOKUP($A30,Filtro_!$A$5:$AW$2624,9,FALSE),0) -> 0 | L30: =IFERROR(VLOOKUP($A30,Filtro_!$A$5:$AW$2624,10,FALSE),0) -> 0 | M30: =IFERROR(VLOOKUP($A30,Filtro_!$A$5:$AW$2624,11,FALSE),0) -> 0 | N30: =IFERROR(VLOOKUP($A30,Filtro_!$A$5:$AW$2624,12,FALSE),0) -> 131 | O30: =IFERROR(VLOOKUP($A30,Filtro_!$A$5:$AW$2624,13,FALSE),0) -> 124 | P30: =IFERROR(VLOOKUP($A30,Filtro_!$A$5:$AW$2624,14,FALSE),0) -> 101 | Q30: =IFERROR(VLOOKUP($A30,Filtro_!$A$5:$AW$2624,15,FALSE),0) -> 47 | R30: =IFERROR(VLOOKUP($A30,Filtro_!$A$5:$AW$2624,16,FALSE),0) -> 0 | S30: =IFERROR(VLOOKUP($A30,Filtro_!$A$5:$AW$2624,17,FALSE),0) -> 0 | T30: =IFERROR(VLOOKUP($A30,Filtro_!$A$5:$AW$2624,18,FALSE),0) -> 0 | U30: =IFERROR(VLOOKUP($A30,Filtro_!$A$5:$AW$2624,19,FALSE),0) -> 0 | V30: =IFERROR(VLOOKUP($A30,Filtro_!$A$5:$AW$2624,20,FALSE),0) -> 0 | W30: =IFERROR(VLOOKUP($A30,Filtro_!$A$5:$AW$2624,21,FALSE),0) -> 461 | X30: =IFERROR(VLOOKUP($A30,Filtro_!$A$5:$AW$2624,22,FALSE),0) -> 0 | Y30: =IFERROR(VLOOKUP($A30,Filtro_!$A$5:$AW$2624,23,FALSE),0) -> 0 | Z30: =IFERROR(VLOOKUP($A30,Filtro_!$A$5:$AW$2624,24,FALSE),0) -> 0 | AA30: =IFERROR(VLOOKUP($A30,Filtro_!$A$5:$AW$2624,25,FALSE),0) -> 0 | AB30: =IFERROR(VLOOKUP($A30,Filtro_!$A$5:$AW$2624,26,FALSE),0) -> 0 | AC30: =IFERROR(VLOOKUP($A30,Filtro_!$A$5:$AW$2624,27,FALSE),0) -> 4 | AD30: =IFERROR(VLOOKUP($A30,Filtro_!$A$5:$AW$2624,28,FALSE),0) -> 12 | CA30: * El número de Sexo Hombres y mujeres debe ser igual al total. | DA30: 1 | DB30: 0 | DE30: 0 | DF30: 0 | DG30: 0 | DH30: 0 | DI30: 0 | DJ30: 0 | DK30: 0 | DL30: 0 | DM30: 0 | DN30: 0 | DO30: 0 | DP30: 0 | DQ30: 0
A31: 01010903 | C31: MATRONA/ÓN | D31: =SUM(N31:Q31) -> 3977 | E31: =IFERROR(VLOOKUP($A31,Filtro_!$A$5:$AW$2624,3,FALSE),0) -> 0 | F31: =IFERROR(VLOOKUP($A31,Filtro_!$A$5:$AW$2624,4,FALSE),0) -> 0 | G31: =IFERROR(VLOOKUP($A31,Filtro_!$A$5:$AW$2624,5,FALSE),0) -> 0 | H31: =IFERROR(VLOOKUP($A31,Filtro_!$A$5:$AW$2624,6,FALSE),0) -> 0 | I31: =IFERROR(VLOOKUP($A31,Filtro_!$A$5:$AW$2624,7,FALSE),0) -> 0 | J31: =IFERROR(VLOOKUP($A31,Filtro_!$A$5:$AW$2624,8,FALSE),0) -> 0 | K31: =IFERROR(VLOOKUP($A31,Filtro_!$A$5:$AW$2624,9,FALSE),0) -> 0 | L31: =IFERROR(VLOOKUP($A31,Filtro_!$A$5:$AW$2624,10,FALSE),0) -> 0 | M31: =IFERROR(VLOOKUP($A31,Filtro_!$A$5:$AW$2624,11,FALSE),0) -> 0 | N31: =IFERROR(VLOOKUP($A31,Filtro_!$A$5:$AW$2624,12,FALSE),0) -> 1100 | O31: =IFERROR(VLOOKUP($A31,Filtro_!$A$5:$AW$2624,13,FALSE),0) -> 1520 | P31: =IFERROR(VLOOKUP($A31,Filtro_!$A$5:$AW$2624,14,FALSE),0) -> 873 | Q31: =IFERROR(VLOOKUP($A31,Filtro_!$A$5:$AW$2624,15,FALSE),0) -> 484 | R31: =IFERROR(VLOOKUP($A31,Filtro_!$A$5:$AW$2624,16,FALSE),0) -> 0 | S31: =IFERROR(VLOOKUP($A31,Filtro_!$A$5:$AW$2624,17,FALSE),0) -> 0 | T31: =IFERROR(VLOOKUP($A31,Filtro_!$A$5:$AW$2624,18,FALSE),0) -> 0 | U31: =IFERROR(VLOOKUP($A31,Filtro_!$A$5:$AW$2624,19,FALSE),0) -> 0 | V31: =IFERROR(VLOOKUP($A31,Filtro_!$A$5:$AW$2624,20,FALSE),0) -> 0 | W31: =IFERROR(VLOOKUP($A31,Filtro_!$A$5:$AW$2624,21,FALSE),0) -> 3935 | X31: =IFERROR(VLOOKUP($A31,Filtro_!$A$5:$AW$2624,22,FALSE),0) -> 0 | Y31: =IFERROR(VLOOKUP($A31,Filtro_!$A$5:$AW$2624,23,FALSE),0) -> 0 | Z31: =IFERROR(VLOOKUP($A31,Filtro_!$A$5:$AW$2624,24,FALSE),0) -> 0 | AA31: =IFERROR(VLOOKUP($A31,Filtro_!$A$5:$AW$2624,25,FALSE),0) -> 0 | AB31: =IFERROR(VLOOKUP($A31,Filtro_!$A$5:$AW$2624,26,FALSE),0) -> 0 | AC31: =IFERROR(VLOOKUP($A31,Filtro_!$A$5:$AW$2624,27,FALSE),0) -> 57 | AD31: =IFERROR(VLOOKUP($A31,Filtro_!$A$5:$AW$2624,28,FALSE),0) -> 139 | CA31: * El número de Sexo Hombres y mujeres debe ser igual al total. | DA31: 1 | DB31: 0 | DE31: 0 | DF31: 0 | DG31: 0 | DH31: 0 | DI31: 0 | DJ31: 0 | DK31: 0 | DL31: 0 | DM31: 0 | DN31: 0 | DO31: 0 | DP31: 0 | DQ31: 0
A32: 01010401 | B32: REGULACIÓN DE FECUNDIDAD | C32: MÉDICO/A | D32: =SUM(G32:U32) -> 2 | E32: =IFERROR(VLOOKUP($A32,Filtro_!$A$5:$AW$2624,3,FALSE),0) -> 0 | F32: =IFERROR(VLOOKUP($A32,Filtro_!$A$5:$AW$2624,4,FALSE),0) -> 0 | G32: =IFERROR(VLOOKUP($A32,Filtro_!$A$5:$AW$2624,5,FALSE),0) -> 1 | H32: =IFERROR(VLOOKUP($A32,Filtro_!$A$5:$AW$2624,6,FALSE),0) -> 0 | I32: =IFERROR(VLOOKUP($A32,Filtro_!$A$5:$AW$2624,7,FALSE),0) -> 0 | J32: =IFERROR(VLOOKUP($A32,Filtro_!$A$5:$AW$2624,8,FALSE),0) -> 0 | K32: =IFERROR(VLOOKUP($A32,Filtro_!$A$5:$AW$2624,9,FALSE),0) -> 0 | L32: =IFERROR(VLOOKUP($A32,Filtro_!$A$5:$AW$2624,10,FALSE),0) -> 0 | M32: =IFERROR(VLOOKUP($A32,Filtro_!$A$5:$AW$2624,11,FALSE),0) -> 0 | N32: =IFERROR(VLOOKUP($A32,Filtro_!$A$5:$AW$2624,12,FALSE),0) -> 0 | O32: =IFERROR(VLOOKUP($A32,Filtro_!$A$5:$AW$2624,13,FALSE),0) -> 1 | P32: =IFERROR(VLOOKUP($A32,Filtro_!$A$5:$AW$2624,14,FALSE),0) -> 0 | Q32: =IFERROR(VLOOKUP($A32,Filtro_!$A$5:$AW$2624,15,FALSE),0) -> 0 | R32: =IFERROR(VLOOKUP($A32,Filtro_!$A$5:$AW$2624,16,FALSE),0) -> 0 | S32: =IFERROR(VLOOKUP($A32,Filtro_!$A$5:$AW$2624,17,FALSE),0) -> 0 | T32: =IFERROR(VLOOKUP($A32,Filtro_!$A$5:$AW$2624,18,FALSE),0) -> 0 | U32: =IFERROR(VLOOKUP($A32,Filtro_!$A$5:$AW$2624,19,FALSE),0) -> 0 | V32: =IFERROR(VLOOKUP($A32,Filtro_!$A$5:$AW$2624,20,FALSE),0) -> 0 | W32: =IFERROR(VLOOKUP($A32,Filtro_!$A$5:$AW$2624,21,FALSE),0) -> 9 | X32: =IFERROR(VLOOKUP($A32,Filtro_!$A$5:$AW$2624,22,FALSE),0) -> 0 | Y32: =IFERROR(VLOOKUP($A32,Filtro_!$A$5:$AW$2624,23,FALSE),0) -> 0 | Z32: =IFERROR(VLOOKUP($A32,Filtro_!$A$5:$AW$2624,24,FALSE),0) -> 8 | AA32: =IFERROR(VLOOKUP($A32,Filtro_!$A$5:$AW$2624,25,FALSE),0) -> 8 | AB32: =IFERROR(VLOOKUP($A32,Filtro_!$A$5:$AW$2624,26,FALSE),0) -> 8 | AC32: =IFERROR(VLOOKUP($A32,Filtro_!$A$5:$AW$2624,27,FALSE),0) -> 4 | AD32: =IFERROR(VLOOKUP($A32,Filtro_!$A$5:$AW$2624,28,FALSE),0) -> 8 | CA32: * El número de Sexo Hombres y mujeres debe ser igual al total. | DA32: 1 | DB32: 0 | DE32: 0 | DF32: 0 | DG32: 0 | DH32: 0 | DI32: 0 | DJ32: 0 | DK32: 0 | DL32: 0 | DM32: 0 | DN32: 0 | DO32: 0 | DP32: 0 | DQ32: 0
A33: 01010403 | C33: MATRONA/ÓN | D33: =SUM(G33:U33) -> 74422 | E33: =IFERROR(VLOOKUP($A33,Filtro_!$A$5:$AW$2624,3,FALSE),0) -> 0 | F33: =IFERROR(VLOOKUP($A33,Filtro_!$A$5:$AW$2624,4,FALSE),0) -> 0 | G33: =IFERROR(VLOOKUP($A33,Filtro_!$A$5:$AW$2624,5,FALSE),0) -> 1720 | H33: =IFERROR(VLOOKUP($A33,Filtro_!$A$5:$AW$2624,6,FALSE),0) -> 11042 | I33: =IFERROR(VLOOKUP($A33,Filtro_!$A$5:$AW$2624,7,FALSE),0) -> 12589 | J33: =IFERROR(VLOOKUP($A33,Filtro_!$A$5:$AW$2624,8,FALSE),0) -> 13194 | K33: =IFERROR(VLOOKUP($A33,Filtro_!$A$5:$AW$2624,9,FALSE),0) -> 11930 | L33: =IFERROR(VLOOKUP($A33,Filtro_!$A$5:$AW$2624,10,FALSE),0) -> 9337 | M33: =IFERROR(VLOOKUP($A33,Filtro_!$A$5:$AW$2624,11,FALSE),0) -> 7264 | N33: =IFERROR(VLOOKUP($A33,Filtro_!$A$5:$AW$2624,12,FALSE),0) -> 5274 | O33: =IFERROR(VLOOKUP($A33,Filtro_!$A$5:$AW$2624,13,FALSE),0) -> 1805 | P33: =IFERROR(VLOOKUP($A33,Filtro_!$A$5:$AW$2624,14,FALSE),0) -> 180 | Q33: =IFERROR(VLOOKUP($A33,Filtro_!$A$5:$AW$2624,15,FALSE),0) -> 55 | R33: =IFERROR(VLOOKUP($A33,Filtro_!$A$5:$AW$2624,16,FALSE),0) -> 19 | S33: =IFERROR(VLOOKUP($A33,Filtro_!$A$5:$AW$2624,17,FALSE),0) -> 7 | T33: =IFERROR(VLOOKUP($A33,Filtro_!$A$5:$AW$2624,18,FALSE),0) -> 3 | U33: =IFERROR(VLOOKUP($A33,Filtro_!$A$5:$AW$2624,19,FALSE),0) -> 3 | V33: =IFERROR(VLOOKUP($A33,Filtro_!$A$5:$AW$2624,20,FALSE),0) -> 482 | W33: =IFERROR(VLOOKUP($A33,Filtro_!$A$5:$AW$2624,21,FALSE),0) -> 73162 | X33: =IFERROR(VLOOKUP($A33,Filtro_!$A$5:$AW$2624,22,FALSE),0) -> 0 | Y33: =IFERROR(VLOOKUP($A33,Filtro_!$A$5:$AW$2624,23,FALSE),0) -> 0 | Z33: =IFERROR(VLOOKUP($A33,Filtro_!$A$5:$AW$2624,24,FALSE),0) -> 1630 | AA33: =IFERROR(VLOOKUP($A33,Filtro_!$A$5:$AW$2624,25,FALSE),0) -> 72 | AB33: =IFERROR(VLOOKUP($A33,Filtro_!$A$5:$AW$2624,26,FALSE),0) -> 42 | AC33: =IFERROR(VLOOKUP($A33,Filtro_!$A$5:$AW$2624,27,FALSE),0) -> 541 | AD33: =IFERROR(VLOOKUP($A33,Filtro_!$A$5:$AW$2624,28,FALSE),0) -> 1709 | CA33: * El número de Sexo Hombres y mujeres debe ser igual al total. | DA33: 1 | DB33: 0 | DE33: 0 | DF33: 0 | DG33: 0 | DH33: 0 | DI33: 0 | DJ33: 0 | DK33: 0 | DL33: 0 | DM33: 0 | DN33: 0 | DO33: 0 | DP33: 0 | DQ33: 0
B34: SECCIÓN B: CONTROLES DE SALUD SEGÚN CICLO VITAL
B35: TIPO DE CONTROL | C35: PROFESIONAL | D35: TOTAL | G35: POR EDAD | AJ35: Control con Presencia del Padre | AL35: Niños, Niñas, Adolescentes y Jóvenes SENAME | AM35: Niños, Niñas, Adolescentes y Jóvenes Mejor Niñez | AN35: Pueblos Originarios | AO35: Migrantes
D36: Ambos Sexos | E36: Hombres | F36: Mujeres | G36: Menor de 1 mes | H36: 1 mes | I36: 2 meses | J36: 3 meses | K36: 4 meses | L36: 5 meses | M36: 6 meses | N36: 7 - 11 meses | O36: 12 a 17 meses | P36: 18 - 23 meses | Q36: 24 - 47 meses | R36: 48 - 59 meses | S36: 60 - 71 meses | T36: 6 - 9 | U36: 10 - 14 | V36: 15 - 19 | W36: 20 - 24 | X36: 25 - 29 | Y36: 30 - 34 | Z36: 35 - 39 | AA36: 40 - 44 | AB36: 45 - 49 | AC36: 50 - 54 | AD36: 55 - 59 | AE36: 60 - 64 | AF36: 65 - 69 | AG36: 70 - 74 | AH36: 75 - 79 | AI36: 80 y mas | AJ36: menor 1 año | AK36: 1 año a 3 años 11 meses 29 días
A37: 02010101 | B37: DE SALUD | C37: MÉDICO/A | D37: =SUM(G37:AI37) -> 17210 | E37: =IFERROR(VLOOKUP($A37,Filtro_!$A$5:$AW$2624,3,FALSE),0) -> 8009 | F37: =IFERROR(VLOOKUP($A37,Filtro_!$A$5:$AW$2624,4,FALSE),0) -> 9189 | G37: =IFERROR(VLOOKUP($A37,Filtro_!$A$5:$AW$2624,5,FALSE),0) -> 179 | H37: =IFERROR(VLOOKUP($A37,Filtro_!$A$5:$AW$2624,6,FALSE),0) -> 4584 | I37: =IFERROR(VLOOKUP($A37,Filtro_!$A$5:$AW$2624,7,FALSE),0) -> 364 | J37: =IFERROR(VLOOKUP($A37,Filtro_!$A$5:$AW$2624,8,FALSE),0) -> 4474 | K37: =IFERROR(VLOOKUP($A37,Filtro_!$A$5:$AW$2624,9,FALSE),0) -> 378 | L37: =IFERROR(VLOOKUP($A37,Filtro_!$A$5:$AW$2624,10,FALSE),0) -> 75 | M37: =IFERROR(VLOOKUP($A37,Filtro_!$A$5:$AW$2624,11,FALSE),0) -> 47 | N37: =IFERROR(VLOOKUP($A37,Filtro_!$A$5:$AW$2624,12,FALSE),0) -> 82 | O37: =IFERROR(VLOOKUP($A37,Filtro_!$A$5:$AW$2624,13,FALSE),0) -> 145 | P37: =IFERROR(VLOOKUP($A37,Filtro_!$A$5:$AW$2624,14,FALSE),0) -> 60 | Q37: =IFERROR(VLOOKUP($A37,Filtro_!$A$5:$AW$2624,15,FALSE),0) -> 142 | R37: =IFERROR(VLOOKUP($A37,Filtro_!$A$5:$AW$2624,16,FALSE),0) -> 160 | S37: =IFERROR(VLOOKUP($A37,Filtro_!$A$5:$AW$2624,17,FALSE),0) -> 228 | T37: =IFERROR(VLOOKUP($A37,Filtro_!$A$5:$AW$2624,18,FALSE),0) -> 1347 | U37: =IFERROR(VLOOKUP($A37,Filtro_!$A$5:$AW$2624,19,FALSE),0) -> 423 | V37: =IFERROR(VLOOKUP($A37,Filtro_!$A$5:$AW$2624,20,FALSE),0) -> 217 | W37: =IFERROR(VLOOKUP($A37,Filtro_!$A$5:$AW$2624,21,FALSE),0) -> 46 | X37: =IFERROR(VLOOKUP($A37,Filtro_!$A$5:$AW$2624,22,FALSE),0) -> 65 | Y37: =IFERROR(VLOOKUP($A37,Filtro_!$A$5:$AW$2624,23,FALSE),0) -> 95 | Z37: =IFERROR(VLOOKUP($A37,Filtro_!$A$5:$AW$2624,24,FALSE),0) -> 123 | AA37: =IFERROR(VLOOKUP($A37,Filtro_!$A$5:$AW$2624,25,FALSE),0) -> 157 | AB37: =IFERROR(VLOOKUP($A37,Filtro_!$A$5:$AW$2624,26,FALSE),0) -> 228 | AC37: =IFERROR(VLOOKUP($A37,Filtro_!$A$5:$AW$2624,27,FALSE),0) -> 276 | AD37: =IFERROR(VLOOKUP($A37,Filtro_!$A$5:$AW$2624,28,FALSE),0) -> 459 | AE37: =IFERROR(VLOOKUP($A37,Filtro_!$A$5:$AW$2624,29,FALSE),0) -> 501 | AF37: =IFERROR(VLOOKUP($A37,Filtro_!$A$5:$AW$2624,30,FALSE),0) -> 703 | AG37: =IFERROR(VLOOKUP($A37,Filtro_!$A$5:$AW$2624,31,FALSE),0) -> 547 | AH37: =IFERROR(VLOOKUP($A37,Filtro_!$A$5:$AW$2624,32,FALSE),0) -> 436 | AI37: =IFERROR(VLOOKUP($A37,Filtro_!$A$5:$AW$2624,33,FALSE),0) -> 669 | AJ37: =IFERROR(VLOOKUP($A37,Filtro_!$A$5:$AW$2624,34,FALSE),0) -> 2128 | AK37: =IFERROR(VLOOKUP($A37,Filtro_!$A$5:$AW$2624,35,FALSE),0) -> 11 | AL37: =IFERROR(VLOOKUP($A37,Filtro_!$A$5:$AW$2624,36,FALSE),0) -> 46 | AM37: =IFERROR(VLOOKUP($A37,Filtro_!$A$5:$AW$2624,37,FALSE),0) -> 62 | AN37: =IFERROR(VLOOKUP($A37,Filtro_!$A$5:$AW$2624,38,FALSE),0) -> 116 | AO37: =IFERROR(VLOOKUP($A37,Filtro_!$A$5:$AW$2624,39,FALSE),0) -> 578 | CB37: * El número de controles con presencia de Padre para menor entre 1 año y 3 años NO DEBE ser Mayor a la suma de controles del rango correspondiente. | CC37: * El número de controles según sexo NO DEBE ser diferente al Total. | DA37: 0 | DB37: 1 | DC37: 1 | DD37: 0
A38: 02010201 | C38: ENFERMERA/O | D38: =SUM(G38:AI38) -> 95630 | E38: =IFERROR(VLOOKUP($A38,Filtro_!$A$5:$AW$2624,3,FALSE),0) -> 44793 | F38: =IFERROR(VLOOKUP($A38,Filtro_!$A$5:$AW$2624,4,FALSE),0) -> 49660 | G38: =IFERROR(VLOOKUP($A38,Filtro_!$A$5:$AW$2624,5,FALSE),0) -> 96 | H38: =IFERROR(VLOOKUP($A38,Filtro_!$A$5:$AW$2624,6,FALSE),0) -> 92 | I38: =IFERROR(VLOOKUP($A38,Filtro_!$A$5:$AW$2624,7,FALSE),0) -> 5064 | J38: =IFERROR(VLOOKUP($A38,Filtro_!$A$5:$AW$2624,8,FALSE),0) -> 279 | K38: =IFERROR(VLOOKUP($A38,Filtro_!$A$5:$AW$2624,9,FALSE),0) -> 4937 | L38: =IFERROR(VLOOKUP($A38,Filtro_!$A$5:$AW$2624,10,FALSE),0) -> 358 | M38: =IFERROR(VLOOKUP($A38,Filtro_!$A$5:$AW$2624,11,FALSE),0) -> 4832 | N38: =IFERROR(VLOOKUP($A38,Filtro_!$A$5:$AW$2624,12,FALSE),0) -> 5874 | O38: =IFERROR(VLOOKUP($A38,Filtro_!$A$5:$AW$2624,13,FALSE),0) -> 6195 | P38: =IFERROR(VLOOKUP($A38,Filtro_!$A$5:$AW$2624,14,FALSE),0) -> 5250 | Q38: =IFERROR(VLOOKUP($A38,Filtro_!$A$5:$AW$2624,15,FALSE),0) -> 11638 | R38: =IFERROR(VLOOKUP($A38,Filtro_!$A$5:$AW$2624,16,FALSE),0) -> 5349 | S38: =IFERROR(VLOOKUP($A38,Filtro_!$A$5:$AW$2624,17,FALSE),0) -> 5062 | T38: =IFERROR(VLOOKUP($A38,Filtro_!$A$5:$AW$2624,18,FALSE),0) -> 12725 | U38: =IFERROR(VLOOKUP($A38,Filtro_!$A$5:$AW$2624,19,FALSE),0) -> 5683 | V38: =IFERROR(VLOOKUP($A38,Filtro_!$A$5:$AW$2624,20,FALSE),0) -> 1641 | W38: =IFERROR(VLOOKUP($A38,Filtro_!$A$5:$AW$2624,21,FALSE),0) -> 505 | X38: =IFERROR(VLOOKUP($A38,Filtro_!$A$5:$AW$2624,22,FALSE),0) -> 662 | Y38: =IFERROR(VLOOKUP($A38,Filtro_!$A$5:$AW$2624,23,FALSE),0) -> 720 | Z38: =IFERROR(VLOOKUP($A38,Filtro_!$A$5:$AW$2624,24,FALSE),0) -> 738 | AA38: =IFERROR(VLOOKUP($A38,Filtro_!$A$5:$AW$2624,25,FALSE),0) -> 765 | AB38: =IFERROR(VLOOKUP($A38,Filtro_!$A$5:$AW$2624,26,FALSE),0) -> 879 | AC38: =IFERROR(VLOOKUP($A38,Filtro_!$A$5:$AW$2624,27,FALSE),0) -> 994 | AD38: =IFERROR(VLOOKUP($A38,Filtro_!$A$5:$AW$2624,28,FALSE),0) -> 1171 | AE38: =IFERROR(VLOOKUP($A38,Filtro_!$A$5:$AW$2624,29,FALSE),0) -> 1312 | AF38: =IFERROR(VLOOKUP($A38,Filtro_!$A$5:$AW$2624,30,FALSE),0) -> 3311 | AG38: =IFERROR(VLOOKUP($A38,Filtro_!$A$5:$AW$2624,31,FALSE),0) -> 3193 | AH38: =IFERROR(VLOOKUP($A38,Filtro_!$A$5:$AW$2624,32,FALSE),0) -> 2735 | AI38: =IFERROR(VLOOKUP($A38,Filtro_!$A$5:$AW$2624,33,FALSE),0) -> 3570 | AJ38: =IFERROR(VLOOKUP($A38,Filtro_!$A$5:$AW$2624,34,FALSE),0) -> 4685 | AK38: =IFERROR(VLOOKUP($A38,Filtro_!$A$5:$AW$2624,35,FALSE),0) -> 3939 | AL38: =IFERROR(VLOOKUP($A38,Filtro_!$A$5:$AW$2624,36,FALSE),0) -> 409 | AM38: =IFERROR(VLOOKUP($A38,Filtro_!$A$5:$AW$2624,37,FALSE),0) -> 280 | AN38: =IFERROR(VLOOKUP($A38,Filtro_!$A$5:$AW$2624,38,FALSE),0) -> 1100 | AO38: =IFERROR(VLOOKUP($A38,Filtro_!$A$5:$AW$2624,39,FALSE),0) -> 1541 | CC38: * El número de controles según sexo NO DEBE ser diferente al Total. | DA38: 0 | DB38: 0 | DC38: 1 | DD38: 0
A39: 02010103 | C39: MATRONA/ÓN | D39: =SUM(G39+U39+V39+W39+X39+Y39+Z39+AA39+AB39+AC39+AD39+AE39+AF39+AG39+AH39+AI39) -> 20597 | E39: =IFERROR(VLOOKUP($A39,Filtro_!$A$5:$AW$2624,3,FALSE),0) -> 4257 | F39: =IFERROR(VLOOKUP($A39,Filtro_!$A$5:$AW$2624,4,FALSE),0) -> 16244 | G39: =IFERROR(VLOOKUP($A39,Filtro_!$A$5:$AW$2624,5,FALSE),0) -> 3845 | H39: =IFERROR(VLOOKUP($A39,Filtro_!$A$5:$AW$2624,6,FALSE),0) -> 0 | I39: =IFERROR(VLOOKUP($A39,Filtro_!$A$5:$AW$2624,7,FALSE),0) -> 0 | J39: =IFERROR(VLOOKUP($A39,Filtro_!$A$5:$AW$2624,8,FALSE),0) -> 0 | K39: =IFERROR(VLOOKUP($A39,Filtro_!$A$5:$AW$2624,9,FALSE),0) -> 0 | L39: =IFERROR(VLOOKUP($A39,Filtro_!$A$5:$AW$2624,10,FALSE),0) -> 0 | M39: =IFERROR(VLOOKUP($A39,Filtro_!$A$5:$AW$2624,11,FALSE),0) -> 0 | N39: =IFERROR(VLOOKUP($A39,Filtro_!$A$5:$AW$2624,12,FALSE),0) -> 0 | O39: =IFERROR(VLOOKUP($A39,Filtro_!$A$5:$AW$2624,13,FALSE),0) -> 0 | P39: =IFERROR(VLOOKUP($A39,Filtro_!$A$5:$AW$2624,14,FALSE),0) -> 0 | Q39: =IFERROR(VLOOKUP($A39,Filtro_!$A$5:$AW$2624,15,FALSE),0) -> 0 | R39: =IFERROR(VLOOKUP($A39,Filtro_!$A$5:$AW$2624,16,FALSE),0) -> 0 | S39: =IFERROR(VLOOKUP($A39,Filtro_!$A$5:$AW$2624,17,FALSE),0) -> 0 | T39: =IFERROR(VLOOKUP($A39,Filtro_!$A$5:$AW$2624,18,FALSE),0) -> 0 | U39: =IFERROR(VLOOKUP($A39,Filtro_!$A$5:$AW$2624,19,FALSE),0) -> 3431 | V39: =IFERROR(VLOOKUP($A39,Filtro_!$A$5:$AW$2624,20,FALSE),0) -> 2959 | W39: =IFERROR(VLOOKUP($A39,Filtro_!$A$5:$AW$2624,21,FALSE),0) -> 1307 | X39: =IFERROR(VLOOKUP($A39,Filtro_!$A$5:$AW$2624,22,FALSE),0) -> 1682 | Y39: =IFERROR(VLOOKUP($A39,Filtro_!$A$5:$AW$2624,23,FALSE),0) -> 1574 | Z39: =IFERROR(VLOOKUP($A39,Filtro_!$A$5:$AW$2624,24,FALSE),0) -> 1404 | AA39: =IFERROR(VLOOKUP($A39,Filtro_!$A$5:$AW$2624,25,FALSE),0) -> 1186 | AB39: =IFERROR(VLOOKUP($A39,Filtro_!$A$5:$AW$2624,26,FALSE),0) -> 1072 | AC39: =IFERROR(VLOOKUP($A39,Filtro_!$A$5:$AW$2624,27,FALSE),0) -> 829 | AD39: =IFERROR(VLOOKUP($A39,Filtro_!$A$5:$AW$2624,28,FALSE),0) -> 607 | AE39: =IFERROR(VLOOKUP($A39,Filtro_!$A$5:$AW$2624,29,FALSE),0) -> 422 | AF39: =IFERROR(VLOOKUP($A39,Filtro_!$A$5:$AW$2624,30,FALSE),0) -> 197 | AG39: =IFERROR(VLOOKUP($A39,Filtro_!$A$5:$AW$2624,31,FALSE),0) -> 53 | AH39: =IFERROR(VLOOKUP($A39,Filtro_!$A$5:$AW$2624,32,FALSE),0) -> 21 | AI39: =IFERROR(VLOOKUP($A39,Filtro_!$A$5:$AW$2624,33,FALSE),0) -> 8 | AJ39: =IFERROR(VLOOKUP($A39,Filtro_!$A$5:$AW$2624,34,FALSE),0) -> 1722 | AK39: =IFERROR(VLOOKUP($A39,Filtro_!$A$5:$AW$2624,35,FALSE),0) -> 0 | AL39: =IFERROR(VLOOKUP($A39,Filtro_!$A$5:$AW$2624,36,FALSE),0) -> 19 | AM39: =IFERROR(VLOOKUP($A39,Filtro_!$A$5:$AW$2624,37,FALSE),0) -> 30 | AN39: =IFERROR(VLOOKUP($A39,Filtro_!$A$5:$AW$2624,38,FALSE),0) -> 143 | AO39: =IFERROR(VLOOKUP($A39,Filtro_!$A$5:$AW$2624,39,FALSE),0) -> 331 | CB39: * El número de controles con presencia de Padre para menor entre 1 año y 3 años NO DEBE ser Mayor a la suma de controles del rango correspondiente. | CC39: * El número de controles según sexo NO DEBE ser diferente al Total. | DA39: 0 | DB39: 1 | DC39: 1 | DD39: 0
A40: 02010105 | C40: TÉCNICO EN ENFERMERÍA | D40: =SUM(O40:T40) -> 24 | E40: =IFERROR(VLOOKUP($A40,Filtro_!$A$5:$AW$2624,3,FALSE),0) -> 12 | F40: =IFERROR(VLOOKUP($A40,Filtro_!$A$5:$AW$2624,4,FALSE),0) -> 11 | G40: =IFERROR(VLOOKUP($A40,Filtro_!$A$5:$AW$2624,5,FALSE),0) -> 0 | H40: =IFERROR(VLOOKUP($A40,Filtro_!$A$5:$AW$2624,6,FALSE),0) -> 0 | I40: =IFERROR(VLOOKUP($A40,Filtro_!$A$5:$AW$2624,7,FALSE),0) -> 0 | J40: =IFERROR(VLOOKUP($A40,Filtro_!$A$5:$AW$2624,8,FALSE),0) -> 0 | K40: =IFERROR(VLOOKUP($A40,Filtro_!$A$5:$AW$2624,9,FALSE),0) -> 0 | L40: =IFERROR(VLOOKUP($A40,Filtro_!$A$5:$AW$2624,10,FALSE),0) -> 0 | M40: =IFERROR(VLOOKUP($A40,Filtro_!$A$5:$AW$2624,11,FALSE),0) -> 0 | N40: =IFERROR(VLOOKUP($A40,Filtro_!$A$5:$AW$2624,12,FALSE),0) -> 0 | O40: =IFERROR(VLOOKUP($A40,Filtro_!$A$5:$AW$2624,13,FALSE),0) -> 1 | P40: =IFERROR(VLOOKUP($A40,Filtro_!$A$5:$AW$2624,14,FALSE),0) -> 1 | Q40: =IFERROR(VLOOKUP($A40,Filtro_!$A$5:$AW$2624,15,FALSE),0) -> 4 | R40: =IFERROR(VLOOKUP($A40,Filtro_!$A$5:$AW$2624,16,FALSE),0) -> 0 | S40: =IFERROR(VLOOKUP($A40,Filtro_!$A$5:$AW$2624,17,FALSE),0) -> 2 | T40: =IFERROR(VLOOKUP($A40,Filtro_!$A$5:$AW$2624,18,FALSE),0) -> 16 | U40: =IFERROR(VLOOKUP($A40,Filtro_!$A$5:$AW$2624,19,FALSE),0) -> 0 | V40: =IFERROR(VLOOKUP($A40,Filtro_!$A$5:$AW$2624,20,FALSE),0) -> 0 | W40: =IFERROR(VLOOKUP($A40,Filtro_!$A$5:$AW$2624,21,FALSE),0) -> 0 | X40: =IFERROR(VLOOKUP($A40,Filtro_!$A$5:$AW$2624,22,FALSE),0) -> 0 | Y40: =IFERROR(VLOOKUP($A40,Filtro_!$A$5:$AW$2624,23,FALSE),0) -> 0 | Z40: =IFERROR(VLOOKUP($A40,Filtro_!$A$5:$AW$2624,24,FALSE),0) -> 0 | AA40: =IFERROR(VLOOKUP($A40,Filtro_!$A$5:$AW$2624,25,FALSE),0) -> 0 | AB40: =IFERROR(VLOOKUP($A40,Filtro_!$A$5:$AW$2624,26,FALSE),0) -> 0 | AC40: =IFERROR(VLOOKUP($A40,Filtro_!$A$5:$AW$2624,27,FALSE),0) -> 0 | AD40: =IFERROR(VLOOKUP($A40,Filtro_!$A$5:$AW$2624,28,FALSE),0) -> 0 | AE40: =IFERROR(VLOOKUP($A40,Filtro_!$A$5:$AW$2624,29,FALSE),0) -> 0 | AF40: =IFERROR(VLOOKUP($A40,Filtro_!$A$5:$AW$2624,30,FALSE),0) -> 0 | AG40: =IFERROR(VLOOKUP($A40,Filtro_!$A$5:$AW$2624,31,FALSE),0) -> 0 | AH40: =IFERROR(VLOOKUP($A40,Filtro_!$A$5:$AW$2624,32,FALSE),0) -> 0 | AI40: =IFERROR(VLOOKUP($A40,Filtro_!$A$5:$AW$2624,33,FALSE),0) -> 0 | AJ40: =IFERROR(VLOOKUP($A40,Filtro_!$A$5:$AW$2624,34,FALSE),0) -> 0 | AK40: =IFERROR(VLOOKUP($A40,Filtro_!$A$5:$AW$2624,35,FALSE),0) -> 4 | AL40: =IFERROR(VLOOKUP($A40,Filtro_!$A$5:$AW$2624,36,FALSE),0) -> 2 | AM40: =IFERROR(VLOOKUP($A40,Filtro_!$A$5:$AW$2624,37,FALSE),0) -> 0 | AN40: =IFERROR(VLOOKUP($A40,Filtro_!$A$5:$AW$2624,38,FALSE),0) -> 1 | AO40: =IFERROR(VLOOKUP($A40,Filtro_!$A$5:$AW$2624,39,FALSE),0) -> 42 | CC40: * El número de controles según sexo NO DEBE ser diferente al Total. | DC40: 1 | DD40: 0
B41: SECCIÓN C: CONTROLES SEGÚN PROBLEMA DE SALUD
B42: TIPO DE CONTROL | C42: PROFESIONAL | D42: TOTAL | G42: POR EDAD | AO42: Pueblos Originarios | AP42: Migrantes
G43: 0 - 4 años | I43: 5 - 9 años | K43: 10 - 14 años | M43: 15 a 19 años | O43: 20 - 24 años | Q43: 25 - 29 años | S43: 30 - 34 años | U43: 35 - 39 años | W43: 40 - 44 años | Y43: 45 - 49 años | AA43: 50 - 54 años | AC43: 55 - 59 años | AE43: 60 - 64 años | AG43: 65 - 69 años | AI43: 70 - 74 años | AK43: 75 - 79 años | AM43: 80 y más años
D44: Ambos Sexos | E44: Hombres | F44: Mujeres | G44: Hombres | H44: Mujeres | I44: Hombres | J44: Mujeres | K44: Hombres | L44: Mujeres | M44: Hombres | N44: Mujeres | O44: Hombres | P44: Mujeres | Q44: Hombres | R44: Mujeres | S44: Hombres | T44: Mujeres | U44: Hombres | V44: Mujeres | W44: Hombres | X44: Mujeres | Y44: Hombres | Z44: Mujeres | AA44: Hombres | AB44: Mujeres | AC44: Hombres | AD44: Mujeres | AE44: Hombres | AF44: Mujeres | AG44: Hombres | AH44: Mujeres | AI44: Hombres | AJ44: Mujeres | AK44: Hombres | AL44: Mujeres | AM44: Hombres | AN44: Mujeres
A45: 03010501 | B45: DE SALUD CARDIOVASCULAR | C45: MÉDICO/A | D45: =SUM(E45:F45) -> 133250 | E45: =SUM(K45+M45+O45+Q45+S45+U45+W45+Y45+AA45+AC45+AE45+AG45+AI45+AK45+AM45) -> 46162 | F45: 87088 | G45: =IFERROR(VLOOKUP($A45,Filtro_!$A$5:$AW$2624,5,FALSE),0) -> 0 | H45: =IFERROR(VLOOKUP($A45,Filtro_!$A$5:$AW$2624,6,FALSE),0) -> 0 | I45: =IFERROR(VLOOKUP($A45,Filtro_!$A$5:$AW$2624,7,FALSE),0) -> 0 | J45: =IFERROR(VLOOKUP($A45,Filtro_!$A$5:$AW$2624,8,FALSE),0) -> 0 | K45: =IFERROR(VLOOKUP($A45,Filtro_!$A$5:$AW$2624,9,FALSE),0) -> 0 | L45: =IFERROR(VLOOKUP($A45,Filtro_!$A$5:$AW$2624,10,FALSE),0) -> 0 | M45: =IFERROR(VLOOKUP($A45,Filtro_!$A$5:$AW$2624,11,FALSE),0) -> 79 | N45: =IFERROR(VLOOKUP($A45,Filtro_!$A$5:$AW$2624,12,FALSE),0) -> 134 | O45: =IFERROR(VLOOKUP($A45,Filtro_!$A$5:$AW$2624,13,FALSE),0) -> 131 | P45: =IFERROR(VLOOKUP($A45,Filtro_!$A$5:$AW$2624,14,FALSE),0) -> 307 | Q45: =IFERROR(VLOOKUP($A45,Filtro_!$A$5:$AW$2624,15,FALSE),0) -> 216 | R45: =IFERROR(VLOOKUP($A45,Filtro_!$A$5:$AW$2624,16,FALSE),0) -> 570 | S45: =IFERROR(VLOOKUP($A45,Filtro_!$A$5:$AW$2624,17,FALSE),0) -> 384 | T45: =IFERROR(VLOOKUP($A45,Filtro_!$A$5:$AW$2624,18,FALSE),0) -> 1093 | U45: =IFERROR(VLOOKUP($A45,Filtro_!$A$5:$AW$2624,19,FALSE),0) -> 649 | V45: =IFERROR(VLOOKUP($A45,Filtro_!$A$5:$AW$2624,20,FALSE),0) -> 1821 | W45: =IFERROR(VLOOKUP($A45,Filtro_!$A$5:$AW$2624,21,FALSE),0) -> 1110 | X45: =IFERROR(VLOOKUP($A45,Filtro_!$A$5:$AW$2624,22,FALSE),0) -> 3100 | Y45: =IFERROR(VLOOKUP($A45,Filtro_!$A$5:$AW$2624,23,FALSE),0) -> 1771 | Z45: =IFERROR(VLOOKUP($A45,Filtro_!$A$5:$AW$2624,24,FALSE),0) -> 4846 | AA45: =IFERROR(VLOOKUP($A45,Filtro_!$A$5:$AW$2624,25,FALSE),0) -> 2865 | AB45: =IFERROR(VLOOKUP($A45,Filtro_!$A$5:$AW$2624,26,FALSE),0) -> 7310 | AC45: =IFERROR(VLOOKUP($A45,Filtro_!$A$5:$AW$2624,27,FALSE),0) -> 4561 | AD45: =IFERROR(VLOOKUP($A45,Filtro_!$A$5:$AW$2624,28,FALSE),0) -> 10580 | AE45: =IFERROR(VLOOKUP($A45,Filtro_!$A$5:$AW$2624,29,FALSE),0) -> 6459 | AF45: =IFERROR(VLOOKUP($A45,Filtro_!$A$5:$AW$2624,30,FALSE),0) -> 12572 | AG45: =IFERROR(VLOOKUP($A45,Filtro_!$A$5:$AW$2624,31,FALSE),0) -> 7672 | AH45: =IFERROR(VLOOKUP($A45,Filtro_!$A$5:$AW$2624,32,FALSE),0) -> 12973 | AI45: =IFERROR(VLOOKUP($A45,Filtro_!$A$5:$AW$2624,33,FALSE),0) -> 7245 | AJ45: =IFERROR(VLOOKUP($A45,Filtro_!$A$5:$AW$2624,34,FALSE),0) -> 11356 | AK45: =IFERROR(VLOOKUP($A45,Filtro_!$A$5:$AW$2624,35,FALSE),0) -> 6114 | AL45: =IFERROR(VLOOKUP($A45,Filtro_!$A$5:$AW$2624,36,FALSE),0) -> 9376 | AM45: =IFERROR(VLOOKUP($A45,Filtro_!$A$5:$AW$2624,37,FALSE),0) -> 6906 | AN45: =IFERROR(VLOOKUP($A45,Filtro_!$A$5:$AW$2624,38,FALSE),0) -> 11050 | AO45: =IFERROR(VLOOKUP($A45,Filtro_!$A$5:$AW$2624,39,FALSE),0) -> 900 | AP45: =IFERROR(VLOOKUP($A45,Filtro_!$A$5:$AW$2624,40,FALSE),0) -> 791 | DB45: 0 | DC45: 0 | DD45: 0 | DE45: 0
A46: 03010502 | C46: ENFERMERA/O | D46: =SUM(E46:F46) -> 59196 | E46: 21490 | F46: 37706 | G46: =IFERROR(VLOOKUP($A46,Filtro_!$A$5:$AW$2624,5,FALSE),0) -> 0 | H46: =IFERROR(VLOOKUP($A46,Filtro_!$A$5:$AW$2624,6,FALSE),0) -> 0 | I46: =IFERROR(VLOOKUP($A46,Filtro_!$A$5:$AW$2624,7,FALSE),0) -> 0 | J46: =IFERROR(VLOOKUP($A46,Filtro_!$A$5:$AW$2624,8,FALSE),0) -> 0 | K46: =IFERROR(VLOOKUP($A46,Filtro_!$A$5:$AW$2624,9,FALSE),0) -> 0 | L46: =IFERROR(VLOOKUP($A46,Filtro_!$A$5:$AW$2624,10,FALSE),0) -> 0 | M46: =IFERROR(VLOOKUP($A46,Filtro_!$A$5:$AW$2624,11,FALSE),0) -> 38 | N46: =IFERROR(VLOOKUP($A46,Filtro_!$A$5:$AW$2624,12,FALSE),0) -> 37 | O46: =IFERROR(VLOOKUP($A46,Filtro_!$A$5:$AW$2624,13,FALSE),0) -> 54 | P46: =IFERROR(VLOOKUP($A46,Filtro_!$A$5:$AW$2624,14,FALSE),0) -> 106 | Q46: =IFERROR(VLOOKUP($A46,Filtro_!$A$5:$AW$2624,15,FALSE),0) -> 82 | R46: =IFERROR(VLOOKUP($A46,Filtro_!$A$5:$AW$2624,16,FALSE),0) -> 220 | S46: =IFERROR(VLOOKUP($A46,Filtro_!$A$5:$AW$2624,17,FALSE),0) -> 157 | T46: =IFERROR(VLOOKUP($A46,Filtro_!$A$5:$AW$2624,18,FALSE),0) -> 425 | U46: =IFERROR(VLOOKUP($A46,Filtro_!$A$5:$AW$2624,19,FALSE),0) -> 270 | V46: =IFERROR(VLOOKUP($A46,Filtro_!$A$5:$AW$2624,20,FALSE),0) -> 762 | W46: =IFERROR(VLOOKUP($A46,Filtro_!$A$5:$AW$2624,21,FALSE),0) -> 509 | X46: =IFERROR(VLOOKUP($A46,Filtro_!$A$5:$AW$2624,22,FALSE),0) -> 1282 | Y46: =IFERROR(VLOOKUP($A46,Filtro_!$A$5:$AW$2624,23,FALSE),0) -> 827 | Z46: =IFERROR(VLOOKUP($A46,Filtro_!$A$5:$AW$2624,24,FALSE),0) -> 2049 | AA46: =IFERROR(VLOOKUP($A46,Filtro_!$A$5:$AW$2624,25,FALSE),0) -> 1296 | AB46: =IFERROR(VLOOKUP($A46,Filtro_!$A$5:$AW$2624,26,FALSE),0) -> 3105 | AC46: =IFERROR(VLOOKUP($A46,Filtro_!$A$5:$AW$2624,27,FALSE),0) -> 2133 | AD46: =IFERROR(VLOOKUP($A46,Filtro_!$A$5:$AW$2624,28,FALSE),0) -> 4490 | AE46: =IFERROR(VLOOKUP($A46,Filtro_!$A$5:$AW$2624,29,FALSE),0) -> 2864 | AF46: =IFERROR(VLOOKUP($A46,Filtro_!$A$5:$AW$2624,30,FALSE),0) -> 5295 | AG46: =IFERROR(VLOOKUP($A46,Filtro_!$A$5:$AW$2624,31,FALSE),0) -> 3677 | AH46: =IFERROR(VLOOKUP($A46,Filtro_!$A$5:$AW$2624,32,FALSE),0) -> 5777 | AI46: =IFERROR(VLOOKUP($A46,Filtro_!$A$5:$AW$2624,33,FALSE),0) -> 3452 | AJ46: =IFERROR(VLOOKUP($A46,Filtro_!$A$5:$AW$2624,34,FALSE),0) -> 5007 | AK46: =IFERROR(VLOOKUP($A46,Filtro_!$A$5:$AW$2624,35,FALSE),0) -> 2798 | AL46: =IFERROR(VLOOKUP($A46,Filtro_!$A$5:$AW$2624,36,FALSE),0) -> 4008 | AM46: =IFERROR(VLOOKUP($A46,Filtro_!$A$5:$AW$2624,37,FALSE),0) -> 3333 | AN46: =IFERROR(VLOOKUP($A46,Filtro_!$A$5:$AW$2624,38,FALSE),0) -> 5143 | AO46: =IFERROR(VLOOKUP($A46,Filtro_!$A$5:$AW$2624,39,FALSE),0) -> 490 | AP46: =IFERROR(VLOOKUP($A46,Filtro_!$A$5:$AW$2624,40,FALSE),0) -> 374 | DB46: 0 | DC46: 0 | DD46: 0 | DE46: 0
A47: 03010504 | C47: NUTRICIONISTA | D47: 55622 | E47: 18336 | F47: 37286 | G47: =IFERROR(VLOOKUP($A47,Filtro_!$A$5:$AW$2624,5,FALSE),0) -> 0 | H47: =IFERROR(VLOOKUP($A47,Filtro_!$A$5:$AW$2624,6,FALSE),0) -> 0 | I47: =IFERROR(VLOOKUP($A47,Filtro_!$A$5:$AW$2624,7,FALSE),0) -> 0 | J47: =IFERROR(VLOOKUP($A47,Filtro_!$A$5:$AW$2624,8,FALSE),0) -> 0 | K47: =IFERROR(VLOOKUP($A47,Filtro_!$A$5:$AW$2624,9,FALSE),0) -> 0 | L47: =IFERROR(VLOOKUP($A47,Filtro_!$A$5:$AW$2624,10,FALSE),0) -> 0 | M47: =IFERROR(VLOOKUP($A47,Filtro_!$A$5:$AW$2624,11,FALSE),0) -> 37 | N47: =IFERROR(VLOOKUP($A47,Filtro_!$A$5:$AW$2624,12,FALSE),0) -> 50 | O47: =IFERROR(VLOOKUP($A47,Filtro_!$A$5:$AW$2624,13,FALSE),0) -> 62 | P47: =IFERROR(VLOOKUP($A47,Filtro_!$A$5:$AW$2624,14,FALSE),0) -> 155 | Q47: =IFERROR(VLOOKUP($A47,Filtro_!$A$5:$AW$2624,15,FALSE),0) -> 96 | R47: =IFERROR(VLOOKUP($A47,Filtro_!$A$5:$AW$2624,16,FALSE),0) -> 265 | S47: =IFERROR(VLOOKUP($A47,Filtro_!$A$5:$AW$2624,17,FALSE),0) -> 196 | T47: =IFERROR(VLOOKUP($A47,Filtro_!$A$5:$AW$2624,18,FALSE),0) -> 527 | U47: =IFERROR(VLOOKUP($A47,Filtro_!$A$5:$AW$2624,19,FALSE),0) -> 291 | V47: =IFERROR(VLOOKUP($A47,Filtro_!$A$5:$AW$2624,20,FALSE),0) -> 900 | W47: =IFERROR(VLOOKUP($A47,Filtro_!$A$5:$AW$2624,21,FALSE),0) -> 460 | X47: =IFERROR(VLOOKUP($A47,Filtro_!$A$5:$AW$2624,22,FALSE),0) -> 1461 | Y47: =IFERROR(VLOOKUP($A47,Filtro_!$A$5:$AW$2624,23,FALSE),0) -> 765 | Z47: =IFERROR(VLOOKUP($A47,Filtro_!$A$5:$AW$2624,24,FALSE),0) -> 2261 | AA47: =IFERROR(VLOOKUP($A47,Filtro_!$A$5:$AW$2624,25,FALSE),0) -> 1180 | AB47: =IFERROR(VLOOKUP($A47,Filtro_!$A$5:$AW$2624,26,FALSE),0) -> 3299 | AC47: =IFERROR(VLOOKUP($A47,Filtro_!$A$5:$AW$2624,27,FALSE),0) -> 1783 | AD47: =IFERROR(VLOOKUP($A47,Filtro_!$A$5:$AW$2624,28,FALSE),0) -> 4755 | AE47: =IFERROR(VLOOKUP($A47,Filtro_!$A$5:$AW$2624,29,FALSE),0) -> 2508 | AF47: =IFERROR(VLOOKUP($A47,Filtro_!$A$5:$AW$2624,30,FALSE),0) -> 5448 | AG47: =IFERROR(VLOOKUP($A47,Filtro_!$A$5:$AW$2624,31,FALSE),0) -> 3033 | AH47: =IFERROR(VLOOKUP($A47,Filtro_!$A$5:$AW$2624,32,FALSE),0) -> 5500 | AI47: =IFERROR(VLOOKUP($A47,Filtro_!$A$5:$AW$2624,33,FALSE),0) -> 2912 | AJ47: =IFERROR(VLOOKUP($A47,Filtro_!$A$5:$AW$2624,34,FALSE),0) -> 4670 | AK47: =IFERROR(VLOOKUP($A47,Filtro_!$A$5:$AW$2624,35,FALSE),0) -> 2301 | AL47: =IFERROR(VLOOKUP($A47,Filtro_!$A$5:$AW$2624,36,FALSE),0) -> 3794 | AM47: =IFERROR(VLOOKUP($A47,Filtro_!$A$5:$AW$2624,37,FALSE),0) -> 2712 | AN47: =IFERROR(VLOOKUP($A47,Filtro_!$A$5:$AW$2624,38,FALSE),0) -> 4201 | AO47: =IFERROR(VLOOKUP($A47,Filtro_!$A$5:$AW$2624,39,FALSE),0) -> 832 | AP47: =IFERROR(VLOOKUP($A47,Filtro_!$A$5:$AW$2624,40,FALSE),0) -> 376 | DB47: 0 | DC47: 0 | DD47: 0 | DE47: 0
A48: 03010505 | C48: TÉCNICO EN ENFERMERÍA | D48: 592 | E48: 255 | F48: 337 | G48: =IFERROR(VLOOKUP($A48,Filtro_!$A$5:$AW$2624,5,FALSE),0) -> 0 | H48: =IFERROR(VLOOKUP($A48,Filtro_!$A$5:$AW$2624,6,FALSE),0) -> 0 | I48: =IFERROR(VLOOKUP($A48,Filtro_!$A$5:$AW$2624,7,FALSE),0) -> 0 | J48: =IFERROR(VLOOKUP($A48,Filtro_!$A$5:$AW$2624,8,FALSE),0) -> 0 | K48: =IFERROR(VLOOKUP($A48,Filtro_!$A$5:$AW$2624,9,FALSE),0) -> 0 | L48: =IFERROR(VLOOKUP($A48,Filtro_!$A$5:$AW$2624,10,FALSE),0) -> 0 | M48: =IFERROR(VLOOKUP($A48,Filtro_!$A$5:$AW$2624,11,FALSE),0) -> 1 | N48: =IFERROR(VLOOKUP($A48,Filtro_!$A$5:$AW$2624,12,FALSE),0) -> 0 | O48: =IFERROR(VLOOKUP($A48,Filtro_!$A$5:$AW$2624,13,FALSE),0) -> 0 | P48: =IFERROR(VLOOKUP($A48,Filtro_!$A$5:$AW$2624,14,FALSE),0) -> 1 | Q48: =IFERROR(VLOOKUP($A48,Filtro_!$A$5:$AW$2624,15,FALSE),0) -> 2 | R48: =IFERROR(VLOOKUP($A48,Filtro_!$A$5:$AW$2624,16,FALSE),0) -> 1 | S48: =IFERROR(VLOOKUP($A48,Filtro_!$A$5:$AW$2624,17,FALSE),0) -> 3 | T48: =IFERROR(VLOOKUP($A48,Filtro_!$A$5:$AW$2624,18,FALSE),0) -> 10 | U48: =IFERROR(VLOOKUP($A48,Filtro_!$A$5:$AW$2624,19,FALSE),0) -> 4 | V48: =IFERROR(VLOOKUP($A48,Filtro_!$A$5:$AW$2624,20,FALSE),0) -> 5 | W48: =IFERROR(VLOOKUP($A48,Filtro_!$A$5:$AW$2624,21,FALSE),0) -> 10 | X48: =IFERROR(VLOOKUP($A48,Filtro_!$A$5:$AW$2624,22,FALSE),0) -> 13 | Y48: =IFERROR(VLOOKUP($A48,Filtro_!$A$5:$AW$2624,23,FALSE),0) -> 25 | Z48: =IFERROR(VLOOKUP($A48,Filtro_!$A$5:$AW$2624,24,FALSE),0) -> 22 | AA48: =IFERROR(VLOOKUP($A48,Filtro_!$A$5:$AW$2624,25,FALSE),0) -> 11 | AB48: =IFERROR(VLOOKUP($A48,Filtro_!$A$5:$AW$2624,26,FALSE),0) -> 45 | AC48: =IFERROR(VLOOKUP($A48,Filtro_!$A$5:$AW$2624,27,FALSE),0) -> 32 | AD48: =IFERROR(VLOOKUP($A48,Filtro_!$A$5:$AW$2624,28,FALSE),0) -> 38 | AE48: =IFERROR(VLOOKUP($A48,Filtro_!$A$5:$AW$2624,29,FALSE),0) -> 33 | AF48: =IFERROR(VLOOKUP($A48,Filtro_!$A$5:$AW$2624,30,FALSE),0) -> 37 | AG48: =IFERROR(VLOOKUP($A48,Filtro_!$A$5:$AW$2624,31,FALSE),0) -> 32 | AH48: =IFERROR(VLOOKUP($A48,Filtro_!$A$5:$AW$2624,32,FALSE),0) -> 49 | AI48: =IFERROR(VLOOKUP($A48,Filtro_!$A$5:$AW$2624,33,FALSE),0) -> 30 | AJ48: =IFERROR(VLOOKUP($A48,Filtro_!$A$5:$AW$2624,34,FALSE),0) -> 40 | AK48: =IFERROR(VLOOKUP($A48,Filtro_!$A$5:$AW$2624,35,FALSE),0) -> 31 | AL48: =IFERROR(VLOOKUP($A48,Filtro_!$A$5:$AW$2624,36,FALSE),0) -> 36 | AM48: =IFERROR(VLOOKUP($A48,Filtro_!$A$5:$AW$2624,37,FALSE),0) -> 41 | AN48: =IFERROR(VLOOKUP($A48,Filtro_!$A$5:$AW$2624,38,FALSE),0) -> 40 | AO48: =IFERROR(VLOOKUP($A48,Filtro_!$A$5:$AW$2624,39,FALSE),0) -> 44 | AP48: =IFERROR(VLOOKUP($A48,Filtro_!$A$5:$AW$2624,40,FALSE),0) -> 8 | DB48: 0 | DC48: 0 | DD48: 0 | DE48: 0
A49: 01030100A | B49: SEGUIMIENTO AUTOVALENTE CON RIESGO | C49: MÉDICO/A | D49: 101 | E49: =SUM(AG49+AI49+AK49+AM49) -> 41 | F49: =SUM(AH49+AJ49+AL49+AN49) -> 60 | G49: =IFERROR(VLOOKUP($A49,Filtro_!$A$5:$AW$2624,5,FALSE),0) -> 0 | H49: =IFERROR(VLOOKUP($A49,Filtro_!$A$5:$AW$2624,6,FALSE),0) -> 0 | I49: =IFERROR(VLOOKUP($A49,Filtro_!$A$5:$AW$2624,7,FALSE),0) -> 0 | J49: =IFERROR(VLOOKUP($A49,Filtro_!$A$5:$AW$2624,8,FALSE),0) -> 0 | K49: =IFERROR(VLOOKUP($A49,Filtro_!$A$5:$AW$2624,9,FALSE),0) -> 0 | L49: =IFERROR(VLOOKUP($A49,Filtro_!$A$5:$AW$2624,10,FALSE),0) -> 0 | M49: =IFERROR(VLOOKUP($A49,Filtro_!$A$5:$AW$2624,11,FALSE),0) -> 0 | N49: =IFERROR(VLOOKUP($A49,Filtro_!$A$5:$AW$2624,12,FALSE),0) -> 0 | O49: =IFERROR(VLOOKUP($A49,Filtro_!$A$5:$AW$2624,13,FALSE),0) -> 0 | P49: =IFERROR(VLOOKUP($A49,Filtro_!$A$5:$AW$2624,14,FALSE),0) -> 0 | Q49: =IFERROR(VLOOKUP($A49,Filtro_!$A$5:$AW$2624,15,FALSE),0) -> 0 | R49: =IFERROR(VLOOKUP($A49,Filtro_!$A$5:$AW$2624,16,FALSE),0) -> 0 | S49: =IFERROR(VLOOKUP($A49,Filtro_!$A$5:$AW$2624,17,FALSE),0) -> 0 | T49: =IFERROR(VLOOKUP($A49,Filtro_!$A$5:$AW$2624,18,FALSE),0) -> 0 | U49: =IFERROR(VLOOKUP($A49,Filtro_!$A$5:$AW$2624,19,FALSE),0) -> 0 | V49: =IFERROR(VLOOKUP($A49,Filtro_!$A$5:$AW$2624,20,FALSE),0) -> 0 | W49: =IFERROR(VLOOKUP($A49,Filtro_!$A$5:$AW$2624,21,FALSE),0) -> 0 | X49: =IFERROR(VLOOKUP($A49,Filtro_!$A$5:$AW$2624,22,FALSE),0) -> 0 | Y49: =IFERROR(VLOOKUP($A49,Filtro_!$A$5:$AW$2624,23,FALSE),0) -> 0 | Z49: =IFERROR(VLOOKUP($A49,Filtro_!$A$5:$AW$2624,24,FALSE),0) -> 0 | AA49: =IFERROR(VLOOKUP($A49,Filtro_!$A$5:$AW$2624,25,FALSE),0) -> 0 | AB49: =IFERROR(VLOOKUP($A49,Filtro_!$A$5:$AW$2624,26,FALSE),0) -> 0 | AC49: =IFERROR(VLOOKUP($A49,Filtro_!$A$5:$AW$2624,27,FALSE),0) -> 0 | AD49: =IFERROR(VLOOKUP($A49,Filtro_!$A$5:$AW$2624,28,FALSE),0) -> 0 | AE49: =IFERROR(VLOOKUP($A49,Filtro_!$A$5:$AW$2624,29,FALSE),0) -> 0 | AF49: =IFERROR(VLOOKUP($A49,Filtro_!$A$5:$AW$2624,30,FALSE),0) -> 0 | AG49: =IFERROR(VLOOKUP($A49,Filtro_!$A$5:$AW$2624,31,FALSE),0) -> 9 | AH49: =IFERROR(VLOOKUP($A49,Filtro_!$A$5:$AW$2624,32,FALSE),0) -> 13 | AI49: =IFERROR(VLOOKUP($A49,Filtro_!$A$5:$AW$2624,33,FALSE),0) -> 12 | AJ49: =IFERROR(VLOOKUP($A49,Filtro_!$A$5:$AW$2624,34,FALSE),0) -> 13 | AK49: =IFERROR(VLOOKUP($A49,Filtro_!$A$5:$AW$2624,35,FALSE),0) -> 8 | AL49: =IFERROR(VLOOKUP($A49,Filtro_!$A$5:$AW$2624,36,FALSE),0) -> 19 | AM49: =IFERROR(VLOOKUP($A49,Filtro_!$A$5:$AW$2624,37,FALSE),0) -> 12 | AN49: =IFERROR(VLOOKUP($A49,Filtro_!$A$5:$AW$2624,38,FALSE),0) -> 15 | AO49: =IFERROR(VLOOKUP($A49,Filtro_!$A$5:$AW$2624,39,FALSE),0) -> 8 | AP49: =IFERROR(VLOOKUP($A49,Filtro_!$A$5:$AW$2624,40,FALSE),0) -> 8 | DB49: 0 | DC49: 0 | DD49: 0 | DE49: 0
A50: 01030200B | C50: ENFERMERA/O | D50: 1606 | E50: =SUM(AG50+AI50+AK50+AM50) -> 624 | F50: =SUM(AH50+AJ50+AL50+AN50) -> 982 | G50: =IFERROR(VLOOKUP($A50,Filtro_!$A$5:$AW$2624,5,FALSE),0) -> 0 | H50: =IFERROR(VLOOKUP($A50,Filtro_!$A$5:$AW$2624,6,FALSE),0) -> 0 | I50: =IFERROR(VLOOKUP($A50,Filtro_!$A$5:$AW$2624,7,FALSE),0) -> 0 | J50: =IFERROR(VLOOKUP($A50,Filtro_!$A$5:$AW$2624,8,FALSE),0) -> 0 | K50: =IFERROR(VLOOKUP($A50,Filtro_!$A$5:$AW$2624,9,FALSE),0) -> 0 | L50: =IFERROR(VLOOKUP($A50,Filtro_!$A$5:$AW$2624,10,FALSE),0) -> 0 | M50: =IFERROR(VLOOKUP($A50,Filtro_!$A$5:$AW$2624,11,FALSE),0) -> 0 | N50: =IFERROR(VLOOKUP($A50,Filtro_!$A$5:$AW$2624,12,FALSE),0) -> 0 | O50: =IFERROR(VLOOKUP($A50,Filtro_!$A$5:$AW$2624,13,FALSE),0) -> 0 | P50: =IFERROR(VLOOKUP($A50,Filtro_!$A$5:$AW$2624,14,FALSE),0) -> 0 | Q50: =IFERROR(VLOOKUP($A50,Filtro_!$A$5:$AW$2624,15,FALSE),0) -> 0 | R50: =IFERROR(VLOOKUP($A50,Filtro_!$A$5:$AW$2624,16,FALSE),0) -> 0 | S50: =IFERROR(VLOOKUP($A50,Filtro_!$A$5:$AW$2624,17,FALSE),0) -> 0 | T50: =IFERROR(VLOOKUP($A50,Filtro_!$A$5:$AW$2624,18,FALSE),0) -> 0 | U50: =IFERROR(VLOOKUP($A50,Filtro_!$A$5:$AW$2624,19,FALSE),0) -> 0 | V50: =IFERROR(VLOOKUP($A50,Filtro_!$A$5:$AW$2624,20,FALSE),0) -> 0 | W50: =IFERROR(VLOOKUP($A50,Filtro_!$A$5:$AW$2624,21,FALSE),0) -> 0 | X50: =IFERROR(VLOOKUP($A50,Filtro_!$A$5:$AW$2624,22,FALSE),0) -> 0 | Y50: =IFERROR(VLOOKUP($A50,Filtro_!$A$5:$AW$2624,23,FALSE),0) -> 0 | Z50: =IFERROR(VLOOKUP($A50,Filtro_!$A$5:$AW$2624,24,FALSE),0) -> 0 | AA50: =IFERROR(VLOOKUP($A50,Filtro_!$A$5:$AW$2624,25,FALSE),0) -> 0 | AB50: =IFERROR(VLOOKUP($A50,Filtro_!$A$5:$AW$2624,26,FALSE),0) -> 0 | AC50: =IFERROR(VLOOKUP($A50,Filtro_!$A$5:$AW$2624,27,FALSE),0) -> 0 | AD50: =IFERROR(VLOOKUP($A50,Filtro_!$A$5:$AW$2624,28,FALSE),0) -> 0 | AE50: =IFERROR(VLOOKUP($A50,Filtro_!$A$5:$AW$2624,29,FALSE),0) -> 0 | AF50: =IFERROR(VLOOKUP($A50,Filtro_!$A$5:$AW$2624,30,FALSE),0) -> 0 | AG50: =IFERROR(VLOOKUP($A50,Filtro_!$A$5:$AW$2624,31,FALSE),0) -> 137 | AH50: =IFERROR(VLOOKUP($A50,Filtro_!$A$5:$AW$2624,32,FALSE),0) -> 242 | AI50: =IFERROR(VLOOKUP($A50,Filtro_!$A$5:$AW$2624,33,FALSE),0) -> 184 | AJ50: =IFERROR(VLOOKUP($A50,Filtro_!$A$5:$AW$2624,34,FALSE),0) -> 290 | AK50: =IFERROR(VLOOKUP($A50,Filtro_!$A$5:$AW$2624,35,FALSE),0) -> 152 | AL50: =IFERROR(VLOOKUP($A50,Filtro_!$A$5:$AW$2624,36,FALSE),0) -> 226 | AM50: =IFERROR(VLOOKUP($A50,Filtro_!$A$5:$AW$2624,37,FALSE),0) -> 151 | AN50: =IFERROR(VLOOKUP($A50,Filtro_!$A$5:$AW$2624,38,FALSE),0) -> 224 | AO50: =IFERROR(VLOOKUP($A50,Filtro_!$A$5:$AW$2624,39,FALSE),0) -> 9 | AP50: =IFERROR(VLOOKUP($A50,Filtro_!$A$5:$AW$2624,40,FALSE),0) -> 9 | DB50: 0 | DC50: 0 | DD50: 0 | DE50: 0
A51: 09600204 | C51: OTROS PROFESIONALES DEBIDAMENTE CAPACITADOS | D51: 165 | E51: 67 | F51: 98 | G51: =IFERROR(VLOOKUP($A51,Filtro_!$A$5:$AW$2624,5,FALSE),0) -> 0 | H51: =IFERROR(VLOOKUP($A51,Filtro_!$A$5:$AW$2624,6,FALSE),0) -> 0 | I51: =IFERROR(VLOOKUP($A51,Filtro_!$A$5:$AW$2624,7,FALSE),0) -> 0 | J51: =IFERROR(VLOOKUP($A51,Filtro_!$A$5:$AW$2624,8,FALSE),0) -> 0 | K51: =IFERROR(VLOOKUP($A51,Filtro_!$A$5:$AW$2624,9,FALSE),0) -> 0 | L51: =IFERROR(VLOOKUP($A51,Filtro_!$A$5:$AW$2624,10,FALSE),0) -> 0 | M51: =IFERROR(VLOOKUP($A51,Filtro_!$A$5:$AW$2624,11,FALSE),0) -> 0 | N51: =IFERROR(VLOOKUP($A51,Filtro_!$A$5:$AW$2624,12,FALSE),0) -> 0 | O51: =IFERROR(VLOOKUP($A51,Filtro_!$A$5:$AW$2624,13,FALSE),0) -> 0 | P51: =IFERROR(VLOOKUP($A51,Filtro_!$A$5:$AW$2624,14,FALSE),0) -> 0 | Q51: =IFERROR(VLOOKUP($A51,Filtro_!$A$5:$AW$2624,15,FALSE),0) -> 0 | R51: =IFERROR(VLOOKUP($A51,Filtro_!$A$5:$AW$2624,16,FALSE),0) -> 0 | S51: =IFERROR(VLOOKUP($A51,Filtro_!$A$5:$AW$2624,17,FALSE),0) -> 0 | T51: =IFERROR(VLOOKUP($A51,Filtro_!$A$5:$AW$2624,18,FALSE),0) -> 0 | U51: =IFERROR(VLOOKUP($A51,Filtro_!$A$5:$AW$2624,19,FALSE),0) -> 0 | V51: =IFERROR(VLOOKUP($A51,Filtro_!$A$5:$AW$2624,20,FALSE),0) -> 0 | W51: =IFERROR(VLOOKUP($A51,Filtro_!$A$5:$AW$2624,21,FALSE),0) -> 0 | X51: =IFERROR(VLOOKUP($A51,Filtro_!$A$5:$AW$2624,22,FALSE),0) -> 0 | Y51: =IFERROR(VLOOKUP($A51,Filtro_!$A$5:$AW$2624,23,FALSE),0) -> 0 | Z51: =IFERROR(VLOOKUP($A51,Filtro_!$A$5:$AW$2624,24,FALSE),0) -> 0 | AA51: =IFERROR(VLOOKUP($A51,Filtro_!$A$5:$AW$2624,25,FALSE),0) -> 0 | AB51: =IFERROR(VLOOKUP($A51,Filtro_!$A$5:$AW$2624,26,FALSE),0) -> 0 | AC51: =IFERROR(VLOOKUP($A51,Filtro_!$A$5:$AW$2624,27,FALSE),0) -> 0 | AD51: =IFERROR(VLOOKUP($A51,Filtro_!$A$5:$AW$2624,28,FALSE),0) -> 0 | AE51: =IFERROR(VLOOKUP($A51,Filtro_!$A$5:$AW$2624,29,FALSE),0) -> 0 | AF51: =IFERROR(VLOOKUP($A51,Filtro_!$A$5:$AW$2624,30,FALSE),0) -> 0 | AG51: =IFERROR(VLOOKUP($A51,Filtro_!$A$5:$AW$2624,31,FALSE),0) -> 14 | AH51: =IFERROR(VLOOKUP($A51,Filtro_!$A$5:$AW$2624,32,FALSE),0) -> 24 | AI51: =IFERROR(VLOOKUP($A51,Filtro_!$A$5:$AW$2624,33,FALSE),0) -> 19 | AJ51: =IFERROR(VLOOKUP($A51,Filtro_!$A$5:$AW$2624,34,FALSE),0) -> 34 | AK51: =IFERROR(VLOOKUP($A51,Filtro_!$A$5:$AW$2624,35,FALSE),0) -> 18 | AL51: =IFERROR(VLOOKUP($A51,Filtro_!$A$5:$AW$2624,36,FALSE),0) -> 20 | AM51: =IFERROR(VLOOKUP($A51,Filtro_!$A$5:$AW$2624,37,FALSE),0) -> 16 | AN51: =IFERROR(VLOOKUP($A51,Filtro_!$A$5:$AW$2624,38,FALSE),0) -> 20 | AO51: =IFERROR(VLOOKUP($A51,Filtro_!$A$5:$AW$2624,39,FALSE),0) -> 8 | AP51: =IFERROR(VLOOKUP($A51,Filtro_!$A$5:$AW$2624,40,FALSE),0) -> 8 | DB51: 0 | DC51: 0 | DD51: 0 | DE51: 0
A52: 01030300C | B52: SEGUIMIENTO RIESGO DEPENDENCIA | C52: MÉDICO/A | D52: 101 | E52: 49 | F52: 52 | G52: =IFERROR(VLOOKUP($A52,Filtro_!$A$5:$AW$2624,5,FALSE),0) -> 0 | H52: =IFERROR(VLOOKUP($A52,Filtro_!$A$5:$AW$2624,6,FALSE),0) -> 0 | I52: =IFERROR(VLOOKUP($A52,Filtro_!$A$5:$AW$2624,7,FALSE),0) -> 0 | J52: =IFERROR(VLOOKUP($A52,Filtro_!$A$5:$AW$2624,8,FALSE),0) -> 0 | K52: =IFERROR(VLOOKUP($A52,Filtro_!$A$5:$AW$2624,9,FALSE),0) -> 0 | L52: =IFERROR(VLOOKUP($A52,Filtro_!$A$5:$AW$2624,10,FALSE),0) -> 0 | M52: =IFERROR(VLOOKUP($A52,Filtro_!$A$5:$AW$2624,11,FALSE),0) -> 0 | N52: =IFERROR(VLOOKUP($A52,Filtro_!$A$5:$AW$2624,12,FALSE),0) -> 0 | O52: =IFERROR(VLOOKUP($A52,Filtro_!$A$5:$AW$2624,13,FALSE),0) -> 0 | P52: =IFERROR(VLOOKUP($A52,Filtro_!$A$5:$AW$2624,14,FALSE),0) -> 0 | Q52: =IFERROR(VLOOKUP($A52,Filtro_!$A$5:$AW$2624,15,FALSE),0) -> 0 | R52: =IFERROR(VLOOKUP($A52,Filtro_!$A$5:$AW$2624,16,FALSE),0) -> 0 | S52: =IFERROR(VLOOKUP($A52,Filtro_!$A$5:$AW$2624,17,FALSE),0) -> 0 | T52: =IFERROR(VLOOKUP($A52,Filtro_!$A$5:$AW$2624,18,FALSE),0) -> 0 | U52: =IFERROR(VLOOKUP($A52,Filtro_!$A$5:$AW$2624,19,FALSE),0) -> 0 | V52: =IFERROR(VLOOKUP($A52,Filtro_!$A$5:$AW$2624,20,FALSE),0) -> 0 | W52: =IFERROR(VLOOKUP($A52,Filtro_!$A$5:$AW$2624,21,FALSE),0) -> 0 | X52: =IFERROR(VLOOKUP($A52,Filtro_!$A$5:$AW$2624,22,FALSE),0) -> 0 | Y52: =IFERROR(VLOOKUP($A52,Filtro_!$A$5:$AW$2624,23,FALSE),0) -> 0 | Z52: =IFERROR(VLOOKUP($A52,Filtro_!$A$5:$AW$2624,24,FALSE),0) -> 0 | AA52: =IFERROR(VLOOKUP($A52,Filtro_!$A$5:$AW$2624,25,FALSE),0) -> 0 | AB52: =IFERROR(VLOOKUP($A52,Filtro_!$A$5:$AW$2624,26,FALSE),0) -> 0 | AC52: =IFERROR(VLOOKUP($A52,Filtro_!$A$5:$AW$2624,27,FALSE),0) -> 0 | AD52: =IFERROR(VLOOKUP($A52,Filtro_!$A$5:$AW$2624,28,FALSE),0) -> 0 | AE52: =IFERROR(VLOOKUP($A52,Filtro_!$A$5:$AW$2624,29,FALSE),0) -> 0 | AF52: =IFERROR(VLOOKUP($A52,Filtro_!$A$5:$AW$2624,30,FALSE),0) -> 0 | AG52: =IFERROR(VLOOKUP($A52,Filtro_!$A$5:$AW$2624,31,FALSE),0) -> 12 | AH52: =IFERROR(VLOOKUP($A52,Filtro_!$A$5:$AW$2624,32,FALSE),0) -> 15 | AI52: =IFERROR(VLOOKUP($A52,Filtro_!$A$5:$AW$2624,33,FALSE),0) -> 13 | AJ52: =IFERROR(VLOOKUP($A52,Filtro_!$A$5:$AW$2624,34,FALSE),0) -> 11 | AK52: =IFERROR(VLOOKUP($A52,Filtro_!$A$5:$AW$2624,35,FALSE),0) -> 11 | AL52: =IFERROR(VLOOKUP($A52,Filtro_!$A$5:$AW$2624,36,FALSE),0) -> 11 | AM52: =IFERROR(VLOOKUP($A52,Filtro_!$A$5:$AW$2624,37,FALSE),0) -> 13 | AN52: =IFERROR(VLOOKUP($A52,Filtro_!$A$5:$AW$2624,38,FALSE),0) -> 15 | AO52: =IFERROR(VLOOKUP($A52,Filtro_!$A$5:$AW$2624,39,FALSE),0) -> 9 | AP52: =IFERROR(VLOOKUP($A52,Filtro_!$A$5:$AW$2624,40,FALSE),0) -> 8 | DB52: 0 | DC52: 0 | DD52: 0 | DE52: 0
A53: 01030400D | C53: ENFERMERA/O | D53: 710 | E53: =SUM(AG53+AI53+AK53+AM53) -> 261 | F53: =SUM(AH53+AJ53+AL53+AN53) -> 449 | G53: =IFERROR(VLOOKUP($A53,Filtro_!$A$5:$AW$2624,5,FALSE),0) -> 0 | H53: =IFERROR(VLOOKUP($A53,Filtro_!$A$5:$AW$2624,6,FALSE),0) -> 0 | I53: =IFERROR(VLOOKUP($A53,Filtro_!$A$5:$AW$2624,7,FALSE),0) -> 0 | J53: =IFERROR(VLOOKUP($A53,Filtro_!$A$5:$AW$2624,8,FALSE),0) -> 0 | K53: =IFERROR(VLOOKUP($A53,Filtro_!$A$5:$AW$2624,9,FALSE),0) -> 0 | L53: =IFERROR(VLOOKUP($A53,Filtro_!$A$5:$AW$2624,10,FALSE),0) -> 0 | M53: =IFERROR(VLOOKUP($A53,Filtro_!$A$5:$AW$2624,11,FALSE),0) -> 0 | N53: =IFERROR(VLOOKUP($A53,Filtro_!$A$5:$AW$2624,12,FALSE),0) -> 0 | O53: =IFERROR(VLOOKUP($A53,Filtro_!$A$5:$AW$2624,13,FALSE),0) -> 0 | P53: =IFERROR(VLOOKUP($A53,Filtro_!$A$5:$AW$2624,14,FALSE),0) -> 0 | Q53: =IFERROR(VLOOKUP($A53,Filtro_!$A$5:$AW$2624,15,FALSE),0) -> 0 | R53: =IFERROR(VLOOKUP($A53,Filtro_!$A$5:$AW$2624,16,FALSE),0) -> 0 | S53: =IFERROR(VLOOKUP($A53,Filtro_!$A$5:$AW$2624,17,FALSE),0) -> 0 | T53: =IFERROR(VLOOKUP($A53,Filtro_!$A$5:$AW$2624,18,FALSE),0) -> 0 | U53: =IFERROR(VLOOKUP($A53,Filtro_!$A$5:$AW$2624,19,FALSE),0) -> 0 | V53: =IFERROR(VLOOKUP($A53,Filtro_!$A$5:$AW$2624,20,FALSE),0) -> 0 | W53: =IFERROR(VLOOKUP($A53,Filtro_!$A$5:$AW$2624,21,FALSE),0) -> 0 | X53: =IFERROR(VLOOKUP($A53,Filtro_!$A$5:$AW$2624,22,FALSE),0) -> 0 | Y53: =IFERROR(VLOOKUP($A53,Filtro_!$A$5:$AW$2624,23,FALSE),0) -> 0 | Z53: =IFERROR(VLOOKUP($A53,Filtro_!$A$5:$AW$2624,24,FALSE),0) -> 0 | AA53: =IFERROR(VLOOKUP($A53,Filtro_!$A$5:$AW$2624,25,FALSE),0) -> 0 | AB53: =IFERROR(VLOOKUP($A53,Filtro_!$A$5:$AW$2624,26,FALSE),0) -> 0 | AC53: =IFERROR(VLOOKUP($A53,Filtro_!$A$5:$AW$2624,27,FALSE),0) -> 0 | AD53: =IFERROR(VLOOKUP($A53,Filtro_!$A$5:$AW$2624,28,FALSE),0) -> 0 | AE53: =IFERROR(VLOOKUP($A53,Filtro_!$A$5:$AW$2624,29,FALSE),0) -> 0 | AF53: =IFERROR(VLOOKUP($A53,Filtro_!$A$5:$AW$2624,30,FALSE),0) -> 0 | AG53: =IFERROR(VLOOKUP($A53,Filtro_!$A$5:$AW$2624,31,FALSE),0) -> 32 | AH53: =IFERROR(VLOOKUP($A53,Filtro_!$A$5:$AW$2624,32,FALSE),0) -> 45 | AI53: =IFERROR(VLOOKUP($A53,Filtro_!$A$5:$AW$2624,33,FALSE),0) -> 45 | AJ53: =IFERROR(VLOOKUP($A53,Filtro_!$A$5:$AW$2624,34,FALSE),0) -> 98 | AK53: =IFERROR(VLOOKUP($A53,Filtro_!$A$5:$AW$2624,35,FALSE),0) -> 53 | AL53: =IFERROR(VLOOKUP($A53,Filtro_!$A$5:$AW$2624,36,FALSE),0) -> 97 | AM53: =IFERROR(VLOOKUP($A53,Filtro_!$A$5:$AW$2624,37,FALSE),0) -> 131 | AN53: =IFERROR(VLOOKUP($A53,Filtro_!$A$5:$AW$2624,38,FALSE),0) -> 209 | AO53: =IFERROR(VLOOKUP($A53,Filtro_!$A$5:$AW$2624,39,FALSE),0) -> 14 | AP53: =IFERROR(VLOOKUP($A53,Filtro_!$A$5:$AW$2624,40,FALSE),0) -> 9 | DB53: 0 | DC53: 0 | DD53: 0 | DE53: 0
A54: 09600205 | C54: OTROS PROFESIONALES DEBIDAMENTE CAPACITADOS | D54: 102 | E54: 47 | F54: 55 | G54: =IFERROR(VLOOKUP($A54,Filtro_!$A$5:$AW$2624,5,FALSE),0) -> 0 | H54: =IFERROR(VLOOKUP($A54,Filtro_!$A$5:$AW$2624,6,FALSE),0) -> 0 | I54: =IFERROR(VLOOKUP($A54,Filtro_!$A$5:$AW$2624,7,FALSE),0) -> 0 | J54: =IFERROR(VLOOKUP($A54,Filtro_!$A$5:$AW$2624,8,FALSE),0) -> 0 | K54: =IFERROR(VLOOKUP($A54,Filtro_!$A$5:$AW$2624,9,FALSE),0) -> 0 | L54: =IFERROR(VLOOKUP($A54,Filtro_!$A$5:$AW$2624,10,FALSE),0) -> 0 | M54: =IFERROR(VLOOKUP($A54,Filtro_!$A$5:$AW$2624,11,FALSE),0) -> 0 | N54: =IFERROR(VLOOKUP($A54,Filtro_!$A$5:$AW$2624,12,FALSE),0) -> 0 | O54: =IFERROR(VLOOKUP($A54,Filtro_!$A$5:$AW$2624,13,FALSE),0) -> 0 | P54: =IFERROR(VLOOKUP($A54,Filtro_!$A$5:$AW$2624,14,FALSE),0) -> 0 | Q54: =IFERROR(VLOOKUP($A54,Filtro_!$A$5:$AW$2624,15,FALSE),0) -> 0 | R54: =IFERROR(VLOOKUP($A54,Filtro_!$A$5:$AW$2624,16,FALSE),0) -> 0 | S54: =IFERROR(VLOOKUP($A54,Filtro_!$A$5:$AW$2624,17,FALSE),0) -> 0 | T54: =IFERROR(VLOOKUP($A54,Filtro_!$A$5:$AW$2624,18,FALSE),0) -> 0 | U54: =IFERROR(VLOOKUP($A54,Filtro_!$A$5:$AW$2624,19,FALSE),0) -> 0 | V54: =IFERROR(VLOOKUP($A54,Filtro_!$A$5:$AW$2624,20,FALSE),0) -> 0 | W54: =IFERROR(VLOOKUP($A54,Filtro_!$A$5:$AW$2624,21,FALSE),0) -> 0 | X54: =IFERROR(VLOOKUP($A54,Filtro_!$A$5:$AW$2624,22,FALSE),0) -> 0 | Y54: =IFERROR(VLOOKUP($A54,Filtro_!$A$5:$AW$2624,23,FALSE),0) -> 0 | Z54: =IFERROR(VLOOKUP($A54,Filtro_!$A$5:$AW$2624,24,FALSE),0) -> 0 | AA54: =IFERROR(VLOOKUP($A54,Filtro_!$A$5:$AW$2624,25,FALSE),0) -> 0 | AB54: =IFERROR(VLOOKUP($A54,Filtro_!$A$5:$AW$2624,26,FALSE),0) -> 0 | AC54: =IFERROR(VLOOKUP($A54,Filtro_!$A$5:$AW$2624,27,FALSE),0) -> 0 | AD54: =IFERROR(VLOOKUP($A54,Filtro_!$A$5:$AW$2624,28,FALSE),0) -> 0 | AE54: =IFERROR(VLOOKUP($A54,Filtro_!$A$5:$AW$2624,29,FALSE),0) -> 0 | AF54: =IFERROR(VLOOKUP($A54,Filtro_!$A$5:$AW$2624,30,FALSE),0) -> 0 | AG54: =IFERROR(VLOOKUP($A54,Filtro_!$A$5:$AW$2624,31,FALSE),0) -> 9 | AH54: =IFERROR(VLOOKUP($A54,Filtro_!$A$5:$AW$2624,32,FALSE),0) -> 11 | AI54: =IFERROR(VLOOKUP($A54,Filtro_!$A$5:$AW$2624,33,FALSE),0) -> 11 | AJ54: =IFERROR(VLOOKUP($A54,Filtro_!$A$5:$AW$2624,34,FALSE),0) -> 15 | AK54: =IFERROR(VLOOKUP($A54,Filtro_!$A$5:$AW$2624,35,FALSE),0) -> 14 | AL54: =IFERROR(VLOOKUP($A54,Filtro_!$A$5:$AW$2624,36,FALSE),0) -> 13 | AM54: =IFERROR(VLOOKUP($A54,Filtro_!$A$5:$AW$2624,37,FALSE),0) -> 13 | AN54: =IFERROR(VLOOKUP($A54,Filtro_!$A$5:$AW$2624,38,FALSE),0) -> 16 | AO54: =IFERROR(VLOOKUP($A54,Filtro_!$A$5:$AW$2624,39,FALSE),0) -> 8 | AP54: =IFERROR(VLOOKUP($A54,Filtro_!$A$5:$AW$2624,40,FALSE),0) -> 8 | DB54: 0 | DC54: 0 | DD54: 0 | DE54: 0
A55: 01200010 | B55: DE INFECCIÓN TRANSMISIÓN SEXUAL | C55: MÉDICO/A | D55: 58 | E55: =SUM(G55+I55+K55+M55+O55+Q55+S55+U55+W55+Y55+AA55+AC55+AE55+AG55+AI55+AK55+AM55) -> 18 | F55: =SUM(H55+J55+L55+N55+P55+R55+T55+V55+X55+Z55+AB55+AD55+AF55+AH55+AJ55+AL55+AN55) -> 40 | G55: =IFERROR(VLOOKUP($A55,Filtro_!$A$5:$AW$2624,5,FALSE),0) -> 0 | H55: =IFERROR(VLOOKUP($A55,Filtro_!$A$5:$AW$2624,6,FALSE),0) -> 0 | I55: =IFERROR(VLOOKUP($A55,Filtro_!$A$5:$AW$2624,7,FALSE),0) -> 0 | J55: =IFERROR(VLOOKUP($A55,Filtro_!$A$5:$AW$2624,8,FALSE),0) -> 0 | K55: =IFERROR(VLOOKUP($A55,Filtro_!$A$5:$AW$2624,9,FALSE),0) -> 0 | L55: =IFERROR(VLOOKUP($A55,Filtro_!$A$5:$AW$2624,10,FALSE),0) -> 0 | M55: =IFERROR(VLOOKUP($A55,Filtro_!$A$5:$AW$2624,11,FALSE),0) -> 1 | N55: =IFERROR(VLOOKUP($A55,Filtro_!$A$5:$AW$2624,12,FALSE),0) -> 1 | O55: =IFERROR(VLOOKUP($A55,Filtro_!$A$5:$AW$2624,13,FALSE),0) -> 1 | P55: =IFERROR(VLOOKUP($A55,Filtro_!$A$5:$AW$2624,14,FALSE),0) -> 1 | Q55: =IFERROR(VLOOKUP($A55,Filtro_!$A$5:$AW$2624,15,FALSE),0) -> 1 | R55: =IFERROR(VLOOKUP($A55,Filtro_!$A$5:$AW$2624,16,FALSE),0) -> 0 | S55: =IFERROR(VLOOKUP($A55,Filtro_!$A$5:$AW$2624,17,FALSE),0) -> 1 | T55: =IFERROR(VLOOKUP($A55,Filtro_!$A$5:$AW$2624,18,FALSE),0) -> 1 | U55: =IFERROR(VLOOKUP($A55,Filtro_!$A$5:$AW$2624,19,FALSE),0) -> 1 | V55: =IFERROR(VLOOKUP($A55,Filtro_!$A$5:$AW$2624,20,FALSE),0) -> 0 | W55: =IFERROR(VLOOKUP($A55,Filtro_!$A$5:$AW$2624,21,FALSE),0) -> 0 | X55: =IFERROR(VLOOKUP($A55,Filtro_!$A$5:$AW$2624,22,FALSE),0) -> 1 | Y55: =IFERROR(VLOOKUP($A55,Filtro_!$A$5:$AW$2624,23,FALSE),0) -> 0 | Z55: =IFERROR(VLOOKUP($A55,Filtro_!$A$5:$AW$2624,24,FALSE),0) -> 1 | AA55: =IFERROR(VLOOKUP($A55,Filtro_!$A$5:$AW$2624,25,FALSE),0) -> 1 | AB55: =IFERROR(VLOOKUP($A55,Filtro_!$A$5:$AW$2624,26,FALSE),0) -> 2 | AC55: =IFERROR(VLOOKUP($A55,Filtro_!$A$5:$AW$2624,27,FALSE),0) -> 1 | AD55: =IFERROR(VLOOKUP($A55,Filtro_!$A$5:$AW$2624,28,FALSE),0) -> 5 | AE55: =IFERROR(VLOOKUP($A55,Filtro_!$A$5:$AW$2624,29,FALSE),0) -> 0 | AF55: =IFERROR(VLOOKUP($A55,Filtro_!$A$5:$AW$2624,30,FALSE),0) -> 10 | AG55: =IFERROR(VLOOKUP($A55,Filtro_!$A$5:$AW$2624,31,FALSE),0) -> 2 | AH55: =IFERROR(VLOOKUP($A55,Filtro_!$A$5:$AW$2624,32,FALSE),0) -> 5 | AI55: =IFERROR(VLOOKUP($A55,Filtro_!$A$5:$AW$2624,33,FALSE),0) -> 4 | AJ55: =IFERROR(VLOOKUP($A55,Filtro_!$A$5:$AW$2624,34,FALSE),0) -> 7 | AK55: =IFERROR(VLOOKUP($A55,Filtro_!$A$5:$AW$2624,35,FALSE),0) -> 3 | AL55: =IFERROR(VLOOKUP($A55,Filtro_!$A$5:$AW$2624,36,FALSE),0) -> 2 | AM55: =IFERROR(VLOOKUP($A55,Filtro_!$A$5:$AW$2624,37,FALSE),0) -> 2 | AN55: =IFERROR(VLOOKUP($A55,Filtro_!$A$5:$AW$2624,38,FALSE),0) -> 4 | AO55: =IFERROR(VLOOKUP($A55,Filtro_!$A$5:$AW$2624,39,FALSE),0) -> 0 | AP55: =IFERROR(VLOOKUP($A55,Filtro_!$A$5:$AW$2624,40,FALSE),0) -> 0 | DB55: 0 | DC55: 0 | DD55: 0 | DE55: 0
A56: 01200020 | C56: ENFERMERA/O | D56: 238 | E56: =SUM(G56+I56+K56+M56+O56+Q56+S56+U56+W56+Y56+AA56+AC56+AE56+AG56+AI56+AK56+AM56) -> 72 | F56: 166 | G56: =IFERROR(VLOOKUP($A56,Filtro_!$A$5:$AW$2624,5,FALSE),0) -> 0 | H56: =IFERROR(VLOOKUP($A56,Filtro_!$A$5:$AW$2624,6,FALSE),0) -> 0 | I56: =IFERROR(VLOOKUP($A56,Filtro_!$A$5:$AW$2624,7,FALSE),0) -> 2 | J56: =IFERROR(VLOOKUP($A56,Filtro_!$A$5:$AW$2624,8,FALSE),0) -> 1 | K56: =IFERROR(VLOOKUP($A56,Filtro_!$A$5:$AW$2624,9,FALSE),0) -> 0 | L56: =IFERROR(VLOOKUP($A56,Filtro_!$A$5:$AW$2624,10,FALSE),0) -> 4 | M56: =IFERROR(VLOOKUP($A56,Filtro_!$A$5:$AW$2624,11,FALSE),0) -> 0 | N56: =IFERROR(VLOOKUP($A56,Filtro_!$A$5:$AW$2624,12,FALSE),0) -> 1 | O56: =IFERROR(VLOOKUP($A56,Filtro_!$A$5:$AW$2624,13,FALSE),0) -> 1 | P56: =IFERROR(VLOOKUP($A56,Filtro_!$A$5:$AW$2624,14,FALSE),0) -> 2 | Q56: =IFERROR(VLOOKUP($A56,Filtro_!$A$5:$AW$2624,15,FALSE),0) -> 0 | R56: =IFERROR(VLOOKUP($A56,Filtro_!$A$5:$AW$2624,16,FALSE),0) -> 10 | S56: =IFERROR(VLOOKUP($A56,Filtro_!$A$5:$AW$2624,17,FALSE),0) -> 2 | T56: =IFERROR(VLOOKUP($A56,Filtro_!$A$5:$AW$2624,18,FALSE),0) -> 4 | U56: =IFERROR(VLOOKUP($A56,Filtro_!$A$5:$AW$2624,19,FALSE),0) -> 4 | V56: =IFERROR(VLOOKUP($A56,Filtro_!$A$5:$AW$2624,20,FALSE),0) -> 12 | W56: =IFERROR(VLOOKUP($A56,Filtro_!$A$5:$AW$2624,21,FALSE),0) -> 0 | X56: =IFERROR(VLOOKUP($A56,Filtro_!$A$5:$AW$2624,22,FALSE),0) -> 19 | Y56: =IFERROR(VLOOKUP($A56,Filtro_!$A$5:$AW$2624,23,FALSE),0) -> 1 | Z56: =IFERROR(VLOOKUP($A56,Filtro_!$A$5:$AW$2624,24,FALSE),0) -> 7 | AA56: =IFERROR(VLOOKUP($A56,Filtro_!$A$5:$AW$2624,25,FALSE),0) -> 2 | AB56: =IFERROR(VLOOKUP($A56,Filtro_!$A$5:$AW$2624,26,FALSE),0) -> 13 | AC56: =IFERROR(VLOOKUP($A56,Filtro_!$A$5:$AW$2624,27,FALSE),0) -> 8 | AD56: =IFERROR(VLOOKUP($A56,Filtro_!$A$5:$AW$2624,28,FALSE),0) -> 16 | AE56: =IFERROR(VLOOKUP($A56,Filtro_!$A$5:$AW$2624,29,FALSE),0) -> 16 | AF56: =IFERROR(VLOOKUP($A56,Filtro_!$A$5:$AW$2624,30,FALSE),0) -> 12 | AG56: =IFERROR(VLOOKUP($A56,Filtro_!$A$5:$AW$2624,31,FALSE),0) -> 11 | AH56: =IFERROR(VLOOKUP($A56,Filtro_!$A$5:$AW$2624,32,FALSE),0) -> 20 | AI56: =IFERROR(VLOOKUP($A56,Filtro_!$A$5:$AW$2624,33,FALSE),0) -> 10 | AJ56: =IFERROR(VLOOKUP($A56,Filtro_!$A$5:$AW$2624,34,FALSE),0) -> 17 | AK56: =IFERROR(VLOOKUP($A56,Filtro_!$A$5:$AW$2624,35,FALSE),0) -> 8 | AL56: =IFERROR(VLOOKUP($A56,Filtro_!$A$5:$AW$2624,36,FALSE),0) -> 14 | AM56: =IFERROR(VLOOKUP($A56,Filtro_!$A$5:$AW$2624,37,FALSE),0) -> 7 | AN56: =IFERROR(VLOOKUP($A56,Filtro_!$A$5:$AW$2624,38,FALSE),0) -> 14 | AO56: =IFERROR(VLOOKUP($A56,Filtro_!$A$5:$AW$2624,39,FALSE),0) -> 6 | AP56: =IFERROR(VLOOKUP($A56,Filtro_!$A$5:$AW$2624,40,FALSE),0) -> 6 | DB56: 0 | DC56: 0 | DD56: 0 | DE56: 0
A57: 01200030 | C57: MATRONA/ÓN | D57: 263 | E57: =SUM(G57+I57+K57+M57+O57+Q57+S57+U57+W57+Y57+AA57+AC57+AE57+AG57+AI57+AK57+AM57) -> 55 | F57: 208 | G57: =IFERROR(VLOOKUP($A57,Filtro_!$A$5:$AW$2624,5,FALSE),0) -> 0 | H57: =IFERROR(VLOOKUP($A57,Filtro_!$A$5:$AW$2624,6,FALSE),0) -> 1 | I57: =IFERROR(VLOOKUP($A57,Filtro_!$A$5:$AW$2624,7,FALSE),0) -> 0 | J57: =IFERROR(VLOOKUP($A57,Filtro_!$A$5:$AW$2624,8,FALSE),0) -> 0 | K57: =IFERROR(VLOOKUP($A57,Filtro_!$A$5:$AW$2624,9,FALSE),0) -> 0 | L57: =IFERROR(VLOOKUP($A57,Filtro_!$A$5:$AW$2624,10,FALSE),0) -> 0 | M57: =IFERROR(VLOOKUP($A57,Filtro_!$A$5:$AW$2624,11,FALSE),0) -> 2 | N57: =IFERROR(VLOOKUP($A57,Filtro_!$A$5:$AW$2624,12,FALSE),0) -> 5 | O57: =IFERROR(VLOOKUP($A57,Filtro_!$A$5:$AW$2624,13,FALSE),0) -> 10 | P57: =IFERROR(VLOOKUP($A57,Filtro_!$A$5:$AW$2624,14,FALSE),0) -> 55 | Q57: =IFERROR(VLOOKUP($A57,Filtro_!$A$5:$AW$2624,15,FALSE),0) -> 9 | R57: =IFERROR(VLOOKUP($A57,Filtro_!$A$5:$AW$2624,16,FALSE),0) -> 38 | S57: =IFERROR(VLOOKUP($A57,Filtro_!$A$5:$AW$2624,17,FALSE),0) -> 8 | T57: =IFERROR(VLOOKUP($A57,Filtro_!$A$5:$AW$2624,18,FALSE),0) -> 26 | U57: =IFERROR(VLOOKUP($A57,Filtro_!$A$5:$AW$2624,19,FALSE),0) -> 12 | V57: =IFERROR(VLOOKUP($A57,Filtro_!$A$5:$AW$2624,20,FALSE),0) -> 19 | W57: =IFERROR(VLOOKUP($A57,Filtro_!$A$5:$AW$2624,21,FALSE),0) -> 7 | X57: =IFERROR(VLOOKUP($A57,Filtro_!$A$5:$AW$2624,22,FALSE),0) -> 21 | Y57: =IFERROR(VLOOKUP($A57,Filtro_!$A$5:$AW$2624,23,FALSE),0) -> 5 | Z57: =IFERROR(VLOOKUP($A57,Filtro_!$A$5:$AW$2624,24,FALSE),0) -> 9 | AA57: =IFERROR(VLOOKUP($A57,Filtro_!$A$5:$AW$2624,25,FALSE),0) -> 1 | AB57: =IFERROR(VLOOKUP($A57,Filtro_!$A$5:$AW$2624,26,FALSE),0) -> 14 | AC57: =IFERROR(VLOOKUP($A57,Filtro_!$A$5:$AW$2624,27,FALSE),0) -> 0 | AD57: =IFERROR(VLOOKUP($A57,Filtro_!$A$5:$AW$2624,28,FALSE),0) -> 9 | AE57: =IFERROR(VLOOKUP($A57,Filtro_!$A$5:$AW$2624,29,FALSE),0) -> 0 | AF57: =IFERROR(VLOOKUP($A57,Filtro_!$A$5:$AW$2624,30,FALSE),0) -> 1 | AG57: =IFERROR(VLOOKUP($A57,Filtro_!$A$5:$AW$2624,31,FALSE),0) -> 1 | AH57: =IFERROR(VLOOKUP($A57,Filtro_!$A$5:$AW$2624,32,FALSE),0) -> 2 | AI57: =IFERROR(VLOOKUP($A57,Filtro_!$A$5:$AW$2624,33,FALSE),0) -> 0 | AJ57: =IFERROR(VLOOKUP($A57,Filtro_!$A$5:$AW$2624,34,FALSE),0) -> 1 | AK57: =IFERROR(VLOOKUP($A57,Filtro_!$A$5:$AW$2624,35,FALSE),0) -> 0 | AL57: =IFERROR(VLOOKUP($A57,Filtro_!$A$5:$AW$2624,36,FALSE),0) -> 6 | AM57: =IFERROR(VLOOKUP($A57,Filtro_!$A$5:$AW$2624,37,FALSE),0) -> 0 | AN57: =IFERROR(VLOOKUP($A57,Filtro_!$A$5:$AW$2624,38,FALSE),0) -> 1 | AO57: =IFERROR(VLOOKUP($A57,Filtro_!$A$5:$AW$2624,39,FALSE),0) -> 1 | AP57: =IFERROR(VLOOKUP($A57,Filtro_!$A$5:$AW$2624,40,FALSE),0) -> 18 | DB57: 0 | DC57: 0 | DD57: 0 | DE57: 0
A58: 03030140 | B58: OTROS PROBLEMAS DE SALUD | C58: MÉDICO/A | D58: 27463 | E58: =SUM(G58+I58+K58+M58+O58+Q58+S58+U58+W58+Y58+AA58+AC58+AE58+AG58+AI58+AK58+AM58) -> 8201 | F58: 19262 | G58: =IFERROR(VLOOKUP($A58,Filtro_!$A$5:$AW$2624,5,FALSE),0) -> 78 | H58: =IFERROR(VLOOKUP($A58,Filtro_!$A$5:$AW$2624,6,FALSE),0) -> 62 | I58: =IFERROR(VLOOKUP($A58,Filtro_!$A$5:$AW$2624,7,FALSE),0) -> 123 | J58: =IFERROR(VLOOKUP($A58,Filtro_!$A$5:$AW$2624,8,FALSE),0) -> 82 | K58: =IFERROR(VLOOKUP($A58,Filtro_!$A$5:$AW$2624,9,FALSE),0) -> 109 | L58: =IFERROR(VLOOKUP($A58,Filtro_!$A$5:$AW$2624,10,FALSE),0) -> 102 | M58: =IFERROR(VLOOKUP($A58,Filtro_!$A$5:$AW$2624,11,FALSE),0) -> 128 | N58: =IFERROR(VLOOKUP($A58,Filtro_!$A$5:$AW$2624,12,FALSE),0) -> 212 | O58: =IFERROR(VLOOKUP($A58,Filtro_!$A$5:$AW$2624,13,FALSE),0) -> 120 | P58: =IFERROR(VLOOKUP($A58,Filtro_!$A$5:$AW$2624,14,FALSE),0) -> 316 | Q58: =IFERROR(VLOOKUP($A58,Filtro_!$A$5:$AW$2624,15,FALSE),0) -> 116 | R58: =IFERROR(VLOOKUP($A58,Filtro_!$A$5:$AW$2624,16,FALSE),0) -> 368 | S58: =IFERROR(VLOOKUP($A58,Filtro_!$A$5:$AW$2624,17,FALSE),0) -> 142 | T58: =IFERROR(VLOOKUP($A58,Filtro_!$A$5:$AW$2624,18,FALSE),0) -> 605 | U58: =IFERROR(VLOOKUP($A58,Filtro_!$A$5:$AW$2624,19,FALSE),0) -> 177 | V58: =IFERROR(VLOOKUP($A58,Filtro_!$A$5:$AW$2624,20,FALSE),0) -> 710 | W58: =IFERROR(VLOOKUP($A58,Filtro_!$A$5:$AW$2624,21,FALSE),0) -> 218 | X58: =IFERROR(VLOOKUP($A58,Filtro_!$A$5:$AW$2624,22,FALSE),0) -> 848 | Y58: =IFERROR(VLOOKUP($A58,Filtro_!$A$5:$AW$2624,23,FALSE),0) -> 221 | Z58: =IFERROR(VLOOKUP($A58,Filtro_!$A$5:$AW$2624,24,FALSE),0) -> 1191 | AA58: =IFERROR(VLOOKUP($A58,Filtro_!$A$5:$AW$2624,25,FALSE),0) -> 425 | AB58: =IFERROR(VLOOKUP($A58,Filtro_!$A$5:$AW$2624,26,FALSE),0) -> 1490 | AC58: =IFERROR(VLOOKUP($A58,Filtro_!$A$5:$AW$2624,27,FALSE),0) -> 643 | AD58: =IFERROR(VLOOKUP($A58,Filtro_!$A$5:$AW$2624,28,FALSE),0) -> 2089 | AE58: =IFERROR(VLOOKUP($A58,Filtro_!$A$5:$AW$2624,29,FALSE),0) -> 963 | AF58: =IFERROR(VLOOKUP($A58,Filtro_!$A$5:$AW$2624,30,FALSE),0) -> 2495 | AG58: =IFERROR(VLOOKUP($A58,Filtro_!$A$5:$AW$2624,31,FALSE),0) -> 1037 | AH58: =IFERROR(VLOOKUP($A58,Filtro_!$A$5:$AW$2624,32,FALSE),0) -> 2404 | AI58: =IFERROR(VLOOKUP($A58,Filtro_!$A$5:$AW$2624,33,FALSE),0) -> 1165 | AJ58: =IFERROR(VLOOKUP($A58,Filtro_!$A$5:$AW$2624,34,FALSE),0) -> 2155 | AK58: =IFERROR(VLOOKUP($A58,Filtro_!$A$5:$AW$2624,35,FALSE),0) -> 977 | AL58: =IFERROR(VLOOKUP($A58,Filtro_!$A$5:$AW$2624,36,FALSE),0) -> 1806 | AM58: =IFERROR(VLOOKUP($A58,Filtro_!$A$5:$AW$2624,37,FALSE),0) -> 1559 | AN58: =IFERROR(VLOOKUP($A58,Filtro_!$A$5:$AW$2624,38,FALSE),0) -> 2327 | AO58: =IFERROR(VLOOKUP($A58,Filtro_!$A$5:$AW$2624,39,FALSE),0) -> 100 | AP58: =IFERROR(VLOOKUP($A58,Filtro_!$A$5:$AW$2624,40,FALSE),0) -> 131 | DB58: 0 | DC58: 0 | DD58: 0 | DE58: 0
A59: 03030150 | C59: ENFERMERA/O | D59: 2407 | E59: 679 | F59: 1728 | G59: =IFERROR(VLOOKUP($A59,Filtro_!$A$5:$AW$2624,5,FALSE),0) -> 17 | H59: =IFERROR(VLOOKUP($A59,Filtro_!$A$5:$AW$2624,6,FALSE),0) -> 10 | I59: =IFERROR(VLOOKUP($A59,Filtro_!$A$5:$AW$2624,7,FALSE),0) -> 4 | J59: =IFERROR(VLOOKUP($A59,Filtro_!$A$5:$AW$2624,8,FALSE),0) -> 4 | K59: =IFERROR(VLOOKUP($A59,Filtro_!$A$5:$AW$2624,9,FALSE),0) -> 8 | L59: =IFERROR(VLOOKUP($A59,Filtro_!$A$5:$AW$2624,10,FALSE),0) -> 12 | M59: =IFERROR(VLOOKUP($A59,Filtro_!$A$5:$AW$2624,11,FALSE),0) -> 6 | N59: =IFERROR(VLOOKUP($A59,Filtro_!$A$5:$AW$2624,12,FALSE),0) -> 11 | O59: =IFERROR(VLOOKUP($A59,Filtro_!$A$5:$AW$2624,13,FALSE),0) -> 6 | P59: =IFERROR(VLOOKUP($A59,Filtro_!$A$5:$AW$2624,14,FALSE),0) -> 24 | Q59: =IFERROR(VLOOKUP($A59,Filtro_!$A$5:$AW$2624,15,FALSE),0) -> 9 | R59: =IFERROR(VLOOKUP($A59,Filtro_!$A$5:$AW$2624,16,FALSE),0) -> 24 | S59: =IFERROR(VLOOKUP($A59,Filtro_!$A$5:$AW$2624,17,FALSE),0) -> 4 | T59: =IFERROR(VLOOKUP($A59,Filtro_!$A$5:$AW$2624,18,FALSE),0) -> 59 | U59: =IFERROR(VLOOKUP($A59,Filtro_!$A$5:$AW$2624,19,FALSE),0) -> 18 | V59: =IFERROR(VLOOKUP($A59,Filtro_!$A$5:$AW$2624,20,FALSE),0) -> 67 | W59: =IFERROR(VLOOKUP($A59,Filtro_!$A$5:$AW$2624,21,FALSE),0) -> 14 | X59: =IFERROR(VLOOKUP($A59,Filtro_!$A$5:$AW$2624,22,FALSE),0) -> 103 | Y59: =IFERROR(VLOOKUP($A59,Filtro_!$A$5:$AW$2624,23,FALSE),0) -> 26 | Z59: =IFERROR(VLOOKUP($A59,Filtro_!$A$5:$AW$2624,24,FALSE),0) -> 100 | AA59: =IFERROR(VLOOKUP($A59,Filtro_!$A$5:$AW$2624,25,FALSE),0) -> 34 | AB59: =IFERROR(VLOOKUP($A59,Filtro_!$A$5:$AW$2624,26,FALSE),0) -> 159 | AC59: =IFERROR(VLOOKUP($A59,Filtro_!$A$5:$AW$2624,27,FALSE),0) -> 60 | AD59: =IFERROR(VLOOKUP($A59,Filtro_!$A$5:$AW$2624,28,FALSE),0) -> 183 | AE59: =IFERROR(VLOOKUP($A59,Filtro_!$A$5:$AW$2624,29,FALSE),0) -> 80 | AF59: =IFERROR(VLOOKUP($A59,Filtro_!$A$5:$AW$2624,30,FALSE),0) -> 209 | AG59: =IFERROR(VLOOKUP($A59,Filtro_!$A$5:$AW$2624,31,FALSE),0) -> 110 | AH59: =IFERROR(VLOOKUP($A59,Filtro_!$A$5:$AW$2624,32,FALSE),0) -> 213 | AI59: =IFERROR(VLOOKUP($A59,Filtro_!$A$5:$AW$2624,33,FALSE),0) -> 89 | AJ59: =IFERROR(VLOOKUP($A59,Filtro_!$A$5:$AW$2624,34,FALSE),0) -> 204 | AK59: =IFERROR(VLOOKUP($A59,Filtro_!$A$5:$AW$2624,35,FALSE),0) -> 74 | AL59: =IFERROR(VLOOKUP($A59,Filtro_!$A$5:$AW$2624,36,FALSE),0) -> 158 | AM59: =IFERROR(VLOOKUP($A59,Filtro_!$A$5:$AW$2624,37,FALSE),0) -> 120 | AN59: =IFERROR(VLOOKUP($A59,Filtro_!$A$5:$AW$2624,38,FALSE),0) -> 188 | AO59: =IFERROR(VLOOKUP($A59,Filtro_!$A$5:$AW$2624,39,FALSE),0) -> 16 | AP59: =IFERROR(VLOOKUP($A59,Filtro_!$A$5:$AW$2624,40,FALSE),0) -> 8 | DB59: 0 | DD59: 0
A60: 03030170 | C60: MATRONA/ÓN | D60: 179 | E60: 13 | F60: 166 | G60: =IFERROR(VLOOKUP($A60,Filtro_!$A$5:$AW$2624,5,FALSE),0) -> 3 | H60: =IFERROR(VLOOKUP($A60,Filtro_!$A$5:$AW$2624,6,FALSE),0) -> 3 | I60: =IFERROR(VLOOKUP($A60,Filtro_!$A$5:$AW$2624,7,FALSE),0) -> 0 | J60: =IFERROR(VLOOKUP($A60,Filtro_!$A$5:$AW$2624,8,FALSE),0) -> 1 | K60: =IFERROR(VLOOKUP($A60,Filtro_!$A$5:$AW$2624,9,FALSE),0) -> 0 | L60: =IFERROR(VLOOKUP($A60,Filtro_!$A$5:$AW$2624,10,FALSE),0) -> 3 | M60: =IFERROR(VLOOKUP($A60,Filtro_!$A$5:$AW$2624,11,FALSE),0) -> 0 | N60: =IFERROR(VLOOKUP($A60,Filtro_!$A$5:$AW$2624,12,FALSE),0) -> 13 | O60: =IFERROR(VLOOKUP($A60,Filtro_!$A$5:$AW$2624,13,FALSE),0) -> 0 | P60: =IFERROR(VLOOKUP($A60,Filtro_!$A$5:$AW$2624,14,FALSE),0) -> 24 | Q60: =IFERROR(VLOOKUP($A60,Filtro_!$A$5:$AW$2624,15,FALSE),0) -> 2 | R60: =IFERROR(VLOOKUP($A60,Filtro_!$A$5:$AW$2624,16,FALSE),0) -> 21 | S60: =IFERROR(VLOOKUP($A60,Filtro_!$A$5:$AW$2624,17,FALSE),0) -> 0 | T60: =IFERROR(VLOOKUP($A60,Filtro_!$A$5:$AW$2624,18,FALSE),0) -> 26 | U60: =IFERROR(VLOOKUP($A60,Filtro_!$A$5:$AW$2624,19,FALSE),0) -> 0 | V60: =IFERROR(VLOOKUP($A60,Filtro_!$A$5:$AW$2624,20,FALSE),0) -> 19 | W60: =IFERROR(VLOOKUP($A60,Filtro_!$A$5:$AW$2624,21,FALSE),0) -> 0 | X60: =IFERROR(VLOOKUP($A60,Filtro_!$A$5:$AW$2624,22,FALSE),0) -> 8 | Y60: =IFERROR(VLOOKUP($A60,Filtro_!$A$5:$AW$2624,23,FALSE),0) -> 0 | Z60: =IFERROR(VLOOKUP($A60,Filtro_!$A$5:$AW$2624,24,FALSE),0) -> 3 | AA60: =IFERROR(VLOOKUP($A60,Filtro_!$A$5:$AW$2624,25,FALSE),0) -> 0 | AB60: =IFERROR(VLOOKUP($A60,Filtro_!$A$5:$AW$2624,26,FALSE),0) -> 8 | AC60: =IFERROR(VLOOKUP($A60,Filtro_!$A$5:$AW$2624,27,FALSE),0) -> 0 | AD60: =IFERROR(VLOOKUP($A60,Filtro_!$A$5:$AW$2624,28,FALSE),0) -> 10 | AE60: =IFERROR(VLOOKUP($A60,Filtro_!$A$5:$AW$2624,29,FALSE),0) -> 1 | AF60: =IFERROR(VLOOKUP($A60,Filtro_!$A$5:$AW$2624,30,FALSE),0) -> 6 | AG60: =IFERROR(VLOOKUP($A60,Filtro_!$A$5:$AW$2624,31,FALSE),0) -> 0 | AH60: =IFERROR(VLOOKUP($A60,Filtro_!$A$5:$AW$2624,32,FALSE),0) -> 2 | AI60: =IFERROR(VLOOKUP($A60,Filtro_!$A$5:$AW$2624,33,FALSE),0) -> 0 | AJ60: =IFERROR(VLOOKUP($A60,Filtro_!$A$5:$AW$2624,34,FALSE),0) -> 4 | AK60: =IFERROR(VLOOKUP($A60,Filtro_!$A$5:$AW$2624,35,FALSE),0) -> 2 | AL60: =IFERROR(VLOOKUP($A60,Filtro_!$A$5:$AW$2624,36,FALSE),0) -> 3 | AM60: =IFERROR(VLOOKUP($A60,Filtro_!$A$5:$AW$2624,37,FALSE),0) -> 5 | AN60: =IFERROR(VLOOKUP($A60,Filtro_!$A$5:$AW$2624,38,FALSE),0) -> 12 | AO60: =IFERROR(VLOOKUP($A60,Filtro_!$A$5:$AW$2624,39,FALSE),0) -> 0 | AP60: =IFERROR(VLOOKUP($A60,Filtro_!$A$5:$AW$2624,40,FALSE),0) -> 9 | DB60: 0 | DD60: 0
A61: 03030160 | C61: NUTRICIONISTA | D61: 3505 | E61: 958 | F61: 2547 | G61: =IFERROR(VLOOKUP($A61,Filtro_!$A$5:$AW$2624,5,FALSE),0) -> 223 | H61: =IFERROR(VLOOKUP($A61,Filtro_!$A$5:$AW$2624,6,FALSE),0) -> 190 | I61: =IFERROR(VLOOKUP($A61,Filtro_!$A$5:$AW$2624,7,FALSE),0) -> 94 | J61: =IFERROR(VLOOKUP($A61,Filtro_!$A$5:$AW$2624,8,FALSE),0) -> 88 | K61: =IFERROR(VLOOKUP($A61,Filtro_!$A$5:$AW$2624,9,FALSE),0) -> 57 | L61: =IFERROR(VLOOKUP($A61,Filtro_!$A$5:$AW$2624,10,FALSE),0) -> 76 | M61: =IFERROR(VLOOKUP($A61,Filtro_!$A$5:$AW$2624,11,FALSE),0) -> 30 | N61: =IFERROR(VLOOKUP($A61,Filtro_!$A$5:$AW$2624,12,FALSE),0) -> 89 | O61: =IFERROR(VLOOKUP($A61,Filtro_!$A$5:$AW$2624,13,FALSE),0) -> 43 | P61: =IFERROR(VLOOKUP($A61,Filtro_!$A$5:$AW$2624,14,FALSE),0) -> 161 | Q61: =IFERROR(VLOOKUP($A61,Filtro_!$A$5:$AW$2624,15,FALSE),0) -> 33 | R61: =IFERROR(VLOOKUP($A61,Filtro_!$A$5:$AW$2624,16,FALSE),0) -> 162 | S61: =IFERROR(VLOOKUP($A61,Filtro_!$A$5:$AW$2624,17,FALSE),0) -> 22 | T61: =IFERROR(VLOOKUP($A61,Filtro_!$A$5:$AW$2624,18,FALSE),0) -> 187 | U61: =IFERROR(VLOOKUP($A61,Filtro_!$A$5:$AW$2624,19,FALSE),0) -> 32 | V61: =IFERROR(VLOOKUP($A61,Filtro_!$A$5:$AW$2624,20,FALSE),0) -> 173 | W61: =IFERROR(VLOOKUP($A61,Filtro_!$A$5:$AW$2624,21,FALSE),0) -> 36 | X61: =IFERROR(VLOOKUP($A61,Filtro_!$A$5:$AW$2624,22,FALSE),0) -> 180 | Y61: =IFERROR(VLOOKUP($A61,Filtro_!$A$5:$AW$2624,23,FALSE),0) -> 35 | Z61: =IFERROR(VLOOKUP($A61,Filtro_!$A$5:$AW$2624,24,FALSE),0) -> 187 | AA61: =IFERROR(VLOOKUP($A61,Filtro_!$A$5:$AW$2624,25,FALSE),0) -> 48 | AB61: =IFERROR(VLOOKUP($A61,Filtro_!$A$5:$AW$2624,26,FALSE),0) -> 207 | AC61: =IFERROR(VLOOKUP($A61,Filtro_!$A$5:$AW$2624,27,FALSE),0) -> 51 | AD61: =IFERROR(VLOOKUP($A61,Filtro_!$A$5:$AW$2624,28,FALSE),0) -> 206 | AE61: =IFERROR(VLOOKUP($A61,Filtro_!$A$5:$AW$2624,29,FALSE),0) -> 39 | AF61: =IFERROR(VLOOKUP($A61,Filtro_!$A$5:$AW$2624,30,FALSE),0) -> 196 | AG61: =IFERROR(VLOOKUP($A61,Filtro_!$A$5:$AW$2624,31,FALSE),0) -> 52 | AH61: =IFERROR(VLOOKUP($A61,Filtro_!$A$5:$AW$2624,32,FALSE),0) -> 138 | AI61: =IFERROR(VLOOKUP($A61,Filtro_!$A$5:$AW$2624,33,FALSE),0) -> 57 | AJ61: =IFERROR(VLOOKUP($A61,Filtro_!$A$5:$AW$2624,34,FALSE),0) -> 122 | AK61: =IFERROR(VLOOKUP($A61,Filtro_!$A$5:$AW$2624,35,FALSE),0) -> 51 | AL61: =IFERROR(VLOOKUP($A61,Filtro_!$A$5:$AW$2624,36,FALSE),0) -> 96 | AM61: =IFERROR(VLOOKUP($A61,Filtro_!$A$5:$AW$2624,37,FALSE),0) -> 55 | AN61: =IFERROR(VLOOKUP($A61,Filtro_!$A$5:$AW$2624,38,FALSE),0) -> 89 | AO61: =IFERROR(VLOOKUP($A61,Filtro_!$A$5:$AW$2624,39,FALSE),0) -> 44 | AP61: =IFERROR(VLOOKUP($A61,Filtro_!$A$5:$AW$2624,40,FALSE),0) -> 81 | DB61: 0 | DD61: 0
A62: 03030180 | C62: TÉCNICO EN ENFERMERÍA | D62: 286 | E62: 129 | F62: 157 | G62: =IFERROR(VLOOKUP($A62,Filtro_!$A$5:$AW$2624,5,FALSE),0) -> 7 | H62: =IFERROR(VLOOKUP($A62,Filtro_!$A$5:$AW$2624,6,FALSE),0) -> 3 | I62: =IFERROR(VLOOKUP($A62,Filtro_!$A$5:$AW$2624,7,FALSE),0) -> 7 | J62: =IFERROR(VLOOKUP($A62,Filtro_!$A$5:$AW$2624,8,FALSE),0) -> 3 | K62: =IFERROR(VLOOKUP($A62,Filtro_!$A$5:$AW$2624,9,FALSE),0) -> 3 | L62: =IFERROR(VLOOKUP($A62,Filtro_!$A$5:$AW$2624,10,FALSE),0) -> 4 | M62: =IFERROR(VLOOKUP($A62,Filtro_!$A$5:$AW$2624,11,FALSE),0) -> 5 | N62: =IFERROR(VLOOKUP($A62,Filtro_!$A$5:$AW$2624,12,FALSE),0) -> 2 | O62: =IFERROR(VLOOKUP($A62,Filtro_!$A$5:$AW$2624,13,FALSE),0) -> 7 | P62: =IFERROR(VLOOKUP($A62,Filtro_!$A$5:$AW$2624,14,FALSE),0) -> 18 | Q62: =IFERROR(VLOOKUP($A62,Filtro_!$A$5:$AW$2624,15,FALSE),0) -> 3 | R62: =IFERROR(VLOOKUP($A62,Filtro_!$A$5:$AW$2624,16,FALSE),0) -> 10 | S62: =IFERROR(VLOOKUP($A62,Filtro_!$A$5:$AW$2624,17,FALSE),0) -> 6 | T62: =IFERROR(VLOOKUP($A62,Filtro_!$A$5:$AW$2624,18,FALSE),0) -> 22 | U62: =IFERROR(VLOOKUP($A62,Filtro_!$A$5:$AW$2624,19,FALSE),0) -> 6 | V62: =IFERROR(VLOOKUP($A62,Filtro_!$A$5:$AW$2624,20,FALSE),0) -> 15 | W62: =IFERROR(VLOOKUP($A62,Filtro_!$A$5:$AW$2624,21,FALSE),0) -> 16 | X62: =IFERROR(VLOOKUP($A62,Filtro_!$A$5:$AW$2624,22,FALSE),0) -> 13 | Y62: =IFERROR(VLOOKUP($A62,Filtro_!$A$5:$AW$2624,23,FALSE),0) -> 13 | Z62: =IFERROR(VLOOKUP($A62,Filtro_!$A$5:$AW$2624,24,FALSE),0) -> 3 | AA62: =IFERROR(VLOOKUP($A62,Filtro_!$A$5:$AW$2624,25,FALSE),0) -> 5 | AB62: =IFERROR(VLOOKUP($A62,Filtro_!$A$5:$AW$2624,26,FALSE),0) -> 12 | AC62: =IFERROR(VLOOKUP($A62,Filtro_!$A$5:$AW$2624,27,FALSE),0) -> 11 | AD62: =IFERROR(VLOOKUP($A62,Filtro_!$A$5:$AW$2624,28,FALSE),0) -> 14 | AE62: =IFERROR(VLOOKUP($A62,Filtro_!$A$5:$AW$2624,29,FALSE),0) -> 10 | AF62: =IFERROR(VLOOKUP($A62,Filtro_!$A$5:$AW$2624,30,FALSE),0) -> 6 | AG62: =IFERROR(VLOOKUP($A62,Filtro_!$A$5:$AW$2624,31,FALSE),0) -> 10 | AH62: =IFERROR(VLOOKUP($A62,Filtro_!$A$5:$AW$2624,32,FALSE),0) -> 7 | AI62: =IFERROR(VLOOKUP($A62,Filtro_!$A$5:$AW$2624,33,FALSE),0) -> 10 | AJ62: =IFERROR(VLOOKUP($A62,Filtro_!$A$5:$AW$2624,34,FALSE),0) -> 5 | AK62: =IFERROR(VLOOKUP($A62,Filtro_!$A$5:$AW$2624,35,FALSE),0) -> 4 | AL62: =IFERROR(VLOOKUP($A62,Filtro_!$A$5:$AW$2624,36,FALSE),0) -> 7 | AM62: =IFERROR(VLOOKUP($A62,Filtro_!$A$5:$AW$2624,37,FALSE),0) -> 6 | AN62: =IFERROR(VLOOKUP($A62,Filtro_!$A$5:$AW$2624,38,FALSE),0) -> 13 | AO62: =IFERROR(VLOOKUP($A62,Filtro_!$A$5:$AW$2624,39,FALSE),0) -> 8 | AP62: =IFERROR(VLOOKUP($A62,Filtro_!$A$5:$AW$2624,40,FALSE),0) -> 0 | DB62: 0 | DD62: 0
A63: 09600206 | C63: OTROS PROFESIONALES DEBIDAMENTE CAPACITADOS | D63: =SUM(E63:F63) -> 0 | E63: =SUM(G63+I63+K63+M63+O63+Q63+S63+U63+W63+Y63+AA63+AC63+AE63+AG63+AI63+AK63+AM63) -> 0 | F63: =SUM(H63+J63+L63+N63+P63+R63+T63+V63+X63+Z63+AB63+AD63+AF63+AH63+AJ63+AL63+AN63) -> 0 | G63: =IFERROR(VLOOKUP($A63,Filtro_!$A$5:$AW$2624,5,FALSE),0) -> 0 | H63: =IFERROR(VLOOKUP($A63,Filtro_!$A$5:$AW$2624,6,FALSE),0) -> 0 | I63: =IFERROR(VLOOKUP($A63,Filtro_!$A$5:$AW$2624,7,FALSE),0) -> 0 | J63: =IFERROR(VLOOKUP($A63,Filtro_!$A$5:$AW$2624,8,FALSE),0) -> 0 | K63: =IFERROR(VLOOKUP($A63,Filtro_!$A$5:$AW$2624,9,FALSE),0) -> 0 | L63: =IFERROR(VLOOKUP($A63,Filtro_!$A$5:$AW$2624,10,FALSE),0) -> 0 | M63: =IFERROR(VLOOKUP($A63,Filtro_!$A$5:$AW$2624,11,FALSE),0) -> 0 | N63: =IFERROR(VLOOKUP($A63,Filtro_!$A$5:$AW$2624,12,FALSE),0) -> 0 | O63: =IFERROR(VLOOKUP($A63,Filtro_!$A$5:$AW$2624,13,FALSE),0) -> 0 | P63: =IFERROR(VLOOKUP($A63,Filtro_!$A$5:$AW$2624,14,FALSE),0) -> 0 | Q63: =IFERROR(VLOOKUP($A63,Filtro_!$A$5:$AW$2624,15,FALSE),0) -> 0 | R63: =IFERROR(VLOOKUP($A63,Filtro_!$A$5:$AW$2624,16,FALSE),0) -> 0 | S63: =IFERROR(VLOOKUP($A63,Filtro_!$A$5:$AW$2624,17,FALSE),0) -> 0 | T63: =IFERROR(VLOOKUP($A63,Filtro_!$A$5:$AW$2624,18,FALSE),0) -> 0 | U63: =IFERROR(VLOOKUP($A63,Filtro_!$A$5:$AW$2624,19,FALSE),0) -> 0 | V63: =IFERROR(VLOOKUP($A63,Filtro_!$A$5:$AW$2624,20,FALSE),0) -> 0 | W63: =IFERROR(VLOOKUP($A63,Filtro_!$A$5:$AW$2624,21,FALSE),0) -> 0 | X63: =IFERROR(VLOOKUP($A63,Filtro_!$A$5:$AW$2624,22,FALSE),0) -> 0 | Y63: =IFERROR(VLOOKUP($A63,Filtro_!$A$5:$AW$2624,23,FALSE),0) -> 0 | Z63: =IFERROR(VLOOKUP($A63,Filtro_!$A$5:$AW$2624,24,FALSE),0) -> 0 | AA63: =IFERROR(VLOOKUP($A63,Filtro_!$A$5:$AW$2624,25,FALSE),0) -> 0 | AB63: =IFERROR(VLOOKUP($A63,Filtro_!$A$5:$AW$2624,26,FALSE),0) -> 0 | AC63: =IFERROR(VLOOKUP($A63,Filtro_!$A$5:$AW$2624,27,FALSE),0) -> 0 | AD63: =IFERROR(VLOOKUP($A63,Filtro_!$A$5:$AW$2624,28,FALSE),0) -> 0 | AE63: =IFERROR(VLOOKUP($A63,Filtro_!$A$5:$AW$2624,29,FALSE),0) -> 0 | AF63: =IFERROR(VLOOKUP($A63,Filtro_!$A$5:$AW$2624,30,FALSE),0) -> 0 | AG63: =IFERROR(VLOOKUP($A63,Filtro_!$A$5:$AW$2624,31,FALSE),0) -> 0 | AH63: =IFERROR(VLOOKUP($A63,Filtro_!$A$5:$AW$2624,32,FALSE),0) -> 0 | AI63: =IFERROR(VLOOKUP($A63,Filtro_!$A$5:$AW$2624,33,FALSE),0) -> 0 | AJ63: =IFERROR(VLOOKUP($A63,Filtro_!$A$5:$AW$2624,34,FALSE),0) -> 0 | AK63: =IFERROR(VLOOKUP($A63,Filtro_!$A$5:$AW$2624,35,FALSE),0) -> 0 | AL63: =IFERROR(VLOOKUP($A63,Filtro_!$A$5:$AW$2624,36,FALSE),0) -> 0 | AM63: =IFERROR(VLOOKUP($A63,Filtro_!$A$5:$AW$2624,37,FALSE),0) -> 0 | AN63: =IFERROR(VLOOKUP($A63,Filtro_!$A$5:$AW$2624,38,FALSE),0) -> 0 | AO63: =IFERROR(VLOOKUP($A63,Filtro_!$A$5:$AW$2624,39,FALSE),0) -> 0 | AP63: =IFERROR(VLOOKUP($A63,Filtro_!$A$5:$AW$2624,40,FALSE),0) -> 0 | DB63: 0 | DD63: 0
A64: 01200031 | B64: NIÑOS CON NECESIDADES ESPECIALES | C64: MÉDICO/A | D64: 94 | E64: =SUM(G64+I64+K64+M64) -> 53 | F64: =SUM(H64+J64+L64+N64) -> 41 | G64: =IFERROR(VLOOKUP($A64,Filtro_!$A$5:$AW$2624,5,FALSE),0) -> 33 | H64: =IFERROR(VLOOKUP($A64,Filtro_!$A$5:$AW$2624,6,FALSE),0) -> 25 | I64: =IFERROR(VLOOKUP($A64,Filtro_!$A$5:$AW$2624,7,FALSE),0) -> 12 | J64: =IFERROR(VLOOKUP($A64,Filtro_!$A$5:$AW$2624,8,FALSE),0) -> 11 | K64: =IFERROR(VLOOKUP($A64,Filtro_!$A$5:$AW$2624,9,FALSE),0) -> 6 | L64: =IFERROR(VLOOKUP($A64,Filtro_!$A$5:$AW$2624,10,FALSE),0) -> 4 | M64: =IFERROR(VLOOKUP($A64,Filtro_!$A$5:$AW$2624,11,FALSE),0) -> 2 | N64: =IFERROR(VLOOKUP($A64,Filtro_!$A$5:$AW$2624,12,FALSE),0) -> 1 | O64: =IFERROR(VLOOKUP($A64,Filtro_!$A$5:$AW$2624,13,FALSE),0) -> 0 | P64: =IFERROR(VLOOKUP($A64,Filtro_!$A$5:$AW$2624,14,FALSE),0) -> 0 | Q64: =IFERROR(VLOOKUP($A64,Filtro_!$A$5:$AW$2624,15,FALSE),0) -> 0 | R64: =IFERROR(VLOOKUP($A64,Filtro_!$A$5:$AW$2624,16,FALSE),0) -> 0 | S64: =IFERROR(VLOOKUP($A64,Filtro_!$A$5:$AW$2624,17,FALSE),0) -> 0 | T64: =IFERROR(VLOOKUP($A64,Filtro_!$A$5:$AW$2624,18,FALSE),0) -> 0 | U64: =IFERROR(VLOOKUP($A64,Filtro_!$A$5:$AW$2624,19,FALSE),0) -> 0 | V64: =IFERROR(VLOOKUP($A64,Filtro_!$A$5:$AW$2624,20,FALSE),0) -> 0 | W64: =IFERROR(VLOOKUP($A64,Filtro_!$A$5:$AW$2624,21,FALSE),0) -> 0 | X64: =IFERROR(VLOOKUP($A64,Filtro_!$A$5:$AW$2624,22,FALSE),0) -> 0 | Y64: =IFERROR(VLOOKUP($A64,Filtro_!$A$5:$AW$2624,23,FALSE),0) -> 0 | Z64: =IFERROR(VLOOKUP($A64,Filtro_!$A$5:$AW$2624,24,FALSE),0) -> 0 | AA64: =IFERROR(VLOOKUP($A64,Filtro_!$A$5:$AW$2624,25,FALSE),0) -> 0 | AB64: =IFERROR(VLOOKUP($A64,Filtro_!$A$5:$AW$2624,26,FALSE),0) -> 0 | AC64: =IFERROR(VLOOKUP($A64,Filtro_!$A$5:$AW$2624,27,FALSE),0) -> 0 | AD64: =IFERROR(VLOOKUP($A64,Filtro_!$A$5:$AW$2624,28,FALSE),0) -> 0 | AE64: =IFERROR(VLOOKUP($A64,Filtro_!$A$5:$AW$2624,29,FALSE),0) -> 0 | AF64: =IFERROR(VLOOKUP($A64,Filtro_!$A$5:$AW$2624,30,FALSE),0) -> 0 | AG64: =IFERROR(VLOOKUP($A64,Filtro_!$A$5:$AW$2624,31,FALSE),0) -> 0 | AH64: =IFERROR(VLOOKUP($A64,Filtro_!$A$5:$AW$2624,32,FALSE),0) -> 0 | AI64: =IFERROR(VLOOKUP($A64,Filtro_!$A$5:$AW$2624,33,FALSE),0) -> 0 | AJ64: =IFERROR(VLOOKUP($A64,Filtro_!$A$5:$AW$2624,34,FALSE),0) -> 0 | AK64: =IFERROR(VLOOKUP($A64,Filtro_!$A$5:$AW$2624,35,FALSE),0) -> 0 | AL64: =IFERROR(VLOOKUP($A64,Filtro_!$A$5:$AW$2624,36,FALSE),0) -> 0 | AM64: =IFERROR(VLOOKUP($A64,Filtro_!$A$5:$AW$2624,37,FALSE),0) -> 0 | AN64: =IFERROR(VLOOKUP($A64,Filtro_!$A$5:$AW$2624,38,FALSE),0) -> 0 | AO64: =IFERROR(VLOOKUP($A64,Filtro_!$A$5:$AW$2624,39,FALSE),0) -> 1 | AP64: =IFERROR(VLOOKUP($A64,Filtro_!$A$5:$AW$2624,40,FALSE),0) -> 0 | DB64: 0 | DC64: 0 | DD64: 0 | DE64: 0
A65: 01200032 | C65: ENFERMERA/O | D65: 872 | E65: 542 | F65: =SUM(H65+J65+L65+N65) -> 330 | G65: =IFERROR(VLOOKUP($A65,Filtro_!$A$5:$AW$2624,5,FALSE),0) -> 355 | H65: =IFERROR(VLOOKUP($A65,Filtro_!$A$5:$AW$2624,6,FALSE),0) -> 230 | I65: =IFERROR(VLOOKUP($A65,Filtro_!$A$5:$AW$2624,7,FALSE),0) -> 136 | J65: =IFERROR(VLOOKUP($A65,Filtro_!$A$5:$AW$2624,8,FALSE),0) -> 69 | K65: =IFERROR(VLOOKUP($A65,Filtro_!$A$5:$AW$2624,9,FALSE),0) -> 36 | L65: =IFERROR(VLOOKUP($A65,Filtro_!$A$5:$AW$2624,10,FALSE),0) -> 19 | M65: =IFERROR(VLOOKUP($A65,Filtro_!$A$5:$AW$2624,11,FALSE),0) -> 15 | N65: =IFERROR(VLOOKUP($A65,Filtro_!$A$5:$AW$2624,12,FALSE),0) -> 12 | O65: =IFERROR(VLOOKUP($A65,Filtro_!$A$5:$AW$2624,13,FALSE),0) -> 0 | P65: =IFERROR(VLOOKUP($A65,Filtro_!$A$5:$AW$2624,14,FALSE),0) -> 0 | Q65: =IFERROR(VLOOKUP($A65,Filtro_!$A$5:$AW$2624,15,FALSE),0) -> 0 | R65: =IFERROR(VLOOKUP($A65,Filtro_!$A$5:$AW$2624,16,FALSE),0) -> 0 | S65: =IFERROR(VLOOKUP($A65,Filtro_!$A$5:$AW$2624,17,FALSE),0) -> 0 | T65: =IFERROR(VLOOKUP($A65,Filtro_!$A$5:$AW$2624,18,FALSE),0) -> 0 | U65: =IFERROR(VLOOKUP($A65,Filtro_!$A$5:$AW$2624,19,FALSE),0) -> 0 | V65: =IFERROR(VLOOKUP($A65,Filtro_!$A$5:$AW$2624,20,FALSE),0) -> 0 | W65: =IFERROR(VLOOKUP($A65,Filtro_!$A$5:$AW$2624,21,FALSE),0) -> 0 | X65: =IFERROR(VLOOKUP($A65,Filtro_!$A$5:$AW$2624,22,FALSE),0) -> 0 | Y65: =IFERROR(VLOOKUP($A65,Filtro_!$A$5:$AW$2624,23,FALSE),0) -> 0 | Z65: =IFERROR(VLOOKUP($A65,Filtro_!$A$5:$AW$2624,24,FALSE),0) -> 0 | AA65: =IFERROR(VLOOKUP($A65,Filtro_!$A$5:$AW$2624,25,FALSE),0) -> 0 | AB65: =IFERROR(VLOOKUP($A65,Filtro_!$A$5:$AW$2624,26,FALSE),0) -> 0 | AC65: =IFERROR(VLOOKUP($A65,Filtro_!$A$5:$AW$2624,27,FALSE),0) -> 0 | AD65: =IFERROR(VLOOKUP($A65,Filtro_!$A$5:$AW$2624,28,FALSE),0) -> 0 | AE65: =IFERROR(VLOOKUP($A65,Filtro_!$A$5:$AW$2624,29,FALSE),0) -> 0 | AF65: =IFERROR(VLOOKUP($A65,Filtro_!$A$5:$AW$2624,30,FALSE),0) -> 0 | AG65: =IFERROR(VLOOKUP($A65,Filtro_!$A$5:$AW$2624,31,FALSE),0) -> 0 | AH65: =IFERROR(VLOOKUP($A65,Filtro_!$A$5:$AW$2624,32,FALSE),0) -> 0 | AI65: =IFERROR(VLOOKUP($A65,Filtro_!$A$5:$AW$2624,33,FALSE),0) -> 0 | AJ65: =IFERROR(VLOOKUP($A65,Filtro_!$A$5:$AW$2624,34,FALSE),0) -> 0 | AK65: =IFERROR(VLOOKUP($A65,Filtro_!$A$5:$AW$2624,35,FALSE),0) -> 0 | AL65: =IFERROR(VLOOKUP($A65,Filtro_!$A$5:$AW$2624,36,FALSE),0) -> 0 | AM65: =IFERROR(VLOOKUP($A65,Filtro_!$A$5:$AW$2624,37,FALSE),0) -> 0 | AN65: =IFERROR(VLOOKUP($A65,Filtro_!$A$5:$AW$2624,38,FALSE),0) -> 0 | AO65: =IFERROR(VLOOKUP($A65,Filtro_!$A$5:$AW$2624,39,FALSE),0) -> 3 | AP65: =IFERROR(VLOOKUP($A65,Filtro_!$A$5:$AW$2624,40,FALSE),0) -> 0 | DB65: 0 | DD65: 0
A66: 01200033 | C66: MATRONA/ÓN | D66: 8 | E66: 3 | F66: 5 | G66: =IFERROR(VLOOKUP($A66,Filtro_!$A$5:$AW$2624,5,FALSE),0) -> 1 | H66: =IFERROR(VLOOKUP($A66,Filtro_!$A$5:$AW$2624,6,FALSE),0) -> 3 | I66: =IFERROR(VLOOKUP($A66,Filtro_!$A$5:$AW$2624,7,FALSE),0) -> 1 | J66: =IFERROR(VLOOKUP($A66,Filtro_!$A$5:$AW$2624,8,FALSE),0) -> 1 | K66: =IFERROR(VLOOKUP($A66,Filtro_!$A$5:$AW$2624,9,FALSE),0) -> 1 | L66: =IFERROR(VLOOKUP($A66,Filtro_!$A$5:$AW$2624,10,FALSE),0) -> 1 | M66: =IFERROR(VLOOKUP($A66,Filtro_!$A$5:$AW$2624,11,FALSE),0) -> 0 | N66: =IFERROR(VLOOKUP($A66,Filtro_!$A$5:$AW$2624,12,FALSE),0) -> 0 | O66: =IFERROR(VLOOKUP($A66,Filtro_!$A$5:$AW$2624,13,FALSE),0) -> 0 | P66: =IFERROR(VLOOKUP($A66,Filtro_!$A$5:$AW$2624,14,FALSE),0) -> 0 | Q66: =IFERROR(VLOOKUP($A66,Filtro_!$A$5:$AW$2624,15,FALSE),0) -> 0 | R66: =IFERROR(VLOOKUP($A66,Filtro_!$A$5:$AW$2624,16,FALSE),0) -> 0 | S66: =IFERROR(VLOOKUP($A66,Filtro_!$A$5:$AW$2624,17,FALSE),0) -> 0 | T66: =IFERROR(VLOOKUP($A66,Filtro_!$A$5:$AW$2624,18,FALSE),0) -> 0 | U66: =IFERROR(VLOOKUP($A66,Filtro_!$A$5:$AW$2624,19,FALSE),0) -> 0 | V66: =IFERROR(VLOOKUP($A66,Filtro_!$A$5:$AW$2624,20,FALSE),0) -> 0 | W66: =IFERROR(VLOOKUP($A66,Filtro_!$A$5:$AW$2624,21,FALSE),0) -> 0 | X66: =IFERROR(VLOOKUP($A66,Filtro_!$A$5:$AW$2624,22,FALSE),0) -> 0 | Y66: =IFERROR(VLOOKUP($A66,Filtro_!$A$5:$AW$2624,23,FALSE),0) -> 0 | Z66: =IFERROR(VLOOKUP($A66,Filtro_!$A$5:$AW$2624,24,FALSE),0) -> 0 | AA66: =IFERROR(VLOOKUP($A66,Filtro_!$A$5:$AW$2624,25,FALSE),0) -> 0 | AB66: =IFERROR(VLOOKUP($A66,Filtro_!$A$5:$AW$2624,26,FALSE),0) -> 0 | AC66: =IFERROR(VLOOKUP($A66,Filtro_!$A$5:$AW$2624,27,FALSE),0) -> 0 | AD66: =IFERROR(VLOOKUP($A66,Filtro_!$A$5:$AW$2624,28,FALSE),0) -> 0 | AE66: =IFERROR(VLOOKUP($A66,Filtro_!$A$5:$AW$2624,29,FALSE),0) -> 0 | AF66: =IFERROR(VLOOKUP($A66,Filtro_!$A$5:$AW$2624,30,FALSE),0) -> 0 | AG66: =IFERROR(VLOOKUP($A66,Filtro_!$A$5:$AW$2624,31,FALSE),0) -> 0 | AH66: =IFERROR(VLOOKUP($A66,Filtro_!$A$5:$AW$2624,32,FALSE),0) -> 0 | AI66: =IFERROR(VLOOKUP($A66,Filtro_!$A$5:$AW$2624,33,FALSE),0) -> 0 | AJ66: =IFERROR(VLOOKUP($A66,Filtro_!$A$5:$AW$2624,34,FALSE),0) -> 0 | AK66: =IFERROR(VLOOKUP($A66,Filtro_!$A$5:$AW$2624,35,FALSE),0) -> 0 | AL66: =IFERROR(VLOOKUP($A66,Filtro_!$A$5:$AW$2624,36,FALSE),0) -> 0 | AM66: =IFERROR(VLOOKUP($A66,Filtro_!$A$5:$AW$2624,37,FALSE),0) -> 0 | AN66: =IFERROR(VLOOKUP($A66,Filtro_!$A$5:$AW$2624,38,FALSE),0) -> 0 | AO66: =IFERROR(VLOOKUP($A66,Filtro_!$A$5:$AW$2624,39,FALSE),0) -> 0 | AP66: =IFERROR(VLOOKUP($A66,Filtro_!$A$5:$AW$2624,40,FALSE),0) -> 0 | DB66: 0 | DD66: 0
A67: 01200034 | C67: NUTRICIONISTA | D67: 227 | E67: 156 | F67: 71 | G67: =IFERROR(VLOOKUP($A67,Filtro_!$A$5:$AW$2624,5,FALSE),0) -> 101 | H67: =IFERROR(VLOOKUP($A67,Filtro_!$A$5:$AW$2624,6,FALSE),0) -> 48 | I67: =IFERROR(VLOOKUP($A67,Filtro_!$A$5:$AW$2624,7,FALSE),0) -> 32 | J67: =IFERROR(VLOOKUP($A67,Filtro_!$A$5:$AW$2624,8,FALSE),0) -> 17 | K67: =IFERROR(VLOOKUP($A67,Filtro_!$A$5:$AW$2624,9,FALSE),0) -> 19 | L67: =IFERROR(VLOOKUP($A67,Filtro_!$A$5:$AW$2624,10,FALSE),0) -> 4 | M67: =IFERROR(VLOOKUP($A67,Filtro_!$A$5:$AW$2624,11,FALSE),0) -> 4 | N67: =IFERROR(VLOOKUP($A67,Filtro_!$A$5:$AW$2624,12,FALSE),0) -> 2 | O67: =IFERROR(VLOOKUP($A67,Filtro_!$A$5:$AW$2624,13,FALSE),0) -> 0 | P67: =IFERROR(VLOOKUP($A67,Filtro_!$A$5:$AW$2624,14,FALSE),0) -> 0 | Q67: =IFERROR(VLOOKUP($A67,Filtro_!$A$5:$AW$2624,15,FALSE),0) -> 0 | R67: =IFERROR(VLOOKUP($A67,Filtro_!$A$5:$AW$2624,16,FALSE),0) -> 0 | S67: =IFERROR(VLOOKUP($A67,Filtro_!$A$5:$AW$2624,17,FALSE),0) -> 0 | T67: =IFERROR(VLOOKUP($A67,Filtro_!$A$5:$AW$2624,18,FALSE),0) -> 0 | U67: =IFERROR(VLOOKUP($A67,Filtro_!$A$5:$AW$2624,19,FALSE),0) -> 0 | V67: =IFERROR(VLOOKUP($A67,Filtro_!$A$5:$AW$2624,20,FALSE),0) -> 0 | W67: =IFERROR(VLOOKUP($A67,Filtro_!$A$5:$AW$2624,21,FALSE),0) -> 0 | X67: =IFERROR(VLOOKUP($A67,Filtro_!$A$5:$AW$2624,22,FALSE),0) -> 0 | Y67: =IFERROR(VLOOKUP($A67,Filtro_!$A$5:$AW$2624,23,FALSE),0) -> 0 | Z67: =IFERROR(VLOOKUP($A67,Filtro_!$A$5:$AW$2624,24,FALSE),0) -> 0 | AA67: =IFERROR(VLOOKUP($A67,Filtro_!$A$5:$AW$2624,25,FALSE),0) -> 0 | AB67: =IFERROR(VLOOKUP($A67,Filtro_!$A$5:$AW$2624,26,FALSE),0) -> 0 | AC67: =IFERROR(VLOOKUP($A67,Filtro_!$A$5:$AW$2624,27,FALSE),0) -> 0 | AD67: =IFERROR(VLOOKUP($A67,Filtro_!$A$5:$AW$2624,28,FALSE),0) -> 0 | AE67: =IFERROR(VLOOKUP($A67,Filtro_!$A$5:$AW$2624,29,FALSE),0) -> 0 | AF67: =IFERROR(VLOOKUP($A67,Filtro_!$A$5:$AW$2624,30,FALSE),0) -> 0 | AG67: =IFERROR(VLOOKUP($A67,Filtro_!$A$5:$AW$2624,31,FALSE),0) -> 0 | AH67: =IFERROR(VLOOKUP($A67,Filtro_!$A$5:$AW$2624,32,FALSE),0) -> 0 | AI67: =IFERROR(VLOOKUP($A67,Filtro_!$A$5:$AW$2624,33,FALSE),0) -> 0 | AJ67: =IFERROR(VLOOKUP($A67,Filtro_!$A$5:$AW$2624,34,FALSE),0) -> 0 | AK67: =IFERROR(VLOOKUP($A67,Filtro_!$A$5:$AW$2624,35,FALSE),0) -> 0 | AL67: =IFERROR(VLOOKUP($A67,Filtro_!$A$5:$AW$2624,36,FALSE),0) -> 0 | AM67: =IFERROR(VLOOKUP($A67,Filtro_!$A$5:$AW$2624,37,FALSE),0) -> 0 | AN67: =IFERROR(VLOOKUP($A67,Filtro_!$A$5:$AW$2624,38,FALSE),0) -> 0 | AO67: =IFERROR(VLOOKUP($A67,Filtro_!$A$5:$AW$2624,39,FALSE),0) -> 0 | AP67: =IFERROR(VLOOKUP($A67,Filtro_!$A$5:$AW$2624,40,FALSE),0) -> 1 | DB67: 0 | DD67: 0
B68: SECCIÓN D: CONTROL DE SALUD INTEGRAL DE ADOLESCENTES (incluidos en sección B)
B69: LUGAR DEL CONTROL, SEGÚN EDAD | D69: 10 A 14 AÑOS | I69: 15 A 19 AÑOS | N69: Niños, Niñas, Adolescentes y Jóvenes SENAME | O69: Niños, Niñas, Adolescentes y Jóvenes Mejor Niñez
D70: Ambos Sexos | E70: Hombres | F70: Mujeres | G70: Pueblos Originarios | H70: Migrantes | I70: Ambos Sexos | J70: Hombres | K70: Mujeres | L70: Pueblos Originarios | M70: Migrantes
A71: 01030500 | B71: EN ESPACIO AMIGABLE | D71: =SUM(E71:F71) -> 1063 | E71: =IFERROR(VLOOKUP($A71,Filtro_!$A$5:$AW$2624,3,FALSE),0) -> 422 | F71: =IFERROR(VLOOKUP($A71,Filtro_!$A$5:$AW$2624,4,FALSE),0) -> 641 | G71: =IFERROR(VLOOKUP($A71,Filtro_!$A$5:$AW$2624,5,FALSE),0) -> 35 | H71: =IFERROR(VLOOKUP($A71,Filtro_!$A$5:$AW$2624,6,FALSE),0) -> 37 | I71: =SUM(J71:K71) -> 1159 | J71: =IFERROR(VLOOKUP($A71,Filtro_!$A$5:$AW$2624,8,FALSE),0) -> 382 | K71: =IFERROR(VLOOKUP($A71,Filtro_!$A$5:$AW$2624,9,FALSE),0) -> 777 | L71: =IFERROR(VLOOKUP($A71,Filtro_!$A$5:$AW$2624,10,FALSE),0) -> 55 | M71: =IFERROR(VLOOKUP($A71,Filtro_!$A$5:$AW$2624,11,FALSE),0) -> 54 | N71: =IFERROR(VLOOKUP($A71,Filtro_!$A$5:$AW$2624,12,FALSE),0) -> 14 | O71: =IFERROR(VLOOKUP($A71,Filtro_!$A$5:$AW$2624,13,FALSE),0) -> 44 | CB71: * Niños, Niñas, Adolescentes y Jóvenes SENAME NO DEBE ser mayor al Total. | CF71: * Pueblos Originarios NO DEBE ser mayor al Total de controles de adolescentes de 10 a 14 años. | CH71: * Migrantes NO DEBE ser mayor al Total de controles de adolescentes de 10 a 14 años. | CJ71: * Pueblos Originarios NO DEBE ser mayor al Total de controles de adolescentes de 15 a 19 años. | CL71: * Migrantes NO DEBE ser mayor al Total de controles de adolescentes de 15 a 19 años. | DB71: 1 | DF71: 1 | DH71: 1 | DJ71: 1 | DL71: 1
A72: 01030600 | B72: EN OTROS ESPACIOS DEL ESTABLECIMIENTO DE SALUD | D72: =SUM(E72:F72) -> 3636 | E72: =IFERROR(VLOOKUP($A72,Filtro_!$A$5:$AW$2624,3,FALSE),0) -> 1631 | F72: =IFERROR(VLOOKUP($A72,Filtro_!$A$5:$AW$2624,4,FALSE),0) -> 2005 | G72: =IFERROR(VLOOKUP($A72,Filtro_!$A$5:$AW$2624,5,FALSE),0) -> 228 | H72: =IFERROR(VLOOKUP($A72,Filtro_!$A$5:$AW$2624,6,FALSE),0) -> 164 | I72: =SUM(J72:K72) -> 1503 | J72: =IFERROR(VLOOKUP($A72,Filtro_!$A$5:$AW$2624,8,FALSE),0) -> 565 | K72: =IFERROR(VLOOKUP($A72,Filtro_!$A$5:$AW$2624,9,FALSE),0) -> 938 | L72: =IFERROR(VLOOKUP($A72,Filtro_!$A$5:$AW$2624,10,FALSE),0) -> 111 | M72: =IFERROR(VLOOKUP($A72,Filtro_!$A$5:$AW$2624,11,FALSE),0) -> 87 | N72: =IFERROR(VLOOKUP($A72,Filtro_!$A$5:$AW$2624,12,FALSE),0) -> 61 | O72: =IFERROR(VLOOKUP($A72,Filtro_!$A$5:$AW$2624,13,FALSE),0) -> 73 | CF72: * Pueblos Originarios NO DEBE ser mayor al Total de controles de adolescentes de 10 a 14 años. | CH72: * Migrantes NO DEBE ser mayor al Total de controles de adolescentes de 10 a 14 años. | CJ72: * Pueblos Originarios NO DEBE ser mayor al Total de controles de adolescentes de 15 a 19 años. | DF72: 1 | DH72: 1 | DJ72: 1
A73: 01030700 | B73: EN ESTABLECIMIENTOS EDUCACIONALES | D73: =SUM(E73:F73) -> 4420 | E73: =IFERROR(VLOOKUP($A73,Filtro_!$A$5:$AW$2624,3,FALSE),0) -> 2108 | F73: =IFERROR(VLOOKUP($A73,Filtro_!$A$5:$AW$2624,4,FALSE),0) -> 2312 | G73: =IFERROR(VLOOKUP($A73,Filtro_!$A$5:$AW$2624,5,FALSE),0) -> 174 | H73: =IFERROR(VLOOKUP($A73,Filtro_!$A$5:$AW$2624,6,FALSE),0) -> 160 | I73: =SUM(J73:K73) -> 1233 | J73: =IFERROR(VLOOKUP($A73,Filtro_!$A$5:$AW$2624,8,FALSE),0) -> 572 | K73: =IFERROR(VLOOKUP($A73,Filtro_!$A$5:$AW$2624,9,FALSE),0) -> 661 | L73: =IFERROR(VLOOKUP($A73,Filtro_!$A$5:$AW$2624,10,FALSE),0) -> 66 | M73: =IFERROR(VLOOKUP($A73,Filtro_!$A$5:$AW$2624,11,FALSE),0) -> 31 | N73: =IFERROR(VLOOKUP($A73,Filtro_!$A$5:$AW$2624,12,FALSE),0) -> 3 | O73: =IFERROR(VLOOKUP($A73,Filtro_!$A$5:$AW$2624,13,FALSE),0) -> 6 | CF73: * Pueblos Originarios NO DEBE ser mayor al Total de controles de adolescentes de 10 a 14 años. | CH73: * Migrantes NO DEBE ser mayor al Total de controles de adolescentes de 10 a 14 años. | CJ73: * Pueblos Originarios NO DEBE ser mayor al Total de controles de adolescentes de 15 a 19 años. | DF73: 1 | DH73: 1 | DJ73: 1
A74: 01030800 | B74: EN OTROS LUGARES FUERA DEL ESTABLECIMIENTO DE SALUD | D74: =SUM(E74:F74) -> 264 | E74: =IFERROR(VLOOKUP($A74,Filtro_!$A$5:$AW$2624,3,FALSE),0) -> 116 | F74: =IFERROR(VLOOKUP($A74,Filtro_!$A$5:$AW$2624,4,FALSE),0) -> 148 | G74: =IFERROR(VLOOKUP($A74,Filtro_!$A$5:$AW$2624,5,FALSE),0) -> 8 | H74: =IFERROR(VLOOKUP($A74,Filtro_!$A$5:$AW$2624,6,FALSE),0) -> 4 | I74: =SUM(J74:K74) -> 88 | J74: =IFERROR(VLOOKUP($A74,Filtro_!$A$5:$AW$2624,8,FALSE),0) -> 51 | K74: =IFERROR(VLOOKUP($A74,Filtro_!$A$5:$AW$2624,9,FALSE),0) -> 37 | L74: =IFERROR(VLOOKUP($A74,Filtro_!$A$5:$AW$2624,10,FALSE),0) -> 6 | M74: =IFERROR(VLOOKUP($A74,Filtro_!$A$5:$AW$2624,11,FALSE),0) -> 0 | N74: =IFERROR(VLOOKUP($A74,Filtro_!$A$5:$AW$2624,12,FALSE),0) -> 40 | O74: =IFERROR(VLOOKUP($A74,Filtro_!$A$5:$AW$2624,13,FALSE),0) -> 99 | CD74: * Niños, Niñas, Adolescentes y Jóvenes Mejor Niñez NO DEBE ser mayor al Total. | CF74: * Pueblos Originarios NO DEBE ser mayor al Total de controles de adolescentes de 10 a 14 años. | CH74: * Migrantes NO DEBE ser mayor al Total de controles de adolescentes de 10 a 14 años. | CJ74: * Pueblos Originarios NO DEBE ser mayor al Total de controles de adolescentes de 15 a 19 años. | CL74: * Migrantes NO DEBE ser mayor al Total de controles de adolescentes de 15 a 19 años. | DD74: 1 | DF74: 1 | DH74: 1 | DJ74: 1 | DL74: 1
B75: TOTAL | D75: =SUM(D71:D74) -> 9383 | E75: 4277 | F75: 5106 | G75: 445 | H75: =SUM(H71:H74) -> 365 | I75: 3983 | J75: 1570 | K75: 2413 | L75: 238 | M75: 172 | N75: =SUM(N71:N74) -> 118 | O75: =SUM(O71:O74) -> 222
B76: SECCIÓN E: CONTROLES DE SALUD EN ESTABLECIMIENTOS EDUCACIONALES
B77: SECCIÓN E1: CONTROLES INDIVIDUALES
B78: CURSO | C78: TOTAL | D78: SEXO | F78: Pueblos Originarios | G78: Migrantes | H78: Niños, Niñas, Adolescentes y Jóvenes SENAME | I78: Niños, Niñas, Adolescentes y Jóvenes Mejor Niñez
D79: Hombres | E79: Mujeres
A80: 01031000 | B80: KÍNDER | C80: =SUM(D80:E80) -> 557 | D80: =IFERROR(VLOOKUP($A80,Filtro_!$A$5:$AW$2624,3,FALSE),0) -> 246 | E80: =IFERROR(VLOOKUP($A80,Filtro_!$A$5:$AW$2624,4,FALSE),0) -> 311 | F80: =IFERROR(VLOOKUP($A80,Filtro_!$A$5:$AW$2624,5,FALSE),0) -> 2 | G80: =IFERROR(VLOOKUP($A80,Filtro_!$A$5:$AW$2624,6,FALSE),0) -> 3 | H80: =IFERROR(VLOOKUP($A80,Filtro_!$A$5:$AW$2624,7,FALSE),0) -> 0 | I80: =IFERROR(VLOOKUP($A80,Filtro_!$A$5:$AW$2624,8,FALSE),0) -> 0
A81: 01031100 | B81: PRIMERO BÁSICO | C81: =SUM(D81:E81) -> 821 | D81: =IFERROR(VLOOKUP($A81,Filtro_!$A$5:$AW$2624,3,FALSE),0) -> 403 | E81: =IFERROR(VLOOKUP($A81,Filtro_!$A$5:$AW$2624,4,FALSE),0) -> 418 | F81: =IFERROR(VLOOKUP($A81,Filtro_!$A$5:$AW$2624,5,FALSE),0) -> 5 | G81: =IFERROR(VLOOKUP($A81,Filtro_!$A$5:$AW$2624,6,FALSE),0) -> 7 | H81: =IFERROR(VLOOKUP($A81,Filtro_!$A$5:$AW$2624,7,FALSE),0) -> 2 | I81: =IFERROR(VLOOKUP($A81,Filtro_!$A$5:$AW$2624,8,FALSE),0) -> 0
A82: 01031200 | B82: SEGUNDO BÁSICO | C82: =SUM(D82:E82) -> 1017 | D82: =IFERROR(VLOOKUP($A82,Filtro_!$A$5:$AW$2624,3,FALSE),0) -> 474 | E82: =IFERROR(VLOOKUP($A82,Filtro_!$A$5:$AW$2624,4,FALSE),0) -> 543 | F82: =IFERROR(VLOOKUP($A82,Filtro_!$A$5:$AW$2624,5,FALSE),0) -> 2 | G82: =IFERROR(VLOOKUP($A82,Filtro_!$A$5:$AW$2624,6,FALSE),0) -> 8 | H82: =IFERROR(VLOOKUP($A82,Filtro_!$A$5:$AW$2624,7,FALSE),0) -> 2 | I82: =IFERROR(VLOOKUP($A82,Filtro_!$A$5:$AW$2624,8,FALSE),0) -> 0
A83: 01031300 | B83: TERCERO BÁSICO | C83: =SUM(D83:E83) -> 1139 | D83: =IFERROR(VLOOKUP($A83,Filtro_!$A$5:$AW$2624,3,FALSE),0) -> 547 | E83: =IFERROR(VLOOKUP($A83,Filtro_!$A$5:$AW$2624,4,FALSE),0) -> 592 | F83: =IFERROR(VLOOKUP($A83,Filtro_!$A$5:$AW$2624,5,FALSE),0) -> 8 | G83: =IFERROR(VLOOKUP($A83,Filtro_!$A$5:$AW$2624,6,FALSE),0) -> 2 | H83: =IFERROR(VLOOKUP($A83,Filtro_!$A$5:$AW$2624,7,FALSE),0) -> 0 | I83: =IFERROR(VLOOKUP($A83,Filtro_!$A$5:$AW$2624,8,FALSE),0) -> 0
A84: 01031400 | B84: CUARTO BÁSICO | C84: =SUM(D84:E84) -> 1114 | D84: =IFERROR(VLOOKUP($A84,Filtro_!$A$5:$AW$2624,3,FALSE),0) -> 543 | E84: =IFERROR(VLOOKUP($A84,Filtro_!$A$5:$AW$2624,4,FALSE),0) -> 571 | F84: =IFERROR(VLOOKUP($A84,Filtro_!$A$5:$AW$2624,5,FALSE),0) -> 6 | G84: =IFERROR(VLOOKUP($A84,Filtro_!$A$5:$AW$2624,6,FALSE),0) -> 1 | H84: =IFERROR(VLOOKUP($A84,Filtro_!$A$5:$AW$2624,7,FALSE),0) -> 1 | I84: =IFERROR(VLOOKUP($A84,Filtro_!$A$5:$AW$2624,8,FALSE),0) -> 0
B85: SECCIÓN E2: CONTROLES GRUPALES
B86: CURSO | C86: TOTAL DE GRUPOS | D86: TOTAL | E86: SEXO | G86: Pueblos Originarios | H86: Migrantes | I86: Niños, Niñas, Adolescentes y Jóvenes SENAME | J86: Niños, Niñas, Adolescentes y Jóvenes Mejor Niñez
E87: Hombres | F87: Mujeres
A88: 01031500 | B88: KÍNDER | C88: =IFERROR(VLOOKUP($A88,Filtro_!$A$5:$AW$2624,2,FALSE),0) -> 0 | D88: =SUM(E88:F88) -> 0 | E88: =IFERROR(VLOOKUP($A88,Filtro_!$A$5:$AW$2624,4,FALSE),0) -> 0 | F88: =IFERROR(VLOOKUP($A88,Filtro_!$A$5:$AW$2624,5,FALSE),0) -> 0 | G88: =IFERROR(VLOOKUP($A88,Filtro_!$A$5:$AW$2624,6,FALSE),0) -> 0 | H88: =IFERROR(VLOOKUP($A88,Filtro_!$A$5:$AW$2624,7,FALSE),0) -> 0 | I88: =IFERROR(VLOOKUP($A88,Filtro_!$A$5:$AW$2624,8,FALSE),0) -> 0 | J88: =IFERROR(VLOOKUP($A88,Filtro_!$A$5:$AW$2624,9,FALSE),0) -> 0
A89: 01031600 | B89: PRIMERO BÁSICO | C89: =IFERROR(VLOOKUP($A89,Filtro_!$A$5:$AW$2624,2,FALSE),0) -> 0 | D89: =SUM(E89:F89) -> 0 | E89: =IFERROR(VLOOKUP($A89,Filtro_!$A$5:$AW$2624,4,FALSE),0) -> 0 | F89: =IFERROR(VLOOKUP($A89,Filtro_!$A$5:$AW$2624,5,FALSE),0) -> 0 | G89: =IFERROR(VLOOKUP($A89,Filtro_!$A$5:$AW$2624,6,FALSE),0) -> 0 | H89: =IFERROR(VLOOKUP($A89,Filtro_!$A$5:$AW$2624,7,FALSE),0) -> 0 | I89: =IFERROR(VLOOKUP($A89,Filtro_!$A$5:$AW$2624,8,FALSE),0) -> 0 | J89: =IFERROR(VLOOKUP($A89,Filtro_!$A$5:$AW$2624,9,FALSE),0) -> 0
A90: 01031700 | B90: SEGUNDO BÁSICO | C90: =IFERROR(VLOOKUP($A90,Filtro_!$A$5:$AW$2624,2,FALSE),0) -> 0 | D90: =SUM(E90:F90) -> 0 | E90: =IFERROR(VLOOKUP($A90,Filtro_!$A$5:$AW$2624,4,FALSE),0) -> 0 | F90: =IFERROR(VLOOKUP($A90,Filtro_!$A$5:$AW$2624,5,FALSE),0) -> 0 | G90: =IFERROR(VLOOKUP($A90,Filtro_!$A$5:$AW$2624,6,FALSE),0) -> 0 | H90: =IFERROR(VLOOKUP($A90,Filtro_!$A$5:$AW$2624,7,FALSE),0) -> 0 | I90: =IFERROR(VLOOKUP($A90,Filtro_!$A$5:$AW$2624,8,FALSE),0) -> 0 | J90: =IFERROR(VLOOKUP($A90,Filtro_!$A$5:$AW$2624,9,FALSE),0) -> 0
A91: 01031800 | B91: TERCERO BÁSICO | C91: =IFERROR(VLOOKUP($A91,Filtro_!$A$5:$AW$2624,2,FALSE),0) -> 0 | D91: =SUM(E91:F91) -> 0 | E91: =IFERROR(VLOOKUP($A91,Filtro_!$A$5:$AW$2624,4,FALSE),0) -> 0 | F91: =IFERROR(VLOOKUP($A91,Filtro_!$A$5:$AW$2624,5,FALSE),0) -> 0 | G91: =IFERROR(VLOOKUP($A91,Filtro_!$A$5:$AW$2624,6,FALSE),0) -> 0 | H91: =IFERROR(VLOOKUP($A91,Filtro_!$A$5:$AW$2624,7,FALSE),0) -> 0 | I91: =IFERROR(VLOOKUP($A91,Filtro_!$A$5:$AW$2624,8,FALSE),0) -> 0 | J91: =IFERROR(VLOOKUP($A91,Filtro_!$A$5:$AW$2624,9,FALSE),0) -> 0
A92: 01031900 | B92: CUARTO BÁSICO | C92: =IFERROR(VLOOKUP($A92,Filtro_!$A$5:$AW$2624,2,FALSE),0) -> 0 | D92: =SUM(E92:F92) -> 0 | E92: =IFERROR(VLOOKUP($A92,Filtro_!$A$5:$AW$2624,4,FALSE),0) -> 0 | F92: =IFERROR(VLOOKUP($A92,Filtro_!$A$5:$AW$2624,5,FALSE),0) -> 0 | G92: =IFERROR(VLOOKUP($A92,Filtro_!$A$5:$AW$2624,6,FALSE),0) -> 0 | H92: =IFERROR(VLOOKUP($A92,Filtro_!$A$5:$AW$2624,7,FALSE),0) -> 1 | I92: =IFERROR(VLOOKUP($A92,Filtro_!$A$5:$AW$2624,8,FALSE),0) -> 0 | J92: =IFERROR(VLOOKUP($A92,Filtro_!$A$5:$AW$2624,9,FALSE),0) -> 0 | CB92: * Niños, Niñas, Adolescentes y Jóvenes SENAME NO DEBE ser mayor al Total. | DB92: 1
B93: SECCIÓN F: CONTROLES INTEGRALES DE PERSONAS CON CONDICIONES CRÓNICAS (incluidos en Secciones B y C)
B94: TIPO DE CONTROL | C94: TOTAL | F94: POR EDAD | AH94: Migrantes | AI94: Pueblos Originarios
F95: 15 - 19 años | H95: 20 - 24 años | J95: 25 - 29 años | L95: 30 - 34 años | N95: 35 - 39 años | P95: 40 - 44 años | R95: 45 - 49 años | T95: 50 - 54 años | V95: 55 - 59 años | X95: 60 - 64 años | Z95: 65 - 69 años | AB95: 70 - 74 años | AD95: 75 - 79 años | AF95: 80 y más años
C96: Ambos Sexos | D96: Hombres | E96: Mujeres | F96: Hombres | G96: Mujeres | H96: Hombres | I96: Mujeres | J96: Hombres | K96: Mujeres | L96: Hombres | M96: Mujeres | N96: Hombres | O96: Mujeres | P96: Hombres | Q96: Mujeres | R96: Hombres | S96: Mujeres | T96: Hombres | U96: Mujeres | V96: Hombres | W96: Mujeres | X96: Hombres | Y96: Mujeres | Z96: Hombres | AA96: Mujeres | AB96: Hombres | AC96: Mujeres | AD96: Hombres | AE96: Mujeres | AF96: Hombres | AG96: Mujeres
A97: 01501010 | B97: CONTROL INTEGRAL CON RIESGO LEVE (G1) | C97: =SUM(D97:E97) -> 442 | D97: =SUM(F97+H97+J97+L97+N97+P97+R97+T97+V97+X97+Z97+AB97+AD97+AF97) -> 139 | E97: =SUM(+G97+I97+K97+M97+O97+Q97+S97+U97+W97+Y97+AA97+AC97+AE97+AG97) -> 303 | F97: =IFERROR(VLOOKUP($A97,Filtro_!$A$5:$AW$2624,5,FALSE),0) -> 2 | G97: =IFERROR(VLOOKUP($A97,Filtro_!$A$5:$AW$2624,6,FALSE),0) -> 0 | H97: =IFERROR(VLOOKUP($A97,Filtro_!$A$5:$AW$2624,7,FALSE),0) -> 2 | I97: =IFERROR(VLOOKUP($A97,Filtro_!$A$5:$AW$2624,8,FALSE),0) -> 1 | J97: =IFERROR(VLOOKUP($A97,Filtro_!$A$5:$AW$2624,9,FALSE),0) -> 4 | K97: =IFERROR(VLOOKUP($A97,Filtro_!$A$5:$AW$2624,10,FALSE),0) -> 1 | L97: =IFERROR(VLOOKUP($A97,Filtro_!$A$5:$AW$2624,11,FALSE),0) -> 5 | M97: =IFERROR(VLOOKUP($A97,Filtro_!$A$5:$AW$2624,12,FALSE),0) -> 8 | N97: =IFERROR(VLOOKUP($A97,Filtro_!$A$5:$AW$2624,13,FALSE),0) -> 1 | O97: =IFERROR(VLOOKUP($A97,Filtro_!$A$5:$AW$2624,14,FALSE),0) -> 15 | P97: =IFERROR(VLOOKUP($A97,Filtro_!$A$5:$AW$2624,15,FALSE),0) -> 5 | Q97: =IFERROR(VLOOKUP($A97,Filtro_!$A$5:$AW$2624,16,FALSE),0) -> 18 | R97: =IFERROR(VLOOKUP($A97,Filtro_!$A$5:$AW$2624,17,FALSE),0) -> 8 | S97: =IFERROR(VLOOKUP($A97,Filtro_!$A$5:$AW$2624,18,FALSE),0) -> 26 | T97: =IFERROR(VLOOKUP($A97,Filtro_!$A$5:$AW$2624,19,FALSE),0) -> 17 | U97: =IFERROR(VLOOKUP($A97,Filtro_!$A$5:$AW$2624,20,FALSE),0) -> 30 | V97: =IFERROR(VLOOKUP($A97,Filtro_!$A$5:$AW$2624,21,FALSE),0) -> 18 | W97: =IFERROR(VLOOKUP($A97,Filtro_!$A$5:$AW$2624,22,FALSE),0) -> 43 | X97: =IFERROR(VLOOKUP($A97,Filtro_!$A$5:$AW$2624,23,FALSE),0) -> 24 | Y97: =IFERROR(VLOOKUP($A97,Filtro_!$A$5:$AW$2624,24,FALSE),0) -> 45 | Z97: =IFERROR(VLOOKUP($A97,Filtro_!$A$5:$AW$2624,25,FALSE),0) -> 14 | AA97: =IFERROR(VLOOKUP($A97,Filtro_!$A$5:$AW$2624,26,FALSE),0) -> 42 | AB97: =IFERROR(VLOOKUP($A97,Filtro_!$A$5:$AW$2624,27,FALSE),0) -> 11 | AC97: =IFERROR(VLOOKUP($A97,Filtro_!$A$5:$AW$2624,28,FALSE),0) -> 21 | AD97: =IFERROR(VLOOKUP($A97,Filtro_!$A$5:$AW$2624,29,FALSE),0) -> 10 | AE97: =IFERROR(VLOOKUP($A97,Filtro_!$A$5:$AW$2624,30,FALSE),0) -> 22 | AF97: =IFERROR(VLOOKUP($A97,Filtro_!$A$5:$AW$2624,31,FALSE),0) -> 18 | AG97: =IFERROR(VLOOKUP($A97,Filtro_!$A$5:$AW$2624,32,FALSE),0) -> 31 | AH97: =IFERROR(VLOOKUP($A97,Filtro_!$A$5:$AW$2624,33,FALSE),0) -> 0 | AI97: =IFERROR(VLOOKUP($A97,Filtro_!$A$5:$AW$2624,34,FALSE),0) -> 0 | DA97: 0 | DB97: 0
A98: 01501020 | B98: CONTROL INTEGRAL CON RIESGO MODERADO (G2) | C98: 367 | D98: 113 | E98: 254 | F98: =IFERROR(VLOOKUP($A98,Filtro_!$A$5:$AW$2624,5,FALSE),0) -> 1 | G98: =IFERROR(VLOOKUP($A98,Filtro_!$A$5:$AW$2624,6,FALSE),0) -> 0 | H98: =IFERROR(VLOOKUP($A98,Filtro_!$A$5:$AW$2624,7,FALSE),0) -> 0 | I98: =IFERROR(VLOOKUP($A98,Filtro_!$A$5:$AW$2624,8,FALSE),0) -> 1 | J98: =IFERROR(VLOOKUP($A98,Filtro_!$A$5:$AW$2624,9,FALSE),0) -> 3 | K98: =IFERROR(VLOOKUP($A98,Filtro_!$A$5:$AW$2624,10,FALSE),0) -> 3 | L98: =IFERROR(VLOOKUP($A98,Filtro_!$A$5:$AW$2624,11,FALSE),0) -> 0 | M98: =IFERROR(VLOOKUP($A98,Filtro_!$A$5:$AW$2624,12,FALSE),0) -> 0 | N98: =IFERROR(VLOOKUP($A98,Filtro_!$A$5:$AW$2624,13,FALSE),0) -> 3 | O98: =IFERROR(VLOOKUP($A98,Filtro_!$A$5:$AW$2624,14,FALSE),0) -> 8 | P98: =IFERROR(VLOOKUP($A98,Filtro_!$A$5:$AW$2624,15,FALSE),0) -> 2 | Q98: =IFERROR(VLOOKUP($A98,Filtro_!$A$5:$AW$2624,16,FALSE),0) -> 10 | R98: =IFERROR(VLOOKUP($A98,Filtro_!$A$5:$AW$2624,17,FALSE),0) -> 9 | S98: =IFERROR(VLOOKUP($A98,Filtro_!$A$5:$AW$2624,18,FALSE),0) -> 16 | T98: =IFERROR(VLOOKUP($A98,Filtro_!$A$5:$AW$2624,19,FALSE),0) -> 9 | U98: =IFERROR(VLOOKUP($A98,Filtro_!$A$5:$AW$2624,20,FALSE),0) -> 14 | V98: =IFERROR(VLOOKUP($A98,Filtro_!$A$5:$AW$2624,21,FALSE),0) -> 13 | W98: =IFERROR(VLOOKUP($A98,Filtro_!$A$5:$AW$2624,22,FALSE),0) -> 51 | X98: =IFERROR(VLOOKUP($A98,Filtro_!$A$5:$AW$2624,23,FALSE),0) -> 18 | Y98: =IFERROR(VLOOKUP($A98,Filtro_!$A$5:$AW$2624,24,FALSE),0) -> 33 | Z98: =IFERROR(VLOOKUP($A98,Filtro_!$A$5:$AW$2624,25,FALSE),0) -> 18 | AA98: =IFERROR(VLOOKUP($A98,Filtro_!$A$5:$AW$2624,26,FALSE),0) -> 27 | AB98: =IFERROR(VLOOKUP($A98,Filtro_!$A$5:$AW$2624,27,FALSE),0) -> 20 | AC98: =IFERROR(VLOOKUP($A98,Filtro_!$A$5:$AW$2624,28,FALSE),0) -> 30 | AD98: =IFERROR(VLOOKUP($A98,Filtro_!$A$5:$AW$2624,29,FALSE),0) -> 7 | AE98: =IFERROR(VLOOKUP($A98,Filtro_!$A$5:$AW$2624,30,FALSE),0) -> 19 | AF98: =IFERROR(VLOOKUP($A98,Filtro_!$A$5:$AW$2624,31,FALSE),0) -> 10 | AG98: =IFERROR(VLOOKUP($A98,Filtro_!$A$5:$AW$2624,32,FALSE),0) -> 42 | AH98: =IFERROR(VLOOKUP($A98,Filtro_!$A$5:$AW$2624,33,FALSE),0) -> 0 | AI98: =IFERROR(VLOOKUP($A98,Filtro_!$A$5:$AW$2624,34,FALSE),0) -> 0 | DA98: 0 | DB98: 0
A99: 01501030 | B99: CONTROL INTEGRAL CON RIESGO ALTO (G3) | C99: 1618 | D99: 530 | E99: 1088 | F99: =IFERROR(VLOOKUP($A99,Filtro_!$A$5:$AW$2624,5,FALSE),0) -> 0 | G99: =IFERROR(VLOOKUP($A99,Filtro_!$A$5:$AW$2624,6,FALSE),0) -> 0 | H99: =IFERROR(VLOOKUP($A99,Filtro_!$A$5:$AW$2624,7,FALSE),0) -> 0 | I99: =IFERROR(VLOOKUP($A99,Filtro_!$A$5:$AW$2624,8,FALSE),0) -> 4 | J99: =IFERROR(VLOOKUP($A99,Filtro_!$A$5:$AW$2624,9,FALSE),0) -> 0 | K99: =IFERROR(VLOOKUP($A99,Filtro_!$A$5:$AW$2624,10,FALSE),0) -> 2 | L99: =IFERROR(VLOOKUP($A99,Filtro_!$A$5:$AW$2624,11,FALSE),0) -> 1 | M99: =IFERROR(VLOOKUP($A99,Filtro_!$A$5:$AW$2624,12,FALSE),0) -> 4 | N99: =IFERROR(VLOOKUP($A99,Filtro_!$A$5:$AW$2624,13,FALSE),0) -> 9 | O99: =IFERROR(VLOOKUP($A99,Filtro_!$A$5:$AW$2624,14,FALSE),0) -> 12 | P99: =IFERROR(VLOOKUP($A99,Filtro_!$A$5:$AW$2624,15,FALSE),0) -> 4 | Q99: =IFERROR(VLOOKUP($A99,Filtro_!$A$5:$AW$2624,16,FALSE),0) -> 19 | R99: =IFERROR(VLOOKUP($A99,Filtro_!$A$5:$AW$2624,17,FALSE),0) -> 14 | S99: =IFERROR(VLOOKUP($A99,Filtro_!$A$5:$AW$2624,18,FALSE),0) -> 37 | T99: =IFERROR(VLOOKUP($A99,Filtro_!$A$5:$AW$2624,19,FALSE),0) -> 22 | U99: =IFERROR(VLOOKUP($A99,Filtro_!$A$5:$AW$2624,20,FALSE),0) -> 63 | V99: =IFERROR(VLOOKUP($A99,Filtro_!$A$5:$AW$2624,21,FALSE),0) -> 37 | W99: =IFERROR(VLOOKUP($A99,Filtro_!$A$5:$AW$2624,22,FALSE),0) -> 122 | X99: =IFERROR(VLOOKUP($A99,Filtro_!$A$5:$AW$2624,23,FALSE),0) -> 70 | Y99: =IFERROR(VLOOKUP($A99,Filtro_!$A$5:$AW$2624,24,FALSE),0) -> 146 | Z99: =IFERROR(VLOOKUP($A99,Filtro_!$A$5:$AW$2624,25,FALSE),0) -> 126 | AA99: =IFERROR(VLOOKUP($A99,Filtro_!$A$5:$AW$2624,26,FALSE),0) -> 224 | AB99: =IFERROR(VLOOKUP($A99,Filtro_!$A$5:$AW$2624,27,FALSE),0) -> 92 | AC99: =IFERROR(VLOOKUP($A99,Filtro_!$A$5:$AW$2624,28,FALSE),0) -> 170 | AD99: =IFERROR(VLOOKUP($A99,Filtro_!$A$5:$AW$2624,29,FALSE),0) -> 69 | AE99: =IFERROR(VLOOKUP($A99,Filtro_!$A$5:$AW$2624,30,FALSE),0) -> 140 | AF99: =IFERROR(VLOOKUP($A99,Filtro_!$A$5:$AW$2624,31,FALSE),0) -> 86 | AG99: =IFERROR(VLOOKUP($A99,Filtro_!$A$5:$AW$2624,32,FALSE),0) -> 145 | AH99: =IFERROR(VLOOKUP($A99,Filtro_!$A$5:$AW$2624,33,FALSE),0) -> 5 | AI99: =IFERROR(VLOOKUP($A99,Filtro_!$A$5:$AW$2624,34,FALSE),0) -> 0 | DA99: 0 | DB99: 0
A100: 01502030 | B100: SEGUIMIENTO A DISTANCIA CON RIESGO LEVE (G1) | C100: 0 | D100: 0 | E100: 0 | F100: =IFERROR(VLOOKUP($A100,Filtro_!$A$5:$AW$2624,5,FALSE),0) -> 0 | G100: =IFERROR(VLOOKUP($A100,Filtro_!$A$5:$AW$2624,6,FALSE),0) -> 0 | H100: =IFERROR(VLOOKUP($A100,Filtro_!$A$5:$AW$2624,7,FALSE),0) -> 0 | I100: =IFERROR(VLOOKUP($A100,Filtro_!$A$5:$AW$2624,8,FALSE),0) -> 0 | J100: =IFERROR(VLOOKUP($A100,Filtro_!$A$5:$AW$2624,9,FALSE),0) -> 0 | K100: =IFERROR(VLOOKUP($A100,Filtro_!$A$5:$AW$2624,10,FALSE),0) -> 0 | L100: =IFERROR(VLOOKUP($A100,Filtro_!$A$5:$AW$2624,11,FALSE),0) -> 0 | M100: =IFERROR(VLOOKUP($A100,Filtro_!$A$5:$AW$2624,12,FALSE),0) -> 0 | N100: =IFERROR(VLOOKUP($A100,Filtro_!$A$5:$AW$2624,13,FALSE),0) -> 0 | O100: =IFERROR(VLOOKUP($A100,Filtro_!$A$5:$AW$2624,14,FALSE),0) -> 0 | P100: =IFERROR(VLOOKUP($A100,Filtro_!$A$5:$AW$2624,15,FALSE),0) -> 0 | Q100: =IFERROR(VLOOKUP($A100,Filtro_!$A$5:$AW$2624,16,FALSE),0) -> 0 | R100: =IFERROR(VLOOKUP($A100,Filtro_!$A$5:$AW$2624,17,FALSE),0) -> 0 | S100: =IFERROR(VLOOKUP($A100,Filtro_!$A$5:$AW$2624,18,FALSE),0) -> 0 | T100: =IFERROR(VLOOKUP($A100,Filtro_!$A$5:$AW$2624,19,FALSE),0) -> 0 | U100: =IFERROR(VLOOKUP($A100,Filtro_!$A$5:$AW$2624,20,FALSE),0) -> 0 | V100: =IFERROR(VLOOKUP($A100,Filtro_!$A$5:$AW$2624,21,FALSE),0) -> 0 | W100: =IFERROR(VLOOKUP($A100,Filtro_!$A$5:$AW$2624,22,FALSE),0) -> 0 | X100: =IFERROR(VLOOKUP($A100,Filtro_!$A$5:$AW$2624,23,FALSE),0) -> 0 | Y100: =IFERROR(VLOOKUP($A100,Filtro_!$A$5:$AW$2624,24,FALSE),0) -> 0 | Z100: =IFERROR(VLOOKUP($A100,Filtro_!$A$5:$AW$2624,25,FALSE),0) -> 0 | AA100: =IFERROR(VLOOKUP($A100,Filtro_!$A$5:$AW$2624,26,FALSE),0) -> 0 | AB100: =IFERROR(VLOOKUP($A100,Filtro_!$A$5:$AW$2624,27,FALSE),0) -> 0 | AC100: =IFERROR(VLOOKUP($A100,Filtro_!$A$5:$AW$2624,28,FALSE),0) -> 0 | AD100: =IFERROR(VLOOKUP($A100,Filtro_!$A$5:$AW$2624,29,FALSE),0) -> 0 | AE100: =IFERROR(VLOOKUP($A100,Filtro_!$A$5:$AW$2624,30,FALSE),0) -> 0 | AF100: =IFERROR(VLOOKUP($A100,Filtro_!$A$5:$AW$2624,31,FALSE),0) -> 0 | AG100: =IFERROR(VLOOKUP($A100,Filtro_!$A$5:$AW$2624,32,FALSE),0) -> 0 | AH100: =IFERROR(VLOOKUP($A100,Filtro_!$A$5:$AW$2624,33,FALSE),0) -> 0 | AI100: =IFERROR(VLOOKUP($A100,Filtro_!$A$5:$AW$2624,34,FALSE),0) -> 0 | DA100: 0 | DB100: 0
A101: 01502040 | B101: SEGUIMIENTO A DISTANCIA CON RIESGO MODERADO (G2) | C101: 6 | D101: 0 | E101: 6 | F101: =IFERROR(VLOOKUP($A101,Filtro_!$A$5:$AW$2624,5,FALSE),0) -> 0 | G101: =IFERROR(VLOOKUP($A101,Filtro_!$A$5:$AW$2624,6,FALSE),0) -> 0 | H101: =IFERROR(VLOOKUP($A101,Filtro_!$A$5:$AW$2624,7,FALSE),0) -> 0 | I101: =IFERROR(VLOOKUP($A101,Filtro_!$A$5:$AW$2624,8,FALSE),0) -> 0 | J101: =IFERROR(VLOOKUP($A101,Filtro_!$A$5:$AW$2624,9,FALSE),0) -> 0 | K101: =IFERROR(VLOOKUP($A101,Filtro_!$A$5:$AW$2624,10,FALSE),0) -> 1 | L101: =IFERROR(VLOOKUP($A101,Filtro_!$A$5:$AW$2624,11,FALSE),0) -> 0 | M101: =IFERROR(VLOOKUP($A101,Filtro_!$A$5:$AW$2624,12,FALSE),0) -> 0 | N101: =IFERROR(VLOOKUP($A101,Filtro_!$A$5:$AW$2624,13,FALSE),0) -> 0 | O101: =IFERROR(VLOOKUP($A101,Filtro_!$A$5:$AW$2624,14,FALSE),0) -> 0 | P101: =IFERROR(VLOOKUP($A101,Filtro_!$A$5:$AW$2624,15,FALSE),0) -> 0 | Q101: =IFERROR(VLOOKUP($A101,Filtro_!$A$5:$AW$2624,16,FALSE),0) -> 0 | R101: =IFERROR(VLOOKUP($A101,Filtro_!$A$5:$AW$2624,17,FALSE),0) -> 0 | S101: =IFERROR(VLOOKUP($A101,Filtro_!$A$5:$AW$2624,18,FALSE),0) -> 1 | T101: =IFERROR(VLOOKUP($A101,Filtro_!$A$5:$AW$2624,19,FALSE),0) -> 0 | U101: =IFERROR(VLOOKUP($A101,Filtro_!$A$5:$AW$2624,20,FALSE),0) -> 0 | V101: =IFERROR(VLOOKUP($A101,Filtro_!$A$5:$AW$2624,21,FALSE),0) -> 0 | W101: =IFERROR(VLOOKUP($A101,Filtro_!$A$5:$AW$2624,22,FALSE),0) -> 0 | X101: =IFERROR(VLOOKUP($A101,Filtro_!$A$5:$AW$2624,23,FALSE),0) -> 0 | Y101: =IFERROR(VLOOKUP($A101,Filtro_!$A$5:$AW$2624,24,FALSE),0) -> 0 | Z101: =IFERROR(VLOOKUP($A101,Filtro_!$A$5:$AW$2624,25,FALSE),0) -> 0 | AA101: =IFERROR(VLOOKUP($A101,Filtro_!$A$5:$AW$2624,26,FALSE),0) -> 1 | AB101: =IFERROR(VLOOKUP($A101,Filtro_!$A$5:$AW$2624,27,FALSE),0) -> 0 | AC101: =IFERROR(VLOOKUP($A101,Filtro_!$A$5:$AW$2624,28,FALSE),0) -> 0 | AD101: =IFERROR(VLOOKUP($A101,Filtro_!$A$5:$AW$2624,29,FALSE),0) -> 0 | AE101: =IFERROR(VLOOKUP($A101,Filtro_!$A$5:$AW$2624,30,FALSE),0) -> 3 | AF101: =IFERROR(VLOOKUP($A101,Filtro_!$A$5:$AW$2624,31,FALSE),0) -> 0 | AG101: =IFERROR(VLOOKUP($A101,Filtro_!$A$5:$AW$2624,32,FALSE),0) -> 0 | AH101: =IFERROR(VLOOKUP($A101,Filtro_!$A$5:$AW$2624,33,FALSE),0) -> 0 | AI101: =IFERROR(VLOOKUP($A101,Filtro_!$A$5:$AW$2624,34,FALSE),0) -> 0 | DA101: 0 | DB101: 0
A102: 01501040 | B102: SEGUIMIENTO A DISTANCIA CON RIESGO ALTO (G3) | C102: 1851 | D102: 549 | E102: 1302 | F102: =IFERROR(VLOOKUP($A102,Filtro_!$A$5:$AW$2624,5,FALSE),0) -> 0 | G102: =IFERROR(VLOOKUP($A102,Filtro_!$A$5:$AW$2624,6,FALSE),0) -> 0 | H102: =IFERROR(VLOOKUP($A102,Filtro_!$A$5:$AW$2624,7,FALSE),0) -> 0 | I102: =IFERROR(VLOOKUP($A102,Filtro_!$A$5:$AW$2624,8,FALSE),0) -> 4 | J102: =IFERROR(VLOOKUP($A102,Filtro_!$A$5:$AW$2624,9,FALSE),0) -> 0 | K102: =IFERROR(VLOOKUP($A102,Filtro_!$A$5:$AW$2624,10,FALSE),0) -> 0 | L102: =IFERROR(VLOOKUP($A102,Filtro_!$A$5:$AW$2624,11,FALSE),0) -> 2 | M102: =IFERROR(VLOOKUP($A102,Filtro_!$A$5:$AW$2624,12,FALSE),0) -> 4 | N102: =IFERROR(VLOOKUP($A102,Filtro_!$A$5:$AW$2624,13,FALSE),0) -> 2 | O102: =IFERROR(VLOOKUP($A102,Filtro_!$A$5:$AW$2624,14,FALSE),0) -> 12 | P102: =IFERROR(VLOOKUP($A102,Filtro_!$A$5:$AW$2624,15,FALSE),0) -> 1 | Q102: =IFERROR(VLOOKUP($A102,Filtro_!$A$5:$AW$2624,16,FALSE),0) -> 20 | R102: =IFERROR(VLOOKUP($A102,Filtro_!$A$5:$AW$2624,17,FALSE),0) -> 5 | S102: =IFERROR(VLOOKUP($A102,Filtro_!$A$5:$AW$2624,18,FALSE),0) -> 21 | T102: =IFERROR(VLOOKUP($A102,Filtro_!$A$5:$AW$2624,19,FALSE),0) -> 14 | U102: =IFERROR(VLOOKUP($A102,Filtro_!$A$5:$AW$2624,20,FALSE),0) -> 99 | V102: =IFERROR(VLOOKUP($A102,Filtro_!$A$5:$AW$2624,21,FALSE),0) -> 28 | W102: =IFERROR(VLOOKUP($A102,Filtro_!$A$5:$AW$2624,22,FALSE),0) -> 144 | X102: =IFERROR(VLOOKUP($A102,Filtro_!$A$5:$AW$2624,23,FALSE),0) -> 78 | Y102: =IFERROR(VLOOKUP($A102,Filtro_!$A$5:$AW$2624,24,FALSE),0) -> 206 | Z102: =IFERROR(VLOOKUP($A102,Filtro_!$A$5:$AW$2624,25,FALSE),0) -> 167 | AA102: =IFERROR(VLOOKUP($A102,Filtro_!$A$5:$AW$2624,26,FALSE),0) -> 343 | AB102: =IFERROR(VLOOKUP($A102,Filtro_!$A$5:$AW$2624,27,FALSE),0) -> 107 | AC102: =IFERROR(VLOOKUP($A102,Filtro_!$A$5:$AW$2624,28,FALSE),0) -> 210 | AD102: =IFERROR(VLOOKUP($A102,Filtro_!$A$5:$AW$2624,29,FALSE),0) -> 69 | AE102: =IFERROR(VLOOKUP($A102,Filtro_!$A$5:$AW$2624,30,FALSE),0) -> 114 | AF102: =IFERROR(VLOOKUP($A102,Filtro_!$A$5:$AW$2624,31,FALSE),0) -> 76 | AG102: =IFERROR(VLOOKUP($A102,Filtro_!$A$5:$AW$2624,32,FALSE),0) -> 125 | AH102: =IFERROR(VLOOKUP($A102,Filtro_!$A$5:$AW$2624,33,FALSE),0) -> 2 | AI102: =IFERROR(VLOOKUP($A102,Filtro_!$A$5:$AW$2624,34,FALSE),0) -> 2 | DA102: 0 | DB102: 0
A105: CODIGOS NUEVOS
A106: 09600204
A107: 09600205
A108: 09600206
A109: CODIGOS ELIMINADOS
A110: 01200035
B193: =SUM(D12:D33,V32:W33,Y20:Y23,X14:X15,D37:D40,E37:F40,D45:F67,D71:D75,I71:I75,C80:C84,D88:D92,C97:C99) -> 1140235 | C193: =SUM(DB1:EA99) -> 23

Sheet A02
B1: SERVICIO DE SALUD
B2: =CONCATENATE("COMUNA: ",NOMBRE!B2," - ","( ",NOMBRE!C2,NOMBRE!D2,NOMBRE!E2,NOMBRE!F2,NOMBRE!G2," )") -> COMUNA: - ( )
B3: =CONCATENATE("ESTABLECIMIENTO/ESTRATEGIA: ",NOMBRE!B3," - ","( ",NOMBRE!C3,NOMBRE!D3,NOMBRE!E3,NOMBRE!F3,NOMBRE!G3,NOMBRE!H3," )") -> ESTABLECIMIENTO/ESTRATEGIA: - ( )
B4: =CONCATENATE("MES: ",NOMBRE!B6," - ","( ",NOMBRE!C6,NOMBRE!D6," )") -> MES: - ( )
B5: =CONCATENATE("AÑO: ",NOMBRE!B7) -> AÑO: 2023
B6: REM-A02. EXAMEN DE MEDICINA PREVENTIVA EN MAYORES DE 15 AÑOS
B8: SECCIÓN A: EMP REALIZADO POR PROFESIONAL
B9: PROFESIONAL | C9: TOTAL | F9: Pueblos Originarios | G9: Migrantes
C10: Ambos Sexos | D10: Hombres | E10: Mujeres
B11: TOTAL | C11: =SUM(C12:C17) -> 92732 | D11: =SUM(D12:D17) -> 32727 | E11: =SUM(E12:E17) -> 60005 | F11: =SUM(F12:F17) -> 298 | G11: =SUM(G12:G17) -> 1141
A12: 03030101 | B12: MÉDICO/A | C12: =SUM(D12:E12) -> 797 | D12: =IFERROR(VLOOKUP($A12,Filtro_!$A$5:$AW$2624,3,FALSE),0) -> 306 | E12: =IFERROR(VLOOKUP($A12,Filtro_!$A$5:$AW$2624,4,FALSE),0) -> 491 | F12: =IFERROR(VLOOKUP($A12,Filtro_!$A$5:$AW$2624,5,FALSE),0) -> 0 | G12: =IFERROR(VLOOKUP($A12,Filtro_!$A$5:$AW$2624,6,FALSE),0) -> 2
A13: 03030102 | B13: ENFERMERA/O | C13: 55896 | D13: =IFERROR(VLOOKUP($A13,Filtro_!$A$5:$AW$2624,3,FALSE),0) -> 21020 | E13: =IFERROR(VLOOKUP($A13,Filtro_!$A$5:$AW$2624,4,FALSE),0) -> 34876 | F13: =IFERROR(VLOOKUP($A13,Filtro_!$A$5:$AW$2624,5,FALSE),0) -> 163 | G13: =IFERROR(VLOOKUP($A13,Filtro_!$A$5:$AW$2624,6,FALSE),0) -> 504
A14: 03030103 | B14: MATRONA/ÓN | C14: 3225 | D14: =IFERROR(VLOOKUP($A14,Filtro_!$A$5:$AW$2624,3,FALSE),0) -> 200 | E14: =IFERROR(VLOOKUP($A14,Filtro_!$A$5:$AW$2624,4,FALSE),0) -> 3025 | F14: =IFERROR(VLOOKUP($A14,Filtro_!$A$5:$AW$2624,5,FALSE),0) -> 9 | G14: =IFERROR(VLOOKUP($A14,Filtro_!$A$5:$AW$2624,6,FALSE),0) -> 49
A15: 03030104 | B15: NUTRICIONISTA | C15: 6017 | D15: =IFERROR(VLOOKUP($A15,Filtro_!$A$5:$AW$2624,3,FALSE),0) -> 2038 | E15: =IFERROR(VLOOKUP($A15,Filtro_!$A$5:$AW$2624,4,FALSE),0) -> 3979 | F15: =IFERROR(VLOOKUP($A15,Filtro_!$A$5:$AW$2624,5,FALSE),0) -> 8 | G15: =IFERROR(VLOOKUP($A15,Filtro_!$A$5:$AW$2624,6,FALSE),0) -> 111
A16: 03030350 | B16: OTRO PROFESIONAL (capacitados en EMP Y EMPAM) | C16: 10256 | D16: =IFERROR(VLOOKUP($A16,Filtro_!$A$5:$AW$2624,3,FALSE),0) -> 3770 | E16: =IFERROR(VLOOKUP($A16,Filtro_!$A$5:$AW$2624,4,FALSE),0) -> 6486 | F16: =IFERROR(VLOOKUP($A16,Filtro_!$A$5:$AW$2624,5,FALSE),0) -> 18 | G16: =IFERROR(VLOOKUP($A16,Filtro_!$A$5:$AW$2624,6,FALSE),0) -> 135
A17: 03030110 | B17: TÉCNICO EN ENFERMERÍA | C17: 16541 | D17: =IFERROR(VLOOKUP($A17,Filtro_!$A$5:$AW$2624,3,FALSE),0) -> 5393 | E17: =IFERROR(VLOOKUP($A17,Filtro_!$A$5:$AW$2624,4,FALSE),0) -> 11148 | F17: =IFERROR(VLOOKUP($A17,Filtro_!$A$5:$AW$2624,5,FALSE),0) -> 100 | G17: =IFERROR(VLOOKUP($A17,Filtro_!$A$5:$AW$2624,6,FALSE),0) -> 340
B18: SECCIÓN B: EMP SEGÚN RESULTADO DEL ESTADO NUTRICIONAL
B19: ESTADO NUTRICIONAL | C19: TOTAL | F19: 15 a 19 años | H19: 20 a 24 años | J19: 25 a 29 años | L19: 30 a 34 años | N19: 35 a 39 años | P19: 40 a 44 años | R19: 45 a 49 años | T19: 50 a 54 años | V19: 55 a 59 años | X19: 60 a 64 años | Z19: 65 a 69 años | AB19: 70 a 74 años | AD19: 75 a 79 años | AF19: 80 y más años | AH19: Pueblos Originarios | AI19: Migrantes
C20: Ambos Sexos | D20: Hombres | E20: Mujeres | F20: Hombres | G20: Mujeres | H20: Hombres | I20: Mujeres | J20: Hombres | K20: Mujeres | L20: Hombres | M20: Mujeres | N20: Hombres | O20: Mujeres | P20: Hombres | Q20: Mujeres | R20: Hombres | S20: Mujeres | T20: Hombres | U20: Mujeres | V20: Hombres | W20: Mujeres | X20: Hombres | Y20: Mujeres | Z20: Hombres | AA20: Mujeres | AB20: Hombres | AC20: Mujeres | AD20: Hombres | AE20: Mujeres | AF20: Hombres | AG20: Mujeres
B21: TOTAL | C21: =SUM(C22:C25) -> 92360 | D21: =SUM(D22:D25) -> 32506 | E21: =SUM(E22:E25) -> 59854 | F21: =SUM(F22:F25) -> 311 | G21: 541 | H21: 2018 | I21: 4236 | J21: 2156 | K21: 4804 | L21: 2271 | M21: 5374 | N21: 2042 | O21: 4902 | P21: 2007 | Q21: 4338 | R21: 1883 | S21: 3992 | T21: 1833 | U21: 3523 | V21: 1722 | W21: 2813 | X21: 1447 | Y21: 2123 | Z21: 3737 | AA21: 6181 | AB21: 3739 | AC21: 5649 | AD21: 3211 | AE21: 4745 | AF21: 4129 | AG21: 6633 | AH21: =SUM(AH22:AH25) -> 287 | AI21: =SUM(AI22:AI25) -> 1017 | CA21: * Debe coincidir el total de EMP según Estado Nutricional con EMP realizado según profesional. | DA21: 1
A22: 03030330 | B22: NORMAL | C22: =SUM(D22:E22) -> 28303 | D22: =SUM(F22+H22+J22+L22+N22+P22+R22+T22+V22+X22+Z22+AB22+AD22+AF22) -> 11002 | E22: =SUM(G22+I22+K22+M22+O22+Q22+S22+U22+W22+Y22+AA22+AC22+AE22+AG22) -> 17301 | F22: =IFERROR(VLOOKUP($A22,Filtro_!$A$5:$AW$2624,5,FALSE),0) -> 153 | G22: =IFERROR(VLOOKUP($A22,Filtro_!$A$5:$AW$2624,6,FALSE),0) -> 241 | H22: =IFERROR(VLOOKUP($A22,Filtro_!$A$5:$AW$2624,7,FALSE),0) -> 905 | I22: =IFERROR(VLOOKUP($A22,Filtro_!$A$5:$AW$2624,8,FALSE),0) -> 1528 | J22: =IFERROR(VLOOKUP($A22,Filtro_!$A$5:$AW$2624,9,FALSE),0) -> 715 | K22: =IFERROR(VLOOKUP($A22,Filtro_!$A$5:$AW$2624,10,FALSE),0) -> 1384 | L22: =IFERROR(VLOOKUP($A22,Filtro_!$A$5:$AW$2624,11,FALSE),0) -> 587 | M22: =IFERROR(VLOOKUP($A22,Filtro_!$A$5:$AW$2624,12,FALSE),0) -> 1393 | N22: =IFERROR(VLOOKUP($A22,Filtro_!$A$5:$AW$2624,13,FALSE),0) -> 461 | O22: =IFERROR(VLOOKUP($A22,Filtro_!$A$5:$AW$2624,14,FALSE),0) -> 1112 | P22: =IFERROR(VLOOKUP($A22,Filtro_!$A$5:$AW$2624,15,FALSE),0) -> 403 | Q22: =IFERROR(VLOOKUP($A22,Filtro_!$A$5:$AW$2624,16,FALSE),0) -> 934 | R22: =IFERROR(VLOOKUP($A22,Filtro_!$A$5:$AW$2624,17,FALSE),0) -> 371 | S22: =IFERROR(VLOOKUP($A22,Filtro_!$A$5:$AW$2624,18,FALSE),0) -> 811 | T22: =IFERROR(VLOOKUP($A22,Filtro_!$A$5:$AW$2624,19,FALSE),0) -> 356 | U22: =IFERROR(VLOOKUP($A22,Filtro_!$A$5:$AW$2624,20,FALSE),0) -> 638 | V22: =IFERROR(VLOOKUP($A22,Filtro_!$A$5:$AW$2624,21,FALSE),0) -> 339 | W22: =IFERROR(VLOOKUP($A22,Filtro_!$A$5:$AW$2624,22,FALSE),0) -> 614 | X22: =IFERROR(VLOOKUP($A22,Filtro_!$A$5:$AW$2624,23,FALSE),0) -> 321 | Y22: =IFERROR(VLOOKUP($A22,Filtro_!$A$5:$AW$2624,24,FALSE),0) -> 509 | Z22: =IFERROR(VLOOKUP($A22,Filtro_!$A$5:$AW$2624,25,FALSE),0) -> 1442 | AA22: =IFERROR(VLOOKUP($A22,Filtro_!$A$5:$AW$2624,26,FALSE),0) -> 1951 | AB22: =IFERROR(VLOOKUP($A22,Filtro_!$A$5:$AW$2624,27,FALSE),0) -> 1504 | AC22: =IFERROR(VLOOKUP($A22,Filtro_!$A$5:$AW$2624,28,FALSE),0) -> 1823 | AD22: =IFERROR(VLOOKUP($A22,Filtro_!$A$5:$AW$2624,29,FALSE),0) -> 1428 | AE22: =IFERROR(VLOOKUP($A22,Filtro_!$A$5:$AW$2624,30,FALSE),0) -> 1667 | AF22: =IFERROR(VLOOKUP($A22,Filtro_!$A$5:$AW$2624,31,FALSE),0) -> 2017 | AG22: =IFERROR(VLOOKUP($A22,Filtro_!$A$5:$AW$2624,32,FALSE),0) -> 2696 | AH22: =IFERROR(VLOOKUP($A22,Filtro_!$A$5:$AW$2624,33,FALSE),0) -> 83 | AI22: =IFERROR(VLOOKUP($A22,Filtro_!$A$5:$AW$2624,34,FALSE),0) -> 283
A23: 03030340 | B23: BAJO PESO | C23: =SUM(D23:E23) -> 4290 | D23: =SUM(F23+H23+J23+L23+N23+P23+R23+T23+V23+X23+Z23+AB23+AD23+AF23) -> 1670 | E23: 2620 | F23: =IFERROR(VLOOKUP($A23,Filtro_!$A$5:$AW$2624,5,FALSE),0) -> 38 | G23: =IFERROR(VLOOKUP($A23,Filtro_!$A$5:$AW$2624,6,FALSE),0) -> 13 | H23: =IFERROR(VLOOKUP($A23,Filtro_!$A$5:$AW$2624,7,FALSE),0) -> 54 | I23: =IFERROR(VLOOKUP($A23,Filtro_!$A$5:$AW$2624,8,FALSE),0) -> 110 | J23: =IFERROR(VLOOKUP($A23,Filtro_!$A$5:$AW$2624,9,FALSE),0) -> 36 | K23: =IFERROR(VLOOKUP($A23,Filtro_!$A$5:$AW$2624,10,FALSE),0) -> 59 | L23: =IFERROR(VLOOKUP($A23,Filtro_!$A$5:$AW$2624,11,FALSE),0) -> 20 | M23: =IFERROR(VLOOKUP($A23,Filtro_!$A$5:$AW$2624,12,FALSE),0) -> 44 | N23: =IFERROR(VLOOKUP($A23,Filtro_!$A$5:$AW$2624,13,FALSE),0) -> 9 | O23: =IFERROR(VLOOKUP($A23,Filtro_!$A$5:$AW$2624,14,FALSE),0) -> 33 | P23: =IFERROR(VLOOKUP($A23,Filtro_!$A$5:$AW$2624,15,FALSE),0) -> 11 | Q23: =IFERROR(VLOOKUP($A23,Filtro_!$A$5:$AW$2624,16,FALSE),0) -> 31 | R23: =IFERROR(VLOOKUP($A23,Filtro_!$A$5:$AW$2624,17,FALSE),0) -> 15 | S23: =IFERROR(VLOOKUP($A23,Filtro_!$A$5:$AW$2624,18,FALSE),0) -> 30 | T23: =IFERROR(VLOOKUP($A23,Filtro_!$A$5:$AW$2624,19,FALSE),0) -> 7 | U23: =IFERROR(VLOOKUP($A23,Filtro_!$A$5:$AW$2624,20,FALSE),0) -> 24 | V23: =IFERROR(VLOOKUP($A23,Filtro_!$A$5:$AW$2624,21,FALSE),0) -> 15 | W23: =IFERROR(VLOOKUP($A23,Filtro_!$A$5:$AW$2624,22,FALSE),0) -> 20 | X23: =IFERROR(VLOOKUP($A23,Filtro_!$A$5:$AW$2624,23,FALSE),0) -> 16 | Y23: =IFERROR(VLOOKUP($A23,Filtro_!$A$5:$AW$2624,24,FALSE),0) -> 28 | Z23: =IFERROR(VLOOKUP($A23,Filtro_!$A$5:$AW$2624,25,FALSE),0) -> 208 | AA23: =IFERROR(VLOOKUP($A23,Filtro_!$A$5:$AW$2624,26,FALSE),0) -> 332 | AB23: =IFERROR(VLOOKUP($A23,Filtro_!$A$5:$AW$2624,27,FALSE),0) -> 327 | AC23: =IFERROR(VLOOKUP($A23,Filtro_!$A$5:$AW$2624,28,FALSE),0) -> 384 | AD23: =IFERROR(VLOOKUP($A23,Filtro_!$A$5:$AW$2624,29,FALSE),0) -> 288 | AE23: =IFERROR(VLOOKUP($A23,Filtro_!$A$5:$AW$2624,30,FALSE),0) -> 435 | AF23: =IFERROR(VLOOKUP($A23,Filtro_!$A$5:$AW$2624,31,FALSE),0) -> 626 | AG23: =IFERROR(VLOOKUP($A23,Filtro_!$A$5:$AW$2624,32,FALSE),0) -> 1077 | AH23: =IFERROR(VLOOKUP($A23,Filtro_!$A$5:$AW$2624,33,FALSE),0) -> 17 | AI23: =IFERROR(VLOOKUP($A23,Filtro_!$A$5:$AW$2624,34,FALSE),0) -> 60
A24: 03030120 | B24: SOBREPESO | C24: =SUM(D24:E24) -> 32233 | D24: 12054 | E24: 20179 | F24: =IFERROR(VLOOKUP($A24,Filtro_!$A$5:$AW$2624,5,FALSE),0) -> 62 | G24: =IFERROR(VLOOKUP($A24,Filtro_!$A$5:$AW$2624,6,FALSE),0) -> 148 | H24: =IFERROR(VLOOKUP($A24,Filtro_!$A$5:$AW$2624,7,FALSE),0) -> 647 | I24: =IFERROR(VLOOKUP($A24,Filtro_!$A$5:$AW$2624,8,FALSE),0) -> 1332 | J24: =IFERROR(VLOOKUP($A24,Filtro_!$A$5:$AW$2624,9,FALSE),0) -> 836 | K24: =IFERROR(VLOOKUP($A24,Filtro_!$A$5:$AW$2624,10,FALSE),0) -> 1640 | L24: =IFERROR(VLOOKUP($A24,Filtro_!$A$5:$AW$2624,11,FALSE),0) -> 986 | M24: =IFERROR(VLOOKUP($A24,Filtro_!$A$5:$AW$2624,12,FALSE),0) -> 1876 | N24: =IFERROR(VLOOKUP($A24,Filtro_!$A$5:$AW$2624,13,FALSE),0) -> 929 | O24: =IFERROR(VLOOKUP($A24,Filtro_!$A$5:$AW$2624,14,FALSE),0) -> 1866 | P24: =IFERROR(VLOOKUP($A24,Filtro_!$A$5:$AW$2624,15,FALSE),0) -> 928 | Q24: =IFERROR(VLOOKUP($A24,Filtro_!$A$5:$AW$2624,16,FALSE),0) -> 1681 | R24: =IFERROR(VLOOKUP($A24,Filtro_!$A$5:$AW$2624,17,FALSE),0) -> 850 | S24: =IFERROR(VLOOKUP($A24,Filtro_!$A$5:$AW$2624,18,FALSE),0) -> 1635 | T24: =IFERROR(VLOOKUP($A24,Filtro_!$A$5:$AW$2624,19,FALSE),0) -> 852 | U24: =IFERROR(VLOOKUP($A24,Filtro_!$A$5:$AW$2624,20,FALSE),0) -> 1473 | V24: =IFERROR(VLOOKUP($A24,Filtro_!$A$5:$AW$2624,21,FALSE),0) -> 817 | W24: =IFERROR(VLOOKUP($A24,Filtro_!$A$5:$AW$2624,22,FALSE),0) -> 1145 | X24: =IFERROR(VLOOKUP($A24,Filtro_!$A$5:$AW$2624,23,FALSE),0) -> 706 | Y24: =IFERROR(VLOOKUP($A24,Filtro_!$A$5:$AW$2624,24,FALSE),0) -> 833 | Z24: =IFERROR(VLOOKUP($A24,Filtro_!$A$5:$AW$2624,25,FALSE),0) -> 1258 | AA24: =IFERROR(VLOOKUP($A24,Filtro_!$A$5:$AW$2624,26,FALSE),0) -> 1836 | AB24: =IFERROR(VLOOKUP($A24,Filtro_!$A$5:$AW$2624,27,FALSE),0) -> 1212 | AC24: =IFERROR(VLOOKUP($A24,Filtro_!$A$5:$AW$2624,28,FALSE),0) -> 1705 | AD24: =IFERROR(VLOOKUP($A24,Filtro_!$A$5:$AW$2624,29,FALSE),0) -> 970 | AE24: =IFERROR(VLOOKUP($A24,Filtro_!$A$5:$AW$2624,30,FALSE),0) -> 1428 | AF24: =IFERROR(VLOOKUP($A24,Filtro_!$A$5:$AW$2624,31,FALSE),0) -> 1001 | AG24: =IFERROR(VLOOKUP($A24,Filtro_!$A$5:$AW$2624,32,FALSE),0) -> 1581 | AH24: =IFERROR(VLOOKUP($A24,Filtro_!$A$5:$AW$2624,33,FALSE),0) -> 93 | AI24: =IFERROR(VLOOKUP($A24,Filtro_!$A$5:$AW$2624,34,FALSE),0) -> 371
A25: 03030130 | B25: OBESOS | C25: =SUM(D25:E25) -> 27534 | D25: 7780 | E25: 19754 | F25: =IFERROR(VLOOKUP($A25,Filtro_!$A$5:$AW$2624,5,FALSE),0) -> 58 | G25: =IFERROR(VLOOKUP($A25,Filtro_!$A$5:$AW$2624,6,FALSE),0) -> 139 | H25: =IFERROR(VLOOKUP($A25,Filtro_!$A$5:$AW$2624,7,FALSE),0) -> 412 | I25: =IFERROR(VLOOKUP($A25,Filtro_!$A$5:$AW$2624,8,FALSE),0) -> 1266 | J25: =IFERROR(VLOOKUP($A25,Filtro_!$A$5:$AW$2624,9,FALSE),0) -> 569 | K25: =IFERROR(VLOOKUP($A25,Filtro_!$A$5:$AW$2624,10,FALSE),0) -> 1721 | L25: =IFERROR(VLOOKUP($A25,Filtro_!$A$5:$AW$2624,11,FALSE),0) -> 678 | M25: =IFERROR(VLOOKUP($A25,Filtro_!$A$5:$AW$2624,12,FALSE),0) -> 2061 | N25: =IFERROR(VLOOKUP($A25,Filtro_!$A$5:$AW$2624,13,FALSE),0) -> 643 | O25: =IFERROR(VLOOKUP($A25,Filtro_!$A$5:$AW$2624,14,FALSE),0) -> 1891 | P25: =IFERROR(VLOOKUP($A25,Filtro_!$A$5:$AW$2624,15,FALSE),0) -> 665 | Q25: =IFERROR(VLOOKUP($A25,Filtro_!$A$5:$AW$2624,16,FALSE),0) -> 1692 | R25: =IFERROR(VLOOKUP($A25,Filtro_!$A$5:$AW$2624,17,FALSE),0) -> 647 | S25: =IFERROR(VLOOKUP($A25,Filtro_!$A$5:$AW$2624,18,FALSE),0) -> 1516 | T25: =IFERROR(VLOOKUP($A25,Filtro_!$A$5:$AW$2624,19,FALSE),0) -> 618 | U25: =IFERROR(VLOOKUP($A25,Filtro_!$A$5:$AW$2624,20,FALSE),0) -> 1388 | V25: =IFERROR(VLOOKUP($A25,Filtro_!$A$5:$AW$2624,21,FALSE),0) -> 551 | W25: =IFERROR(VLOOKUP($A25,Filtro_!$A$5:$AW$2624,22,FALSE),0) -> 1034 | X25: =IFERROR(VLOOKUP($A25,Filtro_!$A$5:$AW$2624,23,FALSE),0) -> 404 | Y25: =IFERROR(VLOOKUP($A25,Filtro_!$A$5:$AW$2624,24,FALSE),0) -> 753 | Z25: =IFERROR(VLOOKUP($A25,Filtro_!$A$5:$AW$2624,25,FALSE),0) -> 829 | AA25: =IFERROR(VLOOKUP($A25,Filtro_!$A$5:$AW$2624,26,FALSE),0) -> 2062 | AB25: =IFERROR(VLOOKUP($A25,Filtro_!$A$5:$AW$2624,27,FALSE),0) -> 696 | AC25: =IFERROR(VLOOKUP($A25,Filtro_!$A$5:$AW$2624,28,FALSE),0) -> 1737 | AD25: =IFERROR(VLOOKUP($A25,Filtro_!$A$5:$AW$2624,29,FALSE),0) -> 525 | AE25: =IFERROR(VLOOKUP($A25,Filtro_!$A$5:$AW$2624,30,FALSE),0) -> 1215 | AF25: =IFERROR(VLOOKUP($A25,Filtro_!$A$5:$AW$2624,31,FALSE),0) -> 485 | AG25: =IFERROR(VLOOKUP($A25,Filtro_!$A$5:$AW$2624,32,FALSE),0) -> 1279 | AH25: =IFERROR(VLOOKUP($A25,Filtro_!$A$5:$AW$2624,33,FALSE),0) -> 94 | AI25: =IFERROR(VLOOKUP($A25,Filtro_!$A$5:$AW$2624,34,FALSE),0) -> 303
B26: SECCIÓN C: RESULTADOS DE EMP SEGÚN ESTADO DE SALUD
B27: ESTADO DE SALUD | C27: TOTAL | F27: 15 a 19 años | H27: 20 a 24 años | J27: 25 a 29 años | L27: 30 a 34 años | N27: 35 a 39 años | P27: 40 a 44 años | R27: 45 a 49 años | T27: 50 a 54 años | V27: 55 a 59 años | X27: 60 a 64 años | Z27: 65 a 69 años | AB27: 70 a 74 años | AD27: 75 a 79 años | AF27: 80 y más años | AH27: Pueblos Originarios | AI27: Migrantes
C28: Ambos Sexos | D28: Hombres | E28: Mujeres | F28: Hombres | G28: Mujeres | H28: Hombres | I28: Mujeres | J28: Hombres | K28: Mujeres | L28: Hombres | M28: Mujeres | N28: Hombres | O28: Mujeres | P28: Hombres | Q28: Mujeres | R28: Hombres | S28: Mujeres | T28: Hombres | U28: Mujeres | V28: Hombres | W28: Mujeres | X28: Hombres | Y28: Mujeres | Z28: Hombres | AA28: Mujeres | AB28: Hombres | AC28: Mujeres | AD28: Hombres | AE28: Mujeres | AF28: Hombres | AG28: Mujeres
A29: 02200010 | B29: TABAQUISMO | C29: =SUM(D29:E29) -> 15391 | D29: =SUM(F29+H29+J29+L29+N29+P29+R29+T29+V29+X29+Z29+AB29+AD29+AF29) -> 5815 | E29: =SUM(G29+I29+K29+M29+O29+Q29+S29+U29+W29+Y29+AA29+AC29+AE29+AG29) -> 9576 | F29: =IFERROR(VLOOKUP($A29,Filtro_!$A$5:$AW$2624,5,FALSE),0) -> 24 | G29: =IFERROR(VLOOKUP($A29,Filtro_!$A$5:$AW$2624,6,FALSE),0) -> 44 | H29: =IFERROR(VLOOKUP($A29,Filtro_!$A$5:$AW$2624,7,FALSE),0) -> 542 | I29: =IFERROR(VLOOKUP($A29,Filtro_!$A$5:$AW$2624,8,FALSE),0) -> 946 | J29: =IFERROR(VLOOKUP($A29,Filtro_!$A$5:$AW$2624,9,FALSE),0) -> 689 | K29: =IFERROR(VLOOKUP($A29,Filtro_!$A$5:$AW$2624,10,FALSE),0) -> 1112 | L29: =IFERROR(VLOOKUP($A29,Filtro_!$A$5:$AW$2624,11,FALSE),0) -> 661 | M29: =IFERROR(VLOOKUP($A29,Filtro_!$A$5:$AW$2624,12,FALSE),0) -> 1303 | N29: =IFERROR(VLOOKUP($A29,Filtro_!$A$5:$AW$2624,13,FALSE),0) -> 645 | O29: =IFERROR(VLOOKUP($A29,Filtro_!$A$5:$AW$2624,14,FALSE),0) -> 1258 | P29: =IFERROR(VLOOKUP($A29,Filtro_!$A$5:$AW$2624,15,FALSE),0) -> 645 | Q29: =IFERROR(VLOOKUP($A29,Filtro_!$A$5:$AW$2624,16,FALSE),0) -> 1155 | R29: =IFERROR(VLOOKUP($A29,Filtro_!$A$5:$AW$2624,17,FALSE),0) -> 549 | S29: =IFERROR(VLOOKUP($A29,Filtro_!$A$5:$AW$2624,18,FALSE),0) -> 1019 | T29: =IFERROR(VLOOKUP($A29,Filtro_!$A$5:$AW$2624,19,FALSE),0) -> 525 | U29: =IFERROR(VLOOKUP($A29,Filtro_!$A$5:$AW$2624,20,FALSE),0) -> 828 | V29: =IFERROR(VLOOKUP($A29,Filtro_!$A$5:$AW$2624,21,FALSE),0) -> 466 | W29: =IFERROR(VLOOKUP($A29,Filtro_!$A$5:$AW$2624,22,FALSE),0) -> 564 | X29: =IFERROR(VLOOKUP($A29,Filtro_!$A$5:$AW$2624,23,FALSE),0) -> 296 | Y29: =IFERROR(VLOOKUP($A29,Filtro_!$A$5:$AW$2624,24,FALSE),0) -> 401 | Z29: =IFERROR(VLOOKUP($A29,Filtro_!$A$5:$AW$2624,25,FALSE),0) -> 291 | AA29: =IFERROR(VLOOKUP($A29,Filtro_!$A$5:$AW$2624,26,FALSE),0) -> 410 | AB29: =IFERROR(VLOOKUP($A29,Filtro_!$A$5:$AW$2624,27,FALSE),0) -> 232 | AC29: =IFERROR(VLOOKUP($A29,Filtro_!$A$5:$AW$2624,28,FALSE),0) -> 275 | AD29: =IFERROR(VLOOKUP($A29,Filtro_!$A$5:$AW$2624,29,FALSE),0) -> 147 | AE29: =IFERROR(VLOOKUP($A29,Filtro_!$A$5:$AW$2624,30,FALSE),0) -> 144 | AF29: =IFERROR(VLOOKUP($A29,Filtro_!$A$5:$AW$2624,31,FALSE),0) -> 103 | AG29: =IFERROR(VLOOKUP($A29,Filtro_!$A$5:$AW$2624,32,FALSE),0) -> 117 | AH29: =IFERROR(VLOOKUP($A29,Filtro_!$A$5:$AW$2624,33,FALSE),0) -> 46 | AI29: =IFERROR(VLOOKUP($A29,Filtro_!$A$5:$AW$2624,34,FALSE),0) -> 102
A30: 02200020 | B30: PRESIÓN ARTERIAL ELEVADA (= >140/90 mmHg) | C30: =SUM(D30:E30) -> 14616 | D30: =SUM(F30+H30+J30+L30+N30+P30+R30+T30+V30+X30+Z30+AB30+AD30+AF30) -> 6273 | E30: =SUM(G30+I30+K30+M30+O30+Q30+S30+U30+W30+Y30+AA30+AC30+AE30+AG30) -> 8343 | F30: =IFERROR(VLOOKUP($A30,Filtro_!$A$5:$AW$2624,5,FALSE),0) -> 25 | G30: =IFERROR(VLOOKUP($A30,Filtro_!$A$5:$AW$2624,6,FALSE),0) -> 29 | H30: =IFERROR(VLOOKUP($A30,Filtro_!$A$5:$AW$2624,7,FALSE),0) -> 184 | I30: =IFERROR(VLOOKUP($A30,Filtro_!$A$5:$AW$2624,8,FALSE),0) -> 178 | J30: =IFERROR(VLOOKUP($A30,Filtro_!$A$5:$AW$2624,9,FALSE),0) -> 217 | K30: =IFERROR(VLOOKUP($A30,Filtro_!$A$5:$AW$2624,10,FALSE),0) -> 202 | L30: =IFERROR(VLOOKUP($A30,Filtro_!$A$5:$AW$2624,11,FALSE),0) -> 241 | M30: =IFERROR(VLOOKUP($A30,Filtro_!$A$5:$AW$2624,12,FALSE),0) -> 312 | N30: =IFERROR(VLOOKUP($A30,Filtro_!$A$5:$AW$2624,13,FALSE),0) -> 274 | O30: =IFERROR(VLOOKUP($A30,Filtro_!$A$5:$AW$2624,14,FALSE),0) -> 389 | P30: =IFERROR(VLOOKUP($A30,Filtro_!$A$5:$AW$2624,15,FALSE),0) -> 335 | Q30: =IFERROR(VLOOKUP($A30,Filtro_!$A$5:$AW$2624,16,FALSE),0) -> 461 | R30: =IFERROR(VLOOKUP($A30,Filtro_!$A$5:$AW$2624,17,FALSE),0) -> 402 | S30: =IFERROR(VLOOKUP($A30,Filtro_!$A$5:$AW$2624,18,FALSE),0) -> 551 | T30: =IFERROR(VLOOKUP($A30,Filtro_!$A$5:$AW$2624,19,FALSE),0) -> 465 | U30: =IFERROR(VLOOKUP($A30,Filtro_!$A$5:$AW$2624,20,FALSE),0) -> 606 | V30: =IFERROR(VLOOKUP($A30,Filtro_!$A$5:$AW$2624,21,FALSE),0) -> 490 | W30: =IFERROR(VLOOKUP($A30,Filtro_!$A$5:$AW$2624,22,FALSE),0) -> 462 | X30: =IFERROR(VLOOKUP($A30,Filtro_!$A$5:$AW$2624,23,FALSE),0) -> 415 | Y30: =IFERROR(VLOOKUP($A30,Filtro_!$A$5:$AW$2624,24,FALSE),0) -> 436 | Z30: =IFERROR(VLOOKUP($A30,Filtro_!$A$5:$AW$2624,25,FALSE),0) -> 834 | AA30: =IFERROR(VLOOKUP($A30,Filtro_!$A$5:$AW$2624,26,FALSE),0) -> 1175 | AB30: =IFERROR(VLOOKUP($A30,Filtro_!$A$5:$AW$2624,27,FALSE),0) -> 857 | AC30: =IFERROR(VLOOKUP($A30,Filtro_!$A$5:$AW$2624,28,FALSE),0) -> 1152 | AD30: =IFERROR(VLOOKUP($A30,Filtro_!$A$5:$AW$2624,29,FALSE),0) -> 744 | AE30: =IFERROR(VLOOKUP($A30,Filtro_!$A$5:$AW$2624,30,FALSE),0) -> 1021 | AF30: =IFERROR(VLOOKUP($A30,Filtro_!$A$5:$AW$2624,31,FALSE),0) -> 790 | AG30: =IFERROR(VLOOKUP($A30,Filtro_!$A$5:$AW$2624,32,FALSE),0) -> 1369 | AH30: =IFERROR(VLOOKUP($A30,Filtro_!$A$5:$AW$2624,33,FALSE),0) -> 53 | AI30: =IFERROR(VLOOKUP($A30,Filtro_!$A$5:$AW$2624,34,FALSE),0) -> 99
B31: SECCIÓN D: RESULTADOS DE EMP SEGÚN ESTADO DE SALUD (EXÁMENES DE LABORATORIO)
B32: ESTADO DE SALUD | C32: TOTAL | F32: 15 a 19 años | H32: 20 a 24 años | J32: 25 a 29 años | L32: 30 a 34 años | N32: 35 a 39 años | P32: 40 a 44 años | R32: 45 a 49 años | T32: 50 a 54 años | V32: 55 a 59 años | X32: 60 a 64 años | Z32: 65 a 69 años | AB32: 70 a 74 años | AD32: 75 a 79 años | AF32: 80 y más años | AH32: Pueblos Originarios | AI32: Migrantes
C33: Ambos Sexos | D33: Hombres | E33: Mujeres | F33: Hombres | G33: Mujeres | H33: Hombres | I33: Mujeres | J33: Hombres | K33: Mujeres | L33: Hombres | M33: Mujeres | N33: Hombres | O33: Mujeres | P33: Hombres | Q33: Mujeres | R33: Hombres | S33: Mujeres | T33: Hombres | U33: Mujeres | V33: Hombres | W33: Mujeres | X33: Hombres | Y33: Mujeres | Z33: Hombres | AA33: Mujeres | AB33: Hombres | AC33: Mujeres | AD33: Hombres | AE33: Mujeres | AF33: Hombres | AG33: Mujeres
A34: 02200030 | B34: GLICEMIA ALTERADA (= > a 100 mg/dl) | C34: =SUM(D34:E34) -> 12002 | D34: =SUM(F34+H34+J34+L34+N34+P34+R34+T34+V34+X34+Z34+AB34+AD34+AF34) -> 4117 | E34: =SUM(G34+I34+K34+M34+O34+Q34+S34+U34+W34+Y34+AA34+AC34+AE34+AG34) -> 7885 | F34: =IFERROR(VLOOKUP($A34,Filtro_!$A$5:$AW$2624,5,FALSE),0) -> 13 | G34: =IFERROR(VLOOKUP($A34,Filtro_!$A$5:$AW$2624,6,FALSE),0) -> 20 | H34: =IFERROR(VLOOKUP($A34,Filtro_!$A$5:$AW$2624,7,FALSE),0) -> 197 | I34: =IFERROR(VLOOKUP($A34,Filtro_!$A$5:$AW$2624,8,FALSE),0) -> 531 | J34: =IFERROR(VLOOKUP($A34,Filtro_!$A$5:$AW$2624,9,FALSE),0) -> 233 | K34: =IFERROR(VLOOKUP($A34,Filtro_!$A$5:$AW$2624,10,FALSE),0) -> 594 | L34: =IFERROR(VLOOKUP($A34,Filtro_!$A$5:$AW$2624,11,FALSE),0) -> 295 | M34: =IFERROR(VLOOKUP($A34,Filtro_!$A$5:$AW$2624,12,FALSE),0) -> 743 | N34: =IFERROR(VLOOKUP($A34,Filtro_!$A$5:$AW$2624,13,FALSE),0) -> 318 | O34: =IFERROR(VLOOKUP($A34,Filtro_!$A$5:$AW$2624,14,FALSE),0) -> 807 | P34: =IFERROR(VLOOKUP($A34,Filtro_!$A$5:$AW$2624,15,FALSE),0) -> 317 | Q34: =IFERROR(VLOOKUP($A34,Filtro_!$A$5:$AW$2624,16,FALSE),0) -> 682 | R34: =IFERROR(VLOOKUP($A34,Filtro_!$A$5:$AW$2624,17,FALSE),0) -> 323 | S34: =IFERROR(VLOOKUP($A34,Filtro_!$A$5:$AW$2624,18,FALSE),0) -> 695 | T34: =IFERROR(VLOOKUP($A34,Filtro_!$A$5:$AW$2624,19,FALSE),0) -> 358 | U34: =IFERROR(VLOOKUP($A34,Filtro_!$A$5:$AW$2624,20,FALSE),0) -> 638 | V34: =IFERROR(VLOOKUP($A34,Filtro_!$A$5:$AW$2624,21,FALSE),0) -> 356 | W34: =IFERROR(VLOOKUP($A34,Filtro_!$A$5:$AW$2624,22,FALSE),0) -> 559 | X34: =IFERROR(VLOOKUP($A34,Filtro_!$A$5:$AW$2624,23,FALSE),0) -> 275 | Y34: =IFERROR(VLOOKUP($A34,Filtro_!$A$5:$AW$2624,24,FALSE),0) -> 419 | Z34: =IFERROR(VLOOKUP($A34,Filtro_!$A$5:$AW$2624,25,FALSE),0) -> 411 | AA34: =IFERROR(VLOOKUP($A34,Filtro_!$A$5:$AW$2624,26,FALSE),0) -> 669 | AB34: =IFERROR(VLOOKUP($A34,Filtro_!$A$5:$AW$2624,27,FALSE),0) -> 381 | AC34: =IFERROR(VLOOKUP($A34,Filtro_!$A$5:$AW$2624,28,FALSE),0) -> 549 | AD34: =IFERROR(VLOOKUP($A34,Filtro_!$A$5:$AW$2624,29,FALSE),0) -> 299 | AE34: =IFERROR(VLOOKUP($A34,Filtro_!$A$5:$AW$2624,30,FALSE),0) -> 467 | AF34: =IFERROR(VLOOKUP($A34,Filtro_!$A$5:$AW$2624,31,FALSE),0) -> 341 | AG34: =IFERROR(VLOOKUP($A34,Filtro_!$A$5:$AW$2624,32,FALSE),0) -> 512 | AH34: =IFERROR(VLOOKUP($A34,Filtro_!$A$5:$AW$2624,33,FALSE),0) -> 56 | AI34: =IFERROR(VLOOKUP($A34,Filtro_!$A$5:$AW$2624,34,FALSE),0) -> 183
A35: 02200040 | B35: COLESTEROL ELEVADO (= > 200 mg/dl) | C35: =SUM(D35:E35) -> 4810 | D35: =SUM(F35+H35+J35+L35+N35+P35+R35+T35+V35+X35+Z35+AB35+AD35+AF35) -> 1553 | E35: =SUM(G35+I35+K35+M35+O35+Q35+S35+U35+W35+Y35+AA35+AC35+AE35+AG35) -> 3257 | F35: =IFERROR(VLOOKUP($A35,Filtro_!$A$5:$AW$2624,5,FALSE),0) -> 3 | G35: =IFERROR(VLOOKUP($A35,Filtro_!$A$5:$AW$2624,6,FALSE),0) -> 4 | H35: =IFERROR(VLOOKUP($A35,Filtro_!$A$5:$AW$2624,7,FALSE),0) -> 24 | I35: =IFERROR(VLOOKUP($A35,Filtro_!$A$5:$AW$2624,8,FALSE),0) -> 53 | J35: =IFERROR(VLOOKUP($A35,Filtro_!$A$5:$AW$2624,9,FALSE),0) -> 49 | K35: =IFERROR(VLOOKUP($A35,Filtro_!$A$5:$AW$2624,10,FALSE),0) -> 112 | L35: =IFERROR(VLOOKUP($A35,Filtro_!$A$5:$AW$2624,11,FALSE),0) -> 72 | M35: =IFERROR(VLOOKUP($A35,Filtro_!$A$5:$AW$2624,12,FALSE),0) -> 148 | N35: =IFERROR(VLOOKUP($A35,Filtro_!$A$5:$AW$2624,13,FALSE),0) -> 72 | O35: =IFERROR(VLOOKUP($A35,Filtro_!$A$5:$AW$2624,14,FALSE),0) -> 172 | P35: =IFERROR(VLOOKUP($A35,Filtro_!$A$5:$AW$2624,15,FALSE),0) -> 110 | Q35: =IFERROR(VLOOKUP($A35,Filtro_!$A$5:$AW$2624,16,FALSE),0) -> 218 | R35: =IFERROR(VLOOKUP($A35,Filtro_!$A$5:$AW$2624,17,FALSE),0) -> 126 | S35: =IFERROR(VLOOKUP($A35,Filtro_!$A$5:$AW$2624,18,FALSE),0) -> 277 | T35: =IFERROR(VLOOKUP($A35,Filtro_!$A$5:$AW$2624,19,FALSE),0) -> 109 | U35: =IFERROR(VLOOKUP($A35,Filtro_!$A$5:$AW$2624,20,FALSE),0) -> 284 | V35: =IFERROR(VLOOKUP($A35,Filtro_!$A$5:$AW$2624,21,FALSE),0) -> 130 | W35: =IFERROR(VLOOKUP($A35,Filtro_!$A$5:$AW$2624,22,FALSE),0) -> 258 | X35: =IFERROR(VLOOKUP($A35,Filtro_!$A$5:$AW$2624,23,FALSE),0) -> 101 | Y35: =IFERROR(VLOOKUP($A35,Filtro_!$A$5:$AW$2624,24,FALSE),0) -> 196 | Z35: =IFERROR(VLOOKUP($A35,Filtro_!$A$5:$AW$2624,25,FALSE),0) -> 223 | AA35: =IFERROR(VLOOKUP($A35,Filtro_!$A$5:$AW$2624,26,FALSE),0) -> 497 | AB35: =IFERROR(VLOOKUP($A35,Filtro_!$A$5:$AW$2624,27,FALSE),0) -> 213 | AC35: =IFERROR(VLOOKUP($A35,Filtro_!$A$5:$AW$2624,28,FALSE),0) -> 398 | AD35: =IFERROR(VLOOKUP($A35,Filtro_!$A$5:$AW$2624,29,FALSE),0) -> 174 | AE35: =IFERROR(VLOOKUP($A35,Filtro_!$A$5:$AW$2624,30,FALSE),0) -> 295 | AF35: =IFERROR(VLOOKUP($A35,Filtro_!$A$5:$AW$2624,31,FALSE),0) -> 147 | AG35: =IFERROR(VLOOKUP($A35,Filtro_!$A$5:$AW$2624,32,FALSE),0) -> 345 | AH35: =IFERROR(VLOOKUP($A35,Filtro_!$A$5:$AW$2624,33,FALSE),0) -> 22 | AI35: =IFERROR(VLOOKUP($A35,Filtro_!$A$5:$AW$2624,34,FALSE),0) -> 23
B195: =SUM(C12:C17,C21:C25,C29:C30,C34:C35) -> 324271 | C195: =SUM(DB7:EA52) -> 0

Sheet A03
B1: SERVICIO DE SALUD
B2: =CONCATENATE("COMUNA: ",NOMBRE!B2," - ","( ",NOMBRE!C2,NOMBRE!D2,NOMBRE!E2,NOMBRE!F2,NOMBRE!G2," )") -> COMUNA: - ( )
B3: =CONCATENATE("ESTABLECIMIENTO/ESTRATEGIA: ",NOMBRE!B3," - ","( ",NOMBRE!C3,NOMBRE!D3,NOMBRE!E3,NOMBRE!F3,NOMBRE!G3,NOMBRE!H3," )") -> ESTABLECIMIENTO/ESTRATEGIA: - ( )
B4: =CONCATENATE("MES: ",NOMBRE!B6," - ","( ",NOMBRE!C6,NOMBRE!D6," )") -> MES: - ( )
B5: =CONCATENATE("AÑO: ",NOMBRE!B7) -> AÑO: 2023
B6: REM-A03. APLICACIÓN Y RESULTADOS DE ESCALAS DE EVALUACIÓN
B7: SECCIÓN A: APLICACIÓN DE INSTRUMENTO Y RESULTADO EN EL NIÑO (A)
B8: SECCIÓN A.1: APLICACIÓN Y RESULTADOS DE PAUTA BREVE
B9: EVALUACIONES POR EDAD DEL NIÑO | D9: TOTAL | G9: GRUPO DE EDAD
G10: Menor de 1 mes | I10: 1 mes | K10: 2 meses | M10: 3 meses | O10: 4 meses | Q10: 5 meses | S10: 6 meses | U10: 7 - 11 meses | W10: 12 - 17 meses | Y10: 18 - 24 meses
D11: Ambos Sexos | E11: Hombres | F11: Mujeres | G11: Hombres | H11: Mujeres | I11: Hombres | J11: Mujeres | K11: Hombres | L11: Mujeres | M11: Hombres | N11: Mujeres | O11: Hombres | P11: Mujeres | Q11: Hombres | R11: Mujeres | S11: Hombres | T11: Mujeres | U11: Hombres | V11: Mujeres | W11: Hombres | X11: Mujeres | Y11: Hombres | Z11: Mujeres
A12: 02021730 | B12: APLICACIÓN PAUTA BREVE | D12: =SUM(E12+F12) -> 13525 | E12: =SUM(G12+I12+K12+M12+O12+Q12+S12+U12+W12+Y12) -> 6710 | F12: =SUM(H12+J12+L12+N12+P12+R12+T12+V12+X12+Z12) -> 6815 | G12: =IFERROR(VLOOKUP($A12,[1]FILTRO_10!$A$5:$AW$2602,5,FALSE),0) -> 0 | H12: =IFERROR(VLOOKUP($A12,[1]FILTRO_10!$A$5:$AW$2602,6,FALSE),0) -> 0 | I12: =IFERROR(VLOOKUP($A12,Filtro_!$A$5:$AW$2624,7,FALSE),0) -> 83 | J12: =IFERROR(VLOOKUP($A12,Filtro_!$A$5:$AW$2624,8,FALSE),0) -> 78 | K12: =IFERROR(VLOOKUP($A12,Filtro_!$A$5:$AW$2624,9,FALSE),0) -> 6 | L12: =IFERROR(VLOOKUP($A12,Filtro_!$A$5:$AW$2624,10,FALSE),0) -> 12 | M12: =IFERROR(VLOOKUP($A12,Filtro_!$A$5:$AW$2624,11,FALSE),0) -> 94 | N12: =IFERROR(VLOOKUP($A12,Filtro_!$A$5:$AW$2624,12,FALSE),0) -> 122 | O12: =IFERROR(VLOOKUP($A12,Filtro_!$A$5:$AW$2624,13,FALSE),0) -> 2273 | P12: =IFERROR(VLOOKUP($A12,Filtro_!$A$5:$AW$2624,14,FALSE),0) -> 2320 | Q12: =IFERROR(VLOOKUP($A12,Filtro_!$A$5:$AW$2624,15,FALSE),0) -> 87 | R12: =IFERROR(VLOOKUP($A12,Filtro_!$A$5:$AW$2624,16,FALSE),0) -> 94 | S12: =IFERROR(VLOOKUP($A12,Filtro_!$A$5:$AW$2624,17,FALSE),0) -> 14 | T12: =IFERROR(VLOOKUP($A12,Filtro_!$A$5:$AW$2624,18,FALSE),0) -> 20 | U12: =IFERROR(VLOOKUP($A12,Filtro_!$A$5:$AW$2624,19,FALSE),0) -> 73 | V12: =IFERROR(VLOOKUP($A12,Filtro_!$A$5:$AW$2624,20,FALSE),0) -> 69 | W12: =IFERROR(VLOOKUP($A12,Filtro_!$A$5:$AW$2624,21,FALSE),0) -> 2258 | X12: =IFERROR(VLOOKUP($A12,Filtro_!$A$5:$AW$2624,22,FALSE),0) -> 2175 | Y12: =IFERROR(VLOOKUP($A12,Filtro_!$A$5:$AW$2624,23,FALSE),0) -> 1822 | Z12: =IFERROR(VLOOKUP($A12,Filtro_!$A$5:$AW$2624,24,FALSE),0) -> 1925
A13: 03500020 | B13: RESULTADOS | C13: NORMAL | D13: =SUM(E13+F13) -> 12052 | E13: 5832 | F13: =SUM(H13+J13+L13+N13+P13+R13+T13+V13+X13+Z13) -> 6220 | G13: =IFERROR(VLOOKUP($A13,Filtro_!$A$5:$AW$2624,5,FALSE),0) -> 4 | H13: =IFERROR(VLOOKUP($A13,Filtro_!$A$5:$AW$2624,6,FALSE),0) -> 13 | I13: =IFERROR(VLOOKUP($A13,Filtro_!$A$5:$AW$2624,7,FALSE),0) -> 83 | J13: =IFERROR(VLOOKUP($A13,Filtro_!$A$5:$AW$2624,8,FALSE),0) -> 78 | K13: =IFERROR(VLOOKUP($A13,Filtro_!$A$5:$AW$2624,9,FALSE),0) -> 6 | L13: =IFERROR(VLOOKUP($A13,Filtro_!$A$5:$AW$2624,10,FALSE),0) -> 12 | M13: =IFERROR(VLOOKUP($A13,Filtro_!$A$5:$AW$2624,11,FALSE),0) -> 92 | N13: =IFERROR(VLOOKUP($A13,Filtro_!$A$5:$AW$2624,12,FALSE),0) -> 120 | O13: =IFERROR(VLOOKUP($A13,Filtro_!$A$5:$AW$2624,13,FALSE),0) -> 2172 | P13: =IFERROR(VLOOKUP($A13,Filtro_!$A$5:$AW$2624,14,FALSE),0) -> 2239 | Q13: =IFERROR(VLOOKUP($A13,Filtro_!$A$5:$AW$2624,15,FALSE),0) -> 81 | R13: =IFERROR(VLOOKUP($A13,Filtro_!$A$5:$AW$2624,16,FALSE),0) -> 90 | S13: =IFERROR(VLOOKUP($A13,Filtro_!$A$5:$AW$2624,17,FALSE),0) -> 13 | T13: =IFERROR(VLOOKUP($A13,Filtro_!$A$5:$AW$2624,18,FALSE),0) -> 16 | U13: =IFERROR(VLOOKUP($A13,Filtro_!$A$5:$AW$2624,19,FALSE),0) -> 65 | V13: =IFERROR(VLOOKUP($A13,Filtro_!$A$5:$AW$2624,20,FALSE),0) -> 63 | W13: =IFERROR(VLOOKUP($A13,Filtro_!$A$5:$AW$2624,21,FALSE),0) -> 1987 | X13: =IFERROR(VLOOKUP($A13,Filtro_!$A$5:$AW$2624,22,FALSE),0) -> 1988 | Y13: =IFERROR(VLOOKUP($A13,Filtro_!$A$5:$AW$2624,23,FALSE),0) -> 1329 | Z13: =IFERROR(VLOOKUP($A13,Filtro_!$A$5:$AW$2624,24,FALSE),0) -> 1601 | CF13: * Aplicacion de Pauta Breve en Hombres Menor de 1 mes debe ser igual a la suma de resultados. | CO13: * Aplicacion de Pauta Breve en Mujeres de 4 meses debe ser igual a la suma de resultados. | CP13: * Aplicacion de Pauta Breve en Hombres de 5 meses debe ser igual a la suma de resultados. | CT13: * Aplicacion de Pauta Breve en Hombres de 7 - 11 meses debe ser igual a la suma de resultados. | CW13: * Aplicacion de Pauta Breve en Mujeres de 12 - 17 meses debe ser igual a la suma de resultados. | CX13: * Aplicacion de Pauta Breve en Hombres de 18 - 24 meses debe ser igual a la suma de resultados. | CY13: * Aplicacion de Pauta Breve en Mujeres de 18 - 24 meses debe ser igual a la suma de resultados. | DE13: 0 | DF13: 1 | DG13: 0 | DH13: 0 | DI13: 0 | DJ13: 0 | DK13: 0 | DL13: 0 | DM13: 0 | DN13: 0 | DO13: 1 | DP13: 1 | DQ13: 0 | DR13: 0 | DS13: 0 | DT13: 1 | DU13: 0 | DV13: 0 | DW13: 1 | DX13: 1 | DY13: 1 | DZ13: 0
A14: 03500030 | C14: ALTERADO | D14: =SUM(E14+F14) -> 1481 | E14: 880 | F14: 601 | G14: =IFERROR(VLOOKUP($A14,Filtro_!$A$5:$AW$2624,5,FALSE),0) -> 1 | H14: =IFERROR(VLOOKUP($A14,Filtro_!$A$5:$AW$2624,6,FALSE),0) -> 1 | I14: =IFERROR(VLOOKUP($A14,Filtro_!$A$5:$AW$2624,7,FALSE),0) -> 0 | J14: =IFERROR(VLOOKUP($A14,Filtro_!$A$5:$AW$2624,8,FALSE),0) -> 0 | K14: =IFERROR(VLOOKUP($A14,Filtro_!$A$5:$AW$2624,9,FALSE),0) -> 0 | L14: =IFERROR(VLOOKUP($A14,Filtro_!$A$5:$AW$2624,10,FALSE),0) -> 0 | M14: =IFERROR(VLOOKUP($A14,Filtro_!$A$5:$AW$2624,11,FALSE),0) -> 2 | N14: =IFERROR(VLOOKUP($A14,Filtro_!$A$5:$AW$2624,12,FALSE),0) -> 2 | O14: =IFERROR(VLOOKUP($A14,Filtro_!$A$5:$AW$2624,13,FALSE),0) -> 99 | P14: =IFERROR(VLOOKUP($A14,Filtro_!$A$5:$AW$2624,14,FALSE),0) -> 80 | Q14: =IFERROR(VLOOKUP($A14,Filtro_!$A$5:$AW$2624,15,FALSE),0) -> 6 | R14: =IFERROR(VLOOKUP($A14,Filtro_!$A$5:$AW$2624,16,FALSE),0) -> 4 | S14: =IFERROR(VLOOKUP($A14,Filtro_!$A$5:$AW$2624,17,FALSE),0) -> 1 | T14: =IFERROR(VLOOKUP($A14,Filtro_!$A$5:$AW$2624,18,FALSE),0) -> 3 | U14: =IFERROR(VLOOKUP($A14,Filtro_!$A$5:$AW$2624,19,FALSE),0) -> 8 | V14: =IFERROR(VLOOKUP($A14,Filtro_!$A$5:$AW$2624,20,FALSE),0) -> 6 | W14: =IFERROR(VLOOKUP($A14,Filtro_!$A$5:$AW$2624,21,FALSE),0) -> 272 | X14: =IFERROR(VLOOKUP($A14,Filtro_!$A$5:$AW$2624,22,FALSE),0) -> 184 | Y14: =IFERROR(VLOOKUP($A14,Filtro_!$A$5:$AW$2624,23,FALSE),0) -> 491 | Z14: =IFERROR(VLOOKUP($A14,Filtro_!$A$5:$AW$2624,24,FALSE),0) -> 321
B15: SECCIÓN A.2: RESULTADOS DE LA APLICACIÓN DE ESCALA DE EVALUACIÓN DEL DESARROLLO PSICOMOTOR
B16: ACTIVIDAD | C16: RESULTADO | D16: TOTAL | G16: POR EDAD | S16: Pueblos Originarios | T16: Migrantes
G17: Menor 7 meses | I17: 7 - 11 meses | K17: 12 - 17 meses | M17: 18 - 23 meses | O17: 24 - 47 meses | Q17: 48 - 59 meses
D18: Ambos Sexos | E18: Hombres | F18: Mujeres | G18: Hombres | H18: Mujeres | I18: Hombres | J18: Mujeres | K18: Hombres | L18: Mujeres | M18: Hombres | N18: Mujeres | O18: Hombres | P18: Mujeres | Q18: Hombres | R18: Mujeres
A19: 02021740 | B19: APLICACIÓN TEST DE DESARROLLO PSICOMOTOR | D19: =SUM(E19+F19) -> 17196 | E19: =SUM(G19+I19+K19+M19+O19+Q19) -> 8867 | F19: =SUM(H19+J19+L19+N19+P19+R19) -> 8329 | G19: =IFERROR(VLOOKUP($A19,Filtro_!$A$5:$AW$2624,5,FALSE),0) -> 88 | H19: =IFERROR(VLOOKUP($A19,Filtro_!$A$5:$AW$2624,6,FALSE),0) -> 79 | I19: =IFERROR(VLOOKUP($A19,Filtro_!$A$5:$AW$2624,7,FALSE),0) -> 2628 | J19: =IFERROR(VLOOKUP($A19,Filtro_!$A$5:$AW$2624,8,FALSE),0) -> 2641 | K19: =IFERROR(VLOOKUP($A19,Filtro_!$A$5:$AW$2624,9,FALSE),0) -> 700 | L19: =IFERROR(VLOOKUP($A19,Filtro_!$A$5:$AW$2624,10,FALSE),0) -> 624 | M19: =IFERROR(VLOOKUP($A19,Filtro_!$A$5:$AW$2624,11,FALSE),0) -> 2910 | N19: =IFERROR(VLOOKUP($A19,Filtro_!$A$5:$AW$2624,12,FALSE),0) -> 2619 | O19: =IFERROR(VLOOKUP($A19,Filtro_!$A$5:$AW$2624,13,FALSE),0) -> 2336 | P19: =IFERROR(VLOOKUP($A19,Filtro_!$A$5:$AW$2624,14,FALSE),0) -> 2206 | Q19: =IFERROR(VLOOKUP($A19,Filtro_!$A$5:$AW$2624,15,FALSE),0) -> 205 | R19: =IFERROR(VLOOKUP($A19,Filtro_!$A$5:$AW$2624,16,FALSE),0) -> 160 | S19: =IFERROR(VLOOKUP($A19,Filtro_!$A$5:$AW$2624,17,FALSE),0) -> 65 | T19: =IFERROR(VLOOKUP($A19,Filtro_!$A$5:$AW$2624,18,FALSE),0) -> 100 | CH19: * El total de aplicaciones de Pueblos Originarios debe ser IGUAL a los resultados de la totalidad de las aplicaciones de la primera evaluación y la reevaluación. | CJ19: * El total de aplicaciones de Migrantes debe ser IGUAL a los resultados de la totalidad de las aplicaciones de la primera evaluación y la reevaluación. | CL19: 0 | CM19: 0 | CN19: 0 | CO19: 0 | DB19: 0 | DC19: 0 | DD19: 0 | DE19: 0 | DF19: 0 | DG19: 0 | DI19: 0 | DK19: 0
A20: 02010320 | B20: PRIMERA EVALUACIÓN | C20: NORMAL | D20: =SUM(E20+F20) -> 12923 | E20: =SUM(G20+I20+K20+M20+O20+Q20) -> 6253 | F20: 6670 | G20: =IFERROR(VLOOKUP($A20,Filtro_!$A$5:$AW$2624,5,FALSE),0) -> 65 | H20: =IFERROR(VLOOKUP($A20,Filtro_!$A$5:$AW$2624,6,FALSE),0) -> 65 | I20: =IFERROR(VLOOKUP($A20,Filtro_!$A$5:$AW$2624,7,FALSE),0) -> 2299 | J20: =IFERROR(VLOOKUP($A20,Filtro_!$A$5:$AW$2624,8,FALSE),0) -> 2356 | K20: =IFERROR(VLOOKUP($A20,Filtro_!$A$5:$AW$2624,9,FALSE),0) -> 486 | L20: =IFERROR(VLOOKUP($A20,Filtro_!$A$5:$AW$2624,10,FALSE),0) -> 504 | M20: =IFERROR(VLOOKUP($A20,Filtro_!$A$5:$AW$2624,11,FALSE),0) -> 1933 | N20: =IFERROR(VLOOKUP($A20,Filtro_!$A$5:$AW$2624,12,FALSE),0) -> 2031 | O20: =IFERROR(VLOOKUP($A20,Filtro_!$A$5:$AW$2624,13,FALSE),0) -> 1361 | P20: =IFERROR(VLOOKUP($A20,Filtro_!$A$5:$AW$2624,14,FALSE),0) -> 1601 | Q20: =IFERROR(VLOOKUP($A20,Filtro_!$A$5:$AW$2624,15,FALSE),0) -> 109 | R20: =IFERROR(VLOOKUP($A20,Filtro_!$A$5:$AW$2624,16,FALSE),0) -> 113 | S20: =IFERROR(VLOOKUP($A20,Filtro_!$A$5:$AW$2624,17,FALSE),0) -> 43 | T20: =IFERROR(VLOOKUP($A20,Filtro_!$A$5:$AW$2624,18,FALSE),0) -> 81
A21: 05225303 | C21: NORMAL CON REZAGO | D21: =SUM(E21+F21) -> 951 | E21: 552 | F21: 399 | G21: =IFERROR(VLOOKUP($A21,Filtro_!$A$5:$AW$2624,5,FALSE),0) -> 6 | H21: =IFERROR(VLOOKUP($A21,Filtro_!$A$5:$AW$2624,6,FALSE),0) -> 2 | I21: =IFERROR(VLOOKUP($A21,Filtro_!$A$5:$AW$2624,7,FALSE),0) -> 96 | J21: =IFERROR(VLOOKUP($A21,Filtro_!$A$5:$AW$2624,8,FALSE),0) -> 88 | K21: =IFERROR(VLOOKUP($A21,Filtro_!$A$5:$AW$2624,9,FALSE),0) -> 49 | L21: =IFERROR(VLOOKUP($A21,Filtro_!$A$5:$AW$2624,10,FALSE),0) -> 33 | M21: =IFERROR(VLOOKUP($A21,Filtro_!$A$5:$AW$2624,11,FALSE),0) -> 154 | N21: =IFERROR(VLOOKUP($A21,Filtro_!$A$5:$AW$2624,12,FALSE),0) -> 87 | O21: =IFERROR(VLOOKUP($A21,Filtro_!$A$5:$AW$2624,13,FALSE),0) -> 239 | P21: =IFERROR(VLOOKUP($A21,Filtro_!$A$5:$AW$2624,14,FALSE),0) -> 184 | Q21: =IFERROR(VLOOKUP($A21,Filtro_!$A$5:$AW$2624,15,FALSE),0) -> 8 | R21: =IFERROR(VLOOKUP($A21,Filtro_!$A$5:$AW$2624,16,FALSE),0) -> 5 | S21: =IFERROR(VLOOKUP($A21,Filtro_!$A$5:$AW$2624,17,FALSE),0) -> 12 | T21: =IFERROR(VLOOKUP($A21,Filtro_!$A$5:$AW$2624,18,FALSE),0) -> 8
A22: 02010321 | C22: RIESGO | D22: 1251 | E22: 763 | F22: 488 | G22: =IFERROR(VLOOKUP($A22,Filtro_!$A$5:$AW$2624,5,FALSE),0) -> 12 | H22: =IFERROR(VLOOKUP($A22,Filtro_!$A$5:$AW$2624,6,FALSE),0) -> 7 | I22: =IFERROR(VLOOKUP($A22,Filtro_!$A$5:$AW$2624,7,FALSE),0) -> 110 | J22: =IFERROR(VLOOKUP($A22,Filtro_!$A$5:$AW$2624,8,FALSE),0) -> 95 | K22: =IFERROR(VLOOKUP($A22,Filtro_!$A$5:$AW$2624,9,FALSE),0) -> 58 | L22: =IFERROR(VLOOKUP($A22,Filtro_!$A$5:$AW$2624,10,FALSE),0) -> 20 | M22: =IFERROR(VLOOKUP($A22,Filtro_!$A$5:$AW$2624,11,FALSE),0) -> 296 | N22: =IFERROR(VLOOKUP($A22,Filtro_!$A$5:$AW$2624,12,FALSE),0) -> 202 | O22: =IFERROR(VLOOKUP($A22,Filtro_!$A$5:$AW$2624,13,FALSE),0) -> 280 | P22: =IFERROR(VLOOKUP($A22,Filtro_!$A$5:$AW$2624,14,FALSE),0) -> 160 | Q22: =IFERROR(VLOOKUP($A22,Filtro_!$A$5:$AW$2624,15,FALSE),0) -> 7 | R22: =IFERROR(VLOOKUP($A22,Filtro_!$A$5:$AW$2624,16,FALSE),0) -> 4 | S22: =IFERROR(VLOOKUP($A22,Filtro_!$A$5:$AW$2624,17,FALSE),0) -> 1 | T22: =IFERROR(VLOOKUP($A22,Filtro_!$A$5:$AW$2624,18,FALSE),0) -> 11
A23: 02010322 | C23: RETRASO | D23: 425 | E23: 295 | F23: 130 | G23: =IFERROR(VLOOKUP($A23,Filtro_!$A$5:$AW$2624,5,FALSE),0) -> 1 | H23: =IFERROR(VLOOKUP($A23,Filtro_!$A$5:$AW$2624,6,FALSE),0) -> 1 | I23: =IFERROR(VLOOKUP($A23,Filtro_!$A$5:$AW$2624,7,FALSE),0) -> 21 | J23: =IFERROR(VLOOKUP($A23,Filtro_!$A$5:$AW$2624,8,FALSE),0) -> 19 | K23: =IFERROR(VLOOKUP($A23,Filtro_!$A$5:$AW$2624,9,FALSE),0) -> 18 | L23: =IFERROR(VLOOKUP($A23,Filtro_!$A$5:$AW$2624,10,FALSE),0) -> 3 | M23: =IFERROR(VLOOKUP($A23,Filtro_!$A$5:$AW$2624,11,FALSE),0) -> 141 | N23: =IFERROR(VLOOKUP($A23,Filtro_!$A$5:$AW$2624,12,FALSE),0) -> 67 | O23: =IFERROR(VLOOKUP($A23,Filtro_!$A$5:$AW$2624,13,FALSE),0) -> 105 | P23: =IFERROR(VLOOKUP($A23,Filtro_!$A$5:$AW$2624,14,FALSE),0) -> 34 | Q23: =IFERROR(VLOOKUP($A23,Filtro_!$A$5:$AW$2624,15,FALSE),0) -> 9 | R23: =IFERROR(VLOOKUP($A23,Filtro_!$A$5:$AW$2624,16,FALSE),0) -> 6 | S23: =IFERROR(VLOOKUP($A23,Filtro_!$A$5:$AW$2624,17,FALSE),0) -> 0 | T23: =IFERROR(VLOOKUP($A23,Filtro_!$A$5:$AW$2624,18,FALSE),0) -> 2
A24: 05225304 | B24: REEVALUACIÓN | C24: NORMAL (desde normal con rezago) | D24: 443 | E24: 238 | F24: 205 | G24: =IFERROR(VLOOKUP($A24,Filtro_!$A$5:$AW$2624,5,FALSE),0) -> 2 | H24: =IFERROR(VLOOKUP($A24,Filtro_!$A$5:$AW$2624,6,FALSE),0) -> 2 | I24: =IFERROR(VLOOKUP($A24,Filtro_!$A$5:$AW$2624,7,FALSE),0) -> 41 | J24: =IFERROR(VLOOKUP($A24,Filtro_!$A$5:$AW$2624,8,FALSE),0) -> 37 | K24: =IFERROR(VLOOKUP($A24,Filtro_!$A$5:$AW$2624,9,FALSE),0) -> 24 | L24: =IFERROR(VLOOKUP($A24,Filtro_!$A$5:$AW$2624,10,FALSE),0) -> 29 | M24: =IFERROR(VLOOKUP($A24,Filtro_!$A$5:$AW$2624,11,FALSE),0) -> 60 | N24: =IFERROR(VLOOKUP($A24,Filtro_!$A$5:$AW$2624,12,FALSE),0) -> 43 | O24: =IFERROR(VLOOKUP($A24,Filtro_!$A$5:$AW$2624,13,FALSE),0) -> 97 | P24: =IFERROR(VLOOKUP($A24,Filtro_!$A$5:$AW$2624,14,FALSE),0) -> 80 | Q24: =IFERROR(VLOOKUP($A24,Filtro_!$A$5:$AW$2624,15,FALSE),0) -> 14 | R24: =IFERROR(VLOOKUP($A24,Filtro_!$A$5:$AW$2624,16,FALSE),0) -> 14 | S24: =IFERROR(VLOOKUP($A24,Filtro_!$A$5:$AW$2624,17,FALSE),0) -> 5 | T24: =IFERROR(VLOOKUP($A24,Filtro_!$A$5:$AW$2624,18,FALSE),0) -> 0
A25: 02010420 | C25: NORMAL (desde riesgo) | D25: 526 | E25: 312 | F25: 214 | G25: =IFERROR(VLOOKUP($A25,Filtro_!$A$5:$AW$2624,5,FALSE),0) -> 2 | H25: =IFERROR(VLOOKUP($A25,Filtro_!$A$5:$AW$2624,6,FALSE),0) -> 1 | I25: =IFERROR(VLOOKUP($A25,Filtro_!$A$5:$AW$2624,7,FALSE),0) -> 31 | J25: =IFERROR(VLOOKUP($A25,Filtro_!$A$5:$AW$2624,8,FALSE),0) -> 24 | K25: =IFERROR(VLOOKUP($A25,Filtro_!$A$5:$AW$2624,9,FALSE),0) -> 26 | L25: =IFERROR(VLOOKUP($A25,Filtro_!$A$5:$AW$2624,10,FALSE),0) -> 14 | M25: =IFERROR(VLOOKUP($A25,Filtro_!$A$5:$AW$2624,11,FALSE),0) -> 146 | N25: =IFERROR(VLOOKUP($A25,Filtro_!$A$5:$AW$2624,12,FALSE),0) -> 95 | O25: =IFERROR(VLOOKUP($A25,Filtro_!$A$5:$AW$2624,13,FALSE),0) -> 91 | P25: =IFERROR(VLOOKUP($A25,Filtro_!$A$5:$AW$2624,14,FALSE),0) -> 69 | Q25: =IFERROR(VLOOKUP($A25,Filtro_!$A$5:$AW$2624,15,FALSE),0) -> 16 | R25: =IFERROR(VLOOKUP($A25,Filtro_!$A$5:$AW$2624,16,FALSE),0) -> 11 | S25: =IFERROR(VLOOKUP($A25,Filtro_!$A$5:$AW$2624,17,FALSE),0) -> 0 | T25: =IFERROR(VLOOKUP($A25,Filtro_!$A$5:$AW$2624,18,FALSE),0) -> 1
A26: 05225305 | C26: NORMAL (desde retraso) | D26: 79 | E26: 51 | F26: 28 | G26: =IFERROR(VLOOKUP($A26,Filtro_!$A$5:$AW$2624,5,FALSE),0) -> 0 | H26: =IFERROR(VLOOKUP($A26,Filtro_!$A$5:$AW$2624,6,FALSE),0) -> 0 | I26: =IFERROR(VLOOKUP($A26,Filtro_!$A$5:$AW$2624,7,FALSE),0) -> 3 | J26: =IFERROR(VLOOKUP($A26,Filtro_!$A$5:$AW$2624,8,FALSE),0) -> 3 | K26: =IFERROR(VLOOKUP($A26,Filtro_!$A$5:$AW$2624,9,FALSE),0) -> 0 | L26: =IFERROR(VLOOKUP($A26,Filtro_!$A$5:$AW$2624,10,FALSE),0) -> 2 | M26: =IFERROR(VLOOKUP($A26,Filtro_!$A$5:$AW$2624,11,FALSE),0) -> 20 | N26: =IFERROR(VLOOKUP($A26,Filtro_!$A$5:$AW$2624,12,FALSE),0) -> 11 | O26: =IFERROR(VLOOKUP($A26,Filtro_!$A$5:$AW$2624,13,FALSE),0) -> 16 | P26: =IFERROR(VLOOKUP($A26,Filtro_!$A$5:$AW$2624,14,FALSE),0) -> 11 | Q26: =IFERROR(VLOOKUP($A26,Filtro_!$A$5:$AW$2624,15,FALSE),0) -> 12 | R26: =IFERROR(VLOOKUP($A26,Filtro_!$A$5:$AW$2624,16,FALSE),0) -> 1 | S26: =IFERROR(VLOOKUP($A26,Filtro_!$A$5:$AW$2624,17,FALSE),0) -> 4 | T26: =IFERROR(VLOOKUP($A26,Filtro_!$A$5:$AW$2624,18,FALSE),0) -> 0
A27: 03500366 | C27: NORMAL CON REZAGO (desde riesgo) | D27: 153 | E27: 97 | F27: 56 | G27: =IFERROR(VLOOKUP($A27,Filtro_!$A$5:$AW$2624,5,FALSE),0) -> 0 | H27: =IFERROR(VLOOKUP($A27,Filtro_!$A$5:$AW$2624,6,FALSE),0) -> 0 | I27: =IFERROR(VLOOKUP($A27,Filtro_!$A$5:$AW$2624,7,FALSE),0) -> 6 | J27: =IFERROR(VLOOKUP($A27,Filtro_!$A$5:$AW$2624,8,FALSE),0) -> 7 | K27: =IFERROR(VLOOKUP($A27,Filtro_!$A$5:$AW$2624,9,FALSE),0) -> 7 | L27: =IFERROR(VLOOKUP($A27,Filtro_!$A$5:$AW$2624,10,FALSE),0) -> 4 | M27: =IFERROR(VLOOKUP($A27,Filtro_!$A$5:$AW$2624,11,FALSE),0) -> 59 | N27: =IFERROR(VLOOKUP($A27,Filtro_!$A$5:$AW$2624,12,FALSE),0) -> 29 | O27: =IFERROR(VLOOKUP($A27,Filtro_!$A$5:$AW$2624,13,FALSE),0) -> 22 | P27: =IFERROR(VLOOKUP($A27,Filtro_!$A$5:$AW$2624,14,FALSE),0) -> 14 | Q27: =IFERROR(VLOOKUP($A27,Filtro_!$A$5:$AW$2624,15,FALSE),0) -> 3 | R27: =IFERROR(VLOOKUP($A27,Filtro_!$A$5:$AW$2624,16,FALSE),0) -> 2 | S27: =IFERROR(VLOOKUP($A27,Filtro_!$A$5:$AW$2624,17,FALSE),0) -> 0 | T27: =IFERROR(VLOOKUP($A27,Filtro_!$A$5:$AW$2624,18,FALSE),0) -> 0
A28: 03500400 | C28: NORMAL CON REZAGO (desde retraso) | D28: 29 | E28: 14 | F28: 15 | G28: =IFERROR(VLOOKUP($A28,Filtro_!$A$5:$AW$2624,5,FALSE),0) -> 0 | H28: =IFERROR(VLOOKUP($A28,Filtro_!$A$5:$AW$2624,6,FALSE),0) -> 0 | I28: =IFERROR(VLOOKUP($A28,Filtro_!$A$5:$AW$2624,7,FALSE),0) -> 1 | J28: =IFERROR(VLOOKUP($A28,Filtro_!$A$5:$AW$2624,8,FALSE),0) -> 1 | K28: =IFERROR(VLOOKUP($A28,Filtro_!$A$5:$AW$2624,9,FALSE),0) -> 1 | L28: =IFERROR(VLOOKUP($A28,Filtro_!$A$5:$AW$2624,10,FALSE),0) -> 1 | M28: =IFERROR(VLOOKUP($A28,Filtro_!$A$5:$AW$2624,11,FALSE),0) -> 4 | N28: =IFERROR(VLOOKUP($A28,Filtro_!$A$5:$AW$2624,12,FALSE),0) -> 8 | O28: =IFERROR(VLOOKUP($A28,Filtro_!$A$5:$AW$2624,13,FALSE),0) -> 6 | P28: =IFERROR(VLOOKUP($A28,Filtro_!$A$5:$AW$2624,14,FALSE),0) -> 4 | Q28: =IFERROR(VLOOKUP($A28,Filtro_!$A$5:$AW$2624,15,FALSE),0) -> 2 | R28: =IFERROR(VLOOKUP($A28,Filtro_!$A$5:$AW$2624,16,FALSE),0) -> 1 | S28: =IFERROR(VLOOKUP($A28,Filtro_!$A$5:$AW$2624,17,FALSE),0) -> 0 | T28: =IFERROR(VLOOKUP($A28,Filtro_!$A$5:$AW$2624,18,FALSE),0) -> 0
A29: 03500401 | C29: RIESGO (desde retraso) | D29: =SUM(E29:F29) -> 43 | E29: 27 | F29: 16 | G29: =IFERROR(VLOOKUP($A29,Filtro_!$A$5:$AW$2624,5,FALSE),0) -> 0 | H29: =IFERROR(VLOOKUP($A29,Filtro_!$A$5:$AW$2624,6,FALSE),0) -> 0 | I29: =IFERROR(VLOOKUP($A29,Filtro_!$A$5:$AW$2624,7,FALSE),0) -> 0 | J29: =IFERROR(VLOOKUP($A29,Filtro_!$A$5:$AW$2624,8,FALSE),0) -> 0 | K29: =IFERROR(VLOOKUP($A29,Filtro_!$A$5:$AW$2624,9,FALSE),0) -> 3 | L29: =IFERROR(VLOOKUP($A29,Filtro_!$A$5:$AW$2624,10,FALSE),0) -> 1 | M29: =IFERROR(VLOOKUP($A29,Filtro_!$A$5:$AW$2624,11,FALSE),0) -> 11 | N29: =IFERROR(VLOOKUP($A29,Filtro_!$A$5:$AW$2624,12,FALSE),0) -> 6 | O29: =IFERROR(VLOOKUP($A29,Filtro_!$A$5:$AW$2624,13,FALSE),0) -> 11 | P29: =IFERROR(VLOOKUP($A29,Filtro_!$A$5:$AW$2624,14,FALSE),0) -> 8 | Q29: =IFERROR(VLOOKUP($A29,Filtro_!$A$5:$AW$2624,15,FALSE),0) -> 2 | R29: =IFERROR(VLOOKUP($A29,Filtro_!$A$5:$AW$2624,16,FALSE),0) -> 1 | S29: =IFERROR(VLOOKUP($A29,Filtro_!$A$5:$AW$2624,17,FALSE),0) -> 0 | T29: =IFERROR(VLOOKUP($A29,Filtro_!$A$5:$AW$2624,18,FALSE),0) -> 0
A30: 05225306 | C30: NORMAL CON REZAGO (desde normal con rezago) | D30: =SUM(E30:F30) -> 107 | E30: 83 | F30: 24 | G30: =IFERROR(VLOOKUP($A30,Filtro_!$A$5:$AW$2624,5,FALSE),0) -> 0 | H30: =IFERROR(VLOOKUP($A30,Filtro_!$A$5:$AW$2624,6,FALSE),0) -> 0 | I30: =IFERROR(VLOOKUP($A30,Filtro_!$A$5:$AW$2624,7,FALSE),0) -> 6 | J30: =IFERROR(VLOOKUP($A30,Filtro_!$A$5:$AW$2624,8,FALSE),0) -> 1 | K30: =IFERROR(VLOOKUP($A30,Filtro_!$A$5:$AW$2624,9,FALSE),0) -> 9 | L30: =IFERROR(VLOOKUP($A30,Filtro_!$A$5:$AW$2624,10,FALSE),0) -> 5 | M30: =IFERROR(VLOOKUP($A30,Filtro_!$A$5:$AW$2624,11,FALSE),0) -> 22 | N30: =IFERROR(VLOOKUP($A30,Filtro_!$A$5:$AW$2624,12,FALSE),0) -> 5 | O30: =IFERROR(VLOOKUP($A30,Filtro_!$A$5:$AW$2624,13,FALSE),0) -> 37 | P30: =IFERROR(VLOOKUP($A30,Filtro_!$A$5:$AW$2624,14,FALSE),0) -> 12 | Q30: =IFERROR(VLOOKUP($A30,Filtro_!$A$5:$AW$2624,15,FALSE),0) -> 9 | R30: =IFERROR(VLOOKUP($A30,Filtro_!$A$5:$AW$2624,16,FALSE),0) -> 1 | S30: =IFERROR(VLOOKUP($A30,Filtro_!$A$5:$AW$2624,17,FALSE),0) -> 1 | T30: =IFERROR(VLOOKUP($A30,Filtro_!$A$5:$AW$2624,18,FALSE),0) -> 0
A31: 02010421 | C31: RIESGO (desde riesgo) | D31: =SUM(E31+F31) -> 117 | E31: 80 | F31: 37 | G31: =IFERROR(VLOOKUP($A31,Filtro_!$A$5:$AW$2624,5,FALSE),0) -> 0 | H31: =IFERROR(VLOOKUP($A31,Filtro_!$A$5:$AW$2624,6,FALSE),0) -> 0 | I31: =IFERROR(VLOOKUP($A31,Filtro_!$A$5:$AW$2624,7,FALSE),0) -> 7 | J31: =IFERROR(VLOOKUP($A31,Filtro_!$A$5:$AW$2624,8,FALSE),0) -> 1 | K31: =IFERROR(VLOOKUP($A31,Filtro_!$A$5:$AW$2624,9,FALSE),0) -> 13 | L31: =IFERROR(VLOOKUP($A31,Filtro_!$A$5:$AW$2624,10,FALSE),0) -> 4 | M31: =IFERROR(VLOOKUP($A31,Filtro_!$A$5:$AW$2624,11,FALSE),0) -> 33 | N31: =IFERROR(VLOOKUP($A31,Filtro_!$A$5:$AW$2624,12,FALSE),0) -> 19 | O31: =IFERROR(VLOOKUP($A31,Filtro_!$A$5:$AW$2624,13,FALSE),0) -> 22 | P31: =IFERROR(VLOOKUP($A31,Filtro_!$A$5:$AW$2624,14,FALSE),0) -> 12 | Q31: =IFERROR(VLOOKUP($A31,Filtro_!$A$5:$AW$2624,15,FALSE),0) -> 5 | R31: =IFERROR(VLOOKUP($A31,Filtro_!$A$5:$AW$2624,16,FALSE),0) -> 1 | S31: =IFERROR(VLOOKUP($A31,Filtro_!$A$5:$AW$2624,17,FALSE),0) -> 0 | T31: =IFERROR(VLOOKUP($A31,Filtro_!$A$5:$AW$2624,18,FALSE),0) -> 0
A32: 03600110 | C32: RIESGO (desde normal con rezago) | D32: =SUM(E32+F32) -> 32 | E32: 23 | F32: 9 | G32: =IFERROR(VLOOKUP($A32,Filtro_!$A$5:$AW$2624,5,FALSE),0) -> 0 | H32: =IFERROR(VLOOKUP($A32,Filtro_!$A$5:$AW$2624,6,FALSE),0) -> 0 | I32: =IFERROR(VLOOKUP($A32,Filtro_!$A$5:$AW$2624,7,FALSE),0) -> 4 | J32: =IFERROR(VLOOKUP($A32,Filtro_!$A$5:$AW$2624,8,FALSE),0) -> 1 | K32: =IFERROR(VLOOKUP($A32,Filtro_!$A$5:$AW$2624,9,FALSE),0) -> 4 | L32: =IFERROR(VLOOKUP($A32,Filtro_!$A$5:$AW$2624,10,FALSE),0) -> 3 | M32: =IFERROR(VLOOKUP($A32,Filtro_!$A$5:$AW$2624,11,FALSE),0) -> 3 | N32: =IFERROR(VLOOKUP($A32,Filtro_!$A$5:$AW$2624,12,FALSE),0) -> 2 | O32: =IFERROR(VLOOKUP($A32,Filtro_!$A$5:$AW$2624,13,FALSE),0) -> 12 | P32: =IFERROR(VLOOKUP($A32,Filtro_!$A$5:$AW$2624,14,FALSE),0) -> 3 | Q32: =IFERROR(VLOOKUP($A32,Filtro_!$A$5:$AW$2624,15,FALSE),0) -> 0 | R32: =IFERROR(VLOOKUP($A32,Filtro_!$A$5:$AW$2624,16,FALSE),0) -> 0 | S32: =IFERROR(VLOOKUP($A32,Filtro_!$A$5:$AW$2624,17,FALSE),0) -> 0 | T32: =IFERROR(VLOOKUP($A32,Filtro_!$A$5:$AW$2624,18,FALSE),0) -> 0
A33: 02010422 | C33: RETRASO (desde retraso) | D33: =SUM(E33+F33) -> 42 | E33: 32 | F33: 10 | G33: =IFERROR(VLOOKUP($A33,Filtro_!$A$5:$AW$2624,5,FALSE),0) -> 0 | H33: =IFERROR(VLOOKUP($A33,Filtro_!$A$5:$AW$2624,6,FALSE),0) -> 0 | I33: =IFERROR(VLOOKUP($A33,Filtro_!$A$5:$AW$2624,7,FALSE),0) -> 1 | J33: =IFERROR(VLOOKUP($A33,Filtro_!$A$5:$AW$2624,8,FALSE),0) -> 0 | K33: =IFERROR(VLOOKUP($A33,Filtro_!$A$5:$AW$2624,9,FALSE),0) -> 0 | L33: =IFERROR(VLOOKUP($A33,Filtro_!$A$5:$AW$2624,10,FALSE),0) -> 0 | M33: =IFERROR(VLOOKUP($A33,Filtro_!$A$5:$AW$2624,11,FALSE),0) -> 13 | N33: =IFERROR(VLOOKUP($A33,Filtro_!$A$5:$AW$2624,12,FALSE),0) -> 5 | O33: =IFERROR(VLOOKUP($A33,Filtro_!$A$5:$AW$2624,13,FALSE),0) -> 12 | P33: =IFERROR(VLOOKUP($A33,Filtro_!$A$5:$AW$2624,14,FALSE),0) -> 4 | Q33: =IFERROR(VLOOKUP($A33,Filtro_!$A$5:$AW$2624,15,FALSE),0) -> 6 | R33: =IFERROR(VLOOKUP($A33,Filtro_!$A$5:$AW$2624,16,FALSE),0) -> 1 | S33: =IFERROR(VLOOKUP($A33,Filtro_!$A$5:$AW$2624,17,FALSE),0) -> 0 | T33: =IFERROR(VLOOKUP($A33,Filtro_!$A$5:$AW$2624,18,FALSE),0) -> 0
A34: 03600120 | C34: RETRASO (desde riesgo) | D34: =SUM(E34+F34) -> 49 | E34: 38 | F34: 11 | G34: =IFERROR(VLOOKUP($A34,Filtro_!$A$5:$AW$2624,5,FALSE),0) -> 0 | H34: =IFERROR(VLOOKUP($A34,Filtro_!$A$5:$AW$2624,6,FALSE),0) -> 0 | I34: =IFERROR(VLOOKUP($A34,Filtro_!$A$5:$AW$2624,7,FALSE),0) -> 0 | J34: =IFERROR(VLOOKUP($A34,Filtro_!$A$5:$AW$2624,8,FALSE),0) -> 0 | K34: =IFERROR(VLOOKUP($A34,Filtro_!$A$5:$AW$2624,9,FALSE),0) -> 6 | L34: =IFERROR(VLOOKUP($A34,Filtro_!$A$5:$AW$2624,10,FALSE),0) -> 1 | M34: =IFERROR(VLOOKUP($A34,Filtro_!$A$5:$AW$2624,11,FALSE),0) -> 9 | N34: =IFERROR(VLOOKUP($A34,Filtro_!$A$5:$AW$2624,12,FALSE),0) -> 6 | O34: =IFERROR(VLOOKUP($A34,Filtro_!$A$5:$AW$2624,13,FALSE),0) -> 19 | P34: =IFERROR(VLOOKUP($A34,Filtro_!$A$5:$AW$2624,14,FALSE),0) -> 4 | Q34: =IFERROR(VLOOKUP($A34,Filtro_!$A$5:$AW$2624,15,FALSE),0) -> 4 | R34: =IFERROR(VLOOKUP($A34,Filtro_!$A$5:$AW$2624,16,FALSE),0) -> 0 | S34: =IFERROR(VLOOKUP($A34,Filtro_!$A$5:$AW$2624,17,FALSE),0) -> 0 | T34: =IFERROR(VLOOKUP($A34,Filtro_!$A$5:$AW$2624,18,FALSE),0) -> 0
A35: 03600130 | C35: RETRASO (desde normal con rezago) | D35: =SUM(E35+F35) -> 11 | E35: 8 | F35: 3 | G35: =IFERROR(VLOOKUP($A35,Filtro_!$A$5:$AW$2624,5,FALSE),0) -> 0 | H35: =IFERROR(VLOOKUP($A35,Filtro_!$A$5:$AW$2624,6,FALSE),0) -> 0 | I35: =IFERROR(VLOOKUP($A35,Filtro_!$A$5:$AW$2624,7,FALSE),0) -> 0 | J35: =IFERROR(VLOOKUP($A35,Filtro_!$A$5:$AW$2624,8,FALSE),0) -> 0 | K35: =IFERROR(VLOOKUP($A35,Filtro_!$A$5:$AW$2624,9,FALSE),0) -> 2 | L35: =IFERROR(VLOOKUP($A35,Filtro_!$A$5:$AW$2624,10,FALSE),0) -> 1 | M35: =IFERROR(VLOOKUP($A35,Filtro_!$A$5:$AW$2624,11,FALSE),0) -> 1 | N35: =IFERROR(VLOOKUP($A35,Filtro_!$A$5:$AW$2624,12,FALSE),0) -> 0 | O35: =IFERROR(VLOOKUP($A35,Filtro_!$A$5:$AW$2624,13,FALSE),0) -> 5 | P35: =IFERROR(VLOOKUP($A35,Filtro_!$A$5:$AW$2624,14,FALSE),0) -> 2 | Q35: =IFERROR(VLOOKUP($A35,Filtro_!$A$5:$AW$2624,15,FALSE),0) -> 0 | R35: =IFERROR(VLOOKUP($A35,Filtro_!$A$5:$AW$2624,16,FALSE),0) -> 0 | S35: =IFERROR(VLOOKUP($A35,Filtro_!$A$5:$AW$2624,17,FALSE),0) -> 0 | T35: =IFERROR(VLOOKUP($A35,Filtro_!$A$5:$AW$2624,18,FALSE),0) -> 0
A36: 03500331 | B36: DERIVADOS A ESPECIALIDAD | C36: RIESGO | D36: 156 | E36: =SUM(G36+I36+K36+M36+O36+Q36) -> 103 | F36: 53 | G36: =IFERROR(VLOOKUP($A36,Filtro_!$A$5:$AW$2624,5,FALSE),0) -> 0 | H36: =IFERROR(VLOOKUP($A36,Filtro_!$A$5:$AW$2624,6,FALSE),0) -> 0 | I36: =IFERROR(VLOOKUP($A36,Filtro_!$A$5:$AW$2624,7,FALSE),0) -> 14 | J36: =IFERROR(VLOOKUP($A36,Filtro_!$A$5:$AW$2624,8,FALSE),0) -> 9 | K36: =IFERROR(VLOOKUP($A36,Filtro_!$A$5:$AW$2624,9,FALSE),0) -> 12 | L36: =IFERROR(VLOOKUP($A36,Filtro_!$A$5:$AW$2624,10,FALSE),0) -> 6 | M36: =IFERROR(VLOOKUP($A36,Filtro_!$A$5:$AW$2624,11,FALSE),0) -> 36 | N36: =IFERROR(VLOOKUP($A36,Filtro_!$A$5:$AW$2624,12,FALSE),0) -> 20 | O36: =IFERROR(VLOOKUP($A36,Filtro_!$A$5:$AW$2624,13,FALSE),0) -> 37 | P36: =IFERROR(VLOOKUP($A36,Filtro_!$A$5:$AW$2624,14,FALSE),0) -> 16 | Q36: =IFERROR(VLOOKUP($A36,Filtro_!$A$5:$AW$2624,15,FALSE),0) -> 4 | R36: =IFERROR(VLOOKUP($A36,Filtro_!$A$5:$AW$2624,16,FALSE),0) -> 2 | S36: =IFERROR(VLOOKUP($A36,Filtro_!$A$5:$AW$2624,17,FALSE),0) -> 0 | T36: =IFERROR(VLOOKUP($A36,Filtro_!$A$5:$AW$2624,18,FALSE),0) -> 0
A37: 03500332 | C37: RETRASO | D37: 154 | E37: 119 | F37: 35 | G37: =IFERROR(VLOOKUP($A37,Filtro_!$A$5:$AW$2624,5,FALSE),0) -> 0 | H37: =IFERROR(VLOOKUP($A37,Filtro_!$A$5:$AW$2624,6,FALSE),0) -> 2 | I37: =IFERROR(VLOOKUP($A37,Filtro_!$A$5:$AW$2624,7,FALSE),0) -> 2 | J37: =IFERROR(VLOOKUP($A37,Filtro_!$A$5:$AW$2624,8,FALSE),0) -> 4 | K37: =IFERROR(VLOOKUP($A37,Filtro_!$A$5:$AW$2624,9,FALSE),0) -> 12 | L37: =IFERROR(VLOOKUP($A37,Filtro_!$A$5:$AW$2624,10,FALSE),0) -> 1 | M37: =IFERROR(VLOOKUP($A37,Filtro_!$A$5:$AW$2624,11,FALSE),0) -> 61 | N37: =IFERROR(VLOOKUP($A37,Filtro_!$A$5:$AW$2624,12,FALSE),0) -> 19 | O37: =IFERROR(VLOOKUP($A37,Filtro_!$A$5:$AW$2624,13,FALSE),0) -> 35 | P37: =IFERROR(VLOOKUP($A37,Filtro_!$A$5:$AW$2624,14,FALSE),0) -> 6 | Q37: =IFERROR(VLOOKUP($A37,Filtro_!$A$5:$AW$2624,15,FALSE),0) -> 9 | R37: =IFERROR(VLOOKUP($A37,Filtro_!$A$5:$AW$2624,16,FALSE),0) -> 3 | S37: =IFERROR(VLOOKUP($A37,Filtro_!$A$5:$AW$2624,17,FALSE),0) -> 0 | T37: =IFERROR(VLOOKUP($A37,Filtro_!$A$5:$AW$2624,18,FALSE),0) -> 1
A38: 03500333 | B38: TRASLADO DE ESTABLECIMIENTO | C38: NORMAL CON REZAGO | D38: 3 | E38: 1 | F38: 2 | G38: =IFERROR(VLOOKUP($A38,Filtro_!$A$5:$AW$2624,5,FALSE),0) -> 0 | H38: =IFERROR(VLOOKUP($A38,Filtro_!$A$5:$AW$2624,6,FALSE),0) -> 0 | I38: =IFERROR(VLOOKUP($A38,Filtro_!$A$5:$AW$2624,7,FALSE),0) -> 0 | J38: =IFERROR(VLOOKUP($A38,Filtro_!$A$5:$AW$2624,8,FALSE),0) -> 1 | K38: =IFERROR(VLOOKUP($A38,Filtro_!$A$5:$AW$2624,9,FALSE),0) -> 0 | L38: =IFERROR(VLOOKUP($A38,Filtro_!$A$5:$AW$2624,10,FALSE),0) -> 0 | M38: =IFERROR(VLOOKUP($A38,Filtro_!$A$5:$AW$2624,11,FALSE),0) -> 1 | N38: =IFERROR(VLOOKUP($A38,Filtro_!$A$5:$AW$2624,12,FALSE),0) -> 1 | O38: =IFERROR(VLOOKUP($A38,Filtro_!$A$5:$AW$2624,13,FALSE),0) -> 0 | P38: =IFERROR(VLOOKUP($A38,Filtro_!$A$5:$AW$2624,14,FALSE),0) -> 0 | Q38: =IFERROR(VLOOKUP($A38,Filtro_!$A$5:$AW$2624,15,FALSE),0) -> 0 | R38: =IFERROR(VLOOKUP($A38,Filtro_!$A$5:$AW$2624,16,FALSE),0) -> 0 | S38: =IFERROR(VLOOKUP($A38,Filtro_!$A$5:$AW$2624,17,FALSE),0) -> 0 | T38: =IFERROR(VLOOKUP($A38,Filtro_!$A$5:$AW$2624,18,FALSE),0) -> 0
A39: 03500334 | C39: RIESGO | D39: 14 | E39: 10 | F39: 4 | G39: =IFERROR(VLOOKUP($A39,Filtro_!$A$5:$AW$2624,5,FALSE),0) -> 0 | H39: =IFERROR(VLOOKUP($A39,Filtro_!$A$5:$AW$2624,6,FALSE),0) -> 0 | I39: =IFERROR(VLOOKUP($A39,Filtro_!$A$5:$AW$2624,7,FALSE),0) -> 0 | J39: =IFERROR(VLOOKUP($A39,Filtro_!$A$5:$AW$2624,8,FALSE),0) -> 0 | K39: =IFERROR(VLOOKUP($A39,Filtro_!$A$5:$AW$2624,9,FALSE),0) -> 3 | L39: =IFERROR(VLOOKUP($A39,Filtro_!$A$5:$AW$2624,10,FALSE),0) -> 0 | M39: =IFERROR(VLOOKUP($A39,Filtro_!$A$5:$AW$2624,11,FALSE),0) -> 6 | N39: =IFERROR(VLOOKUP($A39,Filtro_!$A$5:$AW$2624,12,FALSE),0) -> 1 | O39: =IFERROR(VLOOKUP($A39,Filtro_!$A$5:$AW$2624,13,FALSE),0) -> 1 | P39: =IFERROR(VLOOKUP($A39,Filtro_!$A$5:$AW$2624,14,FALSE),0) -> 2 | Q39: =IFERROR(VLOOKUP($A39,Filtro_!$A$5:$AW$2624,15,FALSE),0) -> 0 | R39: =IFERROR(VLOOKUP($A39,Filtro_!$A$5:$AW$2624,16,FALSE),0) -> 1 | S39: =IFERROR(VLOOKUP($A39,Filtro_!$A$5:$AW$2624,17,FALSE),0) -> 0 | T39: =IFERROR(VLOOKUP($A39,Filtro_!$A$5:$AW$2624,18,FALSE),0) -> 0
A40: 03500335 | C40: RETRASO | D40: 1 | E40: 1 | F40: 0 | G40: =IFERROR(VLOOKUP($A40,Filtro_!$A$5:$AW$2624,5,FALSE),0) -> 0 | H40: =IFERROR(VLOOKUP($A40,Filtro_!$A$5:$AW$2624,6,FALSE),0) -> 0 | I40: =IFERROR(VLOOKUP($A40,Filtro_!$A$5:$AW$2624,7,FALSE),0) -> 1 | J40: =IFERROR(VLOOKUP($A40,Filtro_!$A$5:$AW$2624,8,FALSE),0) -> 0 | K40: =IFERROR(VLOOKUP($A40,Filtro_!$A$5:$AW$2624,9,FALSE),0) -> 0 | L40: =IFERROR(VLOOKUP($A40,Filtro_!$A$5:$AW$2624,10,FALSE),0) -> 0 | M40: =IFERROR(VLOOKUP($A40,Filtro_!$A$5:$AW$2624,11,FALSE),0) -> 0 | N40: =IFERROR(VLOOKUP($A40,Filtro_!$A$5:$AW$2624,12,FALSE),0) -> 0 | O40: =IFERROR(VLOOKUP($A40,Filtro_!$A$5:$AW$2624,13,FALSE),0) -> 0 | P40: =IFERROR(VLOOKUP($A40,Filtro_!$A$5:$AW$2624,14,FALSE),0) -> 0 | Q40: =IFERROR(VLOOKUP($A40,Filtro_!$A$5:$AW$2624,15,FALSE),0) -> 0 | R40: =IFERROR(VLOOKUP($A40,Filtro_!$A$5:$AW$2624,16,FALSE),0) -> 0 | S40: =IFERROR(VLOOKUP($A40,Filtro_!$A$5:$AW$2624,17,FALSE),0) -> 0 | T40: =IFERROR(VLOOKUP($A40,Filtro_!$A$5:$AW$2624,18,FALSE),0) -> 0
B41: SECCIÓN A.3: NIÑOS Y NIÑAS CON REZAGO, DÉFICIT U OTRA VULNERABILIDAD DERIVADOS A ALGUNA MODALIDAD DE ESTIMULACIÓN EN LA PRIMERA EVALUACIÓN
B42: NIÑO / A | C42: TOTAL | F42: POR EDAD
F43: Menor 7 meses | H43: 7 - 11 meses | J43: 12 - 17 meses | L43: 18 - 23 meses | N43: 24 - 47 meses | P43: 48 - 59 meses
C44: Ambos Sexos | D44: Hombres | E44: Mujeres | F44: Hombres | G44: Mujeres | H44: Hombres | I44: Mujeres | J44: Hombres | K44: Mujeres | L44: Hombres | M44: Mujeres | N44: Hombres | O44: Mujeres | P44: Hombres | Q44: Mujeres
A45: 02021790 | B45: NORMAL CON REZAGO | C45: =SUM(D45+E45) -> 1160 | D45: =SUM(F45+H45+J45+L45+N45+P45) -> 656 | E45: =SUM(G45+I45+K45+M45+O45+Q45) -> 504 | F45: =IFERROR(VLOOKUP($A45,Filtro_!$A$5:$AW$2624,5,FALSE),0) -> 20 | G45: =IFERROR(VLOOKUP($A45,Filtro_!$A$5:$AW$2624,6,FALSE),0) -> 21 | H45: =IFERROR(VLOOKUP($A45,Filtro_!$A$5:$AW$2624,7,FALSE),0) -> 95 | I45: =IFERROR(VLOOKUP($A45,Filtro_!$A$5:$AW$2624,8,FALSE),0) -> 102 | J45: =IFERROR(VLOOKUP($A45,Filtro_!$A$5:$AW$2624,9,FALSE),0) -> 72 | K45: =IFERROR(VLOOKUP($A45,Filtro_!$A$5:$AW$2624,10,FALSE),0) -> 44 | L45: =IFERROR(VLOOKUP($A45,Filtro_!$A$5:$AW$2624,11,FALSE),0) -> 165 | M45: =IFERROR(VLOOKUP($A45,Filtro_!$A$5:$AW$2624,12,FALSE),0) -> 116 | N45: =IFERROR(VLOOKUP($A45,Filtro_!$A$5:$AW$2624,13,FALSE),0) -> 289 | O45: =IFERROR(VLOOKUP($A45,Filtro_!$A$5:$AW$2624,14,FALSE),0) -> 216 | P45: =IFERROR(VLOOKUP($A45,Filtro_!$A$5:$AW$2624,15,FALSE),0) -> 15 | Q45: =IFERROR(VLOOKUP($A45,Filtro_!$A$5:$AW$2624,16,FALSE),0) -> 5 | CB45: =IF(C45<#REF!,"* Niños derivados deben ser mayores o iguales al ingreso de niños(as) Normal con Rezago a salas de estimulación REM A05 sección F. ","") ->  | DB45: =IF(C45<#REF!,1,0) -> 
A46: 02021810 | B46: RIESGO | C46: =SUM(D46+E46) -> 1179 | D46: =SUM(F46+H46+J46+L46+N46+P46) -> 733 | E46: 446 | F46: =IFERROR(VLOOKUP($A46,Filtro_!$A$5:$AW$2624,5,FALSE),0) -> 9 | G46: =IFERROR(VLOOKUP($A46,Filtro_!$A$5:$AW$2624,6,FALSE),0) -> 7 | H46: =IFERROR(VLOOKUP($A46,Filtro_!$A$5:$AW$2624,7,FALSE),0) -> 97 | I46: =IFERROR(VLOOKUP($A46,Filtro_!$A$5:$AW$2624,8,FALSE),0) -> 85 | J46: =IFERROR(VLOOKUP($A46,Filtro_!$A$5:$AW$2624,9,FALSE),0) -> 68 | K46: =IFERROR(VLOOKUP($A46,Filtro_!$A$5:$AW$2624,10,FALSE),0) -> 31 | L46: =IFERROR(VLOOKUP($A46,Filtro_!$A$5:$AW$2624,11,FALSE),0) -> 274 | M46: =IFERROR(VLOOKUP($A46,Filtro_!$A$5:$AW$2624,12,FALSE),0) -> 166 | N46: =IFERROR(VLOOKUP($A46,Filtro_!$A$5:$AW$2624,13,FALSE),0) -> 269 | O46: =IFERROR(VLOOKUP($A46,Filtro_!$A$5:$AW$2624,14,FALSE),0) -> 152 | P46: =IFERROR(VLOOKUP($A46,Filtro_!$A$5:$AW$2624,15,FALSE),0) -> 16 | Q46: =IFERROR(VLOOKUP($A46,Filtro_!$A$5:$AW$2624,16,FALSE),0) -> 5 | CB46: =IF(C46<#REF!,"* Niños derivados deben ser mayores o iguales al ingreso de niños(as) Normal con Rezago a salas de estimulación REM A05 sección F. ","") ->  | DB46: =IF(C46<#REF!,1,0) -> 
A47: 02021820 | B47: RETRASO | C47: =SUM(D47+E47) -> 407 | D47: 295 | E47: 112 | F47: =IFERROR(VLOOKUP($A47,Filtro_!$A$5:$AW$2624,5,FALSE),0) -> 1 | G47: =IFERROR(VLOOKUP($A47,Filtro_!$A$5:$AW$2624,6,FALSE),0) -> 1 | H47: =IFERROR(VLOOKUP($A47,Filtro_!$A$5:$AW$2624,7,FALSE),0) -> 13 | I47: =IFERROR(VLOOKUP($A47,Filtro_!$A$5:$AW$2624,8,FALSE),0) -> 14 | J47: =IFERROR(VLOOKUP($A47,Filtro_!$A$5:$AW$2624,9,FALSE),0) -> 23 | K47: =IFERROR(VLOOKUP($A47,Filtro_!$A$5:$AW$2624,10,FALSE),0) -> 4 | L47: =IFERROR(VLOOKUP($A47,Filtro_!$A$5:$AW$2624,11,FALSE),0) -> 122 | M47: =IFERROR(VLOOKUP($A47,Filtro_!$A$5:$AW$2624,12,FALSE),0) -> 58 | N47: =IFERROR(VLOOKUP($A47,Filtro_!$A$5:$AW$2624,13,FALSE),0) -> 117 | O47: =IFERROR(VLOOKUP($A47,Filtro_!$A$5:$AW$2624,14,FALSE),0) -> 31 | P47: =IFERROR(VLOOKUP($A47,Filtro_!$A$5:$AW$2624,15,FALSE),0) -> 19 | Q47: =IFERROR(VLOOKUP($A47,Filtro_!$A$5:$AW$2624,16,FALSE),0) -> 4 | CB47: =IF(C47<#REF!,"* Niños derivados deben ser mayores o iguales al ingreso de niños(as) Normal con Rezago a salas de estimulación REM A05 sección F. ","") ->  | DB47: =IF(C47<#REF!,1,0) -> 
A48: 05225307 | B48: OTRA VULNERABILIDAD | C48: =SUM(D48:E48) -> 1981 | D48: 1084 | E48: 897 | F48: =IFERROR(VLOOKUP($A48,Filtro_!$A$5:$AW$2624,5,FALSE),0) -> 282 | G48: =IFERROR(VLOOKUP($A48,Filtro_!$A$5:$AW$2624,6,FALSE),0) -> 300 | H48: =IFERROR(VLOOKUP($A48,Filtro_!$A$5:$AW$2624,7,FALSE),0) -> 92 | I48: =IFERROR(VLOOKUP($A48,Filtro_!$A$5:$AW$2624,8,FALSE),0) -> 103 | J48: =IFERROR(VLOOKUP($A48,Filtro_!$A$5:$AW$2624,9,FALSE),0) -> 118 | K48: =IFERROR(VLOOKUP($A48,Filtro_!$A$5:$AW$2624,10,FALSE),0) -> 86 | L48: =IFERROR(VLOOKUP($A48,Filtro_!$A$5:$AW$2624,11,FALSE),0) -> 145 | M48: =IFERROR(VLOOKUP($A48,Filtro_!$A$5:$AW$2624,12,FALSE),0) -> 138 | N48: =IFERROR(VLOOKUP($A48,Filtro_!$A$5:$AW$2624,13,FALSE),0) -> 349 | O48: =IFERROR(VLOOKUP($A48,Filtro_!$A$5:$AW$2624,14,FALSE),0) -> 180 | P48: =IFERROR(VLOOKUP($A48,Filtro_!$A$5:$AW$2624,15,FALSE),0) -> 98 | Q48: =IFERROR(VLOOKUP($A48,Filtro_!$A$5:$AW$2624,16,FALSE),0) -> 90 | CB48: =IF(C48<#REF!,"* Niños derivados deben ser mayores o iguales al ingreso de niños(as) Normal con Rezago a salas de estimulación REM A05 sección F. ","") ->  | DB48: =IF(C48<#REF!,1,0) -> 
B49: SECCIÓN A.4: RESULTADOS DE LA APLICACIÓN DE PROTOCOLO NEUROSENSORIAL
B50: RESULTADOS | C50: TOTAL | F50: POR EDAD
F51: 1 mes | H51: 2 meses
C52: Ambos Sexos | D52: Hombres | E52: Mujeres | F52: Hombres | G52: Mujeres | H52: Hombres | I52: Mujeres
A53: 02021760 | B53: APLICACIÓN DE PROTOCOLO NEUROSENSORIAL (1-2 MESES) | C53: =SUM(D53+E53) -> 4505 | D53: =SUM(F53+H53) -> 2277 | E53: =SUM(G53+I53) -> 2228 | F53: =IFERROR(VLOOKUP($A53,Filtro_!$A$5:$AW$2624,5,FALSE),0) -> 1896 | G53: =IFERROR(VLOOKUP($A53,Filtro_!$A$5:$AW$2624,6,FALSE),0) -> 1839 | H53: =IFERROR(VLOOKUP($A53,Filtro_!$A$5:$AW$2624,7,FALSE),0) -> 381 | I53: =IFERROR(VLOOKUP($A53,Filtro_!$A$5:$AW$2624,8,FALSE),0) -> 389
A54: 03500040 | B54: NORMAL | C54: =SUM(D54+E54) -> 3770 | D54: =SUM(F54+H54) -> 1892 | E54: 1878 | F54: =IFERROR(VLOOKUP($A54,Filtro_!$A$5:$AW$2624,5,FALSE),0) -> 1601 | G54: =IFERROR(VLOOKUP($A54,Filtro_!$A$5:$AW$2624,6,FALSE),0) -> 1575 | H54: =IFERROR(VLOOKUP($A54,Filtro_!$A$5:$AW$2624,7,FALSE),0) -> 291 | I54: =IFERROR(VLOOKUP($A54,Filtro_!$A$5:$AW$2624,8,FALSE),0) -> 303
A55: 03500050 | B55: ANORMAL | C55: =SUM(D55+E55) -> 682 | D55: =SUM(F55+H55) -> 355 | E55: =SUM(G55+I55) -> 327 | F55: =IFERROR(VLOOKUP($A55,Filtro_!$A$5:$AW$2624,5,FALSE),0) -> 272 | G55: =IFERROR(VLOOKUP($A55,Filtro_!$A$5:$AW$2624,6,FALSE),0) -> 250 | H55: =IFERROR(VLOOKUP($A55,Filtro_!$A$5:$AW$2624,7,FALSE),0) -> 83 | I55: =IFERROR(VLOOKUP($A55,Filtro_!$A$5:$AW$2624,8,FALSE),0) -> 77
A56: 03500060 | B56: MUY ANORMAL | C56: =SUM(D56+E56) -> 65 | D56: 38 | E56: 27 | F56: =IFERROR(VLOOKUP($A56,Filtro_!$A$5:$AW$2624,5,FALSE),0) -> 31 | G56: =IFERROR(VLOOKUP($A56,Filtro_!$A$5:$AW$2624,6,FALSE),0) -> 18 | H56: =IFERROR(VLOOKUP($A56,Filtro_!$A$5:$AW$2624,7,FALSE),0) -> 7 | I56: =IFERROR(VLOOKUP($A56,Filtro_!$A$5:$AW$2624,8,FALSE),0) -> 9
B57: SECCIÓN A.5: LACTANCIA EN NIÑOS Y NIÑAS CONTROLADOS
B58: TIPO DE ALIMENTACIÓN | D58: TOTAL | E58: SEGÚN CONTROL PROGRAMÁTICO | K58: Pueblos Originarios | L58: Migrantes
E59: Diada | F59: Del 1° mes | G59: Del 3° mes | H59: Del 6° mes | I59: Del 12° mes | J59: Del 24° mes | CB59: 0 | CC59: 0 | CD59: 0 | CE59: 0 | CF59: 0
A60: A0200002 | B60: LACTANCIA MATERNA EXCLUSIVA | D60: =SUM(E60:H60) -> 11630 | E60: =IFERROR(VLOOKUP($A60,Filtro_!$A$5:$AW$2624,3,FALSE),0) -> 3163 | F60: =IFERROR(VLOOKUP($A60,Filtro_!$A$5:$AW$2624,4,FALSE),0) -> 2932 | G60: =IFERROR(VLOOKUP($A60,Filtro_!$A$5:$AW$2624,5,FALSE),0) -> 2892 | H60: =IFERROR(VLOOKUP($A60,Filtro_!$A$5:$AW$2624,6,FALSE),0) -> 2643 | I60: =IFERROR(VLOOKUP($A60,Filtro_!$A$5:$AW$2624,7,FALSE),0) -> 0 | J60: =IFERROR(VLOOKUP($A60,Filtro_!$A$5:$AW$2624,8,FALSE),0) -> 0 | K60: =IFERROR(VLOOKUP($A60,Filtro_!$A$5:$AW$2624,9,FALSE),0) -> 42 | L60: =IFERROR(VLOOKUP($A60,Filtro_!$A$5:$AW$2624,10,FALSE),0) -> 81 | CD60: * * El campo Migrantes NO PUEDE ser mayor al Total. | CF60: 0 | CG60: 0 | CH60: 0 | DA60: 0 | DB60: 0 | DC60: 0 | DD60: 1 | DE60: 0
A61: 03500359 | B61: LACTANCIA MATERNA / FORMULA LÁCTEA | D61: =SUM(E61:H61) -> 3613 | E61: =IFERROR(VLOOKUP($A61,Filtro_!$A$5:$AW$2624,3,FALSE),0) -> 791 | F61: =IFERROR(VLOOKUP($A61,Filtro_!$A$5:$AW$2624,4,FALSE),0) -> 1168 | G61: =IFERROR(VLOOKUP($A61,Filtro_!$A$5:$AW$2624,5,FALSE),0) -> 1004 | H61: =IFERROR(VLOOKUP($A61,Filtro_!$A$5:$AW$2624,6,FALSE),0) -> 650 | I61: =IFERROR(VLOOKUP($A61,Filtro_!$A$5:$AW$2624,7,FALSE),0) -> 0 | J61: =IFERROR(VLOOKUP($A61,Filtro_!$A$5:$AW$2624,8,FALSE),0) -> 0 | K61: =IFERROR(VLOOKUP($A61,Filtro_!$A$5:$AW$2624,9,FALSE),0) -> 8 | L61: =IFERROR(VLOOKUP($A61,Filtro_!$A$5:$AW$2624,10,FALSE),0) -> 22 | DB61: 0 | DC61: 0 | DD61: 0 | DE61: 0
A62: 03500360 | B62: FORMULA LÁCTEA | D62: =SUM(E62:H62) -> 1352 | E62: =IFERROR(VLOOKUP($A62,Filtro_!$A$5:$AW$2624,3,FALSE),0) -> 66 | F62: =IFERROR(VLOOKUP($A62,Filtro_!$A$5:$AW$2624,4,FALSE),0) -> 295 | G62: =IFERROR(VLOOKUP($A62,Filtro_!$A$5:$AW$2624,5,FALSE),0) -> 491 | H62: =IFERROR(VLOOKUP($A62,Filtro_!$A$5:$AW$2624,6,FALSE),0) -> 500 | I62: =IFERROR(VLOOKUP($A62,Filtro_!$A$5:$AW$2624,7,FALSE),0) -> 0 | J62: =IFERROR(VLOOKUP($A62,Filtro_!$A$5:$AW$2624,8,FALSE),0) -> 0 | K62: =IFERROR(VLOOKUP($A62,Filtro_!$A$5:$AW$2624,9,FALSE),0) -> 3 | L62: =IFERROR(VLOOKUP($A62,Filtro_!$A$5:$AW$2624,10,FALSE),0) -> 8 | DB62: 0 | DC62: 0 | DD62: 0 | DE62: 0
A63: A0200003 | B63: LACTANCIA MATERNA MAS ALIMENTACIÓN COMPLEMENTARIA | D63: =SUM(E63:J63) -> 2119 | E63: =IFERROR(VLOOKUP($A63,Filtro_!$A$5:$AW$2624,3,FALSE),0) -> 4 | F63: =IFERROR(VLOOKUP($A63,Filtro_!$A$5:$AW$2624,4,FALSE),0) -> 7 | G63: =IFERROR(VLOOKUP($A63,Filtro_!$A$5:$AW$2624,5,FALSE),0) -> 16 | H63: =IFERROR(VLOOKUP($A63,Filtro_!$A$5:$AW$2624,6,FALSE),0) -> 333 | I63: =IFERROR(VLOOKUP($A63,Filtro_!$A$5:$AW$2624,7,FALSE),0) -> 1313 | J63: =IFERROR(VLOOKUP($A63,Filtro_!$A$5:$AW$2624,8,FALSE),0) -> 446 | K63: =IFERROR(VLOOKUP($A63,Filtro_!$A$5:$AW$2624,9,FALSE),0) -> 19 | L63: =IFERROR(VLOOKUP($A63,Filtro_!$A$5:$AW$2624,10,FALSE),0) -> 14 | DB63: 0 | DC63: 0 | DD63: 0 | DE63: 0
A64: 03600140 | B64: LACTANCIA MATERNA/ FÓRMULA LÁCTEA/ ALIMENTACIÓN COMPLEMENTARIA | D64: =SUM(H64:J64)+E64 -> 2509 | E64: =IFERROR(VLOOKUP($A64,Filtro_!$A$5:$AW$2624,3,FALSE),0) -> 9 | F64: =IFERROR(VLOOKUP($A64,Filtro_!$A$5:$AW$2624,4,FALSE),0) -> 0 | G64: =IFERROR(VLOOKUP($A64,Filtro_!$A$5:$AW$2624,5,FALSE),0) -> 0 | H64: =IFERROR(VLOOKUP($A64,Filtro_!$A$5:$AW$2624,6,FALSE),0) -> 329 | I64: =IFERROR(VLOOKUP($A64,Filtro_!$A$5:$AW$2624,7,FALSE),0) -> 1305 | J64: =IFERROR(VLOOKUP($A64,Filtro_!$A$5:$AW$2624,8,FALSE),0) -> 866 | K64: =IFERROR(VLOOKUP($A64,Filtro_!$A$5:$AW$2624,9,FALSE),0) -> 15 | L64: =IFERROR(VLOOKUP($A64,Filtro_!$A$5:$AW$2624,10,FALSE),0) -> 9 | DA64: 0 | DB64: 0 | DC64: 0 | DD64: 0 | DE64: 0
A65: 03600150 | B65: FORMULA LÁCTEA ALIMENTACIÓN COMPLEMENTARIA | D65: =SUM(H65:J65)+E65 -> 3778 | E65: =IFERROR(VLOOKUP($A65,Filtro_!$A$5:$AW$2624,3,FALSE),0) -> 9 | F65: =IFERROR(VLOOKUP($A65,Filtro_!$A$5:$AW$2624,4,FALSE),0) -> 0 | G65: =IFERROR(VLOOKUP($A65,Filtro_!$A$5:$AW$2624,5,FALSE),0) -> 0 | H65: =IFERROR(VLOOKUP($A65,Filtro_!$A$5:$AW$2624,6,FALSE),0) -> 325 | I65: =IFERROR(VLOOKUP($A65,Filtro_!$A$5:$AW$2624,7,FALSE),0) -> 1453 | J65: =IFERROR(VLOOKUP($A65,Filtro_!$A$5:$AW$2624,8,FALSE),0) -> 1991 | K65: =IFERROR(VLOOKUP($A65,Filtro_!$A$5:$AW$2624,9,FALSE),0) -> 23 | L65: =IFERROR(VLOOKUP($A65,Filtro_!$A$5:$AW$2624,10,FALSE),0) -> 29 | DA65: 0 | DB65: 0 | DC65: 0 | DD65: 0 | DE65: 0
A66: A0200001 | B66: NÚMERO DE NIÑOS Y NIÑAS CONTROLADOS | D66: =SUM(E66:J66) -> 23885 | E66: =IFERROR(VLOOKUP($A66,Filtro_!$A$5:$AW$2624,3,FALSE),0) -> 3353 | F66: =IFERROR(VLOOKUP($A66,Filtro_!$A$5:$AW$2624,4,FALSE),0) -> 4119 | G66: =IFERROR(VLOOKUP($A66,Filtro_!$A$5:$AW$2624,5,FALSE),0) -> 4194 | H66: =IFERROR(VLOOKUP($A66,Filtro_!$A$5:$AW$2624,6,FALSE),0) -> 4773 | I66: =IFERROR(VLOOKUP($A66,Filtro_!$A$5:$AW$2624,7,FALSE),0) -> 4053 | J66: =IFERROR(VLOOKUP($A66,Filtro_!$A$5:$AW$2624,8,FALSE),0) -> 3393 | K66: =IFERROR(VLOOKUP($A66,Filtro_!$A$5:$AW$2624,9,FALSE),0) -> 75 | L66: =IFERROR(VLOOKUP($A66,Filtro_!$A$5:$AW$2624,10,FALSE),0) -> 91 | CE66: * El número de menores con lactancia materna Exclusiva o Artificial al control del 6er mes NO debe ser MAYOR al número de menores controlados. | CG66: * El número de menores con lactancia Materna o Artificial mas Solidos al control del 24 meses NO debe ser MAYOR al número de menores controlados. | DA66: 0 | DB66: 0 | DC66: 0 | DD66: 0 | DE66: 1 | DF66: 0 | DG66: 1 | DH66: 0
B67: SECCIÓN A.6: RESULTADOS RADIOGRAFÍA DE PELVIS (CADERA)
B68: RESULTADO | C68: TOTAL | F68: POR EDAD | J68: 3 MESES | L68: 4 MESES
F69: 3 MESES | H69: 4 MESES | J69: Pueblos Originarios | K69: Migrantes | L69: Pueblos Originarios | M69: Migrantes
C70: Ambos Sexos | D70: Hombres | E70: Mujeres | F70: Hombres | G70: Mujeres | H70: Hombres | I70: Mujeres
A71: 09600207 | B71: NORMAL | C71: =SUM(D71:E71) -> 3327 | D71: =+F71+H71 -> 1786 | E71: 1541 | F71: =IFERROR(VLOOKUP($A71,Filtro_!$A$5:$AW$2624,5,FALSE),0) -> 1311 | G71: =IFERROR(VLOOKUP($A71,Filtro_!$A$5:$AW$2624,6,FALSE),0) -> 1131 | H71: =IFERROR(VLOOKUP($A71,Filtro_!$A$5:$AW$2624,7,FALSE),0) -> 475 | I71: =IFERROR(VLOOKUP($A71,Filtro_!$A$5:$AW$2624,8,FALSE),0) -> 410 | J71: =IFERROR(VLOOKUP($A71,Filtro_!$A$5:$AW$2624,9,FALSE),0) -> 14 | K71: =IFERROR(VLOOKUP($A71,Filtro_!$A$5:$AW$2624,10,FALSE),0) -> 7 | L71: =IFERROR(VLOOKUP($A71,Filtro_!$A$5:$AW$2624,11,FALSE),0) -> 4 | M71: =IFERROR(VLOOKUP($A71,Filtro_!$A$5:$AW$2624,12,FALSE),0) -> 10 | DA71: 0 | DB71: 0 | DC71: 0 | DD71: 0 | DE71: 0 | DF71: 0 | DG71: 0 | DH71: 0 | DI71: 0
A72: 09600208 | B72: ANORMAL | C72: =SUM(D72:E72) -> 577 | D72: 204 | E72: 373 | F72: =IFERROR(VLOOKUP($A72,Filtro_!$A$5:$AW$2624,5,FALSE),0) -> 129 | G72: =IFERROR(VLOOKUP($A72,Filtro_!$A$5:$AW$2624,6,FALSE),0) -> 241 | H72: =IFERROR(VLOOKUP($A72,Filtro_!$A$5:$AW$2624,7,FALSE),0) -> 75 | I72: =IFERROR(VLOOKUP($A72,Filtro_!$A$5:$AW$2624,8,FALSE),0) -> 132 | J72: =IFERROR(VLOOKUP($A72,Filtro_!$A$5:$AW$2624,9,FALSE),0) -> 1 | K72: =IFERROR(VLOOKUP($A72,Filtro_!$A$5:$AW$2624,10,FALSE),0) -> 1 | L72: =IFERROR(VLOOKUP($A72,Filtro_!$A$5:$AW$2624,11,FALSE),0) -> 0 | M72: =IFERROR(VLOOKUP($A72,Filtro_!$A$5:$AW$2624,12,FALSE),0) -> 1 | CF72: * * No olvide digitar el campo Pueblos Originarios (4 MESES) (Digite CEROS si no tiene). | CG72: * * No olvide digitar el campo Migrantes (4 MESES) (Digite CEROS si no tiene). | DB72: 0 | DC72: 0 | DD72: 0 | DE72: 0 | DF72: 0 | DG72: 0 | DH72: 0 | DI72: 0
A73: 09600209 | B73: INMADURA | C73: =SUM(D73:E73) -> 649 | D73: 234 | E73: 415 | F73: =IFERROR(VLOOKUP($A73,Filtro_!$A$5:$AW$2624,5,FALSE),0) -> 182 | G73: =IFERROR(VLOOKUP($A73,Filtro_!$A$5:$AW$2624,6,FALSE),0) -> 324 | H73: =IFERROR(VLOOKUP($A73,Filtro_!$A$5:$AW$2624,7,FALSE),0) -> 52 | I73: =IFERROR(VLOOKUP($A73,Filtro_!$A$5:$AW$2624,8,FALSE),0) -> 91 | J73: =IFERROR(VLOOKUP($A73,Filtro_!$A$5:$AW$2624,9,FALSE),0) -> 3 | K73: =IFERROR(VLOOKUP($A73,Filtro_!$A$5:$AW$2624,10,FALSE),0) -> 5 | L73: =IFERROR(VLOOKUP($A73,Filtro_!$A$5:$AW$2624,11,FALSE),0) -> 0 | M73: =IFERROR(VLOOKUP($A73,Filtro_!$A$5:$AW$2624,12,FALSE),0) -> 4 | CF73: * * No olvide digitar el campo Pueblos Originarios (4 MESES) (Digite CEROS si no tiene). | CG73: * * No olvide digitar el campo Migrantes (4 MESES) (Digite CEROS si no tiene). | DB73: 0 | DC73: 0 | DD73: 0 | DE73: 0 | DF73: 0 | DG73: 0 | DH73: 0 | DI73: 0
B74: SECCION B: EVALUACIÓN, APLICACIÓN Y RESULTADOS DE ESCALAS EN LA MUJER
B75: SECCIÓN B.1: EVALUACIÓN DEL ESTADO NUTRICIONAL A MUJERES CONTROLADAS AL OCTAVO MES POST PARTO
B76: ESTADO NUTRICIONAL | C76: TOTAL
B78: TOTAL | C78: =SUM(C79:C82) -> 820
A79: 03500120 | B79: OBESA | C79: =IFERROR(VLOOKUP($A79,Filtro_!$A$5:$AW$2624,2,FALSE),0) -> 304
A80: 03500130 | B80: SOBREPESO | C80: =IFERROR(VLOOKUP($A80,Filtro_!$A$5:$AW$2624,2,FALSE),0) -> 312
A81: 03500140 | B81: NORMAL | C81: =IFERROR(VLOOKUP($A81,Filtro_!$A$5:$AW$2624,2,FALSE),0) -> 190
A82: 03500150 | B82: BAJO PESO | C82: =IFERROR(VLOOKUP($A82,Filtro_!$A$5:$AW$2624,2,FALSE),0) -> 14
B83: SECCIÓN B.2: APLICACIÓN DE ESCALA SEGÚN EVALUACIÓN DE RIESGO PSICOSOCIAL ABREVIADA A GESTANTES
B84: TIPO | C84: Total de Aplicaciones | D84: Riesgo | E84: Derivadas a equipo de cabecera | F84: Violencia Intrafamiliar | CG84: 0
A85: 02021830 | B85: EVALUACIÓN AL INGRESO | C85: =IFERROR(VLOOKUP($A85,Filtro_!$A$5:$AW$2624,2,FALSE),0) -> 5789 | D85: =IFERROR(VLOOKUP($A85,Filtro_!$A$5:$AW$2624,3,FALSE),0) -> 1606 | E85: =IFERROR(VLOOKUP($A85,Filtro_!$A$5:$AW$2624,4,FALSE),0) -> 1298 | F85: =IFERROR(VLOOKUP($A85,Filtro_!$A$5:$AW$2624,5,FALSE),0) -> 117 | G85: =CA85&CB85&CC85 ->  | BU85: =IF(CA85=1,"* Las Aplicaciones de EPSA con resultado de Riesgo NO DEBE ser MAYOR que el Total de las aplicaciones. ","") ->  | CA85: =IF(CG85=1,"* Las Aplicaciones de EPSA con resultado de Riesgo NO DEBE ser MAYOR que el Total de las aplicaciones. ","") ->  | CB85: =IF(CH85=1,"* Las Aplicaciones de EPSA con resultado de Riesgo NO DEBE ser MENOR que las Derivaciones a equipo de cabecera. ","") ->  | CC85: =IF(CI85=1,"* Las Aplicaciones de EPSA asociadas a Violencia Intrafamiliar NO DEBEN ser MAYOR al Total de las aplicaciones. ","") ->  | CG85: =IF(C85<D85,1,0) -> 0 | CH85: =IF(D85<E85,1,0) -> 0 | CI85: =IF(F85>C85,1,0) -> 0
A86: 03600160 | B86: EVALUACIÓN AL TERCER TRIMESTRE | C86: =IFERROR(VLOOKUP($A86,Filtro_!$A$5:$AW$2624,2,FALSE),0) -> 372 | D86: =IFERROR(VLOOKUP($A86,Filtro_!$A$5:$AW$2624,3,FALSE),0) -> 66 | E86: =IFERROR(VLOOKUP($A86,Filtro_!$A$5:$AW$2624,4,FALSE),0) -> 51 | F86: =IFERROR(VLOOKUP($A86,Filtro_!$A$5:$AW$2624,5,FALSE),0) -> 4 | G86: =CA86&CB86&CC86 ->  | CA86: =IF(CG86=1,"* Las Aplicaciones de EPSA con resultado de Riesgo NO DEBE ser MAYOR que el Total de las aplicaciones. ","") ->  | CB86: =IF(CH86=1,"* Las Aplicaciones de EPSA con resultado de Riesgo NO DEBE ser MENOR que las Derivaciones a equipo de cabecera. ","") ->  | CC86: =IF(CI86=1,"* Las Aplicaciones de EPSA asociadas a Violencia Intrafamiliar NO DEBEN ser MAYOR al Total de las aplicaciones. ","") ->  | CG86: =IF(C86<D86,1,0) -> 0 | CH86: =IF(D86<E86,1,0) -> 0 | CI86: =IF(F86>C86,1,0) -> 0
B87: SECCIÓN B.3: APLICACIÓN DE ESCALA DE EDIMBURGO A GESTANTES Y MUJERES POST PARTO | CH87: 0
B88: CONCEPTO | D88: TOTAL DE APLICACIONES | E88: RESULTADOS 10 O MÁS PTOS. O RESULTADO DISTINTO DE 0 EN PREG 10 . (PUERPERAS) | F88: RESULTADOS 13 O MÁS PTOS O RESULTADO DISTINTO DE 0 EN PREG 10. (GESTANTES) | G88: TOTAL DE CASOS ALTERADOS DERIVADOS A SALUD MENTAL | CH88: 0
A89: 03500160 | B89: EVALUACIÓN A GESTANTES | C89: PRIMERA EVALUACIÓN (2º control prenatal) | D89: =IFERROR(VLOOKUP($A89,Filtro_!$A$5:$AW$2624,2,FALSE),0) -> 5734 | E89: =IFERROR(VLOOKUP($A89,Filtro_!$A$5:$AW$2624,3,FALSE),0) -> 0 | F89: =IFERROR(VLOOKUP($A89,Filtro_!$A$5:$AW$2624,4,FALSE),0) -> 561 | G89: =IFERROR(VLOOKUP($A89,Filtro_!$A$5:$AW$2624,5,FALSE),0) -> 541 | CH89: 0 | DA89: 0 | DC89: 0
A90: 03500170 | C90: REEVALUACIÓN (con puntaje elevado en la primera evaluación) | D90: =IFERROR(VLOOKUP($A90,Filtro_!$A$5:$AW$2624,2,FALSE),0) -> 72 | E90: =IFERROR(VLOOKUP($A90,Filtro_!$A$5:$AW$2624,3,FALSE),0) -> 0 | F90: =IFERROR(VLOOKUP($A90,Filtro_!$A$5:$AW$2624,4,FALSE),0) -> 25 | G90: =IFERROR(VLOOKUP($A90,Filtro_!$A$5:$AW$2624,5,FALSE),0) -> 12 | CH90: 0 | DC90: 0
A91: 03500200 | B91: EVALUACIÓN A MUJERES POST PARTO O SÍNTOMAS DE DEPRESIÓN | C91: A los 2 meses | D91: =IFERROR(VLOOKUP($A91,Filtro_!$A$5:$AW$2624,2,FALSE),0) -> 4202 | E91: =IFERROR(VLOOKUP($A91,Filtro_!$A$5:$AW$2624,3,FALSE),0) -> 625 | F91: =IFERROR(VLOOKUP($A91,Filtro_!$A$5:$AW$2624,4,FALSE),0) -> 0 | G91: =IFERROR(VLOOKUP($A91,Filtro_!$A$5:$AW$2624,5,FALSE),0) -> 489 | CH91: 0 | DB91: 0
A92: 03500210 | C92: A los 6 meses | D92: =IFERROR(VLOOKUP($A92,Filtro_!$A$5:$AW$2624,2,FALSE),0) -> 3931 | E92: =IFERROR(VLOOKUP($A92,Filtro_!$A$5:$AW$2624,3,FALSE),0) -> 604 | F92: =IFERROR(VLOOKUP($A92,Filtro_!$A$5:$AW$2624,4,FALSE),0) -> 0 | G92: =IFERROR(VLOOKUP($A92,Filtro_!$A$5:$AW$2624,5,FALSE),0) -> 440 | CH92: 0 | DB92: 0
B93: SECCIÓN C: RESULTADOS DE LA EVALUACIÓN DEL ESTADO NUTRICIONAL DEL ADOLESCENTE CON CONTROL SALUD INTEGRAL
B94: ESTADO NUTRICIONAL | D94: TOTAL | G94: 10 A 14 años | I94: 15 A 19 años
D95: Ambos Sexos | E95: Hombres | F95: Mujeres | G95: Hombres | H95: Mujeres | I95: Hombres | J95: Mujeres
B96: TOTAL | D96: =SUM(D97:D101) -> 12471 | E96: =SUM(E97:E101) -> 5406 | F96: 7065 | G96: =SUM(G97:G101) -> 3875 | H96: =SUM(H97:H101) -> 4659 | I96: 1531 | J96: 2406
A97: 03050400 | B97: NORMAL | D97: =SUM(E97+F97) -> 5505 | E97: =SUM(G97+I97) -> 2351 | F97: =SUM(H97+J97) -> 3154 | G97: =IFERROR(VLOOKUP($A97,Filtro_!$A$5:$AW$2624,5,FALSE),0) -> 1604 | H97: =IFERROR(VLOOKUP($A97,Filtro_!$A$5:$AW$2624,6,FALSE),0) -> 2100 | I97: =IFERROR(VLOOKUP($A97,Filtro_!$A$5:$AW$2624,7,FALSE),0) -> 747 | J97: =IFERROR(VLOOKUP($A97,Filtro_!$A$5:$AW$2624,8,FALSE),0) -> 1054
A98: 03050500 | B98: BAJO PESO | D98: =SUM(E98+F98) -> 775 | E98: 423 | F98: 352 | G98: =IFERROR(VLOOKUP($A98,Filtro_!$A$5:$AW$2624,5,FALSE),0) -> 275 | H98: =IFERROR(VLOOKUP($A98,Filtro_!$A$5:$AW$2624,6,FALSE),0) -> 231 | I98: =IFERROR(VLOOKUP($A98,Filtro_!$A$5:$AW$2624,7,FALSE),0) -> 148 | J98: =IFERROR(VLOOKUP($A98,Filtro_!$A$5:$AW$2624,8,FALSE),0) -> 121
A99: 03050600 | B99: SOBREPESO | D99: =SUM(E99+F99) -> 3209 | E99: 1240 | F99: 1969 | G99: =IFERROR(VLOOKUP($A99,Filtro_!$A$5:$AW$2624,5,FALSE),0) -> 930 | H99: =IFERROR(VLOOKUP($A99,Filtro_!$A$5:$AW$2624,6,FALSE),0) -> 1294 | I99: =IFERROR(VLOOKUP($A99,Filtro_!$A$5:$AW$2624,7,FALSE),0) -> 310 | J99: =IFERROR(VLOOKUP($A99,Filtro_!$A$5:$AW$2624,8,FALSE),0) -> 675
A100: 03050700 | B100: OBESOS | D100: =SUM(E100+F100) -> 2531 | E100: 1156 | F100: 1375 | G100: =IFERROR(VLOOKUP($A100,Filtro_!$A$5:$AW$2624,5,FALSE),0) -> 891 | H100: =IFERROR(VLOOKUP($A100,Filtro_!$A$5:$AW$2624,6,FALSE),0) -> 907 | I100: =IFERROR(VLOOKUP($A100,Filtro_!$A$5:$AW$2624,7,FALSE),0) -> 265 | J100: =IFERROR(VLOOKUP($A100,Filtro_!$A$5:$AW$2624,8,FALSE),0) -> 468
A101: 03050710 | B101: OBESOS SEVEROS | D101: =SUM(E101+F101) -> 451 | E101: 236 | F101: 215 | G101: =IFERROR(VLOOKUP($A101,Filtro_!$A$5:$AW$2624,5,FALSE),0) -> 175 | H101: =IFERROR(VLOOKUP($A101,Filtro_!$A$5:$AW$2624,6,FALSE),0) -> 127 | I101: =IFERROR(VLOOKUP($A101,Filtro_!$A$5:$AW$2624,7,FALSE),0) -> 61 | J101: =IFERROR(VLOOKUP($A101,Filtro_!$A$5:$AW$2624,8,FALSE),0) -> 88
B102: SECCIÓN D: OTRAS EVALUACIONES, APLICACIONES Y RESULTADOS DE ESCALAS EN TODAS LAS EDADES
B103: SECCIÓN D.1: APLICACIÓN DE TAMIZAJE PARA EVALUAR EL NIVEL DE RIESGO DE CONSUMO DE ALCOHOL, TABACO Y OTRAS DROGAS
B104: COMPONENTE | D104: TOTAL | G104: POR EDAD
G105: 10-14 años | I105: 15-19 años | K105: 20-24 años | M105: 25-44 años | O105: 45-64 años | Q105: 65-69 años | S105: 70-79 años | U105: 80 y más años
D106: Ambos Sexos | E106: Hombres | F106: Mujeres | G106: Hombres | H106: Mujeres | I106: Hombres | J106: Mujeres | K106: Hombres | L106: Mujeres | M106: Hombres | N106: Mujeres | O106: Hombres | P106: Mujeres | Q106: Hombres | R106: Mujeres | S106: Hombres | T106: Mujeres | U106: Hombres | V106: Mujeres
A107: 03500346 | B107: Nº DE AUDIT (EMP/EMPAM) | D107: =SUM(E107+F107) -> 35858 | E107: =+I107+K107+M107+O107+Q107+S107+U107 -> 12099 | F107: =+J107+L107+N107+P107+R107+T107+V107 -> 23759 | G107: =IFERROR(VLOOKUP($A107,Filtro_!$A$5:$AW$2624,5,FALSE),0) -> 0 | H107: =IFERROR(VLOOKUP($A107,Filtro_!$A$5:$AW$2624,6,FALSE),0) -> 0 | I107: =IFERROR(VLOOKUP($A107,Filtro_!$A$5:$AW$2624,7,FALSE),0) -> 187 | J107: =IFERROR(VLOOKUP($A107,Filtro_!$A$5:$AW$2624,8,FALSE),0) -> 311 | K107: =IFERROR(VLOOKUP($A107,Filtro_!$A$5:$AW$2624,9,FALSE),0) -> 715 | L107: =IFERROR(VLOOKUP($A107,Filtro_!$A$5:$AW$2624,10,FALSE),0) -> 1802 | M107: =IFERROR(VLOOKUP($A107,Filtro_!$A$5:$AW$2624,11,FALSE),0) -> 3433 | N107: =IFERROR(VLOOKUP($A107,Filtro_!$A$5:$AW$2624,12,FALSE),0) -> 8223 | O107: =IFERROR(VLOOKUP($A107,Filtro_!$A$5:$AW$2624,13,FALSE),0) -> 2912 | P107: =IFERROR(VLOOKUP($A107,Filtro_!$A$5:$AW$2624,14,FALSE),0) -> 5611 | Q107: =IFERROR(VLOOKUP($A107,Filtro_!$A$5:$AW$2624,15,FALSE),0) -> 1342 | R107: =IFERROR(VLOOKUP($A107,Filtro_!$A$5:$AW$2624,16,FALSE),0) -> 2272 | S107: =IFERROR(VLOOKUP($A107,Filtro_!$A$5:$AW$2624,17,FALSE),0) -> 2279 | T107: =IFERROR(VLOOKUP($A107,Filtro_!$A$5:$AW$2624,18,FALSE),0) -> 3489 | U107: =IFERROR(VLOOKUP($A107,Filtro_!$A$5:$AW$2624,19,FALSE),0) -> 1231 | V107: =IFERROR(VLOOKUP($A107,Filtro_!$A$5:$AW$2624,20,FALSE),0) -> 2051
A108: 03500347 | B108: Nº DE AUDIT APLICADO | D108: =SUM(E108+F108) -> 25859 | E108: =SUM(K108+M108+O108+Q108+S108+U108) -> 9442 | F108: 16417 | G108: =IFERROR(VLOOKUP($A108,Filtro_!$A$5:$AW$2624,5,FALSE),0) -> 0 | H108: =IFERROR(VLOOKUP($A108,Filtro_!$A$5:$AW$2624,6,FALSE),0) -> 0 | I108: =IFERROR(VLOOKUP($A108,Filtro_!$A$5:$AW$2624,7,FALSE),0) -> 0 | J108: =IFERROR(VLOOKUP($A108,Filtro_!$A$5:$AW$2624,8,FALSE),0) -> 0 | K108: =IFERROR(VLOOKUP($A108,Filtro_!$A$5:$AW$2624,9,FALSE),0) -> 1215 | L108: =IFERROR(VLOOKUP($A108,Filtro_!$A$5:$AW$2624,10,FALSE),0) -> 1934 | M108: =IFERROR(VLOOKUP($A108,Filtro_!$A$5:$AW$2624,11,FALSE),0) -> 2791 | N108: =IFERROR(VLOOKUP($A108,Filtro_!$A$5:$AW$2624,12,FALSE),0) -> 5966 | O108: =IFERROR(VLOOKUP($A108,Filtro_!$A$5:$AW$2624,13,FALSE),0) -> 2575 | P108: =IFERROR(VLOOKUP($A108,Filtro_!$A$5:$AW$2624,14,FALSE),0) -> 4718 | Q108: =IFERROR(VLOOKUP($A108,Filtro_!$A$5:$AW$2624,15,FALSE),0) -> 1111 | R108: =IFERROR(VLOOKUP($A108,Filtro_!$A$5:$AW$2624,16,FALSE),0) -> 1569 | S108: =IFERROR(VLOOKUP($A108,Filtro_!$A$5:$AW$2624,17,FALSE),0) -> 1174 | T108: =IFERROR(VLOOKUP($A108,Filtro_!$A$5:$AW$2624,18,FALSE),0) -> 1555 | U108: =IFERROR(VLOOKUP($A108,Filtro_!$A$5:$AW$2624,19,FALSE),0) -> 576 | V108: =IFERROR(VLOOKUP($A108,Filtro_!$A$5:$AW$2624,20,FALSE),0) -> 675
A109: 03500402 | B109: Nº DE ASSIST (EMP/EMPAM) | D109: 2150 | E109: 767 | F109: 1383 | G109: =IFERROR(VLOOKUP($A109,Filtro_!$A$5:$AW$2624,5,FALSE),0) -> 0 | H109: =IFERROR(VLOOKUP($A109,Filtro_!$A$5:$AW$2624,6,FALSE),0) -> 0 | I109: =IFERROR(VLOOKUP($A109,Filtro_!$A$5:$AW$2624,7,FALSE),0) -> 0 | J109: =IFERROR(VLOOKUP($A109,Filtro_!$A$5:$AW$2624,8,FALSE),0) -> 0 | K109: =IFERROR(VLOOKUP($A109,Filtro_!$A$5:$AW$2624,9,FALSE),0) -> 50 | L109: =IFERROR(VLOOKUP($A109,Filtro_!$A$5:$AW$2624,10,FALSE),0) -> 103 | M109: =IFERROR(VLOOKUP($A109,Filtro_!$A$5:$AW$2624,11,FALSE),0) -> 224 | N109: =IFERROR(VLOOKUP($A109,Filtro_!$A$5:$AW$2624,12,FALSE),0) -> 520 | O109: =IFERROR(VLOOKUP($A109,Filtro_!$A$5:$AW$2624,13,FALSE),0) -> 149 | P109: =IFERROR(VLOOKUP($A109,Filtro_!$A$5:$AW$2624,14,FALSE),0) -> 323 | Q109: =IFERROR(VLOOKUP($A109,Filtro_!$A$5:$AW$2624,15,FALSE),0) -> 132 | R109: =IFERROR(VLOOKUP($A109,Filtro_!$A$5:$AW$2624,16,FALSE),0) -> 144 | S109: =IFERROR(VLOOKUP($A109,Filtro_!$A$5:$AW$2624,17,FALSE),0) -> 144 | T109: =IFERROR(VLOOKUP($A109,Filtro_!$A$5:$AW$2624,18,FALSE),0) -> 198 | U109: =IFERROR(VLOOKUP($A109,Filtro_!$A$5:$AW$2624,19,FALSE),0) -> 68 | V109: =IFERROR(VLOOKUP($A109,Filtro_!$A$5:$AW$2624,20,FALSE),0) -> 95
A110: 03500348 | B110: N° DE ASSIST APLICADO | D110: 2420 | E110: 621 | F110: 1799 | G110: =IFERROR(VLOOKUP($A110,Filtro_!$A$5:$AW$2624,5,FALSE),0) -> 0 | H110: =IFERROR(VLOOKUP($A110,Filtro_!$A$5:$AW$2624,6,FALSE),0) -> 0 | I110: =IFERROR(VLOOKUP($A110,Filtro_!$A$5:$AW$2624,7,FALSE),0) -> 0 | J110: =IFERROR(VLOOKUP($A110,Filtro_!$A$5:$AW$2624,8,FALSE),0) -> 0 | K110: =IFERROR(VLOOKUP($A110,Filtro_!$A$5:$AW$2624,9,FALSE),0) -> 55 | L110: =IFERROR(VLOOKUP($A110,Filtro_!$A$5:$AW$2624,10,FALSE),0) -> 145 | M110: =IFERROR(VLOOKUP($A110,Filtro_!$A$5:$AW$2624,11,FALSE),0) -> 246 | N110: =IFERROR(VLOOKUP($A110,Filtro_!$A$5:$AW$2624,12,FALSE),0) -> 739 | O110: =IFERROR(VLOOKUP($A110,Filtro_!$A$5:$AW$2624,13,FALSE),0) -> 211 | P110: =IFERROR(VLOOKUP($A110,Filtro_!$A$5:$AW$2624,14,FALSE),0) -> 693 | Q110: =IFERROR(VLOOKUP($A110,Filtro_!$A$5:$AW$2624,15,FALSE),0) -> 49 | R110: =IFERROR(VLOOKUP($A110,Filtro_!$A$5:$AW$2624,16,FALSE),0) -> 99 | S110: =IFERROR(VLOOKUP($A110,Filtro_!$A$5:$AW$2624,17,FALSE),0) -> 47 | T110: =IFERROR(VLOOKUP($A110,Filtro_!$A$5:$AW$2624,18,FALSE),0) -> 97 | U110: =IFERROR(VLOOKUP($A110,Filtro_!$A$5:$AW$2624,19,FALSE),0) -> 13 | V110: =IFERROR(VLOOKUP($A110,Filtro_!$A$5:$AW$2624,20,FALSE),0) -> 26
A111: 03600100 | B111: N° DE CRAFFT EN CONTROL DE SALUD INTEGRAL DEL ADOLESCENTE | D111: 4697 | E111: =+G111+I111 -> 2112 | F111: =+H111+J111 -> 2585 | G111: =IFERROR(VLOOKUP($A111,Filtro_!$A$5:$AW$2624,5,FALSE),0) -> 1301 | H111: =IFERROR(VLOOKUP($A111,Filtro_!$A$5:$AW$2624,6,FALSE),0) -> 1554 | I111: =IFERROR(VLOOKUP($A111,Filtro_!$A$5:$AW$2624,7,FALSE),0) -> 811 | J111: =IFERROR(VLOOKUP($A111,Filtro_!$A$5:$AW$2624,8,FALSE),0) -> 1031 | K111: =IFERROR(VLOOKUP($A111,Filtro_!$A$5:$AW$2624,9,FALSE),0) -> 0 | L111: =IFERROR(VLOOKUP($A111,Filtro_!$A$5:$AW$2624,10,FALSE),0) -> 0 | M111: =IFERROR(VLOOKUP($A111,Filtro_!$A$5:$AW$2624,11,FALSE),0) -> 0 | N111: =IFERROR(VLOOKUP($A111,Filtro_!$A$5:$AW$2624,12,FALSE),0) -> 0 | O111: =IFERROR(VLOOKUP($A111,Filtro_!$A$5:$AW$2624,13,FALSE),0) -> 0 | P111: =IFERROR(VLOOKUP($A111,Filtro_!$A$5:$AW$2624,14,FALSE),0) -> 0 | Q111: =IFERROR(VLOOKUP($A111,Filtro_!$A$5:$AW$2624,15,FALSE),0) -> 0 | R111: =IFERROR(VLOOKUP($A111,Filtro_!$A$5:$AW$2624,16,FALSE),0) -> 0 | S111: =IFERROR(VLOOKUP($A111,Filtro_!$A$5:$AW$2624,17,FALSE),0) -> 0 | T111: =IFERROR(VLOOKUP($A111,Filtro_!$A$5:$AW$2624,18,FALSE),0) -> 0 | U111: =IFERROR(VLOOKUP($A111,Filtro_!$A$5:$AW$2624,19,FALSE),0) -> 0 | V111: =IFERROR(VLOOKUP($A111,Filtro_!$A$5:$AW$2624,20,FALSE),0) -> 0
A112: 03500367 | B112: N° DE CRAFFT APLICADO | D112: 5797 | E112: =+G112+I112 -> 2591 | F112: =+H112+J112 -> 3206 | G112: =IFERROR(VLOOKUP($A112,Filtro_!$A$5:$AW$2624,5,FALSE),0) -> 1462 | H112: =IFERROR(VLOOKUP($A112,Filtro_!$A$5:$AW$2624,6,FALSE),0) -> 1692 | I112: =IFERROR(VLOOKUP($A112,Filtro_!$A$5:$AW$2624,7,FALSE),0) -> 1129 | J112: =IFERROR(VLOOKUP($A112,Filtro_!$A$5:$AW$2624,8,FALSE),0) -> 1514 | K112: =IFERROR(VLOOKUP($A112,Filtro_!$A$5:$AW$2624,9,FALSE),0) -> 0 | L112: =IFERROR(VLOOKUP($A112,Filtro_!$A$5:$AW$2624,10,FALSE),0) -> 0 | M112: =IFERROR(VLOOKUP($A112,Filtro_!$A$5:$AW$2624,11,FALSE),0) -> 0 | N112: =IFERROR(VLOOKUP($A112,Filtro_!$A$5:$AW$2624,12,FALSE),0) -> 0 | O112: =IFERROR(VLOOKUP($A112,Filtro_!$A$5:$AW$2624,13,FALSE),0) -> 0 | P112: =IFERROR(VLOOKUP($A112,Filtro_!$A$5:$AW$2624,14,FALSE),0) -> 0 | Q112: =IFERROR(VLOOKUP($A112,Filtro_!$A$5:$AW$2624,15,FALSE),0) -> 0 | R112: =IFERROR(VLOOKUP($A112,Filtro_!$A$5:$AW$2624,16,FALSE),0) -> 0 | S112: =IFERROR(VLOOKUP($A112,Filtro_!$A$5:$AW$2624,17,FALSE),0) -> 0 | T112: =IFERROR(VLOOKUP($A112,Filtro_!$A$5:$AW$2624,18,FALSE),0) -> 0 | U112: =IFERROR(VLOOKUP($A112,Filtro_!$A$5:$AW$2624,19,FALSE),0) -> 0 | V112: =IFERROR(VLOOKUP($A112,Filtro_!$A$5:$AW$2624,20,FALSE),0) -> 0
A113: 03500349 | B113: RESULTADOS DE EVALUACIÓN | C113: BAJO RIESGO | D113: 68634 | E113: =SUM(G113+I113+K113+M113+O113+Q113+S113+U113) -> 24290 | F113: 44344 | G113: =IFERROR(VLOOKUP($A113,Filtro_!$A$5:$AW$2624,5,FALSE),0) -> 2431 | H113: =IFERROR(VLOOKUP($A113,Filtro_!$A$5:$AW$2624,6,FALSE),0) -> 2831 | I113: =IFERROR(VLOOKUP($A113,Filtro_!$A$5:$AW$2624,7,FALSE),0) -> 1662 | J113: =IFERROR(VLOOKUP($A113,Filtro_!$A$5:$AW$2624,8,FALSE),0) -> 2354 | K113: =IFERROR(VLOOKUP($A113,Filtro_!$A$5:$AW$2624,9,FALSE),0) -> 1792 | L113: =IFERROR(VLOOKUP($A113,Filtro_!$A$5:$AW$2624,10,FALSE),0) -> 3593 | M113: =IFERROR(VLOOKUP($A113,Filtro_!$A$5:$AW$2624,11,FALSE),0) -> 5791 | N113: =IFERROR(VLOOKUP($A113,Filtro_!$A$5:$AW$2624,12,FALSE),0) -> 13748 | O113: =IFERROR(VLOOKUP($A113,Filtro_!$A$5:$AW$2624,13,FALSE),0) -> 5081 | P113: =IFERROR(VLOOKUP($A113,Filtro_!$A$5:$AW$2624,14,FALSE),0) -> 10223 | Q113: =IFERROR(VLOOKUP($A113,Filtro_!$A$5:$AW$2624,15,FALSE),0) -> 2407 | R113: =IFERROR(VLOOKUP($A113,Filtro_!$A$5:$AW$2624,16,FALSE),0) -> 3839 | S113: =IFERROR(VLOOKUP($A113,Filtro_!$A$5:$AW$2624,17,FALSE),0) -> 3343 | T113: =IFERROR(VLOOKUP($A113,Filtro_!$A$5:$AW$2624,18,FALSE),0) -> 5043 | U113: =IFERROR(VLOOKUP($A113,Filtro_!$A$5:$AW$2624,19,FALSE),0) -> 1783 | V113: =IFERROR(VLOOKUP($A113,Filtro_!$A$5:$AW$2624,20,FALSE),0) -> 2713
A114: 03500290 | C114: CONSUMO RIESGOSO / INTERMEDIO | D114: 3455 | E114: 1459 | F114: 1996 | G114: =IFERROR(VLOOKUP($A114,Filtro_!$A$5:$AW$2624,5,FALSE),0) -> 34 | H114: =IFERROR(VLOOKUP($A114,Filtro_!$A$5:$AW$2624,6,FALSE),0) -> 43 | I114: =IFERROR(VLOOKUP($A114,Filtro_!$A$5:$AW$2624,7,FALSE),0) -> 165 | J114: =IFERROR(VLOOKUP($A114,Filtro_!$A$5:$AW$2624,8,FALSE),0) -> 174 | K114: =IFERROR(VLOOKUP($A114,Filtro_!$A$5:$AW$2624,9,FALSE),0) -> 159 | L114: =IFERROR(VLOOKUP($A114,Filtro_!$A$5:$AW$2624,10,FALSE),0) -> 253 | M114: =IFERROR(VLOOKUP($A114,Filtro_!$A$5:$AW$2624,11,FALSE),0) -> 498 | N114: =IFERROR(VLOOKUP($A114,Filtro_!$A$5:$AW$2624,12,FALSE),0) -> 807 | O114: =IFERROR(VLOOKUP($A114,Filtro_!$A$5:$AW$2624,13,FALSE),0) -> 357 | P114: =IFERROR(VLOOKUP($A114,Filtro_!$A$5:$AW$2624,14,FALSE),0) -> 479 | Q114: =IFERROR(VLOOKUP($A114,Filtro_!$A$5:$AW$2624,15,FALSE),0) -> 120 | R114: =IFERROR(VLOOKUP($A114,Filtro_!$A$5:$AW$2624,16,FALSE),0) -> 105 | S114: =IFERROR(VLOOKUP($A114,Filtro_!$A$5:$AW$2624,17,FALSE),0) -> 107 | T114: =IFERROR(VLOOKUP($A114,Filtro_!$A$5:$AW$2624,18,FALSE),0) -> 113 | U114: =IFERROR(VLOOKUP($A114,Filtro_!$A$5:$AW$2624,19,FALSE),0) -> 19 | V114: =IFERROR(VLOOKUP($A114,Filtro_!$A$5:$AW$2624,20,FALSE),0) -> 22
A115: 03500300 | C115: POSIBLE CONSUMO PERJUDICIAL O DEPENDENCIA | D115: 727 | E115: 417 | F115: 310 | G115: =IFERROR(VLOOKUP($A115,Filtro_!$A$5:$AW$2624,5,FALSE),0) -> 27 | H115: =IFERROR(VLOOKUP($A115,Filtro_!$A$5:$AW$2624,6,FALSE),0) -> 31 | I115: =IFERROR(VLOOKUP($A115,Filtro_!$A$5:$AW$2624,7,FALSE),0) -> 98 | J115: =IFERROR(VLOOKUP($A115,Filtro_!$A$5:$AW$2624,8,FALSE),0) -> 77 | K115: =IFERROR(VLOOKUP($A115,Filtro_!$A$5:$AW$2624,9,FALSE),0) -> 22 | L115: =IFERROR(VLOOKUP($A115,Filtro_!$A$5:$AW$2624,10,FALSE),0) -> 22 | M115: =IFERROR(VLOOKUP($A115,Filtro_!$A$5:$AW$2624,11,FALSE),0) -> 105 | N115: =IFERROR(VLOOKUP($A115,Filtro_!$A$5:$AW$2624,12,FALSE),0) -> 71 | O115: =IFERROR(VLOOKUP($A115,Filtro_!$A$5:$AW$2624,13,FALSE),0) -> 105 | P115: =IFERROR(VLOOKUP($A115,Filtro_!$A$5:$AW$2624,14,FALSE),0) -> 68 | Q115: =IFERROR(VLOOKUP($A115,Filtro_!$A$5:$AW$2624,15,FALSE),0) -> 27 | R115: =IFERROR(VLOOKUP($A115,Filtro_!$A$5:$AW$2624,16,FALSE),0) -> 33 | S115: =IFERROR(VLOOKUP($A115,Filtro_!$A$5:$AW$2624,17,FALSE),0) -> 30 | T115: =IFERROR(VLOOKUP($A115,Filtro_!$A$5:$AW$2624,18,FALSE),0) -> 5 | U115: =IFERROR(VLOOKUP($A115,Filtro_!$A$5:$AW$2624,19,FALSE),0) -> 3 | V115: =IFERROR(VLOOKUP($A115,Filtro_!$A$5:$AW$2624,20,FALSE),0) -> 3
B116: SECCIÓN D.2: RESULTADOS DE LA APLICACIÓN DE INSTRUMENTO DE VALORACIÓN DE DESEMPEÑO EN COMUNIDAD (IVADEC-CIF)
B117: ACTIVIDAD | C117: RESULTADO | D117: TOTAL | G117: POR EDAD
G118: 6 -11 meses | I118: 12 - 23 meses | K118: 2 - 4 años | M118: 5 - 9 años | O118: 10 a 14 años | Q118: 15 a 19 años | S118: 20 a 24 años | U118: 25 a 64 años | W118: 65 a 69 años | Y118: 70 a 79 años | AA118: 80 y más años
D119: Ambos Sexos | E119: Hombres | F119: Mujeres | G119: Hombres | H119: Mujeres | I119: Hombres | J119: Mujeres | K119: Hombres | L119: Mujeres | M119: Hombres | N119: Mujeres | O119: Hombres | P119: Mujeres | Q119: Hombres | R119: Mujeres | S119: Hombres | T119: Mujeres | U119: Hombres | V119: Mujeres | W119: Hombres | X119: Mujeres | Y119: Hombres | Z119: Mujeres | AA119: Hombres | AB119: Mujeres
A120: 03051000A | B120: ORIGEN FÍSICO | C120: SIN DISCAPACIDAD | D120: =SUM(E120+F120) -> 9 | E120: =SUM(G120+I120+K120+M120+O120+Q120+S120+U120+W120+Y120+AA120) -> 7 | F120: =SUM(H120+J120+L120+N120+P120+R120+T120+V120+X120+Z120+AB120) -> 2 | G120: =IFERROR(VLOOKUP($A120,Filtro_!$A$5:$AW$2624,5,FALSE),0) -> 0 | H120: =IFERROR(VLOOKUP($A120,Filtro_!$A$5:$AW$2624,6,FALSE),0) -> 0 | I120: =IFERROR(VLOOKUP($A120,Filtro_!$A$5:$AW$2624,7,FALSE),0) -> 0 | J120: =IFERROR(VLOOKUP($A120,Filtro_!$A$5:$AW$2624,8,FALSE),0) -> 0 | K120: =IFERROR(VLOOKUP($A120,Filtro_!$A$5:$AW$2624,9,FALSE),0) -> 1 | L120: =IFERROR(VLOOKUP($A120,Filtro_!$A$5:$AW$2624,10,FALSE),0) -> 0 | M120: =IFERROR(VLOOKUP($A120,Filtro_!$A$5:$AW$2624,11,FALSE),0) -> 0 | N120: =IFERROR(VLOOKUP($A120,Filtro_!$A$5:$AW$2624,12,FALSE),0) -> 0 | O120: =IFERROR(VLOOKUP($A120,Filtro_!$A$5:$AW$2624,13,FALSE),0) -> 0 | P120: =IFERROR(VLOOKUP($A120,Filtro_!$A$5:$AW$2624,14,FALSE),0) -> 0 | Q120: =IFERROR(VLOOKUP($A120,Filtro_!$A$5:$AW$2624,15,FALSE),0) -> 0 | R120: =IFERROR(VLOOKUP($A120,Filtro_!$A$5:$AW$2624,16,FALSE),0) -> 0 | S120: =IFERROR(VLOOKUP($A120,Filtro_!$A$5:$AW$2624,17,FALSE),0) -> 0 | T120: =IFERROR(VLOOKUP($A120,Filtro_!$A$5:$AW$2624,18,FALSE),0) -> 0 | U120: =IFERROR(VLOOKUP($A120,Filtro_!$A$5:$AW$2624,19,FALSE),0) -> 4 | V120: =IFERROR(VLOOKUP($A120,Filtro_!$A$5:$AW$2624,20,FALSE),0) -> 1 | W120: =IFERROR(VLOOKUP($A120,Filtro_!$A$5:$AW$2624,21,FALSE),0) -> 1 | X120: =IFERROR(VLOOKUP($A120,Filtro_!$A$5:$AW$2624,22,FALSE),0) -> 0 | Y120: =IFERROR(VLOOKUP($A120,Filtro_!$A$5:$AW$2624,23,FALSE),0) -> 1 | Z120: =IFERROR(VLOOKUP($A120,Filtro_!$A$5:$AW$2624,24,FALSE),0) -> 1 | AA120: =IFERROR(VLOOKUP($A120,Filtro_!$A$5:$AW$2624,25,FALSE),0) -> 0 | AB120: =IFERROR(VLOOKUP($A120,Filtro_!$A$5:$AW$2624,26,FALSE),0) -> 0
A121: 03051100 | C121: DISCAPACIDAD LEVE | D121: 311 | E121: =SUM(G121+I121+K121+M121+O121+Q121+S121+U121+W121+Y121+AA121) -> 164 | F121: 147 | G121: =IFERROR(VLOOKUP($A121,Filtro_!$A$5:$AW$2624,5,FALSE),0) -> 2 | H121: =IFERROR(VLOOKUP($A121,Filtro_!$A$5:$AW$2624,6,FALSE),0) -> 1 | I121: =IFERROR(VLOOKUP($A121,Filtro_!$A$5:$AW$2624,7,FALSE),0) -> 0 | J121: =IFERROR(VLOOKUP($A121,Filtro_!$A$5:$AW$2624,8,FALSE),0) -> 0 | K121: =IFERROR(VLOOKUP($A121,Filtro_!$A$5:$AW$2624,9,FALSE),0) -> 2 | L121: =IFERROR(VLOOKUP($A121,Filtro_!$A$5:$AW$2624,10,FALSE),0) -> 1 | M121: =IFERROR(VLOOKUP($A121,Filtro_!$A$5:$AW$2624,11,FALSE),0) -> 6 | N121: =IFERROR(VLOOKUP($A121,Filtro_!$A$5:$AW$2624,12,FALSE),0) -> 2 | O121: =IFERROR(VLOOKUP($A121,Filtro_!$A$5:$AW$2624,13,FALSE),0) -> 6 | P121: =IFERROR(VLOOKUP($A121,Filtro_!$A$5:$AW$2624,14,FALSE),0) -> 3 | Q121: =IFERROR(VLOOKUP($A121,Filtro_!$A$5:$AW$2624,15,FALSE),0) -> 1 | R121: =IFERROR(VLOOKUP($A121,Filtro_!$A$5:$AW$2624,16,FALSE),0) -> 2 | S121: =IFERROR(VLOOKUP($A121,Filtro_!$A$5:$AW$2624,17,FALSE),0) -> 2 | T121: =IFERROR(VLOOKUP($A121,Filtro_!$A$5:$AW$2624,18,FALSE),0) -> 5 | U121: =IFERROR(VLOOKUP($A121,Filtro_!$A$5:$AW$2624,19,FALSE),0) -> 101 | V121: =IFERROR(VLOOKUP($A121,Filtro_!$A$5:$AW$2624,20,FALSE),0) -> 110 | W121: =IFERROR(VLOOKUP($A121,Filtro_!$A$5:$AW$2624,21,FALSE),0) -> 21 | X121: =IFERROR(VLOOKUP($A121,Filtro_!$A$5:$AW$2624,22,FALSE),0) -> 13 | Y121: =IFERROR(VLOOKUP($A121,Filtro_!$A$5:$AW$2624,23,FALSE),0) -> 16 | Z121: =IFERROR(VLOOKUP($A121,Filtro_!$A$5:$AW$2624,24,FALSE),0) -> 8 | AA121: =IFERROR(VLOOKUP($A121,Filtro_!$A$5:$AW$2624,25,FALSE),0) -> 7 | AB121: =IFERROR(VLOOKUP($A121,Filtro_!$A$5:$AW$2624,26,FALSE),0) -> 2
A122: 03051200 | C122: DISCAPACIDAD MODERADA | D122: 361 | E122: 157 | F122: 204 | G122: =IFERROR(VLOOKUP($A122,Filtro_!$A$5:$AW$2624,5,FALSE),0) -> 0 | H122: =IFERROR(VLOOKUP($A122,Filtro_!$A$5:$AW$2624,6,FALSE),0) -> 1 | I122: =IFERROR(VLOOKUP($A122,Filtro_!$A$5:$AW$2624,7,FALSE),0) -> 0 | J122: =IFERROR(VLOOKUP($A122,Filtro_!$A$5:$AW$2624,8,FALSE),0) -> 2 | K122: =IFERROR(VLOOKUP($A122,Filtro_!$A$5:$AW$2624,9,FALSE),0) -> 0 | L122: =IFERROR(VLOOKUP($A122,Filtro_!$A$5:$AW$2624,10,FALSE),0) -> 2 | M122: =IFERROR(VLOOKUP($A122,Filtro_!$A$5:$AW$2624,11,FALSE),0) -> 3 | N122: =IFERROR(VLOOKUP($A122,Filtro_!$A$5:$AW$2624,12,FALSE),0) -> 2 | O122: =IFERROR(VLOOKUP($A122,Filtro_!$A$5:$AW$2624,13,FALSE),0) -> 1 | P122: =IFERROR(VLOOKUP($A122,Filtro_!$A$5:$AW$2624,14,FALSE),0) -> 0 | Q122: =IFERROR(VLOOKUP($A122,Filtro_!$A$5:$AW$2624,15,FALSE),0) -> 3 | R122: =IFERROR(VLOOKUP($A122,Filtro_!$A$5:$AW$2624,16,FALSE),0) -> 2 | S122: =IFERROR(VLOOKUP($A122,Filtro_!$A$5:$AW$2624,17,FALSE),0) -> 6 | T122: =IFERROR(VLOOKUP($A122,Filtro_!$A$5:$AW$2624,18,FALSE),0) -> 4 | U122: =IFERROR(VLOOKUP($A122,Filtro_!$A$5:$AW$2624,19,FALSE),0) -> 102 | V122: =IFERROR(VLOOKUP($A122,Filtro_!$A$5:$AW$2624,20,FALSE),0) -> 125 | W122: =IFERROR(VLOOKUP($A122,Filtro_!$A$5:$AW$2624,21,FALSE),0) -> 17 | X122: =IFERROR(VLOOKUP($A122,Filtro_!$A$5:$AW$2624,22,FALSE),0) -> 32 | Y122: =IFERROR(VLOOKUP($A122,Filtro_!$A$5:$AW$2624,23,FALSE),0) -> 16 | Z122: =IFERROR(VLOOKUP($A122,Filtro_!$A$5:$AW$2624,24,FALSE),0) -> 23 | AA122: =IFERROR(VLOOKUP($A122,Filtro_!$A$5:$AW$2624,25,FALSE),0) -> 9 | AB122: =IFERROR(VLOOKUP($A122,Filtro_!$A$5:$AW$2624,26,FALSE),0) -> 11
A123: 03051300 | C123: DISCAPACIDAD SEVERA | D123: 269 | E123: 133 | F123: 136 | G123: =IFERROR(VLOOKUP($A123,Filtro_!$A$5:$AW$2624,5,FALSE),0) -> 0 | H123: =IFERROR(VLOOKUP($A123,Filtro_!$A$5:$AW$2624,6,FALSE),0) -> 0 | I123: =IFERROR(VLOOKUP($A123,Filtro_!$A$5:$AW$2624,7,FALSE),0) -> 2 | J123: =IFERROR(VLOOKUP($A123,Filtro_!$A$5:$AW$2624,8,FALSE),0) -> 2 | K123: =IFERROR(VLOOKUP($A123,Filtro_!$A$5:$AW$2624,9,FALSE),0) -> 4 | L123: =IFERROR(VLOOKUP($A123,Filtro_!$A$5:$AW$2624,10,FALSE),0) -> 1 | M123: =IFERROR(VLOOKUP($A123,Filtro_!$A$5:$AW$2624,11,FALSE),0) -> 10 | N123: =IFERROR(VLOOKUP($A123,Filtro_!$A$5:$AW$2624,12,FALSE),0) -> 4 | O123: =IFERROR(VLOOKUP($A123,Filtro_!$A$5:$AW$2624,13,FALSE),0) -> 7 | P123: =IFERROR(VLOOKUP($A123,Filtro_!$A$5:$AW$2624,14,FALSE),0) -> 1 | Q123: =IFERROR(VLOOKUP($A123,Filtro_!$A$5:$AW$2624,15,FALSE),0) -> 2 | R123: =IFERROR(VLOOKUP($A123,Filtro_!$A$5:$AW$2624,16,FALSE),0) -> 0 | S123: =IFERROR(VLOOKUP($A123,Filtro_!$A$5:$AW$2624,17,FALSE),0) -> 1 | T123: =IFERROR(VLOOKUP($A123,Filtro_!$A$5:$AW$2624,18,FALSE),0) -> 3 | U123: =IFERROR(VLOOKUP($A123,Filtro_!$A$5:$AW$2624,19,FALSE),0) -> 59 | V123: =IFERROR(VLOOKUP($A123,Filtro_!$A$5:$AW$2624,20,FALSE),0) -> 68 | W123: =IFERROR(VLOOKUP($A123,Filtro_!$A$5:$AW$2624,21,FALSE),0) -> 7 | X123: =IFERROR(VLOOKUP($A123,Filtro_!$A$5:$AW$2624,22,FALSE),0) -> 9 | Y123: =IFERROR(VLOOKUP($A123,Filtro_!$A$5:$AW$2624,23,FALSE),0) -> 27 | Z123: =IFERROR(VLOOKUP($A123,Filtro_!$A$5:$AW$2624,24,FALSE),0) -> 20 | AA123: =IFERROR(VLOOKUP($A123,Filtro_!$A$5:$AW$2624,25,FALSE),0) -> 14 | AB123: =IFERROR(VLOOKUP($A123,Filtro_!$A$5:$AW$2624,26,FALSE),0) -> 28
A124: 03051400 | C124: DISCAPACIDAD PROFUNDA | D124: 18 | E124: 8 | F124: 10 | G124: =IFERROR(VLOOKUP($A124,Filtro_!$A$5:$AW$2624,5,FALSE),0) -> 0 | H124: =IFERROR(VLOOKUP($A124,Filtro_!$A$5:$AW$2624,6,FALSE),0) -> 0 | I124: =IFERROR(VLOOKUP($A124,Filtro_!$A$5:$AW$2624,7,FALSE),0) -> 0 | J124: =IFERROR(VLOOKUP($A124,Filtro_!$A$5:$AW$2624,8,FALSE),0) -> 0 | K124: =IFERROR(VLOOKUP($A124,Filtro_!$A$5:$AW$2624,9,FALSE),0) -> 1 | L124: =IFERROR(VLOOKUP($A124,Filtro_!$A$5:$AW$2624,10,FALSE),0) -> 1 | M124: =IFERROR(VLOOKUP($A124,Filtro_!$A$5:$AW$2624,11,FALSE),0) -> 0 | N124: =IFERROR(VLOOKUP($A124,Filtro_!$A$5:$AW$2624,12,FALSE),0) -> 0 | O124: =IFERROR(VLOOKUP($A124,Filtro_!$A$5:$AW$2624,13,FALSE),0) -> 0 | P124: =IFERROR(VLOOKUP($A124,Filtro_!$A$5:$AW$2624,14,FALSE),0) -> 0 | Q124: =IFERROR(VLOOKUP($A124,Filtro_!$A$5:$AW$2624,15,FALSE),0) -> 0 | R124: =IFERROR(VLOOKUP($A124,Filtro_!$A$5:$AW$2624,16,FALSE),0) -> 0 | S124: =IFERROR(VLOOKUP($A124,Filtro_!$A$5:$AW$2624,17,FALSE),0) -> 0 | T124: =IFERROR(VLOOKUP($A124,Filtro_!$A$5:$AW$2624,18,FALSE),0) -> 0 | U124: =IFERROR(VLOOKUP($A124,Filtro_!$A$5:$AW$2624,19,FALSE),0) -> 1 | V124: =IFERROR(VLOOKUP($A124,Filtro_!$A$5:$AW$2624,20,FALSE),0) -> 1 | W124: =IFERROR(VLOOKUP($A124,Filtro_!$A$5:$AW$2624,21,FALSE),0) -> 0 | X124: =IFERROR(VLOOKUP($A124,Filtro_!$A$5:$AW$2624,22,FALSE),0) -> 1 | Y124: =IFERROR(VLOOKUP($A124,Filtro_!$A$5:$AW$2624,23,FALSE),0) -> 1 | Z124: =IFERROR(VLOOKUP($A124,Filtro_!$A$5:$AW$2624,24,FALSE),0) -> 3 | AA124: =IFERROR(VLOOKUP($A124,Filtro_!$A$5:$AW$2624,25,FALSE),0) -> 5 | AB124: =IFERROR(VLOOKUP($A124,Filtro_!$A$5:$AW$2624,26,FALSE),0) -> 4
